Workbook

Sheet Index
A1: Index and File Details
B3: Index | H3: File Details
B5: Inputs | D5: Inputs / Calculations | F5: Outputs | I5: Model | J5: Accelerated Syncons - Capex Forecast Model
I6: Author | J6: Transgrid
B7: Notes & Assumptions | D7: Calculations | F7: ='Outputs|Models'!$A$1 -> Outputs | Models | I7: Revision | J7: 2026-04-10
B8: Inputs | F8: ='Outputs|Tables'!$A$1 -> Outputs | Tables | I8: Status | J8: Regulatory proposal
F9: ='Outputs|RIN'!$A$1 -> Outputs | RIN
B12: Model Checks | H12: Instructions
B14: Worksheet | I14: Input Sheets
B15: =B8 -> Inputs | D15: =Inputs!D2 -> 0 | I15: Fill in any cells marked as input cells as seen on the right => | K15: user input
B16: =D7 -> Calculations | D16: =SUM(Calculations!A3:A247) -> 0 | I16: Historical / Not applicable
B17: =F7 -> Outputs | Models | D17: =SUM('Outputs|Models'!A2:A86) -> 0 | I17: Cells not marked as inputs should not be modified.
B18: =F8 -> Outputs | Tables | D18: =SUM('Outputs|Tables'!A2:A264) -> 0 | I18: Confidential information | K18: user input
B19: =F9 -> Outputs | RIN | D19: =SUM('Outputs|RIN'!A2:A398) -> 0
B21: Total Error Check | D21: =IF(SUM(D15:D19)=0,0,1) -> 0
B23: End

Sheet Notes & Assumptions
A1: Assumptions & Notes
E3: User inputs in cells coloured like this
C4: * | E4: 1. Financial years are recorded in the Capex Forecast Model as tax years (e.g. 2017/18 is shown as 2018, 2018/19 is shown as 2019)
C5: * | E5: 2. Escalation is treated as follows:
E6: a. CPI escalation and Labour escalation are treated separately.
A9: Modifications
A10: Date | B10: Version | D10: Who | E10: Notes

Sheet Inputs
A1: Inputs | G1: =Report_Month&" Year" -> September Year
B2: Section Check | D2: =IF(SUM(W62,Z119:AH119,W157,W201,I64)=0,0,1) -> 0
B4: Output Reporting Format and Year
B7: Output basis | F7: Input
B8: Item | C8: Source | D8: Units
B9: Dollar Basis | C9: Transgrid | D9: % | F9: 2026 | G9: ="Real $"&Report_Year -> Real $2026
B10: Timing | C10: Transgrid | D10: % | F10: September | G10: ="◄ Financial values in this document are presented in "&Report_Month&" years" -> ◄ Financial values in this document are presented in September years
B13: Inflation and Labour Escalation
B16: Forecasts | L16: Rates
B17: Item | C17: Source | D17: Units | L17: =L23 -> 2022 | M17: =M23 -> 2023 | N17: =N23 -> 2024 | O17: 2025 | P17: 2026 | Q17: 2027 | R17: 2028 | S17: 2029 | T17: 2030 | U17: 2031
B18: Actual / Forecast Inflation | C18: ="ABS "&IF(Report_Month="September","June","March")&" to "&IF(Report_Month="September","June","March")&" / RBA Forecast" -> ABS June to June / RBA Forecast | D18: % | E18: ="◄ "&IF(Report_Month="September","March","June")&" series used as a proxy for "&Report_Month&" on "&Report_Month&" inflation, consistent with the RAB roll-forward" -> ◄ March series used as a proxy for September on September inflation, consistent with the RAB roll-forward | L18: 0.05089058524 | M18: 0.07021791768 | N18: 0.03619909502 | O18: 0.02401746725 | P18: 0.03980356318 | Q18: 0.02649920901 | R18: 0.02649920901 | S18: 0.02649920901 | T18: 0.02649920901 | U18: 0.02649920901 | V18: ◄ Actual March year on year inflation used for 2022 to 2025. Forecast inflation from RBA for 2026 (based on interpolation of September and June forecasts). Forecast inflation for 2027 to 2031 as per Regulatory Proposal, updated for RBAs November 2025 MPS.
B19: Real labour escalation | C19: Oxford Economics | D19: % | Q19: 0.007631210986 | R19: 0.00956841714 | S19: 0.01181283722 | T19: 0.01312869191 | U19: 0.01265548749
B22: Cumulative Factors | F22: Labour escalation | K22: Cumulative factors
B23: Item | C23: Source | D23: Units | F23: Year | K23: =L23-1 -> 2021 | L23: =M23-1 -> 2022 | M23: =N23-1 -> 2023 | N23: 2024 | O23: =N23+1 -> 2025 | P23: 2026 | Q23: 2027 | R23: 2028 | S23: 2029 | T23: 2030 | U23: 2031 | V23: Nominal
B24: Inflation based to 2021 | C24: Calculated | D24: Factor | K24: 1 | L24: =K24*(1+L18) -> 1.050890585 | M24: =L24*(1+M18) -> 1.124681934 | N24: 1.165394402 | O24: 1.193384224 | P24: 1.240885168 | Q24: 1.273767644 | R24: 1.307521479 | S24: 1.342169764 | T24: 1.377736201 | U24: 1.41424512 | V24: ◄ This is used to create an interim index
B25: ="Labour escalation from "&F25 -> Labour escalation from 2026 | C25: Calculated | D25: Factor | F25: 2026 | K25: 1 | L25: =IF(L$17>$F25,K25*(1+L19),1) -> 1 | M25: =IF(M$17>$F25,L25*(1+M19),1) -> 1 | N25: 1 | O25: 1 | P25: 1 | Q25: 1.007631211 | R25: 1.017272647 | S25: 1.029289523 | T25: 1.042802748 | U25: 1.055999925 | V25: ="◄ Labour rates apply for the year to "&Report_Month&" "&Report_Year&", so labour escalation applies from "&Report_Year+1&" onwards" -> ◄ Labour rates apply for the year to September 2026, so labour escalation applies from 2027 onwards
B28: Indexation | L28: Indexation
B29: Item | C29: Source | D29: Units | L29: =L23 -> 2022 | M29: 2023 | N29: 2024 | O29: 2025 | P29: 2026 | Q29: 2027 | R29: 2028 | S29: 2029 | T29: 2030 | U29: 2031
B30: ="Real "&Report_Year&" End Period to Nominal Mid Period" -> Real 2026 End Period to Nominal Mid Period | C30: Calculated | D30: Factor | L30: =L24/_xlfn.XLOOKUP(Report_Year,$K$23:$U$23,$K$24:$U$24)/(1+L$18)^0.5 -> 0.8261276481 | M30: 0.8761168166 | N30: 0.9226133397 | O30: 0.950375028 | P30: 0.9806732956 | Q30: 1.013162973 | R30: 1.04001099 | S30: 1.067570459 | T30: 1.095860231 | U30: 1.124899661
B31: ="Nominal Mid Period to "&Report_Year&" End Period" -> Nominal Mid Period to 2026 End Period | C31: Calculated | D31: Factor | L31: =1/L30 -> 1.21046669 | M31: =1/M30 -> 1.141400303 | N31: 1.083877673 | O31: =1/O30 -> 1.052216199 | P31: 1.019707587 | Q31: 0.9870080402 | R31: 0.9615283008 | S31: 0.9367063242 | T31: 0.91252513 | U31: 0.8889681765
B34: Capital Expenditure
B36: Direct Non-Labour Costs
AX38: June year | Used for RIN population | BE38: June year | Used for RIN population
B39: Non-LTSA Costs | By Category | F39: Input basis | G39: Contestable | I39: Expenditure | J39: Mapping | L39: Spend Profile Assumption - As incurred (%) | X39: ="$ Spend Profile - As incurred ("&Report_Month&" "&Report_Year&" dollars)" -> $ Spend Profile - As incurred (September 2026 dollars) | AJ39: As Commissioned Profile Assumption (%) | AV39: Mapping | AX39: Spend Profile Assumption - As incurred (%) | BE39: $ Spend Profile - As incurred (nominal dollars)
B40: Category | C40: Source | D40: Units | F40: Dollars | G40: Yes/No | I40: Value | J40: RAB Asset Class | K40: RIN Category | L40: =L$23 -> 2022 | M40: =M$23 -> 2023 | N40: =N$23 -> 2024 | O40: 2025 | P40: 2026 | Q40: 2027 | R40: 2028 | S40: 2029 | T40: 2030 | U40: 2031 | V40: Total | X40: =L40 -> 2022 | Y40: 2023 | Z40: 2024 | AA40: 2025 | AB40: 2026 | AC40: 2027 | AD40: 2028 | AE40: 2029 | AF40: 2030 | AG40: 2031 | AH40: Total | AJ40: =$N$23 -> 2024 | AK40: =AJ40+1 -> 2025 | AL40: =$N$23 -> 2024 | AM40: =AL40+1 -> 2025 | AN40: 2026 | AO40: 2027 | AP40: 2028 | AQ40: 2029 | AR40: 2030 | AS40: 2031 | AT40: Total | AX40: =L40 -> 2022 | AY40: =M40 -> 2023 | AZ40: =N40 -> 2024 | BA40: =O40 -> 2025 | BB40: =P40 -> 2026 | BC40: Sept 26 Qtr | BE40: =AX40 -> 2022 | BF40: =AY40 -> 2023 | BG40: =AZ40 -> 2024 | BH40: =BA40 -> 2025 | BI40: =BB40 -> 2026
B41: OEM Costs
B42: Design Costs, Provisional Sums, and Condensers | C42: Project Team Input | D42: $Millions | F42: Nominal | G42: Yes | I42: c-i-c | J42: Substations | K42: Substation power transformers | O42: c-i-c | P42: c-i-c | Q42: c-i-c | R42: c-i-c | S42: c-i-c | T42: c-i-c | U42: c-i-c | V42: 1 | W42: 0 | X42: c-i-c | Y42: c-i-c | Z42: c-i-c | AA42: c-i-c | AB42: c-i-c | AC42: c-i-c | AD42: c-i-c | AE42: c-i-c | AF42: c-i-c | AG42: c-i-c | AH42: c-i-c | AJ42: c-i-c | AK42: c-i-c | AL42: c-i-c | AM42: c-i-c | AN42: c-i-c | AO42: c-i-c | AP42: c-i-c | AQ42: c-i-c | AR42: c-i-c | AS42: c-i-c | AT42: 1 | AV42: =J42&" - "&K42&" - "&IF(G42="Yes","Contestable","Non-Contestable") -> Substations - Substation power transformers - Contestable | AX42: c-i-c | AY42: c-i-c | AZ42: c-i-c | BA42: c-i-c | BB42: c-i-c | BC42: c-i-c | BE42: c-i-c | BF42: c-i-c | BG42: c-i-c | BH42: c-i-c | BI42: c-i-c
C43: Project Team Input | D43: $Millions | F43: Nominal | G43: Yes | I43: c-i-c | J43: Substations | K43: Substation switchbays | O43: c-i-c | P43: c-i-c | Q43: c-i-c | R43: c-i-c | S43: c-i-c | T43: c-i-c | U43: c-i-c | V43: 1 | W43: 0 | X43: c-i-c | Y43: c-i-c | Z43: c-i-c | AA43: c-i-c | AB43: c-i-c | AC43: c-i-c | AD43: c-i-c | AE43: c-i-c | AF43: c-i-c | AG43: c-i-c | AH43: c-i-c | AJ43: c-i-c | AK43: c-i-c | AL43: c-i-c | AM43: c-i-c | AN43: c-i-c | AO43: c-i-c | AP43: c-i-c | AQ43: c-i-c | AR43: c-i-c | AS43: c-i-c | AT43: 1 | AV43: =J43&" - "&K43&" - "&IF(G43="Yes","Contestable","Non-Contestable") -> Substations - Substation switchbays - Contestable | AX43: c-i-c | AY43: c-i-c | AZ43: c-i-c | BA43: c-i-c | BB43: c-i-c | BC43: c-i-c | BE43: c-i-c | BF43: c-i-c | BG43: c-i-c | BH43: c-i-c | BI43: c-i-c
C44: Project Team Input | D44: $Millions | F44: Nominal | G44: Yes | I44: c-i-c | J44: Secondary System | K44: SCADA, network control and protection systems | O44: c-i-c | P44: c-i-c | Q44: c-i-c | R44: c-i-c | S44: c-i-c | T44: c-i-c | U44: c-i-c | V44: 1 | W44: 0 | X44: c-i-c | Y44: c-i-c | Z44: c-i-c | AA44: c-i-c | AB44: c-i-c | AC44: c-i-c | AD44: c-i-c | AE44: c-i-c | AF44: c-i-c | AG44: c-i-c | AH44: c-i-c | AJ44: c-i-c | AK44: c-i-c | AL44: c-i-c | AM44: c-i-c | AN44: c-i-c | AO44: c-i-c | AP44: c-i-c | AQ44: c-i-c | AR44: c-i-c | AS44: c-i-c | AT44: 1 | AV44: Secondary System - SCADA, network control and protection systems - Contestable | AX44: c-i-c | AY44: c-i-c | AZ44: c-i-c | BA44: c-i-c | BB44: c-i-c | BC44: c-i-c | BE44: c-i-c | BF44: c-i-c | BG44: c-i-c | BH44: c-i-c | BI44: c-i-c
C45: Project Team Input | D45: $Millions | F45: Nominal | G45: Yes | I45: c-i-c | J45: Synchronous Condensers | K45: Synchronous Condensers | O45: c-i-c | P45: c-i-c | Q45: c-i-c | R45: c-i-c | S45: c-i-c | T45: c-i-c | U45: c-i-c | V45: 1 | W45: 0 | X45: c-i-c | Y45: c-i-c | Z45: c-i-c | AA45: c-i-c | AB45: c-i-c | AC45: c-i-c | AD45: c-i-c | AE45: c-i-c | AF45: c-i-c | AG45: c-i-c | AH45: c-i-c | AJ45: c-i-c | AK45: c-i-c | AL45: c-i-c | AM45: c-i-c | AN45: c-i-c | AO45: c-i-c | AP45: c-i-c | AQ45: c-i-c | AR45: c-i-c | AS45: c-i-c | AT45: 1 | AV45: Synchronous Condensers - Synchronous Condensers - Contestable | AX45: c-i-c | AY45: c-i-c | AZ45: c-i-c | BA45: c-i-c | BB45: c-i-c | BC45: c-i-c | BE45: c-i-c | BF45: c-i-c | BG45: c-i-c | BH45: c-i-c | BI45: c-i-c
C46: Project Team Input | D46: $Millions | F46: Nominal | G46: Yes | I46: c-i-c | J46: Buildings - capital works | K46: Buildings and property | O46: c-i-c | P46: c-i-c | Q46: c-i-c | R46: c-i-c | S46: c-i-c | T46: c-i-c | U46: c-i-c | V46: 1 | W46: 0 | X46: c-i-c | Y46: c-i-c | Z46: c-i-c | AA46: c-i-c | AB46: c-i-c | AC46: c-i-c | AD46: c-i-c | AE46: c-i-c | AF46: c-i-c | AG46: c-i-c | AH46: c-i-c | AJ46: c-i-c | AK46: c-i-c | AL46: c-i-c | AM46: c-i-c | AN46: c-i-c | AO46: c-i-c | AP46: c-i-c | AQ46: c-i-c | AR46: c-i-c | AS46: c-i-c | AT46: 1 | AV46: Buildings - capital works - Buildings and property - Contestable | AX46: c-i-c | AY46: c-i-c | AZ46: c-i-c | BA46: c-i-c | BB46: c-i-c | BC46: c-i-c | BE46: c-i-c | BF46: c-i-c | BG46: c-i-c | BH46: c-i-c | BI46: c-i-c
B47: D&C Costs
B48: Design Costs, Provisional Sums, and Construction | C48: Project Team Input | D48: $Millions | F48: Nominal | G48: Yes | I48: c-i-c | J48: Synchronous Condensers | K48: Synchronous Condensers | O48: c-i-c | P48: c-i-c | Q48: c-i-c | R48: c-i-c | S48: c-i-c | T48: c-i-c | U48: c-i-c | V48: 1 | W48: 0 | X48: c-i-c | Y48: c-i-c | Z48: c-i-c | AA48: c-i-c | AB48: c-i-c | AC48: c-i-c | AD48: c-i-c | AE48: c-i-c | AF48: c-i-c | AG48: c-i-c | AH48: c-i-c | AJ48: c-i-c | AK48: c-i-c | AL48: c-i-c | AM48: c-i-c | AN48: c-i-c | AO48: c-i-c | AP48: c-i-c | AQ48: c-i-c | AR48: c-i-c | AS48: c-i-c | AT48: 1 | AV48: Synchronous Condensers - Synchronous Condensers - Contestable | AX48: c-i-c | AY48: c-i-c | AZ48: c-i-c | BA48: c-i-c | BB48: c-i-c | BC48: c-i-c | BE48: c-i-c | BF48: c-i-c | BG48: c-i-c | BH48: c-i-c | BI48: c-i-c
C49: Project Team Input | D49: $Millions | F49: Nominal | G49: Yes | I49: c-i-c | J49: Transmission Lines | K49: Transmission towers | O49: c-i-c | P49: c-i-c | Q49: c-i-c | R49: c-i-c | S49: c-i-c | T49: c-i-c | U49: c-i-c | V49: 1 | W49: 0 | X49: c-i-c | Y49: c-i-c | Z49: c-i-c | AA49: c-i-c | AB49: c-i-c | AC49: c-i-c | AD49: c-i-c | AE49: c-i-c | AF49: c-i-c | AG49: c-i-c | AH49: c-i-c | AJ49: c-i-c | AK49: c-i-c | AL49: c-i-c | AM49: c-i-c | AN49: c-i-c | AO49: c-i-c | AP49: c-i-c | AQ49: c-i-c | AR49: c-i-c | AS49: c-i-c | AT49: 1 | AV49: Transmission Lines - Transmission towers - Contestable | AX49: c-i-c | AY49: c-i-c | AZ49: c-i-c | BA49: c-i-c | BB49: c-i-c | BC49: c-i-c | BE49: c-i-c | BF49: c-i-c | BG49: c-i-c | BH49: c-i-c | BI49: c-i-c
C50: Project Team Input | D50: $Millions | F50: Nominal | G50: Yes | I50: c-i-c | J50: Transmission Lines | K50: Transmission tower support structures | O50: c-i-c | P50: c-i-c | Q50: c-i-c | R50: c-i-c | S50: c-i-c | T50: c-i-c | U50: c-i-c | V50: 1 | W50: 0 | X50: c-i-c | Y50: c-i-c | Z50: c-i-c | AA50: c-i-c | AB50: c-i-c | AC50: c-i-c | AD50: c-i-c | AE50: c-i-c | AF50: c-i-c | AG50: c-i-c | AH50: c-i-c | AJ50: c-i-c | AK50: c-i-c | AL50: c-i-c | AM50: c-i-c | AN50: c-i-c | AO50: c-i-c | AP50: c-i-c | AQ50: c-i-c | AR50: c-i-c | AS50: c-i-c | AT50: 1 | AV50: Transmission Lines - Transmission tower support structures - Contestable | AX50: c-i-c | AY50: c-i-c | AZ50: c-i-c | BA50: c-i-c | BB50: c-i-c | BC50: c-i-c | BE50: c-i-c | BF50: c-i-c | BG50: c-i-c | BH50: c-i-c | BI50: c-i-c
C51: Project Team Input | D51: $Millions | F51: Nominal | G51: Yes | I51: c-i-c | J51: Transmission Lines | K51: Conductors | O51: c-i-c | P51: c-i-c | Q51: c-i-c | R51: c-i-c | S51: c-i-c | T51: c-i-c | U51: c-i-c | V51: 1 | W51: 0 | X51: c-i-c | Y51: c-i-c | Z51: c-i-c | AA51: c-i-c | AB51: c-i-c | AC51: c-i-c | AD51: c-i-c | AE51: c-i-c | AF51: c-i-c | AG51: c-i-c | AH51: c-i-c | AJ51: c-i-c | AK51: c-i-c | AL51: c-i-c | AM51: c-i-c | AN51: c-i-c | AO51: c-i-c | AP51: c-i-c | AQ51: c-i-c | AR51: c-i-c | AS51: c-i-c | AT51: 1 | AV51: Transmission Lines - Conductors - Contestable | AX51: c-i-c | AY51: c-i-c | AZ51: c-i-c | BA51: c-i-c | BB51: c-i-c | BC51: c-i-c | BE51: c-i-c | BF51: c-i-c | BG51: c-i-c | BH51: c-i-c | BI51: c-i-c
C52: Project Team Input | D52: $Millions | F52: Nominal | G52: Yes | I52: c-i-c | J52: Substations | K52: Substation switchbays | O52: c-i-c | P52: c-i-c | Q52: c-i-c | R52: c-i-c | S52: c-i-c | T52: c-i-c | U52: c-i-c | V52: 1 | W52: 0 | X52: c-i-c | Y52: c-i-c | Z52: c-i-c | AA52: c-i-c | AB52: c-i-c | AC52: c-i-c | AD52: c-i-c | AE52: c-i-c | AF52: c-i-c | AG52: c-i-c | AH52: c-i-c | AJ52: c-i-c | AK52: c-i-c | AL52: c-i-c | AM52: c-i-c | AN52: c-i-c | AO52: c-i-c | AP52: c-i-c | AQ52: c-i-c | AR52: c-i-c | AS52: c-i-c | AT52: 1 | AV52: Substations - Substation switchbays - Contestable | AX52: c-i-c | AY52: c-i-c | AZ52: c-i-c | BA52: c-i-c | BB52: c-i-c | BC52: c-i-c | BE52: c-i-c | BF52: c-i-c | BG52: c-i-c | BH52: c-i-c | BI52: c-i-c
C53: Project Team Input | D53: $Millions | F53: Nominal | G53: Yes | I53: c-i-c | J53: Substations | K53: Substation power transformers | O53: c-i-c | P53: c-i-c | Q53: c-i-c | R53: c-i-c | S53: c-i-c | T53: c-i-c | U53: c-i-c | V53: 1 | W53: 0 | X53: c-i-c | Y53: c-i-c | Z53: c-i-c | AA53: c-i-c | AB53: c-i-c | AC53: c-i-c | AD53: c-i-c | AE53: c-i-c | AF53: c-i-c | AG53: c-i-c | AH53: c-i-c | AJ53: c-i-c | AK53: c-i-c | AL53: c-i-c | AM53: c-i-c | AN53: c-i-c | AO53: c-i-c | AP53: c-i-c | AQ53: c-i-c | AR53: c-i-c | AS53: c-i-c | AT53: 1 | AV53: =J53&" - "&K53&" - "&IF(G53="Yes","Contestable","Non-Contestable") -> Substations - Substation power transformers - Contestable | AX53: c-i-c | AY53: c-i-c | AZ53: c-i-c | BA53: c-i-c | BB53: c-i-c | BC53: c-i-c | BE53: c-i-c | BF53: c-i-c | BG53: c-i-c | BH53: c-i-c | BI53: c-i-c
C54: Project Team Input | D54: $Millions | F54: Nominal | G54: Yes | I54: c-i-c | J54: Secondary System | K54: SCADA, network control and protection systems | O54: c-i-c | P54: c-i-c | Q54: c-i-c | R54: c-i-c | S54: c-i-c | T54: c-i-c | U54: c-i-c | V54: 1 | W54: 0 | X54: c-i-c | Y54: c-i-c | Z54: c-i-c | AA54: c-i-c | AB54: c-i-c | AC54: c-i-c | AD54: c-i-c | AE54: c-i-c | AF54: c-i-c | AG54: c-i-c | AH54: c-i-c | AJ54: c-i-c | AK54: c-i-c | AL54: c-i-c | AM54: c-i-c | AN54: c-i-c | AO54: c-i-c | AP54: c-i-c | AQ54: c-i-c | AR54: c-i-c | AS54: c-i-c | AT54: 1 | AV54: Secondary System - SCADA, network control and protection systems - Contestable | AX54: c-i-c | AY54: c-i-c | AZ54: c-i-c | BA54: c-i-c | BB54: c-i-c | BC54: c-i-c | BE54: c-i-c | BF54: c-i-c | BG54: c-i-c | BH54: c-i-c | BI54: c-i-c
B55: Equipment
B56: Equipment | C56: Project Team Input | D56: $Millions | F56: 2025 | G56: No | I56: 4.9507293 | J56: Substations | K56: Substation switchbays | O56: 0 | P56: 0.8040513875 | Q56: 0.1959486125 | R56: 0 | S56: 0 | T56: 0 | U56: 0 | V56: =SUM(L56:U56) -> 1 | W56: =IF(I56=0,0,IF(V56<>1,1,0)) -> 0 | X56: =IFERROR($I56*L56*IF($F56<>"Nominal",_xlfn.XLOOKUP($F56,$L$29:$U$29,$L$31:$U$31),1/L$30),0) -> 0 | Y56: 0 | Z56: 0 | AA56: 0 | AB56: 4.188494695 | AC56: 1.020742873 | AD56: 0 | AE56: 0 | AF56: 0 | AG56: 0 | AH56: =SUM(X56:AG56) -> 5.209237568 | AM56: 0 | AN56: 0 | AO56: 1 | AP56: 0 | AQ56: 0 | AR56: 0 | AS56: 0 | AT56: =SUM(AL56:AS56) -> 1 | AV56: Substations - Substation switchbays - Non-Contestable | AX56: 0 | AY56: 0 | AZ56: 0 | BA56: 0 | BB56: 0.5026609565 | BC56: =SUM(L56:P56)-SUM(AX56:BB56) -> 0.301390431 | BE56: 0 | BF56: 0 | BG56: 0 | BH56: 0 | BI56: 2.542938408
B57: Primary Equipment | C57: Project Team Input | D57: $Millions | F57: 2025 | G57: No | I57: 4.87089161 | J57: Substations | K57: Substation switchbays | O57: 0 | P57: 0.950345422 | Q57: 0 | R57: 0.04965457796 | S57: 0 | T57: 0 | U57: 0 | V57: =SUM(L57:U57) -> 1 | W57: =IF(I57=0,0,IF(V57<>1,1,0)) -> 0 | X57: 0 | Y57: 0 | Z57: 0 | AA57: 0 | AB57: 4.870739872 | AC57: 0 | AD57: 0.2544911851 | AE57: 0 | AF57: 0 | AG57: 0 | AH57: =SUM(X57:AG57) -> 5.125231057 | AM57: 0 | AN57: 0 | AO57: 1 | AP57: 0 | AQ57: 0 | AR57: 0 | AS57: 0 | AT57: =SUM(AL57:AS57) -> 1 | AV57: Substations - Substation switchbays - Non-Contestable | AX57: 0 | AY57: 0 | AZ57: 0 | BA57: 0 | BB57: 0.3580174021 | BC57: =SUM(L57:P57)-SUM(AX57:BB57) -> 0.59232802 | BE57: 0 | BF57: 0 | BG57: 0 | BH57: 0 | BI57: 1.781985271
B58: Property and Fleet
B59: Easements | C59: Project Team Input | D59: $Millions | F59: 2025 | G59: No | I59: 0.045 | J59: Land & Easements | K59: Other | O59: 0 | P59: 1 | Q59: 0 | R59: 0 | S59: 0 | T59: 0 | U59: 0 | V59: =SUM(L59:U59) -> 1 | W59: =IF(I59=0,0,IF(V59<>1,1,0)) -> 0 | X59: =IFERROR($I59*L59*IF($F59<>"Nominal",_xlfn.XLOOKUP($F59,$L$29:$U$29,$L$31:$U$31),1/L$30),0) -> 0 | Y59: 0 | Z59: 0 | AA59: 0 | AB59: 0.04734972897 | AC59: 0 | AD59: 0 | AE59: 0 | AF59: 0 | AG59: 0 | AH59: =SUM(X59:AG59) -> 0.04734972897 | AM59: 0 | AN59: 1 | AO59: 0 | AP59: 0 | AQ59: 0 | AR59: 0 | AS59: 0 | AT59: =SUM(AL59:AS59) -> 1 | AV59: Land & Easements - Other - Non-Contestable | AX59: 0 | AY59: 0 | AZ59: 0 | BA59: 0 | BB59: 0 | BC59: =SUM(L59:P59)-SUM(AX59:BB59) -> 1 | BE59: 0 | BF59: 0 | BG59: 0 | BH59: 0 | BI59: 0
B60: Fleet | C60: Project Team Input | D60: $Millions | F60: 2025 | G60: No | I60: 0.53096274 | J60: Minor Plant, Motor Vehicles & Mobile Plant | K60: Motor Vehicles | O60: 0 | P60: 1 | Q60: 0 | R60: 0 | S60: 0 | T60: 0 | U60: 0 | V60: =SUM(L60:U60) -> 1 | W60: =IF(I60=0,0,IF(V60<>1,1,0)) -> 0 | X60: =IFERROR($I60*L60*IF($F60<>"Nominal",_xlfn.XLOOKUP($F60,$L$29:$U$29,$L$31:$U$31),1/L$30),0) -> 0 | Y60: 0 | Z60: 0 | AA60: 0 | AB60: 0.5586875963 | AC60: 0 | AD60: 0 | AE60: 0 | AF60: 0 | AG60: 0 | AH60: =SUM(X60:AG60) -> 0.5586875963 | AM60: 0 | AN60: 1 | AO60: 0 | AP60: 0 | AQ60: 0 | AR60: 0 | AS60: 0 | AT60: =SUM(AL60:AS60) -> 1 | AV60: Minor Plant, Motor Vehicles & Mobile Plant - Motor Vehicles - Non-Contestable | AX60: 0 | AY60: 0 | AZ60: 0 | BA60: 0 | BB60: 0 | BC60: =SUM(L60:P60)-SUM(AX60:BB60) -> 1 | BE60: 0 | BF60: 0 | BG60: 0 | BH60: 0 | BI60: 0
B61: Buildings | C61: Project Team Input | D61: $Millions | F61: 2026 | G61: No | I61: 7 | J61: Buildings - capital works | K61: Buildings and property | O61: 0 | P61: 0 | Q61: 0 | R61: 0 | S61: 1 | T61: 0 | U61: 0 | V61: =SUM(L61:U61) -> 1 | W61: =IF(I61=0,0,IF(V61<>1,1,0)) -> 0 | X61: 0 | Y61: 0 | Z61: 0 | AA61: 0 | AB61: 0 | AC61: 0 | AD61: 0 | AE61: 7.13795311 | AF61: 0 | AG61: 0 | AH61: =SUM(X61:AG61) -> 7.13795311 | AM61: 0 | AN61: 0 | AO61: 0 | AP61: 0 | AQ61: 1 | AR61: 0 | AS61: 0 | AT61: =SUM(AL61:AS61) -> 1 | AV61: Buildings - capital works - Buildings and property - Non-Contestable | AX61: 0 | AY61: 0 | AZ61: 0 | BA61: 0 | BB61: 0 | BC61: =SUM(L61:P61)-SUM(AX61:BB61) -> 0 | BE61: 0 | BF61: 0 | BG61: 0 | BH61: 0 | BI61: 0
W62: =IF(SUM(W42:W59)=0,0,1) -> 0
H63: Sub-Total | I63: 933.7475195 | J63: ◄ Notional sum with various dollar basis for cross check only | W63: Sub-Total | X63: 0 | Y63: 0 | Z63: 0 | AA63: 0 | AB63: 218.1654012 | AC63: 377.6753429 | AD63: 273.2133655 | AE63: 50.58867175 | AF63: 0 | AG63: 0 | AH63: 919.6427813
L65: Note: LTSA inputs converted from June 2025 dollars to March 2025 dollars (i.e., Real 2025, mid year) when being input | AX65: June year | Used for RIN population | BE65: June year | Used for RIN population
B66: LTSA Costs | F66: Input basis | G66: Contestable | J66: Mapping | L66: Spend Profile Assumption - As incurred ($Millions) | X66: ="$ Spend Profile - As incurred ("&Report_Month&" "&Report_Year&" dollars)" -> $ Spend Profile - As incurred (September 2026 dollars) | AJ66: As Commissioned Profile Assumption (%) | AV66: Mapping | AX66: Spend Profile Assumption - As incurred ($Millions) | BE66: $ Spend Profile - As incurred (nominal dollars)
B67: Category | C67: Source | D67: Units | F67: Dollars | G67: Yes/No | J67: RAB Asset Class | K67: RIN Category | L67: =L$23 -> 2022 | M67: =M$23 -> 2023 | N67: =N$23 -> 2024 | O67: 2025 | P67: 2026 | Q67: 2027 | R67: 2028 | S67: 2029 | T67: 2030 | U67: 2031 | V67: Total | X67: =L67 -> 2022 | Y67: 2023 | Z67: 2024 | AA67: 2025 | AB67: 2026 | AC67: 2027 | AD67: 2028 | AE67: 2029 | AF67: 2030 | AG67: 2031 | AH67: Total | AJ67: =$N$23 -> 2024 | AK67: =AJ67+1 -> 2025 | AL67: =$N$23 -> 2024 | AM67: =AL67+1 -> 2025 | AN67: 2026 | AO67: 2027 | AP67: 2028 | AQ67: 2029 | AR67: 2030 | AS67: 2031 | AT67: Total | AX67: =L67 -> 2022 | AY67: =M67 -> 2023 | AZ67: =N67 -> 2024 | BA67: =O67 -> 2025 | BB67: =P67 -> 2026 | BC67: Sept 26 Qtr | BE67: =AX67 -> 2022 | BF67: =AY67 -> 2023 | BG67: =AZ67 -> 2024 | BH67: =BA67 -> 2025 | BI67: =BB67 -> 2026
B69: Capital Spares | C69: Project Team Input | D69: $Millions | F69: 2025 | G69: Yes | J69: Synchronous Condensers | K69: Synchronous Condensers | L69: c-i-c | M69: c-i-c | N69: c-i-c | O69: c-i-c | P69: c-i-c | Q69: c-i-c | R69: c-i-c | S69: c-i-c | T69: c-i-c | U69: c-i-c | V69: c-i-c | X69: c-i-c | Y69: c-i-c | Z69: c-i-c | AA69: c-i-c | AB69: c-i-c | AC69: c-i-c | AD69: c-i-c | AE69: c-i-c | AF69: c-i-c | AG69: c-i-c | AH69: c-i-c | AJ69: c-i-c | AK69: c-i-c | AL69: c-i-c | AM69: c-i-c | AN69: c-i-c | AO69: c-i-c | AP69: c-i-c | AQ69: c-i-c | AR69: c-i-c | AS69: c-i-c | AT69: 1 | AV69: =J69&" - "&K69&" - "&IF(G69="Yes","Contestable","Non-Contestable") -> Synchronous Condensers - Synchronous Condensers - Contestable | AW69: ="Real $"&F69 -> Real $2025 | AX69: c-i-c | AY69: c-i-c | AZ69: c-i-c | BA69: c-i-c | BB69: c-i-c | BC69: c-i-c | BE69: c-i-c | BF69: c-i-c | BG69: c-i-c | BH69: c-i-c | BI69: c-i-c
K71: Sub-Total | L71: c-i-c | M71: c-i-c | N71: c-i-c | O71: c-i-c | P71: c-i-c | Q71: c-i-c | R71: c-i-c | S71: c-i-c | T71: c-i-c | U71: c-i-c | V71: c-i-c | X71: c-i-c | Y71: c-i-c | Z71: c-i-c | AA71: c-i-c | AB71: c-i-c | AC71: c-i-c | AD71: c-i-c | AE71: c-i-c | AF71: c-i-c | AG71: c-i-c | AH71: c-i-c
BE73: June year | Used for RIN population
B74: Infrastructure Planner Fee | F74: Input basis | G74: Contestable | J74: Mapping | L74: Spend Profile Assumption - As incurred ($Millions) | X74: ="$ Spend Profile - As incurred ("&Report_Month&" "&Report_Year&" dollars)" -> $ Spend Profile - As incurred (September 2026 dollars) | AJ74: As Commissioned Profile Assumption (%) | AV74: Mapping | BE74: $ Spend Profile - As incurred (nominal dollars)
B75: Category | C75: Source | D75: Units | F75: Dollars | G75: Yes/No | J75: RAB Asset Class | K75: RIN Category | L75: =L$23 -> 2022 | M75: =M$23 -> 2023 | N75: =N$23 -> 2024 | O75: 2025 | P75: 2026 | Q75: 2027 | R75: 2028 | S75: 2029 | T75: 2030 | U75: 2031 | V75: Total | X75: =L75 -> 2022 | Y75: 2023 | Z75: 2024 | AA75: 2025 | AB75: 2026 | AC75: 2027 | AD75: 2028 | AE75: 2029 | AF75: 2030 | AG75: 2031 | AH75: Total | AJ75: =$N$23 -> 2024 | AK75: =AJ75+1 -> 2025 | AL75: =$N$23 -> 2024 | AM75: =AL75+1 -> 2025 | AN75: 2026 | AO75: 2027 | AP75: 2028 | AQ75: 2029 | AR75: 2030 | AS75: 2031 | AT75: Total | BE75: =L75 -> 2022 | BF75: =M75 -> 2023 | BG75: =N75 -> 2024 | BH75: =O75 -> 2025 | BI75: =P75 -> 2026
B77: Infrastructure Planner Fee | C77: Project Team Input | D77: $Millions | F77: Nominal | G77: No | J77: Synchronous Condensers | K77: Other | P77: 2 | Q77: 2 | R77: 2 | S77: 2 | V77: =SUM(L77:U77) -> 8 | X77: =IFERROR(L77*IF($F77<>"Nominal",_xlfn.XLOOKUP($F77,$L$29:$U$29,$L$31:$U$31),1/L$30),0) -> 0 | Y77: 0 | Z77: 0 | AA77: 0 | AB77: 2.039415174 | AC77: 1.97401608 | AD77: 1.923056602 | AE77: 1.873412648 | AF77: 0 | AG77: 0 | AH77: =SUM(X77:AG77) -> 7.809900505 | AN77: =AB77/$AH77 -> 0.2611320302 | AO77: =AC77/$AH77 -> 0.2527581599 | AP77: =AD77/$AH77 -> 0.2462331755 | AQ77: =AE77/$AH77 -> 0.2398766344 | AT77: =SUM(AL77:AS77) -> 1 | AV77: =J77&" - "&K77&" - "&IF(G77="Yes","Contestable","Non-Contestable") -> Synchronous Condensers - Other - Non-Contestable | BD77: Nominal | BE77: 0 | BF77: 0 | BG77: 0 | BH77: 0 | BI77: 0
K79: Sub-Total | L79: =SUM(L77:L77) -> 0 | M79: 0 | N79: 0 | O79: 0 | P79: 2 | Q79: 2 | R79: 2 | S79: 2 | T79: 0 | U79: 0 | V79: 8 | X79: =SUM(X77:X77) -> 0 | Y79: 0 | Z79: 0 | AA79: 0 | AB79: 2.039415174 | AC79: 1.97401608 | AD79: 1.923056602 | AE79: 1.873412648 | AF79: 0 | AG79: 0 | AH79: 7.809900505
BE80: Inflation series
BE81: Inflation series (convert to June mid year)
BE82: =BE75 -> 2022 | BF82: =BF75 -> 2023 | BG82: =BG75 -> 2024 | BH82: =BH75 -> 2025 | BI82: =BI75 -> 2026
L83: P50 Contingent Cost | M83: P50 Inherent Estimate Cost | N83: P50 Contingent Time Cost | O83: P50 Inherent Time Cost | P83: Total
BD84: 2025 (mid) to nominal (mid) | BE84: =BE85*$O$31 -> 0.8585444109 | BF84: =BF85*$O$31 -> 0.9063562747 | BG84: =BG85*$O$31 -> 0.9621968065 | BH84: =BH85*$O$31 -> 0.9940841717 | BI84: =BI85*$O$31 -> 1.021860255
BD85: 2026 (end) to nominal (mid) | BE85: =L30/(1+L18)^0.25 -> 0.8159391686 | BF85: =M30/(1+M18)^0.25 -> 0.86137837 | BG85: =N30/(1+N18)^0.25 -> 0.914447817 | BH85: =O30/(1+O18)^0.25 -> 0.9447527726 | BI85: =P30/(1+P18)^0.25 -> 0.9711504685
B86: Risk Allowance Costs by Category | F86: Input basis | AH86: Risk
B87: Category | C87: Source | D87: Units | F87: Dollars | AH87: Value
B89: Environment and community | C89: Project Team Input | D89: $Millions | F89: 2026 | L89: 1.396375014 | M89: 0 | N89: 0.384193637 | O89: 0 | P89: =SUM(L89:O89) -> 1.780568651 | AH89: 1.815659362
B90: Inclement weather | C90: Project Team Input | D90: $Millions | F90: 2026 | L90: 0 | M90: 0 | N90: 0 | O90: 2.641291718 | P90: =SUM(L90:O90) -> 2.641291718 | AH90: 2.693345204
B91: Equipment Failure/Delay | C91: Project Team Input | D91: $Millions | F91: 2026 | J91: ` | L91: 0.857244259 | M91: 0.4477334591 | N91: 1.120853627 | O91: 0 | P91: 2.425831345 | AH91: 2.473638628
B92: Commissioning and Integration Challenges | C92: Project Team Input | D92: $Millions | F92: 2026 | L92: 3.19408745 | M92: 0 | N92: 2.771961156 | O92: 0 | P92: 5.966048606 | AH92: 6.083625028
B93: Network Modelling | C93: Project Team Input | D93: $Millions | F93: 2026 | L93: 1.933618994 | M93: 0 | N93: 0.3288274655 | O93: 0 | P93: 2.262446459 | AH93: 2.30703382
B94: Third Party Interfaces | C94: Project Team Input | D94: $Millions | F94: 2026 | L94: 1.090405408 | M94: 0 | N94: 0.01702673937 | O94: 0 | P94: 1.107432148 | AH94: 1.129256963
B95: Changes to Commissioning Approach | C95: Project Team Input | D95: $Millions | F95: 2026 | L95: 1.307750984 | M95: 0 | N95: 0 | O95: 0 | P95: 1.307750984 | AH95: 1.333523601
B96: Contractor Industrial Action | C96: Project Team Input | D96: $Millions | F96: 2026 | L96: 0 | M96: 0 | N96: 0.5623021345 | O96: 0 | P96: 0.5623021345 | AH96: 0.5733837528
O98: Sub-Total | P98: =SUM(P89:P96) -> 18.05367204 | AG98: Sub-Total | AH98: =SUM(AH89:AH96) -> 18.40946636 | AI98: ◄ This value is pro-rated over the unescalated capital forecast (excluding Infrastructure Planner Fees) by year and asset class
B101: Direct Non-Labour Costs | By Capex Category | X101: ="Expenditure - As Incurred - by Cost Category ("&Report_Month&" "&Report_Year&" dollars)" -> Expenditure - As Incurred - by Cost Category (September 2026 dollars) | AJ101: ="Expenditure - As Commissioned - by Cost Category ("&Report_Month&" "&Report_Year&" dollars)" -> Expenditure - As Commissioned - by Cost Category (September 2026 dollars) | BE101: Expenditure - As Incurred - by Cost Category (nominal dollars)
B102: Category | C102: RAB Asset class | D102: Units | X102: =L$40 -> 2022 | Y102: 2023 | Z102: 2024 | AA102: 2025 | AB102: 2026 | AC102: 2027 | AD102: 2028 | AE102: 2029 | AF102: 2030 | AG102: 2031 | AH102: Total | AJ102: =AJ$40 -> 2024 | AK102: 2025 | AL102: 2024 | AM102: 2025 | AN102: 2026 | AO102: 2027 | AP102: 2028 | AQ102: 2029 | AR102: 2030 | AS102: 2031 | AT102: Total | BE102: =AX40 -> 2022 | BF102: =AY40 -> 2023 | BG102: =AZ40 -> 2024 | BH102: =BA40 -> 2025 | BI102: =BB40 -> 2026
B103: =B221 -> Synchronous Condensers - Synchronous Condensers - Contestable | C103: Synchronous Condensers | D103: $Millions | X103: 0 | Y103: 0 | Z103: 0 | AA103: 0 | AB103: 143.0502505 | AC103: 249.2934521 | AD103: 178.1530832 | AE103: 28.24461292 | AF103: 0 | AG103: 0 | AH103: =SUM(X103:AG103) -> 598.7413987 | AJ103: 0 | AK103: 0 | AL103: 0 | AM103: 0 | AN103: 0 | AO103: 212.6852692 | AP103: 241.4984365 | AQ103: 144.557693 | AR103: 0 | AS103: 0 | AT103: =SUM(AL103:AS103) -> 598.7413987 | AU103: =IF(ROUND(AH103-AT103,6)=0,0,1) -> 0 | BE103: 0 | BF103: 0 | BG103: 0 | BH103: 0 | BI103: 79.95201349
B104: Synchronous Condensers - Other - Non-Contestable | C104: Synchronous Condensers | D104: $Millions | X104: 0 | Y104: 0 | Z104: 0 | AA104: 0 | AB104: 2.039415174 | AC104: 1.97401608 | AD104: 1.923056602 | AE104: 1.873412648 | AF104: 0 | AG104: 0 | AH104: =SUM(X104:AG104) -> 7.809900505 | AJ104: 0 | AK104: 0 | AL104: 0 | AM104: 0 | AN104: 2.039415174 | AO104: 1.97401608 | AP104: 1.923056602 | AQ104: 1.873412648 | AR104: 0 | AS104: 0 | AT104: =SUM(AL104:AS104) -> 7.809900505 | AU104: =IF(ROUND(AH104-AT104,6)=0,0,1) -> 0 | BE104: 0 | BF104: 0 | BG104: 0 | BH104: 0 | BI104: 0
B105: Transmission Lines - Transmission towers - Contestable | C105: Transmission Lines | D105: $Millions | X105: 0 | Y105: 0 | Z105: 0 | AA105: 0 | AB105: 3.343471924 | AC105: 8.945176666 | AD105: 2.07623085 | AE105: 0 | AF105: 0 | AG105: 0 | AH105: 14.36487944 | AJ105: 0 | AK105: 0 | AL105: 0 | AM105: 0 | AN105: 0 | AO105: 11.52534392 | AP105: 2.839535521 | AQ105: 0 | AR105: 0 | AS105: 0 | AT105: 14.36487944 | AU105: =IF(ROUND(AH105-AT105,6)=0,0,1) -> 0 | BE105: 0 | BF105: 0 | BG105: 0 | BH105: 0 | BI105: 0.6325877062
B106: Transmission Lines - Transmission Tower support structures - Contestable | C106: Transmission Lines | D106: $Millions | X106: 0 | Y106: 0 | Z106: 0 | AA106: 0 | AB106: 0.4330292543 | AC106: 1.158533186 | AD106: 0.2689027207 | AE106: 0 | AF106: 0 | AG106: 0 | AH106: 1.860465161 | AJ106: 0 | AK106: 0 | AL106: 0 | AM106: 0 | AN106: 0 | AO106: 1.492703153 | AP106: 0.3677620083 | AQ106: 0 | AR106: 0 | AS106: 0 | AT106: 1.860465161 | AU106: 0 | BE106: 0 | BF106: 0 | BG106: 0 | BH106: 0 | BI106: 0.08192949993
B107: Transmission Lines - Conductors - Contestable | C107: Transmission Lines | D107: $Millions | X107: 0 | Y107: 0 | Z107: 0 | AA107: 0 | AB107: 1.838173375 | AC107: 4.917877571 | AD107: 1.141469812 | AE107: 0 | AF107: 0 | AG107: 0 | AH107: 7.897520759 | AJ107: 0 | AK107: 0 | AL107: 0 | AM107: 0 | AN107: 0 | AO107: 6.336401446 | AP107: 1.561119313 | AQ107: 0 | AR107: 0 | AS107: 0 | AT107: 7.897520759 | AU107: 0 | BE107: 0 | BF107: 0 | BG107: 0 | BH107: 0 | BI107: 0.347783952
B108: =B227 -> Substations - Substation switchbays - Contestable | C108: Substations | D108: $Millions | X108: 0 | Y108: 0 | Z108: 0 | AA108: 0 | AB108: 23.77776425 | AC108: 34.98187639 | AD108: 37.4429327 | AE108: 6.867295739 | AF108: 0 | AG108: 0 | AH108: 103.0698691 | AJ108: 0 | AK108: 0 | AL108: 0 | AM108: 0 | AN108: 0 | AO108: 17.0390983 | AP108: 53.04842056 | AQ108: 32.98235023 | AR108: 0 | AS108: 0 | AT108: 103.0698691 | AU108: 0 | BE108: 0 | BF108: 0 | BG108: 0 | BH108: 0 | BI108: 18.57381323
B109: Substations - Substation switchbays - Non-Contestable | C109: Substations | D109: $Millions | X109: 0 | Y109: 0 | Z109: 0 | AA109: 0 | AB109: 9.237375403 | AC109: 1.040814767 | AD109: 0.2594955011 | AE109: 0 | AF109: 0 | AG109: 0 | AH109: =SUM(X109:AG109) -> 10.53768567 | AJ109: 0 | AK109: 0 | AL109: 0 | AM109: 0 | AN109: 0 | AO109: 10.53768567 | AP109: 0 | AQ109: 0 | AR109: 0 | AS109: 0 | AT109: =SUM(AL109:AS109) -> 10.53768567 | AU109: =IF(ROUND(AH109-AT109,6)=0,0,1) -> 0 | BE109: 0 | BF109: 0 | BG109: 0 | BH109: 0 | BI109: 4.409969
B110: Substations - Substation power transformers - Contestable | C110: Substations | D110: $Millions | X110: 0 | Y110: 0 | Z110: 0 | AA110: 0 | AB110: 12.61007119 | AC110: 22.65323573 | AD110: 16.60895853 | AE110: 2.658308028 | AF110: 0 | AG110: 0 | AH110: 54.53057348 | AJ110: 0 | AK110: 0 | AL110: 0 | AM110: 0 | AN110: 0 | AO110: 18.33589121 | AP110: 23.4273209 | AQ110: 12.76736138 | AR110: 0 | AS110: 0 | AT110: 54.53057348 | AU110: 0 | BE110: 0 | BF110: 0 | BG110: 0 | BH110: 0 | BI110: 7.834238752
B111: =B231 -> Secondary System - SCADA, network control and protection systems - Contestable | C111: Secondary System | D111: $Millions | X111: 0 | Y111: 0 | Z111: 0 | AA111: 0 | AB111: 22.01517431 | AC111: 45.96847048 | AD111: 23.9124025 | AE111: 3.101359366 | AF111: 0 | AG111: 0 | AH111: 94.99740666 | AJ111: 0 | AK111: 0 | AL111: 0 | AM111: 0 | AN111: 0 | AO111: 46.56764306 | AP111: 33.53450865 | AQ111: 14.89525494 | AR111: 0 | AS111: 0 | AT111: 94.99740666 | AU111: 0 | BE111: 0 | BF111: 0 | BG111: 0 | BH111: 0 | BI111: 10.5217593
B112: Secondary System - SCADA, network control and protection systems - Non-Contestable | C112: Secondary System | D112: $Millions | X112: 0 | Y112: 0 | Z112: 0 | AA112: 0 | AB112: 0 | AC112: 0 | AD112: 0 | AE112: 0 | AF112: 0 | AG112: 0 | AH112: =SUM(X112:AG112) -> 0 | AJ112: 0 | AK112: 0 | AL112: 0 | AM112: 0 | AN112: 0 | AO112: 0 | AP112: 0 | AQ112: 0 | AR112: 0 | AS112: 0 | AT112: =SUM(AL112:AS112) -> 0 | AU112: =IF(ROUND(AH112-AT112,6)=0,0,1) -> 0 | BE112: 0 | BF112: 0 | BG112: 0 | BH112: 0 | BI112: 0
B113: Land & Easements - Other - Non-Contestable | C113: Land & Easements | D113: $Millions | X113: 0 | Y113: 0 | Z113: 0 | AA113: 0 | AB113: 0.04828081429 | AC113: 0 | AD113: 0 | AE113: 0 | AF113: 0 | AG113: 0 | AH113: 0.04828081429 | AJ113: 0 | AK113: 0 | AL113: 0 | AM113: 0 | AN113: 0.04828081429 | AO113: 0 | AP113: 0 | AQ113: 0 | AR113: 0 | AS113: 0 | AT113: 0.04828081429 | AU113: 0 | BE113: 0 | BF113: 0 | BG113: 0 | BH113: 0 | BI113: 0
B114: Minor Plant, Motor Vehicles & Mobile Plant - Motor Vehicles - Non-Contestable | C114: Minor Plant, Motor Vehicles & Mobile Plant | D114: $Millions | X114: 0 | Y114: 0 | Z114: 0 | AA114: 0 | AB114: 0.5696736321 | AC114: 0 | AD114: 0 | AE114: 0 | AF114: 0 | AG114: 0 | AH114: 0.5696736321 | AJ114: 0 | AK114: 0 | AL114: 0 | AM114: 0 | AN114: 0.5696736321 | AO114: 0 | AP114: 0 | AQ114: 0 | AR114: 0 | AS114: 0 | AT114: 0.5696736321 | AU114: 0 | BE114: 0 | BF114: 0 | BG114: 0 | BH114: 0 | BI114: 0
B115: =B235 -> Buildings - capital works - Buildings and Property - Contestable | C115: =C235 -> Buildings - capital works | D115: $Millions | X115: 0 | Y115: 0 | Z115: 0 | AA115: 0 | AB115: 13.97418175 | AC115: 16.1425159 | AD115: 25.50286566 | AE115: 5.095090387 | AF115: 0 | AG115: 0 | AH115: =SUM(X115:AG115) -> 60.7146537 | AJ115: 0 | AK115: 0 | AL115: 0 | AM115: 0 | AN115: 0 | AO115: 0 | AP115: 36.24387772 | AQ115: 24.47077598 | AR115: 0 | AS115: 0 | AT115: =SUM(AL115:AS115) -> 60.7146537 | AU115: =IF(ROUND(AH115-AT115,6)=0,0,1) -> 0 | BE115: 0 | BF115: 0 | BG115: 0 | BH115: 0 | BI115: 13.08669872
B116: =B236 -> Buildings - capital works - Buildings and Property - Non-Contestable | C116: =C236 -> Buildings - capital works | D116: $Millions | X116: 0 | Y116: 0 | Z116: 0 | AA116: 0 | AB116: 0 | AC116: 0 | AD116: 0 | AE116: 7.278313857 | AF116: 0 | AG116: 0 | AH116: 7.278313857 | AJ116: 0 | AK116: 0 | AL116: 0 | AM116: 0 | AN116: 0 | AO116: 0 | AP116: 0 | AQ116: 7.278313857 | AR116: 0 | AS116: 0 | AT116: 7.278313857 | AU116: 0 | BE116: 0 | BF116: 0 | BG116: 0 | BH116: 0 | BI116: 0
W118: Total Direct Non Labour | X118: =SUM(X103:X116) -> 0 | Y118: 0 | Z118: 0 | AA118: 0 | AB118: 232.9368616 | AC118: 387.0759689 | AD118: 287.2893981 | AE118: 55.11839294 | AF118: 0 | AG118: 0 | AH118: 962.4206215 | AJ118: =SUM(AJ103:AJ116) -> 0 | AK118: 0 | AL118: 0 | AM118: 0 | AN118: 2.657369621 | AO118: 326.494052 | AP118: 394.4440378 | AQ118: 238.825162 | AR118: 0 | AS118: 0 | AT118: 962.4206215 | BE118: =SUM(BE103:BE116) -> 0 | BF118: =SUM(BF103:BF116) -> 0 | BG118: =SUM(BG103:BG116) -> 0 | BH118: =SUM(BH103:BH116) -> 0 | BI118: =SUM(BI103:BI116) -> 135.4407936
X119: 0 | Y119: 0 | Z119: 0 | AA119: 0 | AB119: 0 | AC119: 0 | AD119: 0 | AE119: 0 | AF119: 0 | AG119: 0 | AH119: 0
B122: Direct Labour Costs
BE123: June year | Used for RIN population
B124: Labour Costs | F124: Input basis | J124: Mapping | L124: ="Direct Labour and Direct Labour Related Costs ("&Report_Month&" "&Report_Year&" dollars, unescalated)" -> Direct Labour and Direct Labour Related Costs (September 2026 dollars, unescalated) | BE124: Direct Labour and Direct Labour Related Costs (nominal dollars, unescalated)
B125: Component | C125: Source | D125: Units | F125: Dollars | G125: Labour | L125: =L23 -> 2022 | M125: 2023 | N125: 2024 | O125: 2025 | P125: 2026 | Q125: 2027 | R125: 2028 | S125: 2029 | T125: 2030 | U125: 2031 | V125: Total | BE125: =L125 -> 2022 | BF125: =M125 -> 2023 | BG125: =N125 -> 2024 | BH125: =O125 -> 2025 | BI125: =P125 -> 2026
B126: Actuals (to 31 January 2026)
B127: ="Labour - "&J127 -> Labour - Community and Stakeholder Engagement | C127: Transgrid | D127: $Millions | F127: =Report_Year -> 2026 | J127: =$B$280 -> Community and Stakeholder Engagement | M127: 0 | N127: 0 | O127: 0.05180646981 | P127: 0 | V127: =SUM(L127:U127) -> 0.05180646981 | BE127: 0 | BF127: 0 | BG127: 0 | BH127: 0.0492355752 | BI127: 0
B128: Labour - Fleet | C128: Transgrid | D128: $Millions | F128: =$F$127 -> 2026 | J128: =$B$281 -> Fleet | M128: 0 | N128: 0 | O128: 0 | P128: 0 | V128: =SUM(L128:U128) -> 0 | BE128: 0 | BF128: 0 | BG128: 0 | BH128: 0 | BI128: 0
B129: Labour - Land and Environment | C129: Transgrid | D129: $Millions | F129: 2026 | J129: =$B$282 -> Land and Environment | M129: 0 | N129: 0.01528897241 | O129: 0.4183264681 | P129: 0.1519528762 | V129: 0.5855683167 | BE129: 0 | BF129: 0 | BG129: 0 | BH129: 0.297201352 | BI129: 0.2634876146
B130: Labour - Other Support & Corporate Roles | C130: Transgrid | D130: $Millions | F130: 2026 | J130: =$B$283 -> Other Support & Corporate Roles | M130: 0 | N130: 0.03566401393 | O130: 0.2589299228 | P130: 0.16990279 | V130: 0.4644967267 | BE130: 0 | BF130: 0 | BG130: 0 | BH130: 0.1914904061 | BI130: 0.2541133505
B131: Labour - Project Delivery Management - Commercial Management | C131: Transgrid | D131: $Millions | F131: 2026 | J131: =$B$284 -> Project Delivery Management - Commercial Management | M131: 0 | N131: 0 | O131: 0.0001336030475 | P131: 0 | V131: 0.0001336030475 | BE131: 0 | BF131: 0 | BG131: 0 | BH131: 0.000126973 | BI131: 0
B132: Labour - Project Delivery Management - Commissioning | C132: Transgrid | D132: $Millions | F132: 2026 | J132: =$B$285 -> Project Delivery Management - Commissioning | M132: 0 | N132: 0 | O132: 0 | P132: 0 | V132: 0 | BE132: 0 | BF132: 0 | BG132: 0 | BH132: 0 | BI132: 0
B133: ="Labour - "&J133 -> Labour - Project Delivery Management - Construction Management | C133: Transgrid | D133: $Millions | F133: 2026 | J133: =$B$286 -> Project Delivery Management - Construction Management | M133: 0 | N133: 0.001718025235 | O133: 0.06844793695 | P133: 0 | V133: 0.07016596219 | BE133: 0 | BF133: 0 | BG133: 0 | BH133: 0.066636283 | BI133: -7.958078641e-20
B134: ="Labour - "&J134 -> Labour - Project Delivery Management - Project Controls | C134: Transgrid | D134: $Millions | F134: 2026 | J134: =$B$287 -> Project Delivery Management - Project Controls | M134: 0 | N134: 0 | O134: 0.001961583528 | P134: 0.2368984279 | V134: 0.2388600114 | BE134: 0 | BF134: 0 | BG134: 0 | BH134: 0 | BI134: 0.234184202
B135: ="Labour - "&J135 -> Labour - Project Delivery Management - Project Engineering | C135: Transgrid | D135: $Millions | F135: 2026 | J135: =$B$288 -> Project Delivery Management - Project Engineering | M135: 0 | N135: 0 | O135: 0 | P135: 0 | V135: =SUM(L135:U135) -> 0 | BE135: 0 | BF135: 0 | BG135: 0 | BH135: 0 | BI135: 0
B136: Labour - Project Delivery Management - Project Management | C136: Transgrid | D136: $Millions | F136: 2026 | J136: =$B$289 -> Project Delivery Management - Project Management | M136: 0 | N136: 0.1416467608 | O136: 1.390522984 | P136: 1.963161653 | V136: 3.495331398 | BE136: 0 | BF136: 0 | BG136: 0.126023905 | BH136: 0.9220136458 | BI136: 2.329386169
B137: Labour - Project Development | C137: Transgrid | D137: $Millions | F137: 2026 | J137: =$B$290 -> Project Development | M137: 1.464183764 | N137: 2.466175416 | O137: 5.164312515 | P137: 0.5267701679 | V137: 9.621441862 | BE137: 0 | BF137: 1.007602141 | BG137: 1.59212324 | BH137: 4.900196342 | BI137: 1.48282372
B138: Labour - Regulatory Approvals | C138: Transgrid | D138: $Millions | F138: 2026 | J138: =$B$291 -> Regulatory Approvals | M138: 0 | N138: 0.01340441924 | O138: 0.1765429962 | P138: 0.1623926803 | V138: 0.3523400958 | BE138: 0 | BF138: 0 | BG138: 0.011091857 | BH138: 0.112303611 | BI138: 0.216007848
B139: Labour - Transaction Procurement Support | C139: Transgrid | D139: $Millions | F139: 2026 | J139: =$B$292 -> Transaction Procurement Support | M139: 0 | N139: 0.01826293017 | O139: 0.2711983005 | P139: 0.2226073963 | V139: 0.512068627 | BE139: 0 | BF139: 0 | BG139: 0.002379958 | BH139: 0.2011809464 | BI139: 0.28933394
B140: Labour - Indirect - Proportion of labour and labour-related costs | C140: Transgrid | D140: $Millions | F140: 2026 | J140: =$B$293 -> Indirect - Proportion of labour and labour-related costs | V140: 0
B141: Forecasts (from 1 February 2026)
B142: ="Labour - "&J142 -> Labour - Community and Stakeholder Engagement | C142: Transgrid | D142: $Millions | F142: =$F$127 -> 2026 | G142: 2026 | J142: =$B$280 -> Community and Stakeholder Engagement | P142: 0.07606089208 | Q142: 0.02813492568 | R142: 0 | S142: 0 | T142: 0 | U142: 0 | V142: =SUM(L142:U142) -> 0.1041958178 | BI142: 0.04610573831
B143: Labour - Fleet | C143: Transgrid | D143: $Millions | F143: 2026 | G143: =G142 -> 2026 | J143: =$B$281 -> Fleet | P143: 0 | Q143: 0 | R143: 0 | S143: 0 | T143: 0 | U143: 0 | V143: 0 | BI143: 0
B144: Labour - Land and Environment | C144: Transgrid | D144: $Millions | F144: 2026 | G144: 2026 | J144: =$B$282 -> Land and Environment | P144: 0.6554866481 | Q144: 1.175959387 | R144: 1.179065273 | S144: 0.1131204987 | T144: 0 | U144: 0 | V144: 3.123631807 | BI144: 0.3149543582
B145: Labour - Other Support & Corporate Roles | C145: Transgrid | D145: $Millions | F145: 2026 | G145: 2026 | J145: =$B$283 -> Other Support & Corporate Roles | P145: 3.717491919 | Q145: 4.970454749 | R145: 4.569567217 | S145: 2.211535083 | T145: 0 | U145: 0 | V145: 15.46904897 | BI145: 2.146515614
B146: Labour - Project Delivery Management - Commercial Management | C146: Transgrid | D146: $Millions | F146: 2026 | G146: 2026 | J146: =$B$284 -> Project Delivery Management - Commercial Management | P146: 1.501363066 | Q146: 2.178061475 | R146: 2.185587888 | S146: 0.6449214843 | T146: 0 | U146: 0 | V146: 6.509933914 | BI146: 0.9013242299
B147: Labour - Project Delivery Management - Commissioning | C147: Transgrid | D147: $Millions | F147: 2026 | G147: 2026 | J147: =$B$285 -> Project Delivery Management - Commissioning | P147: 1.451715725 | Q147: 7.516516181 | R147: 7.43902199 | S147: 1.059777071 | T147: 0 | U147: 0 | V147: 17.46703097 | BI147: 0.4525497102
B148: ="Labour - "&J148 -> Labour - Project Delivery Management - Construction Management | C148: Transgrid | D148: $Millions | F148: 2026 | G148: 2026 | J148: =$B$286 -> Project Delivery Management - Construction Management | P148: 3.599197717 | Q148: 8.962220234 | R148: 8.895875147 | S148: 1.554536646 | T148: 0 | U148: 0 | V148: 23.01182974 | BI148: 1.699057015
B149: ="Labour - "&J149 -> Labour - Project Delivery Management - Project Controls | C149: Transgrid | D149: $Millions | F149: 2026 | G149: 2026 | J149: =$B$287 -> Project Delivery Management - Project Controls | P149: 2.794099076 | Q149: 4.014356462 | R149: 4.005906476 | S149: 1.301626915 | T149: 0 | U149: 0 | V149: 12.11598893 | BI149: 1.696185024
B150: ="Labour - "&J150 -> Labour - Project Delivery Management - Project Engineering | C150: Transgrid | D150: $Millions | F150: 2026 | G150: 2026 | J150: =$B$288 -> Project Delivery Management - Project Engineering | P150: 0.6124570392 | Q150: 0.5416118261 | R150: 0.3548339458 | S150: 0.1392389281 | T150: 0 | U150: 0 | V150: =SUM(L150:U150) -> 1.648141739 | BI150: 0.3930240697
B151: Labour - Project Delivery Management - Project Management | C151: Transgrid | D151: $Millions | F151: 2026 | G151: 2026 | J151: =$B$289 -> Project Delivery Management - Project Management | P151: 4.44680366 | Q151: 6.590959105 | R151: 6.604087797 | S151: 2.582031977 | T151: 0 | U151: 0 | V151: 20.22388254 | BI151: 2.637128242
B152: Labour - Project Development | C152: Transgrid | D152: $Millions | F152: 2026 | G152: 2026 | J152: =$B$290 -> Project Development | P152: 2.701894075 | Q152: 2.434253906 | R152: 0.6662764462 | S152: 0.06978320961 | T152: 0 | U152: 0 | V152: 5.872207638 | BI152: 1.586257823
B153: Labour - Regulatory Approvals | C153: Transgrid | D153: $Millions | F153: 2026 | G153: 2026 | J153: =$B$291 -> Regulatory Approvals | P153: 0.4713127644 | Q153: 0.02556722949 | R153: 0 | S153: 0 | T153: 0 | U153: 0 | V153: 0.4968799939 | BI153: 0.3460822058
B154: Labour - Transaction Procurement Support | C154: Transgrid | D154: $Millions | F154: 2026 | G154: 2026 | J154: =$B$292 -> Transaction Procurement Support | P154: 0.3656448387 | Q154: 0.2989934178 | R154: 0.2857237884 | S154: 0 | T154: 0 | U154: 0 | V154: 0.9503620449 | BI154: 0.204316329
B155: Labour - Indirect - Proportion of labour and labour-related costs | C155: Transgrid | D155: $Millions | F155: 2026 | G155: 2026 | J155: =$B$293 -> Indirect - Proportion of labour and labour-related costs | V155: 0
B156: Total
B157: Labour | C157: Transgrid | D157: $Millions | L157: =SUM(L127:L140,L142:L155) -> 0 | M157: =SUM(M127:M140,M142:M155) -> 1.464183764 | N157: 2.692160537 | O157: 7.80218278 | P157: 25.82721341 | Q157: 38.7370889 | R157: 36.18594597 | S157: 9.676571812 | T157: 0 | U157: 0 | V157: 122.3853472 | BE157: =SUM(BE127:BE140,BE142:BE155) -> 0 | BF157: =SUM(BF127:BF140,BF142:BF155) -> 1.007602141 | BG157: =SUM(BG127:BG140,BG142:BG155) -> 1.73161896 | BH157: =SUM(BH127:BH140,BH142:BH155) -> 6.740385134 | BI157: =SUM(BI127:BI140,BI142:BI155) -> 17.4928372
B158: Note: Direct labour costs for each year are pro-rated across escalated capex by asset class for that year
K159: Total | L159: =L157 -> 0 | M159: =M157 -> 1.464183764 | N159: =N157 -> 2.692160537 | O159: 7.80218278 | P159: 25.82721341 | Q159: 38.7370889 | R159: 36.18594597 | S159: 9.676571812 | T159: 0 | U159: 0 | V159: =SUM(L159:U159) -> 122.3853472 | BE159: =BE157 -> 0 | BF159: =BF157 -> 1.007602141 | BG159: =BG157 -> 1.73161896 | BH159: =BH157 -> 6.740385134 | BI159: =BI157 -> 17.4928372
B160: Indexation | F160: Value | K160: ="Actuals ("&$G$9&")" -> Actuals (Real $2026) | L160: =SUM(L127:L140) -> 0 | M160: =SUM(M127:M140) -> 1.464183764 | N160: 2.692160537 | O160: 7.80218278 | P160: 3.433685992 | Q160: 0 | R160: 0 | S160: 0 | T160: 0 | U160: 0 | V160: 15.39221307 | BD160: Note: no labour escalation over the 2026 June year and September 2026 quarter
B161: Item | C161: Source | D161: Units | K161: ="Forecast ("&$G$9&")" -> Forecast (Real $2026) | L161: =SUM(L142:L155)*$F$162 -> 0 | M161: =SUM(M142:M155)*$F$162 -> 0 | N161: 0 | O161: 0 | P161: 22.39352742 | Q161: 38.7370889 | R161: 36.18594597 | S161: 9.676571812 | T161: 0 | U161: 0 | V161: 106.9931341
B162: Input dollar basis conversion factor | C162: Above | D162: Factor | F162: =_xlfn.XLOOKUP(Report_Year,$K$23:$U$23,$K$24:$U$24)/_xlfn.XLOOKUP($F$127,$K$23:$U$23,$K$24:$U$24) -> 1 | G162: ◄ Costs sourced in end of period terms | K162: ="Total ("&$G$9&")" -> Total (Real $2026) | L162: =SUM(L160:L161) -> 0 | M162: =SUM(M160:M161) -> 1.464183764 | N162: =SUM(N160:N161) -> 2.692160537 | O162: 7.80218278 | P162: 25.82721341 | Q162: 38.7370889 | R162: 36.18594597 | S162: 9.676571812 | T162: =SUM(T160:T161) -> 0 | U162: =SUM(U160:U161) -> 0 | V162: =SUM(L162:U162) -> 122.3853472
K163: ="Total including escalation ("&$G$9&")" -> Total including escalation (Real $2026) | L163: =L162* IF(L125<$G$142,1,L$25/INDEX($L$25:$U$25,MATCH($G$142,Years,0))) -> 0 | M163: 1.464183764 | N163: 2.692160537 | O163: 7.80218278 | P163: 25.82721341 | Q163: 39.0326998 | R163: 36.81097303 | S163: 9.959993984 | T163: 0 | U163: 0 | V163: =SUM(L163:U163) -> 123.5894073
B166: Indirect Costs - Labour and Non Labour
BE167: June year | Used for RIN population
B168: Indirect Costs | F168: Input basis | J168: Mapping | L168: ="Indirect Costs ("&Report_Month&" "&Report_Year&" dollars, unescalated)" -> Indirect Costs (September 2026 dollars, unescalated) | BE168: Direct Labour and Direct Labour Related Costs (nominal dollars, unescalated)
B169: Component | C169: Source | D169: Units | F169: Dollars | L169: =L$23 -> 2022 | M169: 2023 | N169: 2024 | O169: 2025 | P169: 2026 | Q169: 2027 | R169: 2028 | S169: 2029 | T169: 2030 | U169: 2031 | V169: Total | BE169: =L169 -> 2022 | BF169: =M169 -> 2023 | BG169: =N169 -> 2024 | BH169: =O169 -> 2025 | BI169: =P169 -> 2026
B170: Actuals (to 31 January 2026)
B171: ="Non Labour - "&J171 -> Non Labour - Community and Stakeholder Engagement | C171: Transgrid | D171: $Millions | F171: =$F$127 -> 2026 | J171: =$B$280 -> Community and Stakeholder Engagement | M171: 0 | N171: 0 | O171: 7.894778144e-05 | P171: 0 | V171: =SUM(L171:U171) -> 7.894778144e-05 | BE171: 0 | BF171: 0 | BG171: 0 | BH171: 7.503e-05 | BI171: 0
B172: Non Labour - Fleet | C172: Transgrid | D172: $Millions | F172: 2026 | J172: =$B$281 -> Fleet | M172: 0 | N172: 0 | O172: 0 | P172: 0 | V172: =SUM(L172:U172) -> 0 | BE172: 0 | BF172: 0 | BG172: 0 | BH172: 0 | BI172: 0
B173: Non Labour - Land and Environment | C173: Transgrid | D173: $Millions | F173: 2026 | J173: =$B$282 -> Land and Environment | M173: 0 | N173: 0 | O173: 0.3151440759 | P173: 0.1683748918 | V173: 0.4835189677 | BE173: 0 | BF173: 0 | BG173: 0 | BH173: 0.16794783 | BI173: 0.29667799
B174: Non Labour - Other Support & Corporate Roles | C174: Transgrid | D174: $Millions | F174: 2026 | J174: =$B$283 -> Other Support & Corporate Roles | M174: 0 | N174: 0.0379355885 | O174: 1.513228313 | P174: 0.1471547871 | V174: 1.698318688 | BE174: 0 | BF174: 0 | BG174: 0 | BH174: 1.0873158 | BI174: 0.53012925
B175: Non Labour - Project Delivery Management - Commercial Management | C175: Transgrid | D175: $Millions | F175: 2026 | J175: =$B$284 -> Project Delivery Management - Commercial Management | M175: 0 | N175: 0 | O175: 0.117858747 | P175: 0 | V175: 0.117858747 | BE175: 0 | BF175: 0 | BG175: 0 | BH175: 0.1308 | BI175: -0.01878999
B176: Non Labour - Project Delivery Management - Commissioning | C176: Transgrid | D176: $Millions | F176: 2026 | J176: =$B$285 -> Project Delivery Management - Commissioning | M176: 0 | N176: 0 | O176: 0 | P176: 0 | V176: 0 | BE176: 0 | BF176: 0 | BG176: 0 | BH176: 0 | BI176: 0
B177: Non Labour - Project Delivery Management - Construction Management | C177: Transgrid | D177: $Millions | F177: 2026 | J177: =$B$286 -> Project Delivery Management - Construction Management | M177: 0 | N177: 0 | O177: 0.000328796518 | P177: 0.01376401301 | V177: =SUM(L177:U177) -> 0.01409280953 | BE177: 0 | BF177: 0 | BG177: 0 | BH177: 0.00031248 | BI177: 0.013498
B178: Non Labour - Project Delivery Management - Project Controls | C178: Transgrid | D178: $Millions | F178: 2026 | J178: =$B$287 -> Project Delivery Management - Project Controls | M178: 0 | N178: 0 | O178: 0 | P178: 0.004628085643 | V178: 0.004628085643 | BE178: 0 | BF178: 0 | BG178: 0 | BH178: 0 | BI178: 0.00453864
B179: ="Non Labour - "&J179 -> Non Labour - Project Delivery Management - Project Engineering | C179: Transgrid | D179: $Millions | F179: 2026 | J179: =$B$288 -> Project Delivery Management - Project Engineering | M179: 0 | N179: 0 | O179: 0 | P179: 0 | V179: 0 | BE179: 0 | BF179: 0 | BG179: 0 | BH179: 0 | BI179: 0
B180: Non Labour - Project Delivery Management - Project Management | C180: Transgrid | D180: $Millions | F180: 2026 | J180: =$B$289 -> Project Delivery Management - Project Management | M180: 0 | N180: 0.01814953164 | O180: 0.09336309076 | P180: 0.0587495145 | V180: 0.1702621369 | BE180: 0 | BF180: 0 | BG180: 0.0517254 | BH180: 0.02482504 | BI180: 0.08653859
B181: Non Labour - Project Development | C181: Transgrid | D181: $Millions | F181: 2026 | J181: =$B$290 -> Project Development | M181: 1.04792706 | N181: 1.55712741 | O181: 5.365265963 | P181: 0.2924022621 | V181: 8.262722695 | BE181: 0 | BF181: 0.84262027 | BG181: 0.97031619 | BH181: 5.25254932 | BI181: 0.67501314
B182: Non Labour - Regulatory Approvals | C182: Transgrid | D182: $Millions | F182: 2026 | J182: =$B$291 -> Regulatory Approvals | M182: 0 | N182: 0.03490357077 | O182: 0.127718581 | P182: 0.5035010153 | V182: 0.6661231671 | BE182: 0 | BF182: 0 | BG182: 0.00136 | BH182: 0.15561805 | BI182: 0.490375
B183: Non Labour - Transaction Procurement Support | C183: Transgrid | D183: $Millions | F183: 2026 | J183: =$B$292 -> Transaction Procurement Support | M183: 0 | N183: 0 | O183: 1.653830639 | P183: 0.6328345348 | V183: 2.286665174 | BE183: 0 | BF183: 0 | BG183: 0 | BH183: 1.3485563 | BI183: 0.8438069689
B184: Non Labour - Indirect - Proportion of labour and labour-related costs | C184: Transgrid | D184: $Millions | F184: 2026 | J184: =$B$293 -> Indirect - Proportion of labour and labour-related costs | M184: 0.6275073273 | N184: 1.153783087 | O184: 3.34379262 | P184: 1.471579711 | V184: 6.596662746 | BE184: 0 | BF184: 0.431829489 | BG184: 0.7421224113 | BH184: 2.888736486 | BI184: 2.172572933
B185: Forecasts (from 1 February 2026)
B186: ="Non Labour - "&J186 -> Non Labour - Community and Stakeholder Engagement | C186: Transgrid | D186: $Millions | F186: =$F$127 -> 2026 | J186: =$B$280 -> Community and Stakeholder Engagement | P186: 0 | Q186: 0 | R186: 0 | S186: 0 | T186: 0 | U186: 0 | V186: =SUM(L186:U186) -> 0 | BI186: 0
B187: Non Labour - Fleet | C187: Transgrid | D187: $Millions | F187: 2026 | J187: =$B$281 -> Fleet | P187: 0.00948328056 | Q187: 0.04441536181 | R187: 0 | S187: 0 | T187: 0 | U187: 0 | V187: 0.05389864237 | BI187: 0.0067
B188: Non Labour - Land and Environment | C188: Transgrid | D188: $Millions | F188: 2026 | J188: =$B$282 -> Land and Environment | P188: 0 | Q188: 0 | R188: 0 | S188: 0 | T188: 0 | U188: 0 | V188: 0 | BI188: 0
B189: Non Labour - Other Support & Corporate Roles | C189: Transgrid | D189: $Millions | F189: 2026 | J189: =$B$283 -> Other Support & Corporate Roles | P189: 10.11542145 | Q189: 4.916864243 | R189: 6.080736278 | S189: 2.394581352 | T189: 0 | U189: 0 | V189: 23.50760333 | BI189: 6.295077569
B190: Non Labour - Project Delivery Management - Commercial Management | C190: Transgrid | D190: $Millions | F190: 2026 | J190: =$B$284 -> Project Delivery Management - Commercial Management | P190: 0 | Q190: 0 | R190: 0 | S190: 0 | T190: 0 | U190: 0 | V190: 0 | BI190: 0
B191: Non Labour - Project Delivery Management - Commissioning | C191: Transgrid | D191: $Millions | F191: 2026 | J191: =$B$285 -> Project Delivery Management - Commissioning | P191: 0 | Q191: 0 | R191: 0 | S191: 0 | T191: 0 | U191: 0 | V191: 0 | BI191: 0
B192: Non Labour - Project Delivery Management - Construction Management | C192: Transgrid | D192: $Millions | F192: 2026 | J192: =$B$286 -> Project Delivery Management - Construction Management | P192: 0 | Q192: 0 | R192: 0 | S192: 0 | T192: 0 | U192: 0 | V192: =SUM(L192:U192) -> 0 | BI192: 0
B193: Non Labour - Project Delivery Management - Project Controls | C193: Transgrid | D193: $Millions | F193: 2026 | J193: =$B$287 -> Project Delivery Management - Project Controls | P193: 0 | Q193: 0 | R193: 0 | S193: 0 | T193: 0 | U193: 0 | V193: 0 | BI193: 0
B194: ="Non Labour - "&J194 -> Non Labour - Project Delivery Management - Project Engineering | C194: Transgrid | D194: $Millions | F194: 2026 | J194: =$B$288 -> Project Delivery Management - Project Engineering | P194: 0 | Q194: 0 | R194: 0 | S194: 0 | T194: 0 | U194: 0 | V194: =SUM(L194:U194) -> 0 | BI194: 0
B195: Non Labour - Project Delivery Management - Project Management | C195: Transgrid | D195: $Millions | F195: 2026 | J195: =$B$289 -> Project Delivery Management - Project Management | P195: 0.269202803 | Q195: 0.5211402452 | R195: 0.5076869428 | S195: 0.2060753913 | T195: 0 | U195: 0 | V195: 1.504105382 | BI195: 0.132
B196: Non Labour - Project Development | C196: Transgrid | D196: $Millions | F196: 2026 | J196: =$B$290 -> Project Development | P196: 1.013604637 | Q196: 0.3619240043 | R196: 0 | S196: 0 | T196: 0 | U196: 0 | V196: 1.375528641 | BI196: 0.555207
B197: Non Labour - Regulatory Approvals | C197: Transgrid | D197: $Millions | F197: 2026 | J197: =$B$291 -> Regulatory Approvals | P197: 0.397685959 | Q197: 0 | R197: 0 | S197: 0 | T197: 0 | U197: 0 | V197: 0.397685959 | BI197: 0.39
B198: Non Labour - Transaction Procurement Support | C198: Transgrid | D198: $Millions | F198: 2026 | J198: =$B$292 -> Transaction Procurement Support | P198: 0.07647297049 | Q198: 0 | R198: 0 | S198: 0 | T198: 0 | U198: 0 | V198: 0.07647297049 | BI198: 0.074995
B199: Non Labour - Indirect - Proportion of labour and labour-related costs | C199: Transgrid | D199: $Millions | F199: 2026 | J199: =$B$293 -> Indirect - Proportion of labour and labour-related costs | P199: 9.597226037 | Q199: 16.60160953 | R199: 15.50826256 | S199: 4.147102205 | T199: 0 | U199: 0 | V199: 45.85420033 | BI199: 5.324357297
B200: =B156 -> Total
B201: Non-Labour | C201: Transgrid | D201: $Millions | L201: =SUM(L171:L184,L186:L199) -> 0 | M201: =SUM(M171:M184,M186:M199) -> 1.675434388 | N201: 2.801899188 | O201: 12.53060977 | P201: 24.77208596 | Q201: 22.44595338 | R201: 22.09668578 | S201: 6.747758949 | T201: 0 | U201: 0 | V201: 93.07042741 | BE201: =SUM(BE171:BE184,BE186:BE199) -> 0 | BF201: =SUM(BF171:BF184,BF186:BF199) -> 1.274449759 | BG201: =SUM(BG171:BG184,BG186:BG199) -> 1.765524001 | BH201: =SUM(BH171:BH184,BH186:BH199) -> 11.05673634 | BI201: =SUM(BI171:BI184,BI186:BI199) -> 17.87269739
B202: Note: Indirect costs for each year are pro-rated across escalated capex (including direct labour costs) by asset class for that year
K203: Total | L203: =L201 -> 0 | M203: =M201 -> 1.675434388 | N203: =N201 -> 2.801899188 | O203: 12.53060977 | P203: 24.77208596 | Q203: 22.44595338 | R203: 22.09668578 | S203: 6.747758949 | T203: 0 | U203: 0 | V203: =SUM(L203:U203) -> 93.07042741 | BE203: =BE201 -> 0 | BF203: =BF201 -> 1.274449759 | BG203: =BG201 -> 1.765524001 | BH203: =BH201 -> 11.05673634 | BI203: =BI201 -> 17.87269739
B204: Indexation | F204: Value | K204: ="Actuals ("&$G$9&")" -> Actuals (Real $2026) | L204: =SUM(L171:L184) -> 0 | M204: =SUM(M171:M184) -> 1.675434388 | N204: 2.801899188 | O204: 12.53060977 | P204: 3.292988815 | Q204: 0 | R204: 0 | S204: 0 | T204: 0 | U204: 0 | V204: =SUM(L204:U204) -> 20.30093216
B205: Item | C205: Source | D205: Units | K205: ="Forecast ("&$G$9&")" -> Forecast (Real $2026) | L205: =SUM(L186:L199)*$F$206 -> 0 | M205: =SUM(M186:M199)*$F$206 -> 0 | N205: 0 | O205: 0 | P205: 21.47909714 | Q205: 22.44595338 | R205: 22.09668578 | S205: 6.747758949 | T205: 0 | U205: 0 | V205: =SUM(L205:U205) -> 72.76949525
B206: Input dollar basis conversion factor | C206: Above | D206: Factor | F206: =_xlfn.XLOOKUP(Report_Year,$K$23:$U$23,$K$24:$U$24)/_xlfn.XLOOKUP($F$127,$K$23:$U$23,$K$24:$U$24) -> 1 | G206: ◄ Costs sourced in end of period terms | K206: ="Total ("&$G$9&")" -> Total (Real $2026) | L206: =SUM(L204:L205) -> 0 | M206: =SUM(M204:M205) -> 1.675434388 | N206: =SUM(N204:N205) -> 2.801899188 | O206: 12.53060977 | P206: 24.77208596 | Q206: 22.44595338 | R206: 22.09668578 | S206: 6.747758949 | T206: 0 | U206: 0 | V206: =SUM(L206:U206) -> 93.07042741
K207: ="Total including escalation ("&$G$9&")" -> Total including escalation (Real $2026) | L207: =L206+(L184+L199)*( IF(L169<$G$142,1,L$25/INDEX($L$25:$U$25,MATCH($G$142,Years,0)))-1) -> 0 | M207: 1.675434388 | N207: 2.801899188 | O207: 12.53060977 | P207: 24.77208596 | Q207: 22.57264377 | R207: 22.36455452 | S207: 6.869225594 | T207: 0 | U207: 0 | V207: =SUM(L207:U207) -> 93.58645319
B210: Equity Raising Costs (Used in Output|Tables)
B212: Equity Raising Costs | F212: Input basis | L212: ="Expenditure ("&Report_Month&" "&Report_Year&" dollars)" -> Expenditure (September 2026 dollars)
C213: Source | D213: Units | F213: Dollars | L213: =L$23 -> 2022 | M213: 2023 | N213: 2024 | O213: 2025 | P213: 2026 | Q213: 2027 | R213: 2028 | S213: 2029 | T213: 2030 | U213: 2031 | V213: Total
B214: Equity Raising Cost | C214: PTRM | D214: $Millions | F214: =Report_Year -> 2026 | G214: ◄ Equity Raising Costs are in period end dollars, sourced from the PTRM | Q214: 5.416636001 | R214: 0 | S214: 0 | T214: 0 | U214: 0 | V214: =SUM(N214:U214) -> 5.416636001
B217: Lookup tables and mapping
B219: Capex input template | C219: =$B$238 -> PTRM | D219: RIN (Asset Category) | I219: Contestable
B220: Categories | C220: =$B$239 -> RAB Asset Classes | D220: Network and Non Network Categories | I220: Yes/No
B221: =C221&" - "&D221&" - "&IF(I221="Yes","Contestable","Non-Contestable") -> Synchronous Condensers - Synchronous Condensers - Contestable | C221: =$B$245 -> Synchronous Condensers | D221: =$B$251 -> Synchronous Condensers | I221: Yes
B222: =C222&" - "&D222&" - "&IF(I222="Yes","Contestable","Non-Contestable") -> Synchronous Condensers - Other - Non-Contestable | C222: Synchronous Condensers | D222: =$B$260 -> Other | I222: No
B223: Transmission Lines - Transmission towers - Contestable | C223: =$B$240 -> Transmission Lines | D223: =$B$252 -> Transmission towers | I223: Yes
B224: Transmission Lines - Transmission Tower support structures - Contestable | C224: =$B$240 -> Transmission Lines | D224: =$B$253 -> Transmission Tower support structures | I224: Yes
B225: Transmission Lines - Conductors - Contestable | C225: =$B$240 -> Transmission Lines | D225: =$B$254 -> Conductors | I225: Yes
B226: Transmission Lines - Transmission cables - Contestable | C226: =$B$240 -> Transmission Lines | D226: =$B$255 -> Transmission cables | I226: Yes
B227: Substations - Substation switchbays - Contestable | C227: =$B$241 -> Substations | D227: =$B$256 -> Substation switchbays | I227: Yes
B228: Substations - Substation switchbays - Non-Contestable | C228: =$B$241 -> Substations | D228: =$B$256 -> Substation switchbays | I228: No
B229: Substations - Substation power transformers - Contestable | C229: =$B$241 -> Substations | D229: =$B$257 -> Substation power transformers | I229: Yes
B230: Substations - Substation reactive plant - Contestable | C230: =$B$241 -> Substations | D230: =$B$258 -> Substation reactive plant | I230: Yes
B231: Secondary System - SCADA, network control and protection systems - Contestable | C231: =$B$242 -> Secondary System | D231: =$B$259 -> SCADA, network control and protection systems | I231: Yes
B232: Secondary System - SCADA, network control and protection systems - Non-Contestable | C232: =$B$242 -> Secondary System | D232: =$B$259 -> SCADA, network control and protection systems | I232: No
B233: Land & Easements - Other - Non-Contestable | C233: =$B$244 -> Land & Easements | D233: =$B$260 -> Other | I233: No
B234: Minor Plant, Motor Vehicles & Mobile Plant - Motor Vehicles - Non-Contestable | C234: =$B$243 -> Minor Plant, Motor Vehicles & Mobile Plant | D234: =$B$262 -> Motor Vehicles | I234: No
B235: Buildings - capital works - Buildings and Property - Contestable | C235: =$B$246 -> Buildings - capital works | D235: =$B$263 -> Buildings and Property | I235: Yes
B236: Buildings - capital works - Buildings and Property - Non-Contestable | C236: =$B$246 -> Buildings - capital works | D236: =$B$263 -> Buildings and Property | I236: No
... 54 more rows

Sheet Calculations
A1: Calculations | E1: =Inputs!$G$9 -> Real $2026 | I1: =Report_Month&" Year" -> September Year
B3: Incremental Capital Expenditure (Excluding Equity Raising Costs) by Capex Category | O3: Total | Q3: Contestable | S3: Mapping | T3: Mapping | V3: Mapping | AE3: June year | $Nominal | Used for RIN population
B4: Capex category | C4: Dollar basis | D4: Units | E4: =Inputs!L$23 -> 2022 | F4: =Inputs!M$23 -> 2023 | G4: =Inputs!N$23 -> 2024 | H4: =Inputs!O$23 -> 2025 | I4: =Inputs!P$23 -> 2026 | J4: =Inputs!Q$23 -> 2027 | K4: =Inputs!R$23 -> 2028 | L4: =Inputs!S$23 -> 2029 | M4: =Inputs!T$23 -> 2030 | N4: =Inputs!U$23 -> 2031 | Q4: Yes/No | S4: RAB Asset Class | T4: RIN Network and Non network | V4: RIN Cost Categories | AE4: =E4 -> 2022 | AF4: =F4 -> 2023 | AG4: =G4 -> 2024 | AH4: =H4 -> 2025 | AI4: =I4 -> 2026
B6: Direct Non-Labour Costs
B7: =Inputs!$B$221 -> Synchronous Condensers - Synchronous Condensers - Contestable | C7: =Inputs!$G$9 -> Real $2026 | D7: $Million | E7: =Inputs!X103 -> 0 | F7: =Inputs!Y103 -> 0 | G7: =Inputs!Z103 -> 0 | H7: =Inputs!AA103 -> 0 | I7: =Inputs!AB103 -> 143.0502505 | J7: =Inputs!AC103 -> 249.2934521 | K7: =Inputs!AD103 -> 178.1530832 | L7: =Inputs!AE103 -> 28.24461292 | M7: =Inputs!AF103 -> 0 | N7: =Inputs!AG103 -> 0 | O7: =SUM(E7:N7) -> 598.7413987 | Q7: =Inputs!I221 -> Yes | S7: =Inputs!C221 -> Synchronous Condensers | T7: =Inputs!D221 -> Synchronous Condensers | V7: =_xlfn.XLOOKUP($T7,Inputs!$B$251:$B$264,Inputs!$C$251:$C$264) -> Synchronous Condenser | AE7: =Inputs!BE103 -> 0 | AF7: =Inputs!BF103 -> 0 | AG7: =Inputs!BG103 -> 0 | AH7: =Inputs!BH103 -> 0 | AI7: =Inputs!BI103 -> 79.95201349
B8: =Inputs!$B$222 -> Synchronous Condensers - Other - Non-Contestable | C8: =Inputs!$G$9 -> Real $2026 | D8: $Million | E8: =Inputs!X104 -> 0 | F8: =Inputs!Y104 -> 0 | G8: =Inputs!Z104 -> 0 | H8: =Inputs!AA104 -> 0 | I8: =Inputs!AB104 -> 2.039415174 | J8: =Inputs!AC104 -> 1.97401608 | K8: =Inputs!AD104 -> 1.923056602 | L8: =Inputs!AE104 -> 1.873412648 | M8: =Inputs!AF104 -> 0 | N8: =Inputs!AG104 -> 0 | O8: 7.809900505 | Q8: =Inputs!I222 -> No | S8: =Inputs!C222 -> Synchronous Condensers | T8: =Inputs!D222 -> Other | V8: =_xlfn.XLOOKUP($T8,Inputs!$B$251:$B$264,Inputs!$C$251:$C$264) -> Other (Including non-network capital costs) | AE8: =Inputs!BE104 -> 0 | AF8: =Inputs!BF104 -> 0 | AG8: =Inputs!BG104 -> 0 | AH8: =Inputs!BH104 -> 0 | AI8: =Inputs!BI104 -> 0
B9: =Inputs!$B$223 -> Transmission Lines - Transmission towers - Contestable | C9: =Inputs!$G$9 -> Real $2026 | D9: $Million | E9: =Inputs!X105 -> 0 | F9: =Inputs!Y105 -> 0 | G9: =Inputs!Z105 -> 0 | H9: =Inputs!AA105 -> 0 | I9: =Inputs!AB105 -> 3.343471924 | J9: =Inputs!AC105 -> 8.945176666 | K9: =Inputs!AD105 -> 2.07623085 | L9: =Inputs!AE105 -> 0 | M9: =Inputs!AF105 -> 0 | N9: =Inputs!AG105 -> 0 | O9: 14.36487944 | Q9: =Inputs!I223 -> Yes | S9: =Inputs!C223 -> Transmission Lines | T9: =Inputs!D223 -> Transmission towers | V9: =_xlfn.XLOOKUP($T9,Inputs!$B$251:$B$264,Inputs!$C$251:$C$264) -> Towers - new infrastructure | AE9: =Inputs!BE105 -> 0 | AF9: =Inputs!BF105 -> 0 | AG9: =Inputs!BG105 -> 0 | AH9: =Inputs!BH105 -> 0 | AI9: =Inputs!BI105 -> 0.6325877062
B10: =Inputs!$B$224 -> Transmission Lines - Transmission Tower support structures - Contestable | C10: =Inputs!$G$9 -> Real $2026 | D10: $Million | E10: =Inputs!X106 -> 0 | F10: =Inputs!Y106 -> 0 | G10: =Inputs!Z106 -> 0 | H10: =Inputs!AA106 -> 0 | I10: =Inputs!AB106 -> 0.4330292543 | J10: =Inputs!AC106 -> 1.158533186 | K10: =Inputs!AD106 -> 0.2689027207 | L10: =Inputs!AE106 -> 0 | M10: =Inputs!AF106 -> 0 | N10: =Inputs!AG106 -> 0 | O10: 1.860465161 | Q10: =Inputs!I224 -> Yes | S10: =Inputs!C224 -> Transmission Lines | T10: =Inputs!D224 -> Transmission Tower support structures | V10: =_xlfn.XLOOKUP($T10,Inputs!$B$251:$B$264,Inputs!$C$251:$C$264) -> Towers - new infrastructure | AE10: =Inputs!BE106 -> 0 | AF10: =Inputs!BF106 -> 0 | AG10: =Inputs!BG106 -> 0 | AH10: =Inputs!BH106 -> 0 | AI10: =Inputs!BI106 -> 0.08192949993
B11: =Inputs!$B$225 -> Transmission Lines - Conductors - Contestable | C11: =Inputs!$G$9 -> Real $2026 | D11: $Million | E11: =Inputs!X107 -> 0 | F11: =Inputs!Y107 -> 0 | G11: =Inputs!Z107 -> 0 | H11: =Inputs!AA107 -> 0 | I11: =Inputs!AB107 -> 1.838173375 | J11: =Inputs!AC107 -> 4.917877571 | K11: =Inputs!AD107 -> 1.141469812 | L11: =Inputs!AE107 -> 0 | M11: =Inputs!AF107 -> 0 | N11: =Inputs!AG107 -> 0 | O11: 7.897520759 | Q11: =Inputs!I225 -> Yes | S11: =Inputs!C225 -> Transmission Lines | T11: =Inputs!D225 -> Conductors | V11: =_xlfn.XLOOKUP($T11,Inputs!$B$251:$B$264,Inputs!$C$251:$C$264) -> Transmission lines - new infrastructure | AE11: =Inputs!BE107 -> 0 | AF11: =Inputs!BF107 -> 0 | AG11: =Inputs!BG107 -> 0 | AH11: =Inputs!BH107 -> 0 | AI11: =Inputs!BI107 -> 0.347783952
B12: =Inputs!$B$227 -> Substations - Substation switchbays - Contestable | C12: =Inputs!$G$9 -> Real $2026 | D12: $Million | E12: =Inputs!X108 -> 0 | F12: =Inputs!Y108 -> 0 | G12: =Inputs!Z108 -> 0 | H12: =Inputs!AA108 -> 0 | I12: =Inputs!AB108 -> 23.77776425 | J12: =Inputs!AC108 -> 34.98187639 | K12: =Inputs!AD108 -> 37.4429327 | L12: =Inputs!AE108 -> 6.867295739 | M12: =Inputs!AF108 -> 0 | N12: =Inputs!AG108 -> 0 | O12: 103.0698691 | Q12: =Inputs!I227 -> Yes | S12: =Inputs!C227 -> Substations | T12: =Inputs!D227 -> Substation switchbays | V12: =_xlfn.XLOOKUP($T12,Inputs!$B$251:$B$264,Inputs!$C$251:$C$264) -> Substation(s) | AE12: =Inputs!BE108 -> 0 | AF12: =Inputs!BF108 -> 0 | AG12: =Inputs!BG108 -> 0 | AH12: =Inputs!BH108 -> 0 | AI12: =Inputs!BI108 -> 18.57381323
B13: =Inputs!$B$228 -> Substations - Substation switchbays - Non-Contestable | C13: =Inputs!$G$9 -> Real $2026 | D13: $Million | E13: =Inputs!X109 -> 0 | F13: =Inputs!Y109 -> 0 | G13: =Inputs!Z109 -> 0 | H13: =Inputs!AA109 -> 0 | I13: =Inputs!AB109 -> 9.237375403 | J13: =Inputs!AC109 -> 1.040814767 | K13: =Inputs!AD109 -> 0.2594955011 | L13: =Inputs!AE109 -> 0 | M13: =Inputs!AF109 -> 0 | N13: =Inputs!AG109 -> 0 | O13: 10.53768567 | Q13: =Inputs!I228 -> No | S13: =Inputs!C228 -> Substations | T13: =Inputs!D228 -> Substation switchbays | V13: =_xlfn.XLOOKUP($T13,Inputs!$B$251:$B$264,Inputs!$C$251:$C$264) -> Substation(s) | AE13: =Inputs!BE109 -> 0 | AF13: =Inputs!BF109 -> 0 | AG13: =Inputs!BG109 -> 0 | AH13: =Inputs!BH109 -> 0 | AI13: =Inputs!BI109 -> 4.409969
B14: =Inputs!$B$229 -> Substations - Substation power transformers - Contestable | C14: =Inputs!$G$9 -> Real $2026 | D14: $Million | E14: =Inputs!X110 -> 0 | F14: =Inputs!Y110 -> 0 | G14: =Inputs!Z110 -> 0 | H14: =Inputs!AA110 -> 0 | I14: =Inputs!AB110 -> 12.61007119 | J14: =Inputs!AC110 -> 22.65323573 | K14: =Inputs!AD110 -> 16.60895853 | L14: =Inputs!AE110 -> 2.658308028 | M14: =Inputs!AF110 -> 0 | N14: =Inputs!AG110 -> 0 | O14: 54.53057348 | Q14: =Inputs!I229 -> Yes | S14: =Inputs!C229 -> Substations | T14: =Inputs!D229 -> Substation power transformers | V14: =_xlfn.XLOOKUP($T14,Inputs!$B$251:$B$264,Inputs!$C$251:$C$264) -> Substation(s) | AE14: =Inputs!BE110 -> 0 | AF14: =Inputs!BF110 -> 0 | AG14: =Inputs!BG110 -> 0 | AH14: =Inputs!BH110 -> 0 | AI14: =Inputs!BI110 -> 7.834238752
B15: =Inputs!$B$231 -> Secondary System - SCADA, network control and protection systems - Contestable | C15: =Inputs!$G$9 -> Real $2026 | D15: $Million | E15: =Inputs!X111 -> 0 | F15: =Inputs!Y111 -> 0 | G15: =Inputs!Z111 -> 0 | H15: =Inputs!AA111 -> 0 | I15: =Inputs!AB111 -> 22.01517431 | J15: =Inputs!AC111 -> 45.96847048 | K15: =Inputs!AD111 -> 23.9124025 | L15: =Inputs!AE111 -> 3.101359366 | M15: =Inputs!AF111 -> 0 | N15: =Inputs!AG111 -> 0 | O15: 94.99740666 | Q15: =Inputs!I231 -> Yes | S15: =Inputs!C231 -> Secondary System | T15: =Inputs!D231 -> SCADA, network control and protection systems | V15: =_xlfn.XLOOKUP($T15,Inputs!$B$251:$B$264,Inputs!$C$251:$C$264) -> Ancillary equipment | AE15: =Inputs!BE111 -> 0 | AF15: =Inputs!BF111 -> 0 | AG15: =Inputs!BG111 -> 0 | AH15: =Inputs!BH111 -> 0 | AI15: =Inputs!BI111 -> 10.5217593
B16: =Inputs!$B$232 -> Secondary System - SCADA, network control and protection systems - Non-Contestable | C16: =Inputs!$G$9 -> Real $2026 | D16: $Million | E16: =Inputs!X112 -> 0 | F16: =Inputs!Y112 -> 0 | G16: =Inputs!Z112 -> 0 | H16: =Inputs!AA112 -> 0 | I16: =Inputs!AB112 -> 0 | J16: =Inputs!AC112 -> 0 | K16: =Inputs!AD112 -> 0 | L16: =Inputs!AE112 -> 0 | M16: =Inputs!AF112 -> 0 | N16: =Inputs!AG112 -> 0 | O16: 0 | Q16: =Inputs!I232 -> No | S16: =Inputs!C232 -> Secondary System | T16: =Inputs!D232 -> SCADA, network control and protection systems | V16: =_xlfn.XLOOKUP($T16,Inputs!$B$251:$B$264,Inputs!$C$251:$C$264) -> Ancillary equipment | AE16: =Inputs!BE112 -> 0 | AF16: =Inputs!BF112 -> 0 | AG16: =Inputs!BG112 -> 0 | AH16: =Inputs!BH112 -> 0 | AI16: =Inputs!BI112 -> 0
B17: =Inputs!$B$233 -> Land & Easements - Other - Non-Contestable | C17: =Inputs!$G$9 -> Real $2026 | D17: $Million | E17: =Inputs!X113 -> 0 | F17: =Inputs!Y113 -> 0 | G17: =Inputs!Z113 -> 0 | H17: =Inputs!AA113 -> 0 | I17: =Inputs!AB113 -> 0.04828081429 | J17: =Inputs!AC113 -> 0 | K17: =Inputs!AD113 -> 0 | L17: =Inputs!AE113 -> 0 | M17: =Inputs!AF113 -> 0 | N17: =Inputs!AG113 -> 0 | O17: 0.04828081429 | Q17: =Inputs!I233 -> No | S17: =Inputs!C233 -> Land & Easements | T17: =Inputs!D233 -> Other | V17: =_xlfn.XLOOKUP($T17,Inputs!$B$251:$B$264,Inputs!$C$251:$C$264) -> Other (Including non-network capital costs) | AE17: =Inputs!BE113 -> 0 | AF17: =Inputs!BF113 -> 0 | AG17: =Inputs!BG113 -> 0 | AH17: =Inputs!BH113 -> 0 | AI17: =Inputs!BI113 -> 0
B18: =Inputs!$B$234 -> Minor Plant, Motor Vehicles & Mobile Plant - Motor Vehicles - Non-Contestable | C18: =Inputs!$G$9 -> Real $2026 | D18: $Million | E18: =Inputs!X114 -> 0 | F18: =Inputs!Y114 -> 0 | G18: =Inputs!Z114 -> 0 | H18: =Inputs!AA114 -> 0 | I18: =Inputs!AB114 -> 0.5696736321 | J18: =Inputs!AC114 -> 0 | K18: =Inputs!AD114 -> 0 | L18: =Inputs!AE114 -> 0 | M18: =Inputs!AF114 -> 0 | N18: =Inputs!AG114 -> 0 | O18: 0.5696736321 | Q18: =Inputs!I234 -> No | S18: =Inputs!C234 -> Minor Plant, Motor Vehicles & Mobile Plant | T18: =Inputs!D234 -> Motor Vehicles | V18: =_xlfn.XLOOKUP($T18,Inputs!$B$251:$B$264,Inputs!$C$251:$C$264) -> Other (Including non-network capital costs) | AE18: =Inputs!BE114 -> 0 | AF18: =Inputs!BF114 -> 0 | AG18: =Inputs!BG114 -> 0 | AH18: =Inputs!BH114 -> 0 | AI18: =Inputs!BI114 -> 0
B19: =Inputs!$B$235 -> Buildings - capital works - Buildings and Property - Contestable | C19: =Inputs!$G$9 -> Real $2026 | D19: $Million | E19: =Inputs!X115 -> 0 | F19: =Inputs!Y115 -> 0 | G19: =Inputs!Z115 -> 0 | H19: =Inputs!AA115 -> 0 | I19: =Inputs!AB115 -> 13.97418175 | J19: =Inputs!AC115 -> 16.1425159 | K19: =Inputs!AD115 -> 25.50286566 | L19: =Inputs!AE115 -> 5.095090387 | M19: =Inputs!AF115 -> 0 | N19: =Inputs!AG115 -> 0 | O19: 60.7146537 | Q19: =Inputs!I235 -> Yes | S19: =Inputs!C235 -> Buildings - capital works | T19: =Inputs!D235 -> Buildings and Property | V19: =_xlfn.XLOOKUP($T19,Inputs!$B$251:$B$264,Inputs!$C$251:$C$264) -> Other (Including non-network capital costs) | AE19: =Inputs!BE115 -> 0 | AF19: =Inputs!BF115 -> 0 | AG19: =Inputs!BG115 -> 0 | AH19: =Inputs!BH115 -> 0 | AI19: =Inputs!BI115 -> 13.08669872
B20: =Inputs!$B$236 -> Buildings - capital works - Buildings and Property - Non-Contestable | C20: =Inputs!$G$9 -> Real $2026 | D20: $Million | E20: =Inputs!X116 -> 0 | F20: =Inputs!Y116 -> 0 | G20: =Inputs!Z116 -> 0 | H20: =Inputs!AA116 -> 0 | I20: =Inputs!AB116 -> 0 | J20: =Inputs!AC116 -> 0 | K20: =Inputs!AD116 -> 0 | L20: =Inputs!AE116 -> 7.278313857 | M20: =Inputs!AF116 -> 0 | N20: =Inputs!AG116 -> 0 | O20: 7.278313857 | Q20: =Inputs!I236 -> No | S20: =Inputs!C236 -> Buildings - capital works | T20: =Inputs!D236 -> Buildings and Property | V20: =_xlfn.XLOOKUP($T20,Inputs!$B$251:$B$264,Inputs!$C$251:$C$264) -> Other (Including non-network capital costs) | AE20: =Inputs!BE116 -> 0 | AF20: =Inputs!BF116 -> 0 | AG20: =Inputs!BG116 -> 0 | AH20: =Inputs!BH116 -> 0 | AI20: =Inputs!BI116 -> 0
B21: Sub-Total | C21: =Inputs!$G$9 -> Real $2026 | D21: $Million | E21: =SUM(E7:E20) -> 0 | F21: 0 | G21: 0 | H21: 0 | I21: 232.9368616 | J21: 387.0759689 | K21: 287.2893981 | L21: 55.11839294 | M21: 0 | N21: 0 | O21: 962.4206215 | AE21: =SUM(AE7:AE20) -> 0 | AF21: =SUM(AF7:AF20) -> 0 | AG21: =SUM(AG7:AG20) -> 0 | AH21: =SUM(AH7:AH20) -> 0 | AI21: =SUM(AI7:AI20) -> 135.4407936
B23: Direct Labour Costs | X23: ← This value is pro-rated over the escalated capital forecast by year and asset class
B24: =Inputs!$B$221 -> Synchronous Condensers - Synchronous Condensers - Contestable | C24: =Inputs!$G$9 -> Real $2026 | D24: $Million | E24: =IFERROR(Inputs!L$163*IF(E$21=0,$O7/$O$21,E7/E$21),0) -> 0 | F24: =IFERROR(Inputs!M$163*IF(F$21=0,$O7/$O$21,F7/F$21),0) -> 0.9108984316 | G24: =IFERROR(Inputs!N$163*IF(G$21=0,$O7/$O$21,G7/G$21),0) -> 1.674847701 | H24: =IFERROR(Inputs!O$163*IF(H$21=0,$O7/$O$21,H7/H$21),0) -> 4.853896235 | I24: =IFERROR(Inputs!P$163*IF(I$21=0,$O7/$O$21,I7/I$21),0) -> 15.86090464 | J24: =IFERROR(Inputs!Q$163*IF(J$21=0,$O7/$O$21,J7/J$21),0) -> 25.13872537 | K24: =IFERROR(Inputs!R$163*IF(K$21=0,$O7/$O$21,K7/K$21),0) -> 22.82711574 | L24: =IFERROR(Inputs!S$163*IF(L$21=0,$O7/$O$21,L7/L$21),0) -> 5.103852992 | M24: =IFERROR(Inputs!T$163*IF(M$21=0,$O7/$O$21,M7/M$21),0) -> 0 | N24: =IFERROR(Inputs!U$163*IF(N$21=0,$O7/$O$21,N7/N$21),0) -> 0 | O24: =SUM(E24:N24) -> 76.3702411 | Q24: No | S24: =S7 -> Synchronous Condensers | T24: Synchronous Condensers | V24: =_xlfn.XLOOKUP($T24,Inputs!$B$251:$B$264,Inputs!$C$251:$C$264) -> Synchronous Condenser | AE24: =IFERROR(Inputs!BE$159*IF(AE$21=0,$O7/$O$21,AE7/AE$21),0) -> 0 | AF24: =IFERROR(Inputs!BF$159*IF(AF$21=0,$O7/$O$21,AF7/AF$21),0) -> 0.6268497389 | AG24: =IFERROR(Inputs!BG$159*IF(AG$21=0,$O7/$O$21,AG7/AG$21),0) -> 1.077275294 | AH24: =IFERROR(Inputs!BH$159*IF(AH$21=0,$O7/$O$21,AH7/AH$21),0) -> 4.193330372 | AI24: =IFERROR(Inputs!BI$159*IF(AI$21=0,$O7/$O$21,AI7/AI$21),0) -> 10.32619138
B25: =Inputs!$B$222 -> Synchronous Condensers - Other - Non-Contestable | C25: =Inputs!$G$9 -> Real $2026 | D25: $Million | E25: =IFERROR(Inputs!L$163*IF(E$21=0,$O8/$O$21,E8/E$21),0) -> 0 | F25: =IFERROR(Inputs!M$163*IF(F$21=0,$O8/$O$21,F8/F$21),0) -> 0.01188163393 | G25: =IFERROR(Inputs!N$163*IF(G$21=0,$O8/$O$21,G8/G$21),0) -> 0.0218464832 | H25: =IFERROR(Inputs!O$163*IF(H$21=0,$O8/$O$21,H8/H$21),0) -> 0.06331355529 | I25: =IFERROR(Inputs!P$163*IF(I$21=0,$O8/$O$21,I8/I$21),0) -> 0.2261231245 | J25: =IFERROR(Inputs!Q$163*IF(J$21=0,$O8/$O$21,J8/J$21),0) -> 0.1990595729 | K25: =IFERROR(Inputs!R$163*IF(K$21=0,$O8/$O$21,K8/K$21),0) -> 0.2464051412 | L25: =IFERROR(Inputs!S$163*IF(L$21=0,$O8/$O$21,L8/L$21),0) -> 0.3385290773 | M25: =IFERROR(Inputs!T$163*IF(M$21=0,$O8/$O$21,M8/M$21),0) -> 0 | N25: =IFERROR(Inputs!U$163*IF(N$21=0,$O8/$O$21,N8/N$21),0) -> 0 | O25: 1.107158588 | Q25: No | S25: Synchronous Condensers | T25: Other | V25: =_xlfn.XLOOKUP($T25,Inputs!$B$251:$B$264,Inputs!$C$251:$C$264) -> Other (Including non-network capital costs) | AE25: =IFERROR(Inputs!BE$159*IF(AE$21=0,$O8/$O$21,AE8/AE$21),0) -> 0 | AF25: =IFERROR(Inputs!BF$159*IF(AF$21=0,$O8/$O$21,AF8/AF$21),0) -> 0.00817654183 | AG25: =IFERROR(Inputs!BG$159*IF(AG$21=0,$O8/$O$21,AG8/AG$21),0) -> 0.01405183086 | AH25: =IFERROR(Inputs!BH$159*IF(AH$21=0,$O8/$O$21,AH8/AH$21),0) -> 0.05469722498 | AI25: =IFERROR(Inputs!BI$159*IF(AI$21=0,$O8/$O$21,AI8/AI$21),0) -> 0
B26: =Inputs!$B$223 -> Transmission Lines - Transmission towers - Contestable | C26: =Inputs!$G$9 -> Real $2026 | D26: $Million | E26: =IFERROR(Inputs!L$163*IF(E$21=0,$O9/$O$21,E9/E$21),0) -> 0 | F26: =IFERROR(Inputs!M$163*IF(F$21=0,$O9/$O$21,F9/F$21),0) -> 0.02185408622 | G26: =IFERROR(Inputs!N$163*IF(G$21=0,$O9/$O$21,G9/G$21),0) -> 0.04018259864 | H26: =IFERROR(Inputs!O$163*IF(H$21=0,$O9/$O$21,H9/H$21),0) -> 0.1164536716 | I26: =IFERROR(Inputs!P$163*IF(I$21=0,$O9/$O$21,I9/I$21),0) -> 0.3707123138 | J26: =IFERROR(Inputs!Q$163*IF(J$21=0,$O9/$O$21,J9/J$21),0) -> 0.9020306697 | K26: =IFERROR(Inputs!R$163*IF(K$21=0,$O9/$O$21,K9/K$21),0) -> 0.2660316682 | L26: =IFERROR(Inputs!S$163*IF(L$21=0,$O9/$O$21,L9/L$21),0) -> 0 | M26: =IFERROR(Inputs!T$163*IF(M$21=0,$O9/$O$21,M9/M$21),0) -> 0 | N26: =IFERROR(Inputs!U$163*IF(N$21=0,$O9/$O$21,N9/N$21),0) -> 0 | O26: 1.717265008 | Q26: No | S26: Transmission Lines | T26: Transmission towers | V26: =_xlfn.XLOOKUP($T26,Inputs!$B$251:$B$264,Inputs!$C$251:$C$264) -> Towers - new infrastructure | AE26: =IFERROR(Inputs!BE$159*IF(AE$21=0,$O9/$O$21,AE9/AE$21),0) -> 0 | AF26: =IFERROR(Inputs!BF$159*IF(AF$21=0,$O9/$O$21,AF9/AF$21),0) -> 0.01503924891 | AG26: =IFERROR(Inputs!BG$159*IF(AG$21=0,$O9/$O$21,AG9/AG$21),0) -> 0.02584576539 | AH26: =IFERROR(Inputs!BH$159*IF(AH$21=0,$O9/$O$21,AH9/AH$21),0) -> 0.1006055125 | AI26: =IFERROR(Inputs!BI$159*IF(AI$21=0,$O9/$O$21,AI9/AI$21),0) -> 0.0817017788
B27: =Inputs!$B$224 -> Transmission Lines - Transmission Tower support structures - Contestable | C27: =Inputs!$G$9 -> Real $2026 | D27: $Million | E27: =IFERROR(Inputs!L$163*IF(E$21=0,$O10/$O$21,E10/E$21),0) -> 0 | F27: =IFERROR(Inputs!M$163*IF(F$21=0,$O10/$O$21,F10/F$21),0) -> 0.002830428632 | G27: =IFERROR(Inputs!N$163*IF(G$21=0,$O10/$O$21,G10/G$21),0) -> 0.005204243111 | H27: =IFERROR(Inputs!O$163*IF(H$21=0,$O10/$O$21,H10/H$21),0) -> 0.01508247945 | I27: =IFERROR(Inputs!P$163*IF(I$21=0,$O10/$O$21,I10/I$21),0) -> 0.04801274856 | J27: =IFERROR(Inputs!Q$163*IF(J$21=0,$O10/$O$21,J10/J$21),0) -> 0.1168263641 | K27: =IFERROR(Inputs!R$163*IF(K$21=0,$O10/$O$21,K10/K$21),0) -> 0.03445505078 | L27: =IFERROR(Inputs!S$163*IF(L$21=0,$O10/$O$21,L10/L$21),0) -> 0 | M27: =IFERROR(Inputs!T$163*IF(M$21=0,$O10/$O$21,M10/M$21),0) -> 0 | N27: =IFERROR(Inputs!U$163*IF(N$21=0,$O10/$O$21,N10/N$21),0) -> 0 | O27: 0.2224113146 | Q27: No | S27: Transmission Lines | T27: Transmission Tower support structures | V27: =_xlfn.XLOOKUP($T27,Inputs!$B$251:$B$264,Inputs!$C$251:$C$264) -> Towers - new infrastructure | AE27: =IFERROR(Inputs!BE$159*IF(AE$21=0,$O10/$O$21,AE10/AE$21),0) -> 0 | AF27: =IFERROR(Inputs!BF$159*IF(AF$21=0,$O10/$O$21,AF10/AF$21),0) -> 0.00194780602 | AG27: =IFERROR(Inputs!BG$159*IF(AG$21=0,$O10/$O$21,AG10/AG$21),0) -> 0.003347410348 | AH27: =IFERROR(Inputs!BH$159*IF(AH$21=0,$O10/$O$21,AH10/AH$21),0) -> 0.01302990755 | AI27: =IFERROR(Inputs!BI$159*IF(AI$21=0,$O10/$O$21,AI10/AI$21),0) -> 0.01058159337
B28: =Inputs!$B$225 -> Transmission Lines - Conductors - Contestable | C28: =Inputs!$G$9 -> Real $2026 | D28: $Million | E28: =IFERROR(Inputs!L$163*IF(E$21=0,$O11/$O$21,E11/E$21),0) -> 0 | F28: =IFERROR(Inputs!M$163*IF(F$21=0,$O11/$O$21,F11/F$21),0) -> 0.01201493548 | G28: =IFERROR(Inputs!N$163*IF(G$21=0,$O11/$O$21,G11/G$21),0) -> 0.02209158164 | H28: =IFERROR(Inputs!O$163*IF(H$21=0,$O11/$O$21,H11/H$21),0) -> 0.06402387802 | I28: =IFERROR(Inputs!P$163*IF(I$21=0,$O11/$O$21,I11/I$21),0) -> 0.2038101472 | J28: =IFERROR(Inputs!Q$163*IF(J$21=0,$O11/$O$21,J11/J$21),0) -> 0.4959182546 | K28: =IFERROR(Inputs!R$163*IF(K$21=0,$O11/$O$21,K11/K$21),0) -> 0.1462588413 | L28: =IFERROR(Inputs!S$163*IF(L$21=0,$O11/$O$21,L11/L$21),0) -> 0 | M28: =IFERROR(Inputs!T$163*IF(M$21=0,$O11/$O$21,M11/M$21),0) -> 0 | N28: =IFERROR(Inputs!U$163*IF(N$21=0,$O11/$O$21,N11/N$21),0) -> 0 | O28: 0.9441176382 | Q28: No | S28: Transmission Lines | T28: Conductors | V28: =_xlfn.XLOOKUP($T28,Inputs!$B$251:$B$264,Inputs!$C$251:$C$264) -> Transmission lines - new infrastructure | AE28: =IFERROR(Inputs!BE$159*IF(AE$21=0,$O11/$O$21,AE11/AE$21),0) -> 0 | AF28: =IFERROR(Inputs!BF$159*IF(AF$21=0,$O11/$O$21,AF11/AF$21),0) -> 0.008268275479 | AG28: =IFERROR(Inputs!BG$159*IF(AG$21=0,$O11/$O$21,AG11/AG$21),0) -> 0.01420948011 | AH28: =IFERROR(Inputs!BH$159*IF(AH$21=0,$O11/$O$21,AH11/AH$21),0) -> 0.05531088002 | AI28: =IFERROR(Inputs!BI$159*IF(AI$21=0,$O11/$O$21,AI11/AI$21),0) -> 0.04491798882
B29: =Inputs!$B$227 -> Substations - Substation switchbays - Contestable | C29: =Inputs!$G$9 -> Real $2026 | D29: $Million | E29: =IFERROR(Inputs!L$163*IF(E$21=0,$O12/$O$21,E12/E$21),0) -> 0 | F29: =IFERROR(Inputs!M$163*IF(F$21=0,$O12/$O$21,F12/F$21),0) -> 0.156805897 | G29: =IFERROR(Inputs!N$163*IF(G$21=0,$O12/$O$21,G12/G$21),0) -> 0.2883153457 | H29: =IFERROR(Inputs!O$163*IF(H$21=0,$O12/$O$21,H12/H$21),0) -> 0.8355701653 | I29: =IFERROR(Inputs!P$163*IF(I$21=0,$O12/$O$21,I12/I$21),0) -> 2.636394204 | J29: =IFERROR(Inputs!Q$163*IF(J$21=0,$O12/$O$21,J12/J$21),0) -> 3.527568719 | K29: =IFERROR(Inputs!R$163*IF(K$21=0,$O12/$O$21,K12/K$21),0) -> 4.79763888 | L29: =IFERROR(Inputs!S$163*IF(L$21=0,$O12/$O$21,L12/L$21),0) -> 1.240932846 | M29: =IFERROR(Inputs!T$163*IF(M$21=0,$O12/$O$21,M12/M$21),0) -> 0 | N29: =IFERROR(Inputs!U$163*IF(N$21=0,$O12/$O$21,N12/N$21),0) -> 0 | O29: 13.48322606 | Q29: No | S29: Substations | T29: Substation switchbays | V29: =_xlfn.XLOOKUP($T29,Inputs!$B$251:$B$264,Inputs!$C$251:$C$264) -> Substation(s) | AE29: =IFERROR(Inputs!BE$159*IF(AE$21=0,$O12/$O$21,AE12/AE$21),0) -> 0 | AF29: =IFERROR(Inputs!BF$159*IF(AF$21=0,$O12/$O$21,AF12/AF$21),0) -> 0.1079085573 | AG29: =IFERROR(Inputs!BG$159*IF(AG$21=0,$O12/$O$21,AG12/AG$21),0) -> 0.1854467117 | AH29: =IFERROR(Inputs!BH$159*IF(AH$21=0,$O12/$O$21,AH12/AH$21),0) -> 0.7218575723 | AI29: =IFERROR(Inputs!BI$159*IF(AI$21=0,$O12/$O$21,AI12/AI$21),0) -> 2.39889831
B30: =Inputs!$B$228 -> Substations - Substation switchbays - Non-Contestable | C30: =Inputs!$G$9 -> Real $2026 | D30: $Million | E30: =IFERROR(Inputs!L$163*IF(E$21=0,$O13/$O$21,E13/E$21),0) -> 0 | F30: =IFERROR(Inputs!M$163*IF(F$21=0,$O13/$O$21,F13/F$21),0) -> 0.0160315645 | G30: =IFERROR(Inputs!N$163*IF(G$21=0,$O13/$O$21,G13/G$21),0) -> 0.02947686374 | H30: =IFERROR(Inputs!O$163*IF(H$21=0,$O13/$O$21,H13/H$21),0) -> 0.08542725275 | I30: =IFERROR(Inputs!P$163*IF(I$21=0,$O13/$O$21,I13/I$21),0) -> 1.024207437 | J30: =IFERROR(Inputs!Q$163*IF(J$21=0,$O13/$O$21,J13/J$21),0) -> 0.1049556511 | K30: =IFERROR(Inputs!R$163*IF(K$21=0,$O13/$O$21,K13/K$21),0) -> 0.03324968466 | L30: =IFERROR(Inputs!S$163*IF(L$21=0,$O13/$O$21,L13/L$21),0) -> 0 | M30: =IFERROR(Inputs!T$163*IF(M$21=0,$O13/$O$21,M13/M$21),0) -> 0 | N30: =IFERROR(Inputs!U$163*IF(N$21=0,$O13/$O$21,N13/N$21),0) -> 0 | O30: 1.293348453 | Q30: No | S30: Substations | T30: Substation switchbays | V30: =_xlfn.XLOOKUP($T30,Inputs!$B$251:$B$264,Inputs!$C$251:$C$264) -> Substation(s) | AE30: =IFERROR(Inputs!BE$159*IF(AE$21=0,$O13/$O$21,AE13/AE$21),0) -> 0 | AF30: =IFERROR(Inputs!BF$159*IF(AF$21=0,$O13/$O$21,AF13/AF$21),0) -> 0.01103238481 | AG30: =IFERROR(Inputs!BG$159*IF(AG$21=0,$O13/$O$21,AG13/AG$21),0) -> 0.018959752 | AH30: =IFERROR(Inputs!BH$159*IF(AH$21=0,$O13/$O$21,AH13/AH$21),0) -> 0.07380147335 | AI30: =IFERROR(Inputs!BI$159*IF(AI$21=0,$O13/$O$21,AI13/AI$21),0) -> 0.5695689439
B31: =Inputs!$B$229 -> Substations - Substation power transformers - Contestable | C31: =Inputs!$G$9 -> Real $2026 | D31: $Million | E31: =IFERROR(Inputs!L$163*IF(E$21=0,$O14/$O$21,E14/E$21),0) -> 0 | F31: =IFERROR(Inputs!M$163*IF(F$21=0,$O14/$O$21,F14/F$21),0) -> 0.08296037984 | G31: =IFERROR(Inputs!N$163*IF(G$21=0,$O14/$O$21,G14/G$21),0) -> 0.1525373155 | H31: =IFERROR(Inputs!O$163*IF(H$21=0,$O14/$O$21,H14/H$21),0) -> 0.4420702258 | I31: =IFERROR(Inputs!P$163*IF(I$21=0,$O14/$O$21,I14/I$21),0) -> 1.398159989 | J31: =IFERROR(Inputs!Q$163*IF(J$21=0,$O14/$O$21,J14/J$21),0) -> 2.284349897 | K31: =IFERROR(Inputs!R$163*IF(K$21=0,$O14/$O$21,K14/K$21),0) -> 2.12813953 | L31: =IFERROR(Inputs!S$163*IF(L$21=0,$O14/$O$21,L14/L$21),0) -> 0.4803611018 | M31: =IFERROR(Inputs!T$163*IF(M$21=0,$O14/$O$21,M14/M$21),0) -> 0 | N31: =IFERROR(Inputs!U$163*IF(N$21=0,$O14/$O$21,N14/N$21),0) -> 0 | O31: 6.968578439 | Q31: No | S31: Substations | T31: Substation power transformers | V31: =_xlfn.XLOOKUP($T31,Inputs!$B$251:$B$264,Inputs!$C$251:$C$264) -> Substation(s) | AE31: =IFERROR(Inputs!BE$159*IF(AE$21=0,$O14/$O$21,AE14/AE$21),0) -> 0 | AF31: =IFERROR(Inputs!BF$159*IF(AF$21=0,$O14/$O$21,AF14/AF$21),0) -> 0.05709054998 | AG31: =IFERROR(Inputs!BG$159*IF(AG$21=0,$O14/$O$21,AG14/AG$21),0) -> 0.09811320832 | AH31: =IFERROR(Inputs!BH$159*IF(AH$21=0,$O14/$O$21,AH14/AH$21),0) -> 0.3819089686 | AI31: =IFERROR(Inputs!BI$159*IF(AI$21=0,$O14/$O$21,AI14/AI$21),0) -> 1.011830036
B32: =Inputs!$B$231 -> Secondary System - SCADA, network control and protection systems - Contestable | C32: =Inputs!$G$9 -> Real $2026 | D32: $Million | E32: =IFERROR(Inputs!L$163*IF(E$21=0,$O15/$O$21,E15/E$21),0) -> 0 | F32: =IFERROR(Inputs!M$163*IF(F$21=0,$O15/$O$21,F15/F$21),0) -> 0.1445248131 | G32: =IFERROR(Inputs!N$163*IF(G$21=0,$O15/$O$21,G15/G$21),0) -> 0.2657344031 | H32: =IFERROR(Inputs!O$163*IF(H$21=0,$O15/$O$21,H15/H$21),0) -> 0.7701280644 | I32: =IFERROR(Inputs!P$163*IF(I$21=0,$O15/$O$21,I15/I$21),0) -> 2.44096448 | J32: =IFERROR(Inputs!Q$163*IF(J$21=0,$O15/$O$21,J15/J$21),0) -> 4.635455706 | K32: =IFERROR(Inputs!R$163*IF(K$21=0,$O15/$O$21,K15/K$21),0) -> 3.063944613 | L32: =IFERROR(Inputs!S$163*IF(L$21=0,$O15/$O$21,L15/L$21),0) -> 0.5604212854 | M32: =IFERROR(Inputs!T$163*IF(M$21=0,$O15/$O$21,M15/M$21),0) -> 0 | N32: =IFERROR(Inputs!U$163*IF(N$21=0,$O15/$O$21,N15/N$21),0) -> 0 | O32: 11.88117336 | Q32: No | S32: Secondary System | T32: SCADA, network control and protection systems | V32: =_xlfn.XLOOKUP($T32,Inputs!$B$251:$B$264,Inputs!$C$251:$C$264) -> Ancillary equipment | AE32: =IFERROR(Inputs!BE$159*IF(AE$21=0,$O15/$O$21,AE15/AE$21),0) -> 0 | AF32: =IFERROR(Inputs!BF$159*IF(AF$21=0,$O15/$O$21,AF15/AF$21),0) -> 0.09945712737 | AG32: =IFERROR(Inputs!BG$159*IF(AG$21=0,$O15/$O$21,AG15/AG$21),0) -> 0.1709224707 | AH32: =IFERROR(Inputs!BH$159*IF(AH$21=0,$O15/$O$21,AH15/AH$21),0) -> 0.6653214752 | AI32: =IFERROR(Inputs!BI$159*IF(AI$21=0,$O15/$O$21,AI15/AI$21),0) -> 1.358936385
B33: =Inputs!$B$232 -> Secondary System - SCADA, network control and protection systems - Non-Contestable | C33: =Inputs!$G$9 -> Real $2026 | D33: $Million | E33: =IFERROR(Inputs!L$163*IF(E$21=0,$O16/$O$21,E16/E$21),0) -> 0 | F33: =IFERROR(Inputs!M$163*IF(F$21=0,$O16/$O$21,F16/F$21),0) -> 0 | G33: =IFERROR(Inputs!N$163*IF(G$21=0,$O16/$O$21,G16/G$21),0) -> 0 | H33: =IFERROR(Inputs!O$163*IF(H$21=0,$O16/$O$21,H16/H$21),0) -> 0 | I33: =IFERROR(Inputs!P$163*IF(I$21=0,$O16/$O$21,I16/I$21),0) -> 0 | J33: =IFERROR(Inputs!Q$163*IF(J$21=0,$O16/$O$21,J16/J$21),0) -> 0 | K33: =IFERROR(Inputs!R$163*IF(K$21=0,$O16/$O$21,K16/K$21),0) -> 0 | L33: =IFERROR(Inputs!S$163*IF(L$21=0,$O16/$O$21,L16/L$21),0) -> 0 | M33: =IFERROR(Inputs!T$163*IF(M$21=0,$O16/$O$21,M16/M$21),0) -> 0 | N33: =IFERROR(Inputs!U$163*IF(N$21=0,$O16/$O$21,N16/N$21),0) -> 0 | O33: 0 | Q33: No | S33: Secondary System | T33: SCADA, network control and protection systems | V33: =_xlfn.XLOOKUP($T33,Inputs!$B$251:$B$264,Inputs!$C$251:$C$264) -> Ancillary equipment | AE33: =IFERROR(Inputs!BE$159*IF(AE$21=0,$O16/$O$21,AE16/AE$21),0) -> 0 | AF33: =IFERROR(Inputs!BF$159*IF(AF$21=0,$O16/$O$21,AF16/AF$21),0) -> 0 | AG33: =IFERROR(Inputs!BG$159*IF(AG$21=0,$O16/$O$21,AG16/AG$21),0) -> 0 | AH33: =IFERROR(Inputs!BH$159*IF(AH$21=0,$O16/$O$21,AH16/AH$21),0) -> 0 | AI33: =IFERROR(Inputs!BI$159*IF(AI$21=0,$O16/$O$21,AI16/AI$21),0) -> 0
B34: =Inputs!$B$233 -> Land & Easements - Other - Non-Contestable | C34: =Inputs!$G$9 -> Real $2026 | D34: $Million | E34: =IFERROR(Inputs!L$163*IF(E$21=0,$O17/$O$21,E17/E$21),0) -> 0 | F34: =IFERROR(Inputs!M$163*IF(F$21=0,$O17/$O$21,F17/F$21),0) -> 7.345227524e-05 | G34: =IFERROR(Inputs!N$163*IF(G$21=0,$O17/$O$21,G17/G$21),0) -> 0.0001350549854 | H34: =IFERROR(Inputs!O$163*IF(H$21=0,$O17/$O$21,H17/H$21),0) -> 0.0003914044748 | I34: =IFERROR(Inputs!P$163*IF(I$21=0,$O17/$O$21,I17/I$21),0) -> 0.005353205525 | J34: =IFERROR(Inputs!Q$163*IF(J$21=0,$O17/$O$21,J17/J$21),0) -> 0 | K34: =IFERROR(Inputs!R$163*IF(K$21=0,$O17/$O$21,K17/K$21),0) -> 0 | L34: =IFERROR(Inputs!S$163*IF(L$21=0,$O17/$O$21,L17/L$21),0) -> 0 | M34: =IFERROR(Inputs!T$163*IF(M$21=0,$O17/$O$21,M17/M$21),0) -> 0 | N34: =IFERROR(Inputs!U$163*IF(N$21=0,$O17/$O$21,N17/N$21),0) -> 0 | O34: 0.005953117261 | Q34: No | S34: Land & Easements | T34: Other | V34: =_xlfn.XLOOKUP($T34,Inputs!$B$251:$B$264,Inputs!$C$251:$C$264) -> Other (Including non-network capital costs) | AE34: =IFERROR(Inputs!BE$159*IF(AE$21=0,$O17/$O$21,AE17/AE$21),0) -> 0 | AF34: =IFERROR(Inputs!BF$159*IF(AF$21=0,$O17/$O$21,AF17/AF$21),0) -> 5.05473914e-05 | AG34: =IFERROR(Inputs!BG$159*IF(AG$21=0,$O17/$O$21,AG17/AG$21),0) -> 8.686843522e-05 | AH34: =IFERROR(Inputs!BH$159*IF(AH$21=0,$O17/$O$21,AH17/AH$21),0) -> 0.0003381383105 | AI34: =IFERROR(Inputs!BI$159*IF(AI$21=0,$O17/$O$21,AI17/AI$21),0) -> 0
B35: =Inputs!$B$234 -> Minor Plant, Motor Vehicles & Mobile Plant - Motor Vehicles - Non-Contestable | C35: =Inputs!$G$9 -> Real $2026 | D35: $Million | E35: =IFERROR(Inputs!L$163*IF(E$21=0,$O18/$O$21,E18/E$21),0) -> 0 | F35: =IFERROR(Inputs!M$163*IF(F$21=0,$O18/$O$21,F18/F$21),0) -> 0.0008666760294 | G35: =IFERROR(Inputs!N$163*IF(G$21=0,$O18/$O$21,G18/G$21),0) -> 0.001593537002 | H35: =IFERROR(Inputs!O$163*IF(H$21=0,$O18/$O$21,H18/H$21),0) -> 0.00461824872 | I35: =IFERROR(Inputs!P$163*IF(I$21=0,$O18/$O$21,I18/I$21),0) -> 0.06316339274 | J35: =IFERROR(Inputs!Q$163*IF(J$21=0,$O18/$O$21,J18/J$21),0) -> 0 | K35: =IFERROR(Inputs!R$163*IF(K$21=0,$O18/$O$21,K18/K$21),0) -> 0 | L35: =IFERROR(Inputs!S$163*IF(L$21=0,$O18/$O$21,L18/L$21),0) -> 0 | M35: =IFERROR(Inputs!T$163*IF(M$21=0,$O18/$O$21,M18/M$21),0) -> 0 | N35: =IFERROR(Inputs!U$163*IF(N$21=0,$O18/$O$21,N18/N$21),0) -> 0 | O35: 0.07024185449 | Q35: No | S35: Minor Plant, Motor Vehicles & Mobile Plant | T35: Motor Vehicles | V35: =_xlfn.XLOOKUP($T35,Inputs!$B$251:$B$264,Inputs!$C$251:$C$264) -> Other (Including non-network capital costs) | AE35: =IFERROR(Inputs!BE$159*IF(AE$21=0,$O18/$O$21,AE18/AE$21),0) -> 0 | AF35: =IFERROR(Inputs!BF$159*IF(AF$21=0,$O18/$O$21,AF18/AF$21),0) -> 0.0005964173653 | AG35: =IFERROR(Inputs!BG$159*IF(AG$21=0,$O18/$O$21,AG18/AG$21),0) -> 0.001024975609 | AH35: =IFERROR(Inputs!BH$159*IF(AH$21=0,$O18/$O$21,AH18/AH$21),0) -> 0.003989752085 | AI35: =IFERROR(Inputs!BI$159*IF(AI$21=0,$O18/$O$21,AI18/AI$21),0) -> 0
B36: =Inputs!$B$235 -> Buildings - capital works - Buildings and Property - Contestable | C36: =Inputs!$G$9 -> Real $2026 | D36: $Million | E36: =IFERROR(Inputs!L$163*IF(E$21=0,$O19/$O$21,E19/E$21),0) -> 0 | F36: =IFERROR(Inputs!M$163*IF(F$21=0,$O19/$O$21,F19/F$21),0) -> 0.09236856338 | G36: =IFERROR(Inputs!N$163*IF(G$21=0,$O19/$O$21,G19/G$21),0) -> 0.1698359232 | H36: =IFERROR(Inputs!O$163*IF(H$21=0,$O19/$O$21,H19/H$21),0) -> 0.4922035283 | I36: =IFERROR(Inputs!P$163*IF(I$21=0,$O19/$O$21,I19/I$21),0) -> 1.549407731 | J36: =IFERROR(Inputs!Q$163*IF(J$21=0,$O19/$O$21,J19/J$21),0) -> 1.627809598 | K36: =IFERROR(Inputs!R$163*IF(K$21=0,$O19/$O$21,K19/K$21),0) -> 3.267733883 | L36: =IFERROR(Inputs!S$163*IF(L$21=0,$O19/$O$21,L19/L$21),0) -> 0.9206921118 | M36: =IFERROR(Inputs!T$163*IF(M$21=0,$O19/$O$21,M19/M$21),0) -> 0 | N36: =IFERROR(Inputs!U$163*IF(N$21=0,$O19/$O$21,N19/N$21),0) -> 0 | O36: 8.120051338 | Q36: No | S36: Buildings - capital works | T36: Buildings and Property | V36: =_xlfn.XLOOKUP($T36,Inputs!$B$251:$B$264,Inputs!$C$251:$C$264) -> Other (Including non-network capital costs) | AE36: =IFERROR(Inputs!BE$159*IF(AE$21=0,$O19/$O$21,AE19/AE$21),0) -> 0 | AF36: =IFERROR(Inputs!BF$159*IF(AF$21=0,$O19/$O$21,AF19/AF$21),0) -> 0.06356494624 | AG36: =IFERROR(Inputs!BG$159*IF(AG$21=0,$O19/$O$21,AG19/AG$21),0) -> 0.1092398096 | AH36: =IFERROR(Inputs!BH$159*IF(AH$21=0,$O19/$O$21,AH19/AH$21),0) -> 0.425219639 | AI36: =IFERROR(Inputs!BI$159*IF(AI$21=0,$O19/$O$21,AI19/AI$21),0) -> 1.690210785
B37: =Inputs!$B$236 -> Buildings - capital works - Buildings and Property - Non-Contestable | C37: =Inputs!$G$9 -> Real $2026 | D37: $Million | E37: =IFERROR(Inputs!L$163*IF(E$21=0,$O20/$O$21,E20/E$21),0) -> 0 | F37: =IFERROR(Inputs!M$163*IF(F$21=0,$O20/$O$21,F20/F$21),0) -> 0.01107290174 | G37: =IFERROR(Inputs!N$163*IF(G$21=0,$O20/$O$21,G20/G$21),0) -> 0.02035948618 | H37: =IFERROR(Inputs!O$163*IF(H$21=0,$O20/$O$21,H20/H$21),0) -> 0.05900407138 | I37: =IFERROR(Inputs!P$163*IF(I$21=0,$O20/$O$21,I20/I$21),0) -> 0 | J37: =IFERROR(Inputs!Q$163*IF(J$21=0,$O20/$O$21,J20/J$21),0) -> 0 | K37: =IFERROR(Inputs!R$163*IF(K$21=0,$O20/$O$21,K20/K$21),0) -> 0 | L37: =IFERROR(Inputs!S$163*IF(L$21=0,$O20/$O$21,L20/L$21),0) -> 1.315204569 | M37: =IFERROR(Inputs!T$163*IF(M$21=0,$O20/$O$21,M20/M$21),0) -> 0 | N37: =IFERROR(Inputs!U$163*IF(N$21=0,$O20/$O$21,N20/N$21),0) -> 0 | O37: 1.405641028 | Q37: No | S37: Buildings - capital works | T37: Buildings and Property | V37: =_xlfn.XLOOKUP($T37,Inputs!$B$251:$B$264,Inputs!$C$251:$C$264) -> Other (Including non-network capital costs) | AE37: =IFERROR(Inputs!BE$159*IF(AE$21=0,$O20/$O$21,AE20/AE$21),0) -> 0 | AF37: =IFERROR(Inputs!BF$159*IF(AF$21=0,$O20/$O$21,AF20/AF$21),0) -> 0.00761999947 | AG37: =IFERROR(Inputs!BG$159*IF(AG$21=0,$O20/$O$21,AG20/AG$21),0) -> 0.01309538261 | AH37: =IFERROR(Inputs!BH$159*IF(AH$21=0,$O20/$O$21,AH20/AH$21),0) -> 0.05097421796 | AI37: =IFERROR(Inputs!BI$159*IF(AI$21=0,$O20/$O$21,AI20/AI$21),0) -> 0
B38: Sub-Total | C38: =Inputs!$G$9 -> Real $2026 | D38: $Million | E38: =SUM(E24:E37) -> 0 | F38: 1.464183764 | G38: 2.692160537 | H38: 7.80218278 | I38: 25.82721341 | J38: 39.0326998 | K38: 36.81097303 | L38: 9.959993984 | M38: 0 | N38: 0 | O38: 123.5894073 | AE38: =SUM(AE24:AE37) -> 0 | AF38: =SUM(AF24:AF37) -> 1.007602141 | AG38: =SUM(AG24:AG37) -> 1.73161896 | AH38: =SUM(AH24:AH37) -> 6.740385134 | AI38: =SUM(AI24:AI37) -> 17.4928372
B40: Indirect Costs | X40: ← This value is pro-rated over the escalated capital forecast (including direct labour costs) by year and asset class
B41: =Inputs!$B$221 -> Synchronous Condensers - Synchronous Condensers - Contestable | C41: =Inputs!$G$9 -> Real $2026 | D41: $Million | E41: =IFERROR(Inputs!L$207 *IF((E$21+E$38)=0,($O7+$O24)/($O$21+$O$38),(E7+E24)/(E$21+E$38)),0) -> 0 | F41: =IFERROR(Inputs!M$207 *IF((F$21+F$38)=0,($O7+$O24)/($O$21+$O$38),(F7+F24)/(F$21+F$38)),0) -> 1.042321732 | G41: =IFERROR(Inputs!N$207 *IF((G$21+G$38)=0,($O7+$O24)/($O$21+$O$38),(G7+G24)/(G$21+G$38)),0) -> 1.743118343 | H41: =IFERROR(Inputs!O$207 *IF((H$21+H$38)=0,($O7+$O24)/($O$21+$O$38),(H7+H24)/(H$21+H$38)),0) -> 7.79554662 | I41: =IFERROR(Inputs!P$207 *IF((I$21+I$38)=0,($O7+$O24)/($O$21+$O$38),(I7+I24)/(I$21+I$38)),0) -> 15.212934 | J41: =IFERROR(Inputs!Q$207 *IF((J$21+J$38)=0,($O7+$O24)/($O$21+$O$38),(J7+J24)/(J$21+J$38)),0) -> 14.53774644 | K41: =IFERROR(Inputs!R$207 *IF((K$21+K$38)=0,($O7+$O24)/($O$21+$O$38),(K7+K24)/(K$21+K$38)),0) -> 13.86864384 | L41: =IFERROR(Inputs!S$207 *IF((L$21+L$38)=0,($O7+$O24)/($O$21+$O$38),(L7+L24)/(L$21+L$38)),0) -> 3.520034014 | M41: =IFERROR(Inputs!T$207 *IF((M$21+M$38)=0,($O7+$O24)/($O$21+$O$38),(M7+M24)/(M$21+M$38)),0) -> 0 | N41: =IFERROR(Inputs!U$207 *IF((N$21+N$38)=0,($O7+$O24)/($O$21+$O$38),(N7+N24)/(N$21+N$38)),0) -> 0 | O41: =SUM(E41:N41) -> 57.72034499 | Q41: No | S41: =S24 -> Synchronous Condensers | T41: Synchronous Condensers | V41: =_xlfn.XLOOKUP($T41,Inputs!$B$251:$B$264,Inputs!$C$251:$C$264) -> Synchronous Condenser | AE41: =IFERROR(Inputs!BE$203 *IF((AE$21+AE$38)=0,($O7+$O24)/($O$21+$O$38),(AE7+AE24)/(AE$21+AE$38)),0) -> 0 | AF41: =IFERROR(Inputs!BF$203 *IF((AF$21+AF$38)=0,($O7+$O24)/($O$21+$O$38),(AF7+AF24)/(AF$21+AF$38)),0) -> 0.7928610571 | AG41: =IFERROR(Inputs!BG$203 *IF((AG$21+AG$38)=0,($O7+$O24)/($O$21+$O$38),(AG7+AG24)/(AG$21+AG$38)),0) -> 1.098368308 | AH41: =IFERROR(Inputs!BH$203 *IF((AH$21+AH$38)=0,($O7+$O24)/($O$21+$O$38),(AH7+AH24)/(AH$21+AH$38)),0) -> 6.878620045 | AI41: =IFERROR(Inputs!BI$203 *IF((AI$21+AI$38)=0,($O7+$O24)/($O$21+$O$38),(AI7+AI24)/(AI$21+AI$38)),0) -> 10.55042653
B42: =Inputs!$B$222 -> Synchronous Condensers - Other - Non-Contestable | C42: =Inputs!$G$9 -> Real $2026 | D42: $Million | E42: =IFERROR(Inputs!L$207 *IF((E$21+E$38)=0,($O8+$O25)/($O$21+$O$38),(E8+E25)/(E$21+E$38)),0) -> 0 | F42: =IFERROR(Inputs!M$207 *IF((F$21+F$38)=0,($O8+$O25)/($O$21+$O$38),(F8+F25)/(F$21+F$38)),0) -> 0.01359590139 | G42: =IFERROR(Inputs!N$207 *IF((G$21+G$38)=0,($O8+$O25)/($O$21+$O$38),(G8+G25)/(G$21+G$38)),0) -> 0.02273699607 | H42: =IFERROR(Inputs!O$207 *IF((H$21+H$38)=0,($O8+$O25)/($O$21+$O$38),(H8+H25)/(H$21+H$38)),0) -> 0.1016840386 | I42: =IFERROR(Inputs!P$207 *IF((I$21+I$38)=0,($O8+$O25)/($O$21+$O$38),(I8+I25)/(I$21+I$38)),0) -> 0.2168852437 | J42: =IFERROR(Inputs!Q$207 *IF((J$21+J$38)=0,($O8+$O25)/($O$21+$O$38),(J8+J25)/(J$21+J$38)),0) -> 0.1151163217 | K42: =IFERROR(Inputs!R$207 *IF((K$21+K$38)=0,($O8+$O25)/($O$21+$O$38),(K8+K25)/(K$21+K$38)),0) -> 0.1497037639 | L42: =IFERROR(Inputs!S$207 *IF((L$21+L$38)=0,($O8+$O25)/($O$21+$O$38),(L8+L25)/(L$21+L$38)),0) -> 0.2334773099 | M42: =IFERROR(Inputs!T$207 *IF((M$21+M$38)=0,($O8+$O25)/($O$21+$O$38),(M8+M25)/(M$21+M$38)),0) -> 0 | N42: =IFERROR(Inputs!U$207 *IF((N$21+N$38)=0,($O8+$O25)/($O$21+$O$38),(N8+N25)/(N$21+N$38)),0) -> 0 | O42: 0.8531995753 | Q42: No | S42: Synchronous Condensers | T42: Other | V42: =_xlfn.XLOOKUP($T42,Inputs!$B$251:$B$264,Inputs!$C$251:$C$264) -> Other (Including non-network capital costs) | AE42: =IFERROR(Inputs!BE$203 *IF((AE$21+AE$38)=0,($O8+$O25)/($O$21+$O$38),(AE8+AE25)/(AE$21+AE$38)),0) -> 0 | AF42: =IFERROR(Inputs!BF$203 *IF((AF$21+AF$38)=0,($O8+$O25)/($O$21+$O$38),(AF8+AF25)/(AF$21+AF$38)),0) -> 0.01034197065 | AG42: =IFERROR(Inputs!BG$203 *IF((AG$21+AG$38)=0,($O8+$O25)/($O$21+$O$38),(AG8+AG25)/(AG$21+AG$38)),0) -> 0.01432696524 | AH42: =IFERROR(Inputs!BH$203 *IF((AH$21+AH$38)=0,($O8+$O25)/($O$21+$O$38),(AH8+AH25)/(AH$21+AH$38)),0) -> 0.08972377437 | AI42: =IFERROR(Inputs!BI$203 *IF((AI$21+AI$38)=0,($O8+$O25)/($O$21+$O$38),(AI8+AI25)/(AI$21+AI$38)),0) -> 0
B43: =Inputs!$B$223 -> Transmission Lines - Transmission towers - Contestable | C43: =Inputs!$G$9 -> Real $2026 | D43: $Million | E43: =IFERROR(Inputs!L$207 *IF((E$21+E$38)=0,($O9+$O26)/($O$21+$O$38),(E9+E26)/(E$21+E$38)),0) -> 0 | F43: =IFERROR(Inputs!M$207 *IF((F$21+F$38)=0,($O9+$O26)/($O$21+$O$38),(F9+F26)/(F$21+F$38)),0) -> 0.02500716677 | G43: =IFERROR(Inputs!N$207 *IF((G$21+G$38)=0,($O9+$O26)/($O$21+$O$38),(G9+G26)/(G$21+G$38)),0) -> 0.04182053371 | H43: =IFERROR(Inputs!O$207 *IF((H$21+H$38)=0,($O9+$O26)/($O$21+$O$38),(H9+H26)/(H$21+H$38)),0) -> 0.1870291375 | I43: =IFERROR(Inputs!P$207 *IF((I$21+I$38)=0,($O9+$O26)/($O$21+$O$38),(I9+I26)/(I$21+I$38)),0) -> 0.3555674844 | J43: =IFERROR(Inputs!Q$207 *IF((J$21+J$38)=0,($O9+$O26)/($O$21+$O$38),(J9+J26)/(J$21+J$38)),0) -> 0.5216451099 | K43: =IFERROR(Inputs!R$207 *IF((K$21+K$38)=0,($O9+$O26)/($O$21+$O$38),(K9+K26)/(K$21+K$38)),0) -> 0.1616278859 | L43: =IFERROR(Inputs!S$207 *IF((L$21+L$38)=0,($O9+$O26)/($O$21+$O$38),(L9+L26)/(L$21+L$38)),0) -> 0 | M43: =IFERROR(Inputs!T$207 *IF((M$21+M$38)=0,($O9+$O26)/($O$21+$O$38),(M9+M26)/(M$21+M$38)),0) -> 0 | N43: =IFERROR(Inputs!U$207 *IF((N$21+N$38)=0,($O9+$O26)/($O$21+$O$38),(N9+N26)/(N$21+N$38)),0) -> 0 | O43: 1.292697318 | Q43: No | S43: Transmission Lines | T43: Transmission towers | V43: =_xlfn.XLOOKUP($T43,Inputs!$B$251:$B$264,Inputs!$C$251:$C$264) -> Towers - new infrastructure | AE43: =IFERROR(Inputs!BE$203 *IF((AE$21+AE$38)=0,($O9+$O26)/($O$21+$O$38),(AE9+AE26)/(AE$21+AE$38)),0) -> 0 | AF43: =IFERROR(Inputs!BF$203 *IF((AF$21+AF$38)=0,($O9+$O26)/($O$21+$O$38),(AF9+AF26)/(AF$21+AF$38)),0) -> 0.01902215802 | AG43: =IFERROR(Inputs!BG$203 *IF((AG$21+AG$38)=0,($O9+$O26)/($O$21+$O$38),(AG9+AG26)/(AG$21+AG$38)),0) -> 0.02635182462 | AH43: =IFERROR(Inputs!BH$203 *IF((AH$21+AH$38)=0,($O9+$O26)/($O$21+$O$38),(AH9+AH26)/(AH$21+AH$38)),0) -> 0.1650304253 | AI43: =IFERROR(Inputs!BI$203 *IF((AI$21+AI$38)=0,($O9+$O26)/($O$21+$O$38),(AI9+AI26)/(AI$21+AI$38)),0) -> 0.08347594798
B44: =Inputs!$B$224 -> Transmission Lines - Transmission Tower support structures - Contestable | C44: =Inputs!$G$9 -> Real $2026 | D44: $Million | E44: =IFERROR(Inputs!L$207 *IF((E$21+E$38)=0,($O10+$O27)/($O$21+$O$38),(E10+E27)/(E$21+E$38)),0) -> 0 | F44: =IFERROR(Inputs!M$207 *IF((F$21+F$38)=0,($O10+$O27)/($O$21+$O$38),(F10+F27)/(F$21+F$38)),0) -> 0.003238799376 | G44: =IFERROR(Inputs!N$207 *IF((G$21+G$38)=0,($O10+$O27)/($O$21+$O$38),(G10+G27)/(G$21+G$38)),0) -> 0.005416380021 | H44: =IFERROR(Inputs!O$207 *IF((H$21+H$38)=0,($O10+$O27)/($O$21+$O$38),(H10+H27)/(H$21+H$38)),0) -> 0.02422305011 | I44: =IFERROR(Inputs!P$207 *IF((I$21+I$38)=0,($O10+$O27)/($O$21+$O$38),(I10+I27)/(I$21+I$38)),0) -> 0.0460512683 | J44: =IFERROR(Inputs!Q$207 *IF((J$21+J$38)=0,($O10+$O27)/($O$21+$O$38),(J10+J27)/(J$21+J$38)),0) -> 0.06756078654 | K44: =IFERROR(Inputs!R$207 *IF((K$21+K$38)=0,($O10+$O27)/($O$21+$O$38),(K10+K27)/(K$21+K$38)),0) -> 0.0209332109 | L44: =IFERROR(Inputs!S$207 *IF((L$21+L$38)=0,($O10+$O27)/($O$21+$O$38),(L10+L27)/(L$21+L$38)),0) -> 0 | M44: =IFERROR(Inputs!T$207 *IF((M$21+M$38)=0,($O10+$O27)/($O$21+$O$38),(M10+M27)/(M$21+M$38)),0) -> 0 | N44: =IFERROR(Inputs!U$207 *IF((N$21+N$38)=0,($O10+$O27)/($O$21+$O$38),(N10+N27)/(N$21+N$38)),0) -> 0 | O44: 0.1674234952 | Q44: No | S44: Transmission Lines | T44: Transmission Tower support structures | V44: =_xlfn.XLOOKUP($T44,Inputs!$B$251:$B$264,Inputs!$C$251:$C$264) -> Towers - new infrastructure | AE44: =IFERROR(Inputs!BE$203 *IF((AE$21+AE$38)=0,($O10+$O27)/($O$21+$O$38),(AE10+AE27)/(AE$21+AE$38)),0) -> 0 | AF44: =IFERROR(Inputs!BF$203 *IF((AF$21+AF$38)=0,($O10+$O27)/($O$21+$O$38),(AF10+AF27)/(AF$21+AF$38)),0) -> 0.002463651883 | AG44: =IFERROR(Inputs!BG$203 *IF((AG$21+AG$38)=0,($O10+$O27)/($O$21+$O$38),(AG10+AG27)/(AG$21+AG$38)),0) -> 0.003412952531 | AH44: =IFERROR(Inputs!BH$203 *IF((AH$21+AH$38)=0,($O10+$O27)/($O$21+$O$38),(AH10+AH27)/(AH$21+AH$38)),0) -> 0.02137389027 | AI44: =IFERROR(Inputs!BI$203 *IF((AI$21+AI$38)=0,($O10+$O27)/($O$21+$O$38),(AI10+AI27)/(AI$21+AI$38)),0) -> 0.01081137462
B45: =Inputs!$B$225 -> Transmission Lines - Conductors - Contestable | C45: =Inputs!$G$9 -> Real $2026 | D45: $Million | E45: =IFERROR(Inputs!L$207 *IF((E$21+E$38)=0,($O11+$O28)/($O$21+$O$38),(E11+E28)/(E$21+E$38)),0) -> 0 | F45: =IFERROR(Inputs!M$207 *IF((F$21+F$38)=0,($O11+$O28)/($O$21+$O$38),(F11+F28)/(F$21+F$38)),0) -> 0.01374843552 | G45: =IFERROR(Inputs!N$207 *IF((G$21+G$38)=0,($O11+$O28)/($O$21+$O$38),(G11+G28)/(G$21+G$38)),0) -> 0.02299208528 | H45: =IFERROR(Inputs!O$207 *IF((H$21+H$38)=0,($O11+$O28)/($O$21+$O$38),(H11+H28)/(H$21+H$38)),0) -> 0.1028248446 | I45: =IFERROR(Inputs!P$207 *IF((I$21+I$38)=0,($O11+$O28)/($O$21+$O$38),(I11+I28)/(I$21+I$38)),0) -> 0.1954838257 | J45: =IFERROR(Inputs!Q$207 *IF((J$21+J$38)=0,($O11+$O28)/($O$21+$O$38),(J11+J28)/(J$21+J$38)),0) -> 0.2867899519 | K45: =IFERROR(Inputs!R$207 *IF((K$21+K$38)=0,($O11+$O28)/($O$21+$O$38),(K11+K28)/(K$21+K$38)),0) -> 0.08885974918 | L45: =IFERROR(Inputs!S$207 *IF((L$21+L$38)=0,($O11+$O28)/($O$21+$O$38),(L11+L28)/(L$21+L$38)),0) -> 0 | M45: =IFERROR(Inputs!T$207 *IF((M$21+M$38)=0,($O11+$O28)/($O$21+$O$38),(M11+M28)/(M$21+M$38)),0) -> 0 | N45: =IFERROR(Inputs!U$207 *IF((N$21+N$38)=0,($O11+$O28)/($O$21+$O$38),(N11+N28)/(N$21+N$38)),0) -> 0 | O45: 0.7106988922 | Q45: No | S45: Transmission Lines | T45: Conductors | V45: =_xlfn.XLOOKUP($T45,Inputs!$B$251:$B$264,Inputs!$C$251:$C$264) -> Transmission lines - new infrastructure | AE45: =IFERROR(Inputs!BE$203 *IF((AE$21+AE$38)=0,($O11+$O28)/($O$21+$O$38),(AE11+AE28)/(AE$21+AE$38)),0) -> 0 | AF45: =IFERROR(Inputs!BF$203 *IF((AF$21+AF$38)=0,($O11+$O28)/($O$21+$O$38),(AF11+AF28)/(AF$21+AF$38)),0) -> 0.01045799851 | AG45: =IFERROR(Inputs!BG$203 *IF((AG$21+AG$38)=0,($O11+$O28)/($O$21+$O$38),(AG11+AG28)/(AG$21+AG$38)),0) -> 0.01448770126 | AH45: =IFERROR(Inputs!BH$203 *IF((AH$21+AH$38)=0,($O11+$O28)/($O$21+$O$38),(AH11+AH28)/(AH$21+AH$38)),0) -> 0.09073039666 | AI45: =IFERROR(Inputs!BI$203 *IF((AI$21+AI$38)=0,($O11+$O28)/($O$21+$O$38),(AI11+AI28)/(AI$21+AI$38)),0) -> 0.04589339122
B46: =Inputs!$B$227 -> Substations - Substation switchbays - Contestable | C46: =Inputs!$G$9 -> Real $2026 | D46: $Million | E46: =IFERROR(Inputs!L$207 *IF((E$21+E$38)=0,($O12+$O29)/($O$21+$O$38),(E12+E29)/(E$21+E$38)),0) -> 0 | F46: =IFERROR(Inputs!M$207 *IF((F$21+F$38)=0,($O12+$O29)/($O$21+$O$38),(F12+F29)/(F$21+F$38)),0) -> 0.179429658 | G46: =IFERROR(Inputs!N$207 *IF((G$21+G$38)=0,($O12+$O29)/($O$21+$O$38),(G12+G29)/(G$21+G$38)),0) -> 0.3000677418 | H46: =IFERROR(Inputs!O$207 *IF((H$21+H$38)=0,($O12+$O29)/($O$21+$O$38),(H12+H29)/(H$21+H$38)),0) -> 1.341958267 | I46: =IFERROR(Inputs!P$207 *IF((I$21+I$38)=0,($O12+$O29)/($O$21+$O$38),(I12+I29)/(I$21+I$38)),0) -> 2.528688744 | J46: =IFERROR(Inputs!Q$207 *IF((J$21+J$38)=0,($O12+$O29)/($O$21+$O$38),(J12+J29)/(J$21+J$38)),0) -> 2.039996015 | K46: =IFERROR(Inputs!R$207 *IF((K$21+K$38)=0,($O12+$O29)/($O$21+$O$38),(K12+K29)/(K$21+K$38)),0) -> 2.914811738 | L46: =IFERROR(Inputs!S$207 *IF((L$21+L$38)=0,($O12+$O29)/($O$21+$O$38),(L12+L29)/(L$21+L$38)),0) -> 0.8558486764 | M46: =IFERROR(Inputs!T$207 *IF((M$21+M$38)=0,($O12+$O29)/($O$21+$O$38),(M12+M29)/(M$21+M$38)),0) -> 0 | N46: =IFERROR(Inputs!U$207 *IF((N$21+N$38)=0,($O12+$O29)/($O$21+$O$38),(N12+N29)/(N$21+N$38)),0) -> 0 | O46: 10.16080084 | Q46: No | S46: Substations | T46: Substation switchbays | V46: =_xlfn.XLOOKUP($T46,Inputs!$B$251:$B$264,Inputs!$C$251:$C$264) -> Substation(s) | AE46: =IFERROR(Inputs!BE$203 *IF((AE$21+AE$38)=0,($O12+$O29)/($O$21+$O$38),(AE12+AE29)/(AE$21+AE$38)),0) -> 0 | AF46: =IFERROR(Inputs!BF$203 *IF((AF$21+AF$38)=0,($O12+$O29)/($O$21+$O$38),(AF12+AF29)/(AF$21+AF$38)),0) -> 0.1364864456 | AG46: =IFERROR(Inputs!BG$203 *IF((AG$21+AG$38)=0,($O12+$O29)/($O$21+$O$38),(AG12+AG29)/(AG$21+AG$38)),0) -> 0.1890777521 | AH46: =IFERROR(Inputs!BH$203 *IF((AH$21+AH$38)=0,($O12+$O29)/($O$21+$O$38),(AH12+AH29)/(AH$21+AH$38)),0) -> 1.18411466 | AI46: =IFERROR(Inputs!BI$203 *IF((AI$21+AI$38)=0,($O12+$O29)/($O$21+$O$38),(AI12+AI29)/(AI$21+AI$38)),0) -> 2.450990829
B47: =Inputs!$B$228 -> Substations - Substation switchbays - Non-Contestable | C47: =Inputs!$G$9 -> Real $2026 | D47: $Million | E47: =IFERROR(Inputs!L$207 *IF((E$21+E$38)=0,($O13+$O30)/($O$21+$O$38),(E13+E30)/(E$21+E$38)),0) -> 0 | F47: =IFERROR(Inputs!M$207 *IF((F$21+F$38)=0,($O13+$O30)/($O$21+$O$38),(F13+F30)/(F$21+F$38)),0) -> 0.01834457881 | G47: =IFERROR(Inputs!N$207 *IF((G$21+G$38)=0,($O13+$O30)/($O$21+$O$38),(G13+G30)/(G$21+G$38)),0) -> 0.03067840845 | H47: =IFERROR(Inputs!O$207 *IF((H$21+H$38)=0,($O13+$O30)/($O$21+$O$38),(H13+H30)/(H$21+H$38)),0) -> 0.137199499 | I47: =IFERROR(Inputs!P$207 *IF((I$21+I$38)=0,($O13+$O30)/($O$21+$O$38),(I13+I30)/(I$21+I$38)),0) -> 0.9823651608 | J47: =IFERROR(Inputs!Q$207 *IF((J$21+J$38)=0,($O13+$O30)/($O$21+$O$38),(J13+J30)/(J$21+J$38)),0) -> 0.06069594303 | K47: =IFERROR(Inputs!R$207 *IF((K$21+K$38)=0,($O13+$O30)/($O$21+$O$38),(K13+K30)/(K$21+K$38)),0) -> 0.02020088914 | L47: =IFERROR(Inputs!S$207 *IF((L$21+L$38)=0,($O13+$O30)/($O$21+$O$38),(L13+L30)/(L$21+L$38)),0) -> 0 | M47: =IFERROR(Inputs!T$207 *IF((M$21+M$38)=0,($O13+$O30)/($O$21+$O$38),(M13+M30)/(M$21+M$38)),0) -> 0 | N47: =IFERROR(Inputs!U$207 *IF((N$21+N$38)=0,($O13+$O30)/($O$21+$O$38),(N13+N30)/(N$21+N$38)),0) -> 0 | O47: 1.249484479 | Q47: No | S47: Substations | T47: Substation switchbays | V47: =_xlfn.XLOOKUP($T47,Inputs!$B$251:$B$264,Inputs!$C$251:$C$264) -> Substation(s) | AE47: =IFERROR(Inputs!BE$203 *IF((AE$21+AE$38)=0,($O13+$O30)/($O$21+$O$38),(AE13+AE30)/(AE$21+AE$38)),0) -> 0 | AF47: =IFERROR(Inputs!BF$203 *IF((AF$21+AF$38)=0,($O13+$O30)/($O$21+$O$38),(AF13+AF30)/(AF$21+AF$38)),0) -> 0.01395413883 | AG47: =IFERROR(Inputs!BG$203 *IF((AG$21+AG$38)=0,($O13+$O30)/($O$21+$O$38),(AG13+AG30)/(AG$21+AG$38)),0) -> 0.01933098331 | AH47: =IFERROR(Inputs!BH$203 *IF((AH$21+AH$38)=0,($O13+$O30)/($O$21+$O$38),(AH13+AH30)/(AH$21+AH$38)),0) -> 0.1210618408 | AI47: =IFERROR(Inputs!BI$203 *IF((AI$21+AI$38)=0,($O13+$O30)/($O$21+$O$38),(AI13+AI30)/(AI$21+AI$38)),0) -> 0.5819372385
B48: =Inputs!$B$229 -> Substations - Substation power transformers - Contestable | C48: =Inputs!$G$9 -> Real $2026 | D48: $Million | E48: =IFERROR(Inputs!L$207 *IF((E$21+E$38)=0,($O14+$O31)/($O$21+$O$38),(E14+E31)/(E$21+E$38)),0) -> 0 | F48: =IFERROR(Inputs!M$207 *IF((F$21+F$38)=0,($O14+$O31)/($O$21+$O$38),(F14+F31)/(F$21+F$38)),0) -> 0.09492980091 | G48: =IFERROR(Inputs!N$207 *IF((G$21+G$38)=0,($O14+$O31)/($O$21+$O$38),(G14+G31)/(G$21+G$38)),0) -> 0.1587550871 | H48: =IFERROR(Inputs!O$207 *IF((H$21+H$38)=0,($O14+$O31)/($O$21+$O$38),(H14+H31)/(H$21+H$38)),0) -> 0.7099820202 | I48: =IFERROR(Inputs!P$207 *IF((I$21+I$38)=0,($O14+$O31)/($O$21+$O$38),(I14+I31)/(I$21+I$38)),0) -> 1.341040509 | J48: =IFERROR(Inputs!Q$207 *IF((J$21+J$38)=0,($O14+$O31)/($O$21+$O$38),(J14+J31)/(J$21+J$38)),0) -> 1.321041505 | K48: =IFERROR(Inputs!R$207 *IF((K$21+K$38)=0,($O14+$O31)/($O$21+$O$38),(K14+K31)/(K$21+K$38)),0) -> 1.292953938 | L48: =IFERROR(Inputs!S$207 *IF((L$21+L$38)=0,($O14+$O31)/($O$21+$O$38),(L14+L31)/(L$21+L$38)),0) -> 0.3312962618 | M48: =IFERROR(Inputs!T$207 *IF((M$21+M$38)=0,($O14+$O31)/($O$21+$O$38),(M14+M31)/(M$21+M$38)),0) -> 0 | N48: =IFERROR(Inputs!U$207 *IF((N$21+N$38)=0,($O14+$O31)/($O$21+$O$38),(N14+N31)/(N$21+N$38)),0) -> 0 | O48: 5.249999122 | Q48: No | S48: Substations | T48: Substation power transformers | V48: =_xlfn.XLOOKUP($T48,Inputs!$B$251:$B$264,Inputs!$C$251:$C$264) -> Substation(s) | AE48: =IFERROR(Inputs!BE$203 *IF((AE$21+AE$38)=0,($O14+$O31)/($O$21+$O$38),(AE14+AE31)/(AE$21+AE$38)),0) -> 0 | AF48: =IFERROR(Inputs!BF$203 *IF((AF$21+AF$38)=0,($O14+$O31)/($O$21+$O$38),(AF14+AF31)/(AF$21+AF$38)),0) -> 0.07221008641 | AG48: =IFERROR(Inputs!BG$203 *IF((AG$21+AG$38)=0,($O14+$O31)/($O$21+$O$38),(AG14+AG31)/(AG$21+AG$38)),0) -> 0.1000342617 | AH48: =IFERROR(Inputs!BH$203 *IF((AH$21+AH$38)=0,($O14+$O31)/($O$21+$O$38),(AH14+AH31)/(AH$21+AH$38)),0) -> 0.6264726252 | AI48: =IFERROR(Inputs!BI$203 *IF((AI$21+AI$38)=0,($O14+$O31)/($O$21+$O$38),(AI14+AI31)/(AI$21+AI$38)),0) -> 1.033802112
B49: =Inputs!$B$231 -> Secondary System - SCADA, network control and protection systems - Contestable | C49: =Inputs!$G$9 -> Real $2026 | D49: $Million | E49: =IFERROR(Inputs!L$207 *IF((E$21+E$38)=0,($O15+$O32)/($O$21+$O$38),(E15+E32)/(E$21+E$38)),0) -> 0 | F49: =IFERROR(Inputs!M$207 *IF((F$21+F$38)=0,($O15+$O32)/($O$21+$O$38),(F15+F32)/(F$21+F$38)),0) -> 0.1653766745 | G49: =IFERROR(Inputs!N$207 *IF((G$21+G$38)=0,($O15+$O32)/($O$21+$O$38),(G15+G32)/(G$21+G$38)),0) -> 0.2765663481 | H49: =IFERROR(Inputs!O$207 *IF((H$21+H$38)=0,($O15+$O32)/($O$21+$O$38),(H15+H32)/(H$21+H$38)),0) -> 1.236855701 | I49: =IFERROR(Inputs!P$207 *IF((I$21+I$38)=0,($O15+$O32)/($O$21+$O$38),(I15+I32)/(I$21+I$38)),0) -> 2.341242973 | J49: =IFERROR(Inputs!Q$207 *IF((J$21+J$38)=0,($O15+$O32)/($O$21+$O$38),(J15+J32)/(J$21+J$38)),0) -> 2.68068801 | K49: =IFERROR(Inputs!R$207 *IF((K$21+K$38)=0,($O15+$O32)/($O$21+$O$38),(K15+K32)/(K$21+K$38)),0) -> 1.861503533 | L49: =IFERROR(Inputs!S$207 *IF((L$21+L$38)=0,($O15+$O32)/($O$21+$O$38),(L15+L32)/(L$21+L$38)),0) -> 0.3865123055 | M49: =IFERROR(Inputs!T$207 *IF((M$21+M$38)=0,($O15+$O32)/($O$21+$O$38),(M15+M32)/(M$21+M$38)),0) -> 0 | N49: =IFERROR(Inputs!U$207 *IF((N$21+N$38)=0,($O15+$O32)/($O$21+$O$38),(N15+N32)/(N$21+N$38)),0) -> 0 | O49: 8.948745544 | Q49: No | S49: Secondary System | T49: SCADA, network control and protection systems | V49: =_xlfn.XLOOKUP($T49,Inputs!$B$251:$B$264,Inputs!$C$251:$C$264) -> Ancillary equipment | AE49: =IFERROR(Inputs!BE$203 *IF((AE$21+AE$38)=0,($O15+$O32)/($O$21+$O$38),(AE15+AE32)/(AE$21+AE$38)),0) -> 0 | AF49: =IFERROR(Inputs!BF$203 *IF((AF$21+AF$38)=0,($O15+$O32)/($O$21+$O$38),(AF15+AF32)/(AF$21+AF$38)),0) -> 0.1257967871 | AG49: =IFERROR(Inputs!BG$203 *IF((AG$21+AG$38)=0,($O15+$O32)/($O$21+$O$38),(AG15+AG32)/(AG$21+AG$38)),0) -> 0.174269127 | AH49: =IFERROR(Inputs!BH$203 *IF((AH$21+AH$38)=0,($O15+$O32)/($O$21+$O$38),(AH15+AH32)/(AH$21+AH$38)),0) -> 1.091374452 | AI49: =IFERROR(Inputs!BI$203 *IF((AI$21+AI$38)=0,($O15+$O32)/($O$21+$O$38),(AI15+AI32)/(AI$21+AI$38)),0) -> 1.388445939
B50: =Inputs!$B$232 -> Secondary System - SCADA, network control and protection systems - Non-Contestable | C50: =Inputs!$G$9 -> Real $2026 | D50: $Million | E50: =IFERROR(Inputs!L$207 *IF((E$21+E$38)=0,($O16+$O33)/($O$21+$O$38),(E16+E33)/(E$21+E$38)),0) -> 0 | F50: =IFERROR(Inputs!M$207 *IF((F$21+F$38)=0,($O16+$O33)/($O$21+$O$38),(F16+F33)/(F$21+F$38)),0) -> 0 | G50: =IFERROR(Inputs!N$207 *IF((G$21+G$38)=0,($O16+$O33)/($O$21+$O$38),(G16+G33)/(G$21+G$38)),0) -> 0 | H50: =IFERROR(Inputs!O$207 *IF((H$21+H$38)=0,($O16+$O33)/($O$21+$O$38),(H16+H33)/(H$21+H$38)),0) -> 0 | I50: =IFERROR(Inputs!P$207 *IF((I$21+I$38)=0,($O16+$O33)/($O$21+$O$38),(I16+I33)/(I$21+I$38)),0) -> 0 | J50: =IFERROR(Inputs!Q$207 *IF((J$21+J$38)=0,($O16+$O33)/($O$21+$O$38),(J16+J33)/(J$21+J$38)),0) -> 0 | K50: =IFERROR(Inputs!R$207 *IF((K$21+K$38)=0,($O16+$O33)/($O$21+$O$38),(K16+K33)/(K$21+K$38)),0) -> 0 | L50: =IFERROR(Inputs!S$207 *IF((L$21+L$38)=0,($O16+$O33)/($O$21+$O$38),(L16+L33)/(L$21+L$38)),0) -> 0 | M50: =IFERROR(Inputs!T$207 *IF((M$21+M$38)=0,($O16+$O33)/($O$21+$O$38),(M16+M33)/(M$21+M$38)),0) -> 0 | N50: =IFERROR(Inputs!U$207 *IF((N$21+N$38)=0,($O16+$O33)/($O$21+$O$38),(N16+N33)/(N$21+N$38)),0) -> 0 | O50: 0 | Q50: No | S50: Secondary System | T50: SCADA, network control and protection systems | V50: =_xlfn.XLOOKUP($T50,Inputs!$B$251:$B$264,Inputs!$C$251:$C$264) -> Ancillary equipment | AE50: =IFERROR(Inputs!BE$203 *IF((AE$21+AE$38)=0,($O16+$O33)/($O$21+$O$38),(AE16+AE33)/(AE$21+AE$38)),0) -> 0 | AF50: =IFERROR(Inputs!BF$203 *IF((AF$21+AF$38)=0,($O16+$O33)/($O$21+$O$38),(AF16+AF33)/(AF$21+AF$38)),0) -> 0 | AG50: =IFERROR(Inputs!BG$203 *IF((AG$21+AG$38)=0,($O16+$O33)/($O$21+$O$38),(AG16+AG33)/(AG$21+AG$38)),0) -> 0 | AH50: =IFERROR(Inputs!BH$203 *IF((AH$21+AH$38)=0,($O16+$O33)/($O$21+$O$38),(AH16+AH33)/(AH$21+AH$38)),0) -> 0 | AI50: =IFERROR(Inputs!BI$203 *IF((AI$21+AI$38)=0,($O16+$O33)/($O$21+$O$38),(AI16+AI33)/(AI$21+AI$38)),0) -> 0
B51: =Inputs!$B$233 -> Land & Easements - Other - Non-Contestable | C51: =Inputs!$G$9 -> Real $2026 | D51: $Million | E51: =IFERROR(Inputs!L$207 *IF((E$21+E$38)=0,($O17+$O34)/($O$21+$O$38),(E17+E34)/(E$21+E$38)),0) -> 0 | F51: =IFERROR(Inputs!M$207 *IF((F$21+F$38)=0,($O17+$O34)/($O$21+$O$38),(F17+F34)/(F$21+F$38)),0) -> 8.404987873e-05 | G51: =IFERROR(Inputs!N$207 *IF((G$21+G$38)=0,($O17+$O34)/($O$21+$O$38),(G17+G34)/(G$21+G$38)),0) -> 0.000140560137 | H51: =IFERROR(Inputs!O$207 *IF((H$21+H$38)=0,($O17+$O34)/($O$21+$O$38),(H17+H34)/(H$21+H$38)),0) -> 0.0006286108485 | I51: =IFERROR(Inputs!P$207 *IF((I$21+I$38)=0,($O17+$O34)/($O$21+$O$38),(I17+I34)/(I$21+I$38)),0) -> 0.005134509298 | J51: =IFERROR(Inputs!Q$207 *IF((J$21+J$38)=0,($O17+$O34)/($O$21+$O$38),(J17+J34)/(J$21+J$38)),0) -> 0 | K51: =IFERROR(Inputs!R$207 *IF((K$21+K$38)=0,($O17+$O34)/($O$21+$O$38),(K17+K34)/(K$21+K$38)),0) -> 0 | L51: =IFERROR(Inputs!S$207 *IF((L$21+L$38)=0,($O17+$O34)/($O$21+$O$38),(L17+L34)/(L$21+L$38)),0) -> 0 | M51: =IFERROR(Inputs!T$207 *IF((M$21+M$38)=0,($O17+$O34)/($O$21+$O$38),(M17+M34)/(M$21+M$38)),0) -> 0 | N51: =IFERROR(Inputs!U$207 *IF((N$21+N$38)=0,($O17+$O34)/($O$21+$O$38),(N17+N34)/(N$21+N$38)),0) -> 0 | O51: 0.005987730162 | Q51: No | S51: Land & Easements | T51: Other | V51: =_xlfn.XLOOKUP($T51,Inputs!$B$251:$B$264,Inputs!$C$251:$C$264) -> Other (Including non-network capital costs) | AE51: =IFERROR(Inputs!BE$203 *IF((AE$21+AE$38)=0,($O17+$O34)/($O$21+$O$38),(AE17+AE34)/(AE$21+AE$38)),0) -> 0 | AF51: =IFERROR(Inputs!BF$203 *IF((AF$21+AF$38)=0,($O17+$O34)/($O$21+$O$38),(AF17+AF34)/(AF$21+AF$38)),0) -> 6.393407494e-05 | AG51: =IFERROR(Inputs!BG$203 *IF((AG$21+AG$38)=0,($O17+$O34)/($O$21+$O$38),(AG17+AG34)/(AG$21+AG$38)),0) -> 8.856931629e-05 | AH51: =IFERROR(Inputs!BH$203 *IF((AH$21+AH$38)=0,($O17+$O34)/($O$21+$O$38),(AH17+AH34)/(AH$21+AH$38)),0) -> 0.0005546724808 | AI51: =IFERROR(Inputs!BI$203 *IF((AI$21+AI$38)=0,($O17+$O34)/($O$21+$O$38),(AI17+AI34)/(AI$21+AI$38)),0) -> 0
B52: =Inputs!$B$234 -> Minor Plant, Motor Vehicles & Mobile Plant - Motor Vehicles - Non-Contestable | C52: =Inputs!$G$9 -> Real $2026 | D52: $Million | E52: =IFERROR(Inputs!L$207 *IF((E$21+E$38)=0,($O18+$O35)/($O$21+$O$38),(E18+E35)/(E$21+E$38)),0) -> 0 | F52: =IFERROR(Inputs!M$207 *IF((F$21+F$38)=0,($O18+$O35)/($O$21+$O$38),(F18+F35)/(F$21+F$38)),0) -> 0.0009917189757 | G52: =IFERROR(Inputs!N$207 *IF((G$21+G$38)=0,($O18+$O35)/($O$21+$O$38),(G18+G35)/(G$21+G$38)),0) -> 0.001658493232 | H52: =IFERROR(Inputs!O$207 *IF((H$21+H$38)=0,($O18+$O35)/($O$21+$O$38),(H18+H35)/(H$21+H$38)),0) -> 0.007417087522 | I52: =IFERROR(Inputs!P$207 *IF((I$21+I$38)=0,($O18+$O35)/($O$21+$O$38),(I18+I35)/(I$21+I$38)),0) -> 0.06058295834 | J52: =IFERROR(Inputs!Q$207 *IF((J$21+J$38)=0,($O18+$O35)/($O$21+$O$38),(J18+J35)/(J$21+J$38)),0) -> 0 | K52: =IFERROR(Inputs!R$207 *IF((K$21+K$38)=0,($O18+$O35)/($O$21+$O$38),(K18+K35)/(K$21+K$38)),0) -> 0 | L52: =IFERROR(Inputs!S$207 *IF((L$21+L$38)=0,($O18+$O35)/($O$21+$O$38),(L18+L35)/(L$21+L$38)),0) -> 0 | M52: =IFERROR(Inputs!T$207 *IF((M$21+M$38)=0,($O18+$O35)/($O$21+$O$38),(M18+M35)/(M$21+M$38)),0) -> 0 | N52: =IFERROR(Inputs!U$207 *IF((N$21+N$38)=0,($O18+$O35)/($O$21+$O$38),(N18+N35)/(N$21+N$38)),0) -> 0 | O52: 0.07065025807 | Q52: No | S52: Minor Plant, Motor Vehicles & Mobile Plant | T52: Motor Vehicles | V52: =_xlfn.XLOOKUP($T52,Inputs!$B$251:$B$264,Inputs!$C$251:$C$264) -> Other (Including non-network capital costs) | AE52: =IFERROR(Inputs!BE$203 *IF((AE$21+AE$38)=0,($O18+$O35)/($O$21+$O$38),(AE18+AE35)/(AE$21+AE$38)),0) -> 0 | AF52: =IFERROR(Inputs!BF$203 *IF((AF$21+AF$38)=0,($O18+$O35)/($O$21+$O$38),(AF18+AF35)/(AF$21+AF$38)),0) -> 0.0007543691469 | AG52: =IFERROR(Inputs!BG$203 *IF((AG$21+AG$38)=0,($O18+$O35)/($O$21+$O$38),(AG18+AG35)/(AG$21+AG$38)),0) -> 0.001045044597 | AH52: =IFERROR(Inputs!BH$203 *IF((AH$21+AH$38)=0,($O18+$O35)/($O$21+$O$38),(AH18+AH35)/(AH$21+AH$38)),0) -> 0.006544676005 | AI52: =IFERROR(Inputs!BI$203 *IF((AI$21+AI$38)=0,($O18+$O35)/($O$21+$O$38),(AI18+AI35)/(AI$21+AI$38)),0) -> 0
B53: =Inputs!$B$235 -> Buildings - capital works - Buildings and Property - Contestable | C53: =Inputs!$G$9 -> Real $2026 | D53: $Million | E53: =IFERROR(Inputs!L$207 *IF((E$21+E$38)=0,($O19+$O36)/($O$21+$O$38),(E19+E36)/(E$21+E$38)),0) -> 0 | F53: =IFERROR(Inputs!M$207 *IF((F$21+F$38)=0,($O19+$O36)/($O$21+$O$38),(F19+F36)/(F$21+F$38)),0) -> 0.1056953855 | G53: =IFERROR(Inputs!N$207 *IF((G$21+G$38)=0,($O19+$O36)/($O$21+$O$38),(G19+G36)/(G$21+G$38)),0) -> 0.1767588257 | H53: =IFERROR(Inputs!O$207 *IF((H$21+H$38)=0,($O19+$O36)/($O$21+$O$38),(H19+H36)/(H$21+H$38)),0) -> 0.7904980589 | I53: =IFERROR(Inputs!P$207 *IF((I$21+I$38)=0,($O19+$O36)/($O$21+$O$38),(I19+I36)/(I$21+I$38)),0) -> 1.486109279 | J53: =IFERROR(Inputs!Q$207 *IF((J$21+J$38)=0,($O19+$O36)/($O$21+$O$38),(J19+J36)/(J$21+J$38)),0) -> 0.9413636864 | K53: =IFERROR(Inputs!R$207 *IF((K$21+K$38)=0,($O19+$O36)/($O$21+$O$38),(K19+K36)/(K$21+K$38)),0) -> 1.985315969 | L53: =IFERROR(Inputs!S$207 *IF((L$21+L$38)=0,($O19+$O36)/($O$21+$O$38),(L19+L36)/(L$21+L$38)),0) -> 0.6349845018 | M53: =IFERROR(Inputs!T$207 *IF((M$21+M$38)=0,($O19+$O36)/($O$21+$O$38),(M19+M36)/(M$21+M$38)),0) -> 0 | N53: =IFERROR(Inputs!U$207 *IF((N$21+N$38)=0,($O19+$O36)/($O$21+$O$38),(N19+N36)/(N$21+N$38)),0) -> 0 | O53: 6.120725706 | Q53: No | S53: Buildings - capital works | T53: Buildings and Property | V53: =_xlfn.XLOOKUP($T53,Inputs!$B$251:$B$264,Inputs!$C$251:$C$264) -> Other (Including non-network capital costs) | AE53: =IFERROR(Inputs!BE$203 *IF((AE$21+AE$38)=0,($O19+$O36)/($O$21+$O$38),(AE19+AE36)/(AE$21+AE$38)),0) -> 0 | AF53: =IFERROR(Inputs!BF$203 *IF((AF$21+AF$38)=0,($O19+$O36)/($O$21+$O$38),(AF19+AF36)/(AF$21+AF$38)),0) -> 0.08039912493 | AG53: =IFERROR(Inputs!BG$203 *IF((AG$21+AG$38)=0,($O19+$O36)/($O$21+$O$38),(AG19+AG36)/(AG$21+AG$38)),0) -> 0.1113787215 | AH53: =IFERROR(Inputs!BH$203 *IF((AH$21+AH$38)=0,($O19+$O36)/($O$21+$O$38),(AH19+AH36)/(AH$21+AH$38)),0) -> 0.6975182189 | AI53: =IFERROR(Inputs!BI$203 *IF((AI$21+AI$38)=0,($O19+$O36)/($O$21+$O$38),(AI19+AI36)/(AI$21+AI$38)),0) -> 1.726914024
B54: =Inputs!$B$236 -> Buildings - capital works - Buildings and Property - Non-Contestable | C54: =Inputs!$G$9 -> Real $2026 | D54: $Million | E54: =IFERROR(Inputs!L$207 *IF((E$21+E$38)=0,($O20+$O37)/($O$21+$O$38),(E20+E37)/(E$21+E$38)),0) -> 0 | F54: =IFERROR(Inputs!M$207 *IF((F$21+F$38)=0,($O20+$O37)/($O$21+$O$38),(F20+F37)/(F$21+F$38)),0) -> 0.01267048632 | G54: =IFERROR(Inputs!N$207 *IF((G$21+G$38)=0,($O20+$O37)/($O$21+$O$38),(G20+G37)/(G$21+G$38)),0) -> 0.02118938563 | H54: =IFERROR(Inputs!O$207 *IF((H$21+H$38)=0,($O20+$O37)/($O$21+$O$38),(H20+H37)/(H$21+H$38)),0) -> 0.09476283936 | I54: =IFERROR(Inputs!P$207 *IF((I$21+I$38)=0,($O20+$O37)/($O$21+$O$38),(I20+I37)/(I$21+I$38)),0) -> 0 | J54: =IFERROR(Inputs!Q$207 *IF((J$21+J$38)=0,($O20+$O37)/($O$21+$O$38),(J20+J37)/(J$21+J$38)),0) -> 0 | K54: =IFERROR(Inputs!R$207 *IF((K$21+K$38)=0,($O20+$O37)/($O$21+$O$38),(K20+K37)/(K$21+K$38)),0) -> 0 | L54: =IFERROR(Inputs!S$207 *IF((L$21+L$38)=0,($O20+$O37)/($O$21+$O$38),(L20+L37)/(L$21+L$38)),0) -> 0.9070725243 | M54: =IFERROR(Inputs!T$207 *IF((M$21+M$38)=0,($O20+$O37)/($O$21+$O$38),(M20+M37)/(M$21+M$38)),0) -> 0 | N54: =IFERROR(Inputs!U$207 *IF((N$21+N$38)=0,($O20+$O37)/($O$21+$O$38),(N20+N37)/(N$21+N$38)),0) -> 0 | O54: 1.035695236 | Q54: No | S54: Buildings - capital works | T54: Buildings and Property | V54: =_xlfn.XLOOKUP($T54,Inputs!$B$251:$B$264,Inputs!$C$251:$C$264) -> Other (Including non-network capital costs) | AE54: =IFERROR(Inputs!BE$203 *IF((AE$21+AE$38)=0,($O20+$O37)/($O$21+$O$38),(AE20+AE37)/(AE$21+AE$38)),0) -> 0 | AF54: =IFERROR(Inputs!BF$203 *IF((AF$21+AF$38)=0,($O20+$O37)/($O$21+$O$38),(AF20+AF37)/(AF$21+AF$38)),0) -> 0.009638036773 | AG54: =IFERROR(Inputs!BG$203 *IF((AG$21+AG$38)=0,($O20+$O37)/($O$21+$O$38),(AG20+AG37)/(AG$21+AG$38)),0) -> 0.01335178976 | AH54: =IFERROR(Inputs!BH$203 *IF((AH$21+AH$38)=0,($O20+$O37)/($O$21+$O$38),(AH20+AH37)/(AH$21+AH$38)),0) -> 0.08361665938 | AI54: =IFERROR(Inputs!BI$203 *IF((AI$21+AI$38)=0,($O20+$O37)/($O$21+$O$38),(AI20+AI37)/(AI$21+AI$38)),0) -> 0
B55: Sub-Total | C55: =Inputs!$G$9 -> Real $2026 | D55: $Million | E55: =SUM(E41:E54) -> 0 | F55: 1.675434388 | G55: 2.801899188 | H55: 12.53060977 | I55: 24.77208596 | J55: 22.57264377 | K55: 22.36455452 | L55: 6.869225594 | M55: 0 | N55: 0 | O55: 93.58645319 | AE55: =SUM(AE41:AE54) -> 0 | AF55: =SUM(AF41:AF54) -> 1.274449759 | AG55: =SUM(AG41:AG54) -> 1.765524001 | AH55: =SUM(AH41:AH54) -> 11.05673634 | AI55: =SUM(AI41:AI54) -> 17.87269739
B57: Total
B58: =Inputs!$B$221 -> Synchronous Condensers - Synchronous Condensers - Contestable | C58: =Inputs!$G$9 -> Real $2026 | D58: $Million | E58: =E7+E24+E41 -> 0 | F58: 1.953220163 | G58: 3.417966045 | H58: 12.64944285 | I58: 174.1240891 | J58: 288.9699239 | K58: 214.8488428 | L58: 36.86849993 | M58: 0 | N58: 0 | O58: =SUM(E58:N58) -> 732.8319848 | S58: =S41 -> Synchronous Condensers | T58: =T41 -> Synchronous Condensers | V58: =_xlfn.XLOOKUP($T58,Inputs!$B$251:$B$264,Inputs!$C$251:$C$264) -> Synchronous Condenser | AE58: =AE7+AE24+AE41 -> 0 | AF58: 1.419710796 | AG58: 2.175643602 | AH58: 11.07195042 | AI58: 100.8286314
B59: =Inputs!$B$222 -> Synchronous Condensers - Other - Non-Contestable | C59: =Inputs!$G$9 -> Real $2026 | D59: $Million | E59: =E8+E25+E42 -> 0 | F59: 0.02547753533 | G59: 0.04458347927 | H59: 0.1649975939 | I59: 2.482423542 | J59: 2.288191975 | K59: 2.319165507 | L59: 2.445419036 | M59: 0 | N59: 0 | O59: 9.770258668 | S59: =S42 -> Synchronous Condensers | T59: =T42 -> Other | V59: =_xlfn.XLOOKUP($T59,Inputs!$B$251:$B$264,Inputs!$C$251:$C$264) -> Other (Including non-network capital costs) | AE59: 0 | AF59: 0.01851851248 | AG59: 0.0283787961 | AH59: 0.1444209994 | AI59: 0
B60: =Inputs!$B$223 -> Transmission Lines - Transmission towers - Contestable | C60: =Inputs!$G$9 -> Real $2026 | D60: $Million | E60: =E9+E26+E43 -> 0 | F60: 0.046861253 | G60: 0.08200313235 | H60: 0.3034828091 | I60: 4.069751722 | J60: 10.36885245 | K60: 2.503890404 | L60: 0 | M60: 0 | N60: 0 | O60: 17.37484177 | S60: =S43 -> Transmission Lines | T60: Transmission towers | V60: =_xlfn.XLOOKUP($T60,Inputs!$B$251:$B$264,Inputs!$C$251:$C$264) -> Towers - new infrastructure | AE60: 0 | AF60: 0.03406140692 | AG60: 0.05219759001 | AH60: 0.2656359378 | AI60: 0.797765433
B61: =Inputs!$B$224 -> Transmission Lines - Transmission Tower support structures - Contestable | C61: =Inputs!$G$9 -> Real $2026 | D61: $Million | E61: =E10+E27+E44 -> 0 | F61: 0.006069228008 | G61: 0.01062062313 | H61: 0.03930552956 | I61: 0.5270932712 | J61: 1.342920337 | K61: 0.3242909824 | L61: 0 | M61: 0 | N61: 0 | O61: 2.250299971 | S61: Transmission Lines | T61: Transmission Tower support structures | V61: =_xlfn.XLOOKUP($T61,Inputs!$B$251:$B$264,Inputs!$C$251:$C$264) -> Towers - new infrastructure | AE61: 0 | AF61: 0.004411457903 | AG61: 0.006760362879 | AH61: 0.03440379781 | AI61: 0.1033224679
B62: =Inputs!$B$225 -> Transmission Lines - Conductors - Contestable | C62: =Inputs!$G$9 -> Real $2026 | D62: $Million | E62: =E11+E28+E45 -> 0 | F62: 0.025763371 | G62: 0.04508366692 | H62: 0.1668487226 | I62: 2.237467348 | J62: 5.700585778 | K62: 1.376588403 | L62: 0 | M62: 0 | N62: 0 | O62: 9.552337289 | S62: Transmission Lines | T62: Conductors | V62: =_xlfn.XLOOKUP($T62,Inputs!$B$251:$B$264,Inputs!$C$251:$C$264) -> Transmission lines - new infrastructure | AE62: 0 | AF62: 0.01872627399 | AG62: 0.02869718137 | AH62: 0.1460412767 | AI62: 0.438595332
B63: =Inputs!$B$227 -> Substations - Substation switchbays - Contestable | C63: =Inputs!$G$9 -> Real $2026 | D63: $Million | E63: =E12+E29+E46 -> 0 | F63: 0.336235555 | G63: 0.5883830875 | H63: 2.177528432 | I63: 28.9428472 | J63: 40.54944113 | K63: 45.15538332 | L63: 8.964077261 | M63: 0 | N63: 0 | O63: 126.713896 | S63: Substations | T63: Substation switchbays | V63: =_xlfn.XLOOKUP($T63,Inputs!$B$251:$B$264,Inputs!$C$251:$C$264) -> Substation(s) | AE63: 0 | AF63: 0.2443950029 | AG63: 0.3745244638 | AH63: 1.905972232 | AI63: 23.42370237
B64: =Inputs!$B$228 -> Substations - Substation switchbays - Non-Contestable | C64: =Inputs!$G$9 -> Real $2026 | D64: $Million | E64: =E13+E30+E47 -> 0 | F64: 0.03437614331 | G64: 0.06015527219 | H64: 0.2226267517 | I64: 11.243948 | J64: 1.206466361 | K64: 0.3129460749 | L64: 0 | M64: 0 | N64: 0 | O64: 13.0805186 | S64: Substations | T64: Substation switchbays | V64: =_xlfn.XLOOKUP($T64,Inputs!$B$251:$B$264,Inputs!$C$251:$C$264) -> Substation(s) | AE64: 0 | AF64: 0.02498652364 | AG64: 0.0382907353 | AH64: 0.1948633141 | AI64: 5.561475183
B65: =Inputs!$B$229 -> Substations - Substation power transformers - Contestable | C65: =Inputs!$G$9 -> Real $2026 | D65: $Million | E65: =E14+E31+E48 -> 0 | F65: 0.1778901808 | G65: 0.3112924026 | H65: 1.152052246 | I65: 15.34927169 | J65: 26.25862714 | K65: 20.030052 | L65: 3.469965392 | M65: 0 | N65: 0 | O65: 66.74915104 | S65: Substations | T65: Substation power transformers | V65: =_xlfn.XLOOKUP($T65,Inputs!$B$251:$B$264,Inputs!$C$251:$C$264) -> Substation(s) | AE65: 0 | AF65: 0.1293006364 | AG65: 0.19814747 | AH65: 1.008381594 | AI65: 9.879870899
B66: =Inputs!$B$231 -> Secondary System - SCADA, network control and protection systems - Contestable | C66: =Inputs!$G$9 -> Real $2026 | D66: $Million | E66: =E15+E32+E49 -> 0 | F66: 0.3099014876 | G66: 0.5423007512 | H66: 2.006983765 | I66: 26.79738176 | J66: 53.2846142 | K66: 28.83785064 | L66: 4.048292957 | M66: 0 | N66: 0 | O66: 115.8273256 | S66: Secondary System | T66: SCADA, network control and protection systems | V66: =_xlfn.XLOOKUP($T66,Inputs!$B$251:$B$264,Inputs!$C$251:$C$264) -> Ancillary equipment | AE66: 0 | AF66: 0.2252539145 | AG66: 0.3451915977 | AH66: 1.756695927 | AI66: 13.26914162
B67: =Inputs!$B$232 -> Secondary System - SCADA, network control and protection systems - Non-Contestable | C67: =Inputs!$G$9 -> Real $2026 | D67: $Million | E67: =E16+E33+E50 -> 0 | F67: 0 | G67: 0 | H67: 0 | I67: 0 | J67: 0 | K67: 0 | L67: 0 | M67: 0 | N67: 0 | O67: 0 | S67: Secondary System | T67: SCADA, network control and protection systems | V67: =_xlfn.XLOOKUP($T67,Inputs!$B$251:$B$264,Inputs!$C$251:$C$264) -> Ancillary equipment | AE67: 0 | AF67: 0 | AG67: 0 | AH67: 0 | AI67: 0
B68: =Inputs!$B$233 -> Land & Easements - Other - Non-Contestable | C68: =Inputs!$G$9 -> Real $2026 | D68: $Million | E68: =E17+E34+E51 -> 0 | F68: 0.000157502154 | G68: 0.0002756151223 | H68: 0.001020015323 | I68: 0.05876852911 | J68: 0 | K68: 0 | L68: 0 | M68: 0 | N68: 0 | O68: 0.06022166171 | S68: Land & Easements | T68: Other | V68: =_xlfn.XLOOKUP($T68,Inputs!$B$251:$B$264,Inputs!$C$251:$C$264) -> Other (Including non-network capital costs) | AE68: 0 | AF68: 0.0001144814663 | AG68: 0.0001754377515 | AH68: 0.0008928107913 | AI68: 0
B69: =Inputs!$B$234 -> Minor Plant, Motor Vehicles & Mobile Plant - Motor Vehicles - Non-Contestable | C69: =Inputs!$G$9 -> Real $2026 | D69: $Million | E69: =E18+E35+E52 -> 0 | F69: 0.001858395005 | G69: 0.003252030234 | H69: 0.01203533624 | I69: 0.6934199832 | J69: 0 | K69: 0 | L69: 0 | M69: 0 | N69: 0 | O69: 0.7105657447 | S69: Minor Plant, Motor Vehicles & Mobile Plant | T69: Motor Vehicles | V69: =_xlfn.XLOOKUP($T69,Inputs!$B$251:$B$264,Inputs!$C$251:$C$264) -> Other (Including non-network capital costs) | AE69: 0 | AF69: 0.001350786512 | AG69: 0.002070020205 | AH69: 0.01053442809 | AI69: 0
B70: =Inputs!$B$235 -> Buildings - capital works - Buildings and Property - Contestable | C70: =Inputs!$G$9 -> Real $2026 | D70: $Million | E70: =E19+E36+E53 -> 0 | F70: 0.1980639489 | G70: 0.3465947489 | H70: 1.282701587 | I70: 17.00969876 | J70: 18.71168919 | K70: 30.75591552 | L70: 6.650767 | M70: 0 | N70: 0 | O70: 74.95543074 | S70: Buildings - capital works | T70: Buildings and Property | V70: =_xlfn.XLOOKUP($T70,Inputs!$B$251:$B$264,Inputs!$C$251:$C$264) -> Other (Including non-network capital costs) | AE70: 0 | AF70: 0.1439640712 | AG70: 0.2206185311 | AH70: 1.122737858 | AI70: 16.50382353
B71: =Inputs!$B$236 -> Buildings - capital works - Buildings and Property - Non-Contestable | C71: =Inputs!$G$9 -> Real $2026 | D71: $Million | E71: =E20+E37+E54 -> 0 | F71: 0.02374338806 | G71: 0.04154887181 | H71: 0.1537669107 | I71: 0 | J71: 0 | K71: 0 | L71: 9.50059095 | M71: 0 | N71: 0 | O71: 9.719650121 | S71: Buildings - capital works | T71: Buildings and Property | V71: =_xlfn.XLOOKUP($T71,Inputs!$B$251:$B$264,Inputs!$C$251:$C$264) -> Other (Including non-network capital costs) | AE71: 0 | AF71: 0.01725803624 | AG71: 0.02644717237 | AH71: 0.1345908773 | AI71: 0
B72: Total | C72: =Inputs!$G$9 -> Real $2026 | D72: $Million | E72: =SUM(E58:E71) -> 0 | F72: 3.139618151 | G72: 5.494059726 | H72: 20.33279255 | I72: 283.5361609 | J72: 448.6813124 | K72: 346.4649256 | L72: 71.94761252 | M72: 0 | N72: 0 | O72: 1179.596482 | AE72: =SUM(AE58:AE71) -> 0 | AF72: =SUM(AF58:AF71) -> 2.2820519 | AG72: =SUM(AG58:AG71) -> 3.497142961 | AH72: =SUM(AH58:AH71) -> 17.79712147 | AI72: =SUM(AI58:AI71) -> 170.8063282
A74: =IF(SUM(G74:O74)=0,0,1) -> 0 | B74: ="Check "&$B$81 -> Check Direct Non-Labour | E74: =IF(ROUND(E$21-Inputs!X118,3)=0,0,1) -> 0 | F74: =IF(ROUND(F$21-Inputs!Y118,3)=0,0,1) -> 0 | G74: =IF(ROUND(G$21-Inputs!Z118,3)=0,0,1) -> 0 | H74: =IF(ROUND(H$21-Inputs!AA118,3)=0,0,1) -> 0 | I74: =IF(ROUND(I$21-Inputs!AB118,3)=0,0,1) -> 0 | J74: =IF(ROUND(J$21-Inputs!AC118,3)=0,0,1) -> 0 | K74: =IF(ROUND(K$21-Inputs!AD118,3)=0,0,1) -> 0 | L74: =IF(ROUND(L$21-Inputs!AE118,3)=0,0,1) -> 0 | M74: =IF(ROUND(M$21-Inputs!AF118,3)=0,0,1) -> 0 | N74: =IF(ROUND(N$21-Inputs!AG118,3)=0,0,1) -> 0 | O74: =IF(ROUND(O$21-Inputs!AH118,3)=0,0,1) -> 0 | AE74: =IF(ROUND(AE$21-Inputs!BE118,3)=0,0,1) -> 0 | AF74: =IF(ROUND(AF$21-Inputs!BF118,3)=0,0,1) -> 0 | AG74: =IF(ROUND(AG$21-Inputs!BG118,3)=0,0,1) -> 0 | AH74: =IF(ROUND(AH$21-Inputs!BH118,3)=0,0,1) -> 0 | AI74: =IF(ROUND(AI$21-Inputs!BI118,3)=0,0,1) -> 0
A75: =IF(SUM(G75:O75)=0,0,1) -> 0 | B75: ="Check "&$B$85 -> Check Direct Labour Costs | E75: =IF(ROUND(E$38-Inputs!L163,3)=0,0,1) -> 0 | F75: =IF(ROUND(F$38-Inputs!M163,3)=0,0,1) -> 0 | G75: =IF(ROUND(G$38-Inputs!N163,3)=0,0,1) -> 0 | H75: =IF(ROUND(H$38-Inputs!O163,3)=0,0,1) -> 0 | I75: =IF(ROUND(I$38-Inputs!P163,3)=0,0,1) -> 0 | J75: =IF(ROUND(J$38-Inputs!Q163,3)=0,0,1) -> 0 | K75: =IF(ROUND(K$38-Inputs!R163,3)=0,0,1) -> 0 | L75: =IF(ROUND(L$38-Inputs!S163,3)=0,0,1) -> 0 | M75: =IF(ROUND(M$38-Inputs!T163,3)=0,0,1) -> 0 | N75: =IF(ROUND(N$38-Inputs!U163,3)=0,0,1) -> 0 | O75: =IF(ROUND(O$38-Inputs!V163,3)=0,0,1) -> 0 | AE75: =IF(ROUND(AE$38-Inputs!BE159,3)=0,0,1) -> 0 | AF75: =IF(ROUND(AF$38-Inputs!BF159,3)=0,0,1) -> 0 | AG75: =IF(ROUND(AG$38-Inputs!BG159,3)=0,0,1) -> 0 | AH75: =IF(ROUND(AH$38-Inputs!BH159,3)=0,0,1) -> 0 | AI75: =IF(ROUND(AI$38-Inputs!BI159,3)=0,0,1) -> 0
A76: =IF(SUM(G76:O76)=0,0,1) -> 0 | B76: ="Check "&$B$90 -> Check Indirect Costs | E76: =IF(ROUND(E$55-Inputs!L207,3)=0,0,1) -> 0 | F76: =IF(ROUND(F$55-Inputs!M207,3)=0,0,1) -> 0 | G76: =IF(ROUND(G$55-Inputs!N207,3)=0,0,1) -> 0 | H76: =IF(ROUND(H$55-Inputs!O207,3)=0,0,1) -> 0 | I76: =IF(ROUND(I$55-Inputs!P207,3)=0,0,1) -> 0 | J76: =IF(ROUND(J$55-Inputs!Q207,3)=0,0,1) -> 0 | K76: =IF(ROUND(K$55-Inputs!R207,3)=0,0,1) -> 0 | L76: =IF(ROUND(L$55-Inputs!S207,3)=0,0,1) -> 0 | M76: =IF(ROUND(M$55-Inputs!T207,3)=0,0,1) -> 0 | N76: =IF(ROUND(N$55-Inputs!U207,3)=0,0,1) -> 0 | O76: =IF(ROUND(O$55-Inputs!V207,3)=0,0,1) -> 0 | AE76: =IF(ROUND(AE$55-Inputs!BE203,3)=0,0,1) -> 0 | AF76: =IF(ROUND(AF$55-Inputs!BF203,3)=0,0,1) -> 0 | AG76: =IF(ROUND(AG$55-Inputs!BG203,3)=0,0,1) -> 0 | AH76: =IF(ROUND(AH$55-Inputs!BH203,3)=0,0,1) -> 0 | AI76: =IF(ROUND(AI$55-Inputs!BI203,3)=0,0,1) -> 0
B78: Incremental Capital Expenditure (Excluding Equity Raising Costs) by Driver | O78: Total
B79: Component | C79: Dollar basis | D79: Units | E79: =Inputs!L$23 -> 2022 | F79: =Inputs!M$23 -> 2023 | G79: =Inputs!N$23 -> 2024 | H79: =Inputs!O$23 -> 2025 | I79: =Inputs!P$23 -> 2026 | J79: =Inputs!Q$23 -> 2027 | K79: =Inputs!R$23 -> 2028 | L79: =Inputs!S$23 -> 2029 | M79: =Inputs!T$23 -> 2030 | N79: =Inputs!U$23 -> 2031
B81: Direct Non-Labour
B82: Non-Labour | C82: =Inputs!$G$9 -> Real $2026 | D82: $Million | E82: =Inputs!X118 -> 0 | F82: =Inputs!Y118 -> 0 | G82: =Inputs!Z118 -> 0 | H82: =Inputs!AA118 -> 0 | I82: =Inputs!AB118 -> 232.9368616 | J82: =Inputs!AC118 -> 387.0759689 | K82: =Inputs!AD118 -> 287.2893981 | L82: =Inputs!AE118 -> 55.11839294 | M82: =Inputs!AF118 -> 0 | N82: =Inputs!AG118 -> 0 | O82: =SUM(E82:N82) -> 962.4206215
B83: Sub-Total | C83: =Inputs!$G$9 -> Real $2026 | D83: $Million | E83: =SUM(E82:E82) -> 0 | F83: 0 | G83: 0 | H83: 0 | I83: 232.9368616 | J83: 387.0759689 | K83: 287.2893981 | L83: 55.11839294 | M83: 0 | N83: 0 | O83: 962.4206215
B85: Direct Labour Costs
B86: Labour | C86: =Inputs!$G$9 -> Real $2026 | D86: $Million | E86: =Inputs!L$162 -> 0 | F86: =Inputs!M$162 -> 1.464183764 | G86: =Inputs!N$162 -> 2.692160537 | H86: =Inputs!O$162 -> 7.80218278 | I86: =Inputs!P$162 -> 25.82721341 | J86: =Inputs!Q$162 -> 38.7370889 | K86: =Inputs!R$162 -> 36.18594597 | L86: =Inputs!S$162 -> 9.676571812 | M86: =Inputs!T$162 -> 0 | N86: =Inputs!U$162 -> 0 | O86: =SUM(E86:N86) -> 122.3853472
B87: Labour Escalation | C87: =Inputs!$G$9 -> Real $2026 | D87: $Million | E87: =E86* IF(E4<Inputs!$G$142,1,Inputs!L$25/INDEX(Inputs!$L$25:$U$25,MATCH(Inputs!$G$142,Years,0)))-E86 -> 0 | F87: =F86* IF(F4<Inputs!$G$142,1,Inputs!M$25/INDEX(Inputs!$L$25:$U$25,MATCH(Inputs!$G$142,Years,0)))-F86 -> 0 | G87: =G86* IF(G4<Inputs!$G$142,1,Inputs!N$25/INDEX(Inputs!$L$25:$U$25,MATCH(Inputs!$G$142,Years,0)))-G86 -> 0 | H87: =H86* IF(H4<Inputs!$G$142,1,Inputs!O$25/INDEX(Inputs!$L$25:$U$25,MATCH(Inputs!$G$142,Years,0)))-H86 -> 0 | I87: =I86* IF(I4<Inputs!$G$142,1,Inputs!P$25/INDEX(Inputs!$L$25:$U$25,MATCH(Inputs!$G$142,Years,0)))-I86 -> 0 | J87: =J86* IF(J4<Inputs!$G$142,1,Inputs!Q$25/INDEX(Inputs!$L$25:$U$25,MATCH(Inputs!$G$142,Years,0)))-J86 -> 0.2956108984 | K87: =K86* IF(K4<Inputs!$G$142,1,Inputs!R$25/INDEX(Inputs!$L$25:$U$25,MATCH(Inputs!$G$142,Years,0)))-K86 -> 0.6250270615 | L87: =L86* IF(L4<Inputs!$G$142,1,Inputs!S$25/INDEX(Inputs!$L$25:$U$25,MATCH(Inputs!$G$142,Years,0)))-L86 -> 0.2834221719 | M87: =M86* IF(M4<Inputs!$G$142,1,Inputs!T$25/INDEX(Inputs!$L$25:$U$25,MATCH(Inputs!$G$142,Years,0)))-M86 -> 0 | N87: =N86* IF(N4<Inputs!$G$142,1,Inputs!U$25/INDEX(Inputs!$L$25:$U$25,MATCH(Inputs!$G$142,Years,0)))-N86 -> 0 | O87: =SUM(E87:N87) -> 1.204060132
B88: Sub-Total | C88: =Inputs!$G$9 -> Real $2026 | D88: $Million | E88: =SUM(E86:E87) -> 0 | F88: =SUM(F86:F87) -> 1.464183764 | G88: =SUM(G86:G87) -> 2.692160537 | H88: =SUM(H86:H87) -> 7.80218278 | I88: =SUM(I86:I87) -> 25.82721341 | J88: 39.0326998 | K88: 36.81097303 | L88: =SUM(L86:L87) -> 9.959993984 | M88: =SUM(M86:M87) -> 0 | N88: =SUM(N86:N87) -> 0 | O88: 123.5894073
B90: Indirect Costs
B91: Labour | C91: =Inputs!$G$9 -> Real $2026 | D91: $Million | E91: =Inputs!L$184+Inputs!L$199 -> 0 | F91: =Inputs!M$184+Inputs!M$199 -> 0.6275073273 | G91: =Inputs!N$184+Inputs!N$199 -> 1.153783087 | H91: =Inputs!O$184+Inputs!O$199 -> 3.34379262 | I91: =Inputs!P$184+Inputs!P$199 -> 11.06880575 | J91: =Inputs!Q$184+Inputs!Q$199 -> 16.60160953 | K91: =Inputs!R$184+Inputs!R$199 -> 15.50826256 | L91: =Inputs!S$184+Inputs!S$199 -> 4.147102205 | M91: =Inputs!T$184+Inputs!T$199 -> 0 | N91: =Inputs!U$184+Inputs!U$199 -> 0 | O91: =SUM(E91:N91) -> 52.45086307
B92: Labour Escalation | C92: =Inputs!$G$9 -> Real $2026 | D92: $Million | E92: =E91*IF(E4<Inputs!$G$142,1,Inputs!L$25/INDEX(Inputs!$L$25:$U$25,MATCH(Inputs!$G$142,Years,0)))-E91 -> 0 | F92: =F91*IF(F4<Inputs!$G$142,1,Inputs!M$25/INDEX(Inputs!$L$25:$U$25,MATCH(Inputs!$G$142,Years,0)))-F91 -> 0 | G92: =G91*IF(G4<Inputs!$G$142,1,Inputs!N$25/INDEX(Inputs!$L$25:$U$25,MATCH(Inputs!$G$142,Years,0)))-G91 -> 0 | H92: =H91*IF(H4<Inputs!$G$142,1,Inputs!O$25/INDEX(Inputs!$L$25:$U$25,MATCH(Inputs!$G$142,Years,0)))-H91 -> 0 | I92: =I91*IF(I4<Inputs!$G$142,1,Inputs!P$25/INDEX(Inputs!$L$25:$U$25,MATCH(Inputs!$G$142,Years,0)))-I91 -> 0 | J92: =J91*IF(J4<Inputs!$G$142,1,Inputs!Q$25/INDEX(Inputs!$L$25:$U$25,MATCH(Inputs!$G$142,Years,0)))-J91 -> 0.126690385 | K92: =K91*IF(K4<Inputs!$G$142,1,Inputs!R$25/INDEX(Inputs!$L$25:$U$25,MATCH(Inputs!$G$142,Years,0)))-K91 -> 0.2678687407 | L92: =L91*IF(L4<Inputs!$G$142,1,Inputs!S$25/INDEX(Inputs!$L$25:$U$25,MATCH(Inputs!$G$142,Years,0)))-L91 -> 0.1214666451 | M92: =M91*IF(M4<Inputs!$G$142,1,Inputs!T$25/INDEX(Inputs!$L$25:$U$25,MATCH(Inputs!$G$142,Years,0)))-M91 -> 0 | N92: =N91*IF(N4<Inputs!$G$142,1,Inputs!U$25/INDEX(Inputs!$L$25:$U$25,MATCH(Inputs!$G$142,Years,0)))-N91 -> 0 | O92: =SUM(E92:N92) -> 0.5160257708
B93: Non-Labour | C93: =Inputs!$G$9 -> Real $2026 | D93: $Million | E93: =Inputs!L$206-Inputs!L$184-Inputs!L$199 -> 0 | F93: =Inputs!M$206-Inputs!M$184-Inputs!M$199 -> 1.04792706 | G93: =Inputs!N$206-Inputs!N$184-Inputs!N$199 -> 1.648116101 | H93: =Inputs!O$206-Inputs!O$184-Inputs!O$199 -> 9.186817154 | I93: =Inputs!P$206-Inputs!P$184-Inputs!P$199 -> 13.70328021 | J93: =Inputs!Q$206-Inputs!Q$184-Inputs!Q$199 -> 5.844343854 | K93: =Inputs!R$206-Inputs!R$184-Inputs!R$199 -> 6.588423221 | L93: =Inputs!S$206-Inputs!S$184-Inputs!S$199 -> 2.600656743 | M93: =Inputs!T$206-Inputs!T$184-Inputs!T$199 -> 0 | N93: =Inputs!U$206-Inputs!U$184-Inputs!U$199 -> 0 | O93: =SUM(E93:N93) -> 40.61956434
B94: Sub-Total | C94: =Inputs!$G$9 -> Real $2026 | D94: $Million | E94: =SUM(E91:E93) -> 0 | F94: =SUM(F91:F93) -> 1.675434388 | G94: 2.801899188 | H94: 12.53060977 | I94: 24.77208596 | J94: 22.57264377 | K94: 22.36455452 | L94: 6.869225594 | M94: 0 | N94: 0 | O94: 93.58645319
B96: Total
B97: Labour | C97: =Inputs!$G$9 -> Real $2026 | D97: $Million | E97: =E86+E91 -> 0 | F97: =F86+F91 -> 2.091691091 | G97: 3.845943625 | H97: 11.1459754 | I97: 36.89601916 | J97: 55.33869843 | K97: 51.69420853 | L97: 13.82367402 | M97: 0 | N97: 0 | O97: =SUM(E97:N97) -> 174.8362102
B98: Labour Escalation | C98: =Inputs!$G$9 -> Real $2026 | D98: $Million | E98: =E87+E92 -> 0 | F98: =F87+F92 -> 0 | G98: 0 | H98: 0 | I98: 0 | J98: 0.4223012834 | K98: 0.8928958022 | L98: 0.404888817 | M98: 0 | N98: 0 | O98: =SUM(E98:N98) -> 1.720085903
B99: Non-Labour | C99: =Inputs!$G$9 -> Real $2026 | D99: $Million | E99: =E82+E93 -> 0 | F99: 1.04792706 | G99: 1.648116101 | H99: 9.186817154 | I99: 246.6401418 | J99: 392.9203127 | K99: 293.8778213 | L99: 57.71904969 | M99: 0 | N99: 0 | O99: =SUM(E99:N99) -> 1003.040186
B100: Total | C100: =Inputs!$G$9 -> Real $2026 | D100: $Million | E100: =SUM(E97:E99) -> 0 | F100: 3.139618151 | G100: 5.494059726 | H100: 20.33279255 | I100: 283.5361609 | J100: 448.6813124 | K100: 346.4649256 | L100: 71.94761252 | M100: 0 | N100: 0 | O100: 1179.596482
A102: =IF(SUM(G102:P102)=0,0,1) -> 0 | B102: ="Check "&$B$81 -> Check Direct Non-Labour | E102: =IF(ROUND(E$21-E83,3)=0,0,1) -> 0 | F102: 0 | G102: 0 | H102: 0 | I102: 0 | J102: 0 | K102: 0 | L102: 0 | M102: 0 | N102: 0 | O102: 0
A103: =IF(SUM(G103:P103)=0,0,1) -> 0 | B103: ="Check "&$B$85 -> Check Direct Labour Costs | E103: =IF(ROUND(E$38-E88,3)=0,0,1) -> 0 | F103: 0 | G103: 0 | H103: 0 | I103: 0 | J103: 0 | K103: 0 | L103: 0 | M103: 0 | N103: 0 | O103: 0
A104: =IF(SUM(G104:P104)=0,0,1) -> 0 | B104: ="Check "&$B$90 -> Check Indirect Costs | E104: =IF(ROUND(E$55-E94,3)=0,0,1) -> 0 | F104: 0 | G104: 0 | H104: 0 | I104: 0 | J104: 0 | K104: 0 | L104: 0 | M104: 0 | N104: 0 | O104: 0
B106: Incremental Capital Expenditure (Excluding Equity Raising Costs) by Component | O106: Total
B107: Component | C107: Dollar basis | D107: Units | E107: =Inputs!L$23 -> 2022 | F107: =Inputs!M$23 -> 2023 | G107: =Inputs!N$23 -> 2024 | H107: =Inputs!O$23 -> 2025 | I107: =Inputs!P$23 -> 2026 | J107: =Inputs!Q$23 -> 2027 | K107: =Inputs!R$23 -> 2028 | L107: =Inputs!S$23 -> 2029 | M107: =Inputs!T$23 -> 2030 | N107: =Inputs!U$23 -> 2031
B109: Direct Non-Labour Cost
B110: =Inputs!$B$280 -> Community and Stakeholder Engagement | C110: =Inputs!$G$9 -> Real $2026 | D110: $Million | E110: =IFERROR(E$83 *IF((E$175+E$226)<>0,(E161+E212)/(E$175+E$226),($O161+$O212)/($O$175+$O$226)),0) -> 0 | F110: 0 | G110: 0 | H110: 0 | I110: 0.3501508067 | J110: 0.178125136 | K110: 0 | L110: 0 | M110: 0 | N110: 0 | O110: =SUM(E110:N110) -> 0.5282759427
B111: =Inputs!$B$281 -> Fleet | C111: =Inputs!$G$9 -> Real $2026 | D111: $Million | E111: =IFERROR(E$83 *IF((E$175+E$226)<>0,(E162+E213)/(E$175+E$226),($O162+$O213)/($O$175+$O$226)),0) -> 0 | F111: 0 | G111: 0 | H111: 0 | I111: 0.04365684187 | J111: 0.2790686361 | K111: 0 | L111: 0 | M111: 0 | N111: 0 | O111: 0.322725478
B112: =Inputs!$B$282 -> Land and Environment | C112: =Inputs!$G$9 -> Real $2026 | D112: $Million | E112: =IFERROR(E$83 *IF((E$175+E$226)<>0,(E163+E214)/(E$175+E$226),($O163+$O214)/($O$175+$O$226)),0) -> 0 | F112: 0 | G112: 0 | H112: 0 | I112: 4.492219268 | J112: 7.445120992 | K112: 5.823078921 | L112: 0.381339184 | M112: 0 | N112: 0 | O112: 18.14175836
B113: =Inputs!$B$283 -> Other Support & Corporate Roles | C113: =Inputs!$G$9 -> Real $2026 | D113: $Million | E113: =IFERROR(E$83 *IF((E$175+E$226)<>0,(E164+E215)/(E$175+E$226),($O164+$O215)/($O$175+$O$226)),0) -> 0 | F113: 0 | G113: 0 | H113: 0 | I113: 65.14022655 | J113: 62.36188901 | K113: 52.08900934 | L113: 15.29791787 | M113: 0 | N113: 0 | O113: 194.8890428
B114: =Inputs!$B$284 -> Project Delivery Management - Commercial Management | C114: =Inputs!$G$9 -> Real $2026 | D114: $Million | E114: =IFERROR(E$83 *IF((E$175+E$226)<>0,(E165+E216)/(E$175+E$226),($O165+$O216)/($O$175+$O$226)),0) -> 0 | F114: 0 | G114: 0 | H114: 0 | I114: 6.911613504 | J114: 13.78953337 | K114: 10.79401714 | L114: 2.174087238 | M114: 0 | N114: 0 | O114: 33.66925125
B115: =Inputs!$B$285 -> Project Delivery Management - Commissioning | C115: =Inputs!$G$9 -> Real $2026 | D115: $Million | E115: =IFERROR(E$83 *IF((E$175+E$226)<>0,(E166+E217)/(E$175+E$226),($O166+$O217)/($O$175+$O$226)),0) -> 0 | F115: 0 | G115: 0 | H115: 0 | I115: 6.683059035 | J115: 47.58784446 | K115: 36.7392825 | L115: 3.572602031 | M115: 0 | N115: 0 | O115: 94.58278803
B116: =Inputs!$B$286 -> Project Delivery Management - Construction Management | C116: =Inputs!$G$9 -> Real $2026 | D116: $Million | E116: =IFERROR(E$83 *IF((E$175+E$226)<>0,(E167+E218)/(E$175+E$226),($O167+$O218)/($O$175+$O$226)),0) -> 0 | F116: 0 | G116: 0 | H116: 0 | I116: 16.6324826 | J116: 56.74074694 | K116: 43.93427934 | L116: 5.24048022 | M116: 0 | N116: 0 | O116: 122.5479891
B117: =Inputs!$B$287 -> Project Delivery Management - Project Controls | C117: =Inputs!$G$9 -> Real $2026 | D117: $Million | E117: =IFERROR(E$83 *IF((E$175+E$226)<>0,(E168+E219)/(E$175+E$226),($O168+$O219)/($O$175+$O$226)),0) -> 0 | F117: 0 | G117: 0 | H117: 0 | I117: 13.9746816 | J117: 25.41530762 | K117: 19.78406972 | L117: 4.387899199 | M117: 0 | N117: 0 | O117: 63.56195813
B118: =Inputs!$B$288 -> Project Delivery Management - Project Engineering | C118: =Inputs!$G$9 -> Real $2026 | D118: $Million | E118: =IFERROR(E$83 *IF((E$175+E$226)<>0,(E169+E220)/(E$175+E$226),($O169+$O220)/($O$175+$O$226)),0) -> 0 | F118: 0 | G118: 0 | H118: 0 | I118: 2.819482134 | J118: 3.429000713 | K118: 1.752427213 | L118: 0.4693867144 | M118: 0 | N118: 0 | O118: 8.470296775
B119: =Inputs!$B$289 -> Project Delivery Management - Project Management | C119: =Inputs!$G$9 -> Real $2026 | D119: $Million | E119: =IFERROR(E$83 *IF((E$175+E$226)<>0,(E170+E221)/(E$175+E$226),($O170+$O221)/($O$175+$O$226)),0) -> 0 | F119: 0 | G119: 0 | H119: 0 | I119: 31.01840156 | J119: 45.00245184 | K119: 35.08052557 | L119: 9.379187612 | M119: 0 | N119: 0 | O119: 120.4805666
B120: =Inputs!$B$290 -> Project Development | C120: =Inputs!$G$9 -> Real $2026 | D120: $Million | E120: =IFERROR(E$83 *IF((E$175+E$226)<>0,(E171+E222)/(E$175+E$226),($O171+$O222)/($O$175+$O$226)),0) -> 0 | F120: 0 | G120: 0 | H120: 0 | I120: 20.87562629 | J120: 17.68553915 | K120: 3.290556019 | L120: 0.235245358 | M120: 0 | N120: 0 | O120: 42.08696681
B121: =Inputs!$B$291 -> Regulatory Approvals | C121: =Inputs!$G$9 -> Real $2026 | D121: $Million | E121: =IFERROR(E$83 *IF((E$175+E$226)<>0,(E172+E223)/(E$175+E$226),($O172+$O223)/($O$175+$O$226)),0) -> 0 | F121: 0 | G121: 0 | H121: 0 | I121: 7.065967857 | J121: 0.1618687848 | K121: 0 | L121: 0 | M121: 0 | N121: 0 | O121: 7.227836642
B122: =Inputs!$B$292 -> Transaction Procurement Support | C122: =Inputs!$G$9 -> Real $2026 | D122: $Million | E122: =IFERROR(E$83 *IF((E$175+E$226)<>0,(E173+E224)/(E$175+E$226),($O173+$O224)/($O$175+$O$226)),0) -> 0 | F122: 0 | G122: 0 | H122: 0 | I122: 5.973392861 | J122: 1.892958376 | K122: 1.411111164 | L122: 0 | M122: 0 | N122: 0 | O122: 9.277462401
B123: =Inputs!$B$293 -> Indirect - Proportion of labour and labour-related costs | C123: =Inputs!$G$9 -> Real $2026 | D123: $Million | E123: =IFERROR(E$83 *IF((E$175+E$226)<>0,(E174+E225)/(E$175+E$226),($O174+$O225)/($O$175+$O$226)),0) -> 0 | F123: 0 | G123: 0 | H123: 0 | I123: 50.95590067 | J123: 105.1065139 | K123: 76.59104113 | L123: 13.98024752 | M123: 0 | N123: 0 | O123: 246.6337032
B124: Sub-Total | C124: =Inputs!$G$9 -> Real $2026 | D124: $Million | E124: =SUM(E110:E123) -> 0 | F124: 0 | G124: 0 | H124: 0 | I124: 232.9368616 | J124: 387.0759689 | K124: 287.2893981 | L124: 55.11839294 | M124: 0 | N124: 0 | O124: 962.4206215
B126: Direct Labour Costs - Actual
B127: =Inputs!$B$280 -> Community and Stakeholder Engagement | C127: =Inputs!$G$9 -> Real $2026 | D127: $Million | E127: =IFERROR(SUMIF(Inputs!$J$127:$J$140,$B127,Inputs!L$127:L$140),0) -> 0 | F127: =IFERROR(SUMIF(Inputs!$J$127:$J$140,$B127,Inputs!M$127:M$140),0) -> 0 | G127: =IFERROR(SUMIF(Inputs!$J$127:$J$140,$B127,Inputs!N$127:N$140),0) -> 0 | H127: =IFERROR(SUMIF(Inputs!$J$127:$J$140,$B127,Inputs!O$127:O$140),0) -> 0.05180646981 | I127: =IFERROR(SUMIF(Inputs!$J$127:$J$140,$B127,Inputs!P$127:P$140),0) -> 0 | J127: =IFERROR(SUMIF(Inputs!$J$127:$J$140,$B127,Inputs!Q$127:Q$140),0) -> 0 | K127: =IFERROR(SUMIF(Inputs!$J$127:$J$140,$B127,Inputs!R$127:R$140),0) -> 0 | L127: =IFERROR(SUMIF(Inputs!$J$127:$J$140,$B127,Inputs!S$127:S$140),0) -> 0 | M127: =IFERROR(SUMIF(Inputs!$J$127:$J$140,$B127,Inputs!T$127:T$140),0) -> 0 | N127: =IFERROR(SUMIF(Inputs!$J$127:$J$140,$B127,Inputs!U$127:U$140),0) -> 0 | O127: =SUM(E127:N127) -> 0.05180646981
B128: =Inputs!$B$281 -> Fleet | C128: =Inputs!$G$9 -> Real $2026 | D128: $Million | E128: =IFERROR(SUMIF(Inputs!$J$127:$J$140,$B128,Inputs!L$127:L$140),0) -> 0 | F128: =IFERROR(SUMIF(Inputs!$J$127:$J$140,$B128,Inputs!M$127:M$140),0) -> 0 | G128: =IFERROR(SUMIF(Inputs!$J$127:$J$140,$B128,Inputs!N$127:N$140),0) -> 0 | H128: =IFERROR(SUMIF(Inputs!$J$127:$J$140,$B128,Inputs!O$127:O$140),0) -> 0 | I128: =IFERROR(SUMIF(Inputs!$J$127:$J$140,$B128,Inputs!P$127:P$140),0) -> 0 | J128: =IFERROR(SUMIF(Inputs!$J$127:$J$140,$B128,Inputs!Q$127:Q$140),0) -> 0 | K128: =IFERROR(SUMIF(Inputs!$J$127:$J$140,$B128,Inputs!R$127:R$140),0) -> 0 | L128: =IFERROR(SUMIF(Inputs!$J$127:$J$140,$B128,Inputs!S$127:S$140),0) -> 0 | M128: =IFERROR(SUMIF(Inputs!$J$127:$J$140,$B128,Inputs!T$127:T$140),0) -> 0 | N128: =IFERROR(SUMIF(Inputs!$J$127:$J$140,$B128,Inputs!U$127:U$140),0) -> 0 | O128: 0
B129: =Inputs!$B$282 -> Land and Environment | C129: =Inputs!$G$9 -> Real $2026 | D129: $Million | E129: =IFERROR(SUMIF(Inputs!$J$127:$J$140,$B129,Inputs!L$127:L$140),0) -> 0 | F129: =IFERROR(SUMIF(Inputs!$J$127:$J$140,$B129,Inputs!M$127:M$140),0) -> 0 | G129: =IFERROR(SUMIF(Inputs!$J$127:$J$140,$B129,Inputs!N$127:N$140),0) -> 0.01528897241 | H129: =IFERROR(SUMIF(Inputs!$J$127:$J$140,$B129,Inputs!O$127:O$140),0) -> 0.4183264681 | I129: =IFERROR(SUMIF(Inputs!$J$127:$J$140,$B129,Inputs!P$127:P$140),0) -> 0.1519528762 | J129: =IFERROR(SUMIF(Inputs!$J$127:$J$140,$B129,Inputs!Q$127:Q$140),0) -> 0 | K129: =IFERROR(SUMIF(Inputs!$J$127:$J$140,$B129,Inputs!R$127:R$140),0) -> 0 | L129: =IFERROR(SUMIF(Inputs!$J$127:$J$140,$B129,Inputs!S$127:S$140),0) -> 0 | M129: =IFERROR(SUMIF(Inputs!$J$127:$J$140,$B129,Inputs!T$127:T$140),0) -> 0 | N129: =IFERROR(SUMIF(Inputs!$J$127:$J$140,$B129,Inputs!U$127:U$140),0) -> 0 | O129: 0.5855683167
B130: =Inputs!$B$283 -> Other Support & Corporate Roles | C130: =Inputs!$G$9 -> Real $2026 | D130: $Million | E130: =IFERROR(SUMIF(Inputs!$J$127:$J$140,$B130,Inputs!L$127:L$140),0) -> 0 | F130: =IFERROR(SUMIF(Inputs!$J$127:$J$140,$B130,Inputs!M$127:M$140),0) -> 0 | G130: =IFERROR(SUMIF(Inputs!$J$127:$J$140,$B130,Inputs!N$127:N$140),0) -> 0.03566401393 | H130: =IFERROR(SUMIF(Inputs!$J$127:$J$140,$B130,Inputs!O$127:O$140),0) -> 0.2589299228 | I130: =IFERROR(SUMIF(Inputs!$J$127:$J$140,$B130,Inputs!P$127:P$140),0) -> 0.16990279 | J130: =IFERROR(SUMIF(Inputs!$J$127:$J$140,$B130,Inputs!Q$127:Q$140),0) -> 0 | K130: =IFERROR(SUMIF(Inputs!$J$127:$J$140,$B130,Inputs!R$127:R$140),0) -> 0 | L130: =IFERROR(SUMIF(Inputs!$J$127:$J$140,$B130,Inputs!S$127:S$140),0) -> 0 | M130: =IFERROR(SUMIF(Inputs!$J$127:$J$140,$B130,Inputs!T$127:T$140),0) -> 0 | N130: =IFERROR(SUMIF(Inputs!$J$127:$J$140,$B130,Inputs!U$127:U$140),0) -> 0 | O130: 0.4644967267
B131: =Inputs!$B$284 -> Project Delivery Management - Commercial Management | C131: =Inputs!$G$9 -> Real $2026 | D131: $Million | E131: =IFERROR(SUMIF(Inputs!$J$127:$J$140,$B131,Inputs!L$127:L$140),0) -> 0 | F131: =IFERROR(SUMIF(Inputs!$J$127:$J$140,$B131,Inputs!M$127:M$140),0) -> 0 | G131: =IFERROR(SUMIF(Inputs!$J$127:$J$140,$B131,Inputs!N$127:N$140),0) -> 0 | H131: =IFERROR(SUMIF(Inputs!$J$127:$J$140,$B131,Inputs!O$127:O$140),0) -> 0.0001336030475 | I131: =IFERROR(SUMIF(Inputs!$J$127:$J$140,$B131,Inputs!P$127:P$140),0) -> 0 | J131: =IFERROR(SUMIF(Inputs!$J$127:$J$140,$B131,Inputs!Q$127:Q$140),0) -> 0 | K131: =IFERROR(SUMIF(Inputs!$J$127:$J$140,$B131,Inputs!R$127:R$140),0) -> 0 | L131: =IFERROR(SUMIF(Inputs!$J$127:$J$140,$B131,Inputs!S$127:S$140),0) -> 0 | M131: =IFERROR(SUMIF(Inputs!$J$127:$J$140,$B131,Inputs!T$127:T$140),0) -> 0 | N131: =IFERROR(SUMIF(Inputs!$J$127:$J$140,$B131,Inputs!U$127:U$140),0) -> 0 | O131: 0.0001336030475
B132: =Inputs!$B$285 -> Project Delivery Management - Commissioning | C132: =Inputs!$G$9 -> Real $2026 | D132: $Million | E132: =IFERROR(SUMIF(Inputs!$J$127:$J$140,$B132,Inputs!L$127:L$140),0) -> 0 | F132: =IFERROR(SUMIF(Inputs!$J$127:$J$140,$B132,Inputs!M$127:M$140),0) -> 0 | G132: =IFERROR(SUMIF(Inputs!$J$127:$J$140,$B132,Inputs!N$127:N$140),0) -> 0 | H132: =IFERROR(SUMIF(Inputs!$J$127:$J$140,$B132,Inputs!O$127:O$140),0) -> 0 | I132: =IFERROR(SUMIF(Inputs!$J$127:$J$140,$B132,Inputs!P$127:P$140),0) -> 0 | J132: =IFERROR(SUMIF(Inputs!$J$127:$J$140,$B132,Inputs!Q$127:Q$140),0) -> 0 | K132: =IFERROR(SUMIF(Inputs!$J$127:$J$140,$B132,Inputs!R$127:R$140),0) -> 0 | L132: =IFERROR(SUMIF(Inputs!$J$127:$J$140,$B132,Inputs!S$127:S$140),0) -> 0 | M132: =IFERROR(SUMIF(Inputs!$J$127:$J$140,$B132,Inputs!T$127:T$140),0) -> 0 | N132: =IFERROR(SUMIF(Inputs!$J$127:$J$140,$B132,Inputs!U$127:U$140),0) -> 0 | O132: 0
B133: =Inputs!$B$286 -> Project Delivery Management - Construction Management | C133: =Inputs!$G$9 -> Real $2026 | D133: $Million | E133: =IFERROR(SUMIF(Inputs!$J$127:$J$140,$B133,Inputs!L$127:L$140),0) -> 0 | F133: =IFERROR(SUMIF(Inputs!$J$127:$J$140,$B133,Inputs!M$127:M$140),0) -> 0 | G133: =IFERROR(SUMIF(Inputs!$J$127:$J$140,$B133,Inputs!N$127:N$140),0) -> 0.001718025235 | H133: =IFERROR(SUMIF(Inputs!$J$127:$J$140,$B133,Inputs!O$127:O$140),0) -> 0.06844793695 | I133: =IFERROR(SUMIF(Inputs!$J$127:$J$140,$B133,Inputs!P$127:P$140),0) -> 0 | J133: =IFERROR(SUMIF(Inputs!$J$127:$J$140,$B133,Inputs!Q$127:Q$140),0) -> 0 | K133: =IFERROR(SUMIF(Inputs!$J$127:$J$140,$B133,Inputs!R$127:R$140),0) -> 0 | L133: =IFERROR(SUMIF(Inputs!$J$127:$J$140,$B133,Inputs!S$127:S$140),0) -> 0 | M133: =IFERROR(SUMIF(Inputs!$J$127:$J$140,$B133,Inputs!T$127:T$140),0) -> 0 | N133: =IFERROR(SUMIF(Inputs!$J$127:$J$140,$B133,Inputs!U$127:U$140),0) -> 0 | O133: 0.07016596219
B134: =Inputs!$B$287 -> Project Delivery Management - Project Controls | C134: =Inputs!$G$9 -> Real $2026 | D134: $Million | E134: =IFERROR(SUMIF(Inputs!$J$127:$J$140,$B134,Inputs!L$127:L$140),0) -> 0 | F134: =IFERROR(SUMIF(Inputs!$J$127:$J$140,$B134,Inputs!M$127:M$140),0) -> 0 | G134: =IFERROR(SUMIF(Inputs!$J$127:$J$140,$B134,Inputs!N$127:N$140),0) -> 0 | H134: =IFERROR(SUMIF(Inputs!$J$127:$J$140,$B134,Inputs!O$127:O$140),0) -> 0.001961583528 | I134: =IFERROR(SUMIF(Inputs!$J$127:$J$140,$B134,Inputs!P$127:P$140),0) -> 0.2368984279 | J134: =IFERROR(SUMIF(Inputs!$J$127:$J$140,$B134,Inputs!Q$127:Q$140),0) -> 0 | K134: =IFERROR(SUMIF(Inputs!$J$127:$J$140,$B134,Inputs!R$127:R$140),0) -> 0 | L134: =IFERROR(SUMIF(Inputs!$J$127:$J$140,$B134,Inputs!S$127:S$140),0) -> 0 | M134: =IFERROR(SUMIF(Inputs!$J$127:$J$140,$B134,Inputs!T$127:T$140),0) -> 0 | N134: =IFERROR(SUMIF(Inputs!$J$127:$J$140,$B134,Inputs!U$127:U$140),0) -> 0 | O134: 0.2388600114
B135: =Inputs!$B$288 -> Project Delivery Management - Project Engineering | C135: =Inputs!$G$9 -> Real $2026 | D135: $Million | E135: =IFERROR(SUMIF(Inputs!$J$127:$J$140,$B135,Inputs!L$127:L$140),0) -> 0 | F135: =IFERROR(SUMIF(Inputs!$J$127:$J$140,$B135,Inputs!M$127:M$140),0) -> 0 | G135: =IFERROR(SUMIF(Inputs!$J$127:$J$140,$B135,Inputs!N$127:N$140),0) -> 0 | H135: =IFERROR(SUMIF(Inputs!$J$127:$J$140,$B135,Inputs!O$127:O$140),0) -> 0 | I135: =IFERROR(SUMIF(Inputs!$J$127:$J$140,$B135,Inputs!P$127:P$140),0) -> 0 | J135: =IFERROR(SUMIF(Inputs!$J$127:$J$140,$B135,Inputs!Q$127:Q$140),0) -> 0 | K135: =IFERROR(SUMIF(Inputs!$J$127:$J$140,$B135,Inputs!R$127:R$140),0) -> 0 | L135: =IFERROR(SUMIF(Inputs!$J$127:$J$140,$B135,Inputs!S$127:S$140),0) -> 0 | M135: =IFERROR(SUMIF(Inputs!$J$127:$J$140,$B135,Inputs!T$127:T$140),0) -> 0 | N135: =IFERROR(SUMIF(Inputs!$J$127:$J$140,$B135,Inputs!U$127:U$140),0) -> 0 | O135: 0
B136: =Inputs!$B$289 -> Project Delivery Management - Project Management | C136: =Inputs!$G$9 -> Real $2026 | D136: $Million | E136: =IFERROR(SUMIF(Inputs!$J$127:$J$140,$B136,Inputs!L$127:L$140),0) -> 0 | F136: =IFERROR(SUMIF(Inputs!$J$127:$J$140,$B136,Inputs!M$127:M$140),0) -> 0 | G136: =IFERROR(SUMIF(Inputs!$J$127:$J$140,$B136,Inputs!N$127:N$140),0) -> 0.1416467608 | H136: =IFERROR(SUMIF(Inputs!$J$127:$J$140,$B136,Inputs!O$127:O$140),0) -> 1.390522984 | I136: =IFERROR(SUMIF(Inputs!$J$127:$J$140,$B136,Inputs!P$127:P$140),0) -> 1.963161653 | J136: =IFERROR(SUMIF(Inputs!$J$127:$J$140,$B136,Inputs!Q$127:Q$140),0) -> 0 | K136: =IFERROR(SUMIF(Inputs!$J$127:$J$140,$B136,Inputs!R$127:R$140),0) -> 0 | L136: =IFERROR(SUMIF(Inputs!$J$127:$J$140,$B136,Inputs!S$127:S$140),0) -> 0 | M136: =IFERROR(SUMIF(Inputs!$J$127:$J$140,$B136,Inputs!T$127:T$140),0) -> 0 | N136: =IFERROR(SUMIF(Inputs!$J$127:$J$140,$B136,Inputs!U$127:U$140),0) -> 0 | O136: =SUM(E136:N136) -> 3.495331398
B137: =Inputs!$B$290 -> Project Development | C137: =Inputs!$G$9 -> Real $2026 | D137: $Million | E137: =IFERROR(SUMIF(Inputs!$J$127:$J$140,$B137,Inputs!L$127:L$140),0) -> 0 | F137: =IFERROR(SUMIF(Inputs!$J$127:$J$140,$B137,Inputs!M$127:M$140),0) -> 1.464183764 | G137: =IFERROR(SUMIF(Inputs!$J$127:$J$140,$B137,Inputs!N$127:N$140),0) -> 2.466175416 | H137: =IFERROR(SUMIF(Inputs!$J$127:$J$140,$B137,Inputs!O$127:O$140),0) -> 5.164312515 | I137: =IFERROR(SUMIF(Inputs!$J$127:$J$140,$B137,Inputs!P$127:P$140),0) -> 0.5267701679 | J137: =IFERROR(SUMIF(Inputs!$J$127:$J$140,$B137,Inputs!Q$127:Q$140),0) -> 0 | K137: =IFERROR(SUMIF(Inputs!$J$127:$J$140,$B137,Inputs!R$127:R$140),0) -> 0 | L137: =IFERROR(SUMIF(Inputs!$J$127:$J$140,$B137,Inputs!S$127:S$140),0) -> 0 | M137: =IFERROR(SUMIF(Inputs!$J$127:$J$140,$B137,Inputs!T$127:T$140),0) -> 0 | N137: =IFERROR(SUMIF(Inputs!$J$127:$J$140,$B137,Inputs!U$127:U$140),0) -> 0 | O137: =SUM(E137:N137) -> 9.621441862
B138: =Inputs!$B$291 -> Regulatory Approvals | C138: =Inputs!$G$9 -> Real $2026 | D138: $Million | E138: =IFERROR(SUMIF(Inputs!$J$127:$J$140,$B138,Inputs!L$127:L$140),0) -> 0 | F138: =IFERROR(SUMIF(Inputs!$J$127:$J$140,$B138,Inputs!M$127:M$140),0) -> 0 | G138: =IFERROR(SUMIF(Inputs!$J$127:$J$140,$B138,Inputs!N$127:N$140),0) -> 0.01340441924 | H138: =IFERROR(SUMIF(Inputs!$J$127:$J$140,$B138,Inputs!O$127:O$140),0) -> 0.1765429962 | I138: =IFERROR(SUMIF(Inputs!$J$127:$J$140,$B138,Inputs!P$127:P$140),0) -> 0.1623926803 | J138: =IFERROR(SUMIF(Inputs!$J$127:$J$140,$B138,Inputs!Q$127:Q$140),0) -> 0 | K138: =IFERROR(SUMIF(Inputs!$J$127:$J$140,$B138,Inputs!R$127:R$140),0) -> 0 | L138: =IFERROR(SUMIF(Inputs!$J$127:$J$140,$B138,Inputs!S$127:S$140),0) -> 0 | M138: =IFERROR(SUMIF(Inputs!$J$127:$J$140,$B138,Inputs!T$127:T$140),0) -> 0 | N138: =IFERROR(SUMIF(Inputs!$J$127:$J$140,$B138,Inputs!U$127:U$140),0) -> 0 | O138: =SUM(E138:N138) -> 0.3523400958
B139: =Inputs!$B$292 -> Transaction Procurement Support | C139: =Inputs!$G$9 -> Real $2026 | D139: $Million | E139: =IFERROR(SUMIF(Inputs!$J$127:$J$140,$B139,Inputs!L$127:L$140),0) -> 0 | F139: =IFERROR(SUMIF(Inputs!$J$127:$J$140,$B139,Inputs!M$127:M$140),0) -> 0 | G139: =IFERROR(SUMIF(Inputs!$J$127:$J$140,$B139,Inputs!N$127:N$140),0) -> 0.01826293017 | H139: =IFERROR(SUMIF(Inputs!$J$127:$J$140,$B139,Inputs!O$127:O$140),0) -> 0.2711983005 | I139: =IFERROR(SUMIF(Inputs!$J$127:$J$140,$B139,Inputs!P$127:P$140),0) -> 0.2226073963 | J139: =IFERROR(SUMIF(Inputs!$J$127:$J$140,$B139,Inputs!Q$127:Q$140),0) -> 0 | K139: =IFERROR(SUMIF(Inputs!$J$127:$J$140,$B139,Inputs!R$127:R$140),0) -> 0 | L139: =IFERROR(SUMIF(Inputs!$J$127:$J$140,$B139,Inputs!S$127:S$140),0) -> 0 | M139: =IFERROR(SUMIF(Inputs!$J$127:$J$140,$B139,Inputs!T$127:T$140),0) -> 0 | N139: =IFERROR(SUMIF(Inputs!$J$127:$J$140,$B139,Inputs!U$127:U$140),0) -> 0 | O139: =SUM(E139:N139) -> 0.512068627
B140: =Inputs!$B$293 -> Indirect - Proportion of labour and labour-related costs | C140: =Inputs!$G$9 -> Real $2026 | D140: $Million | E140: =IFERROR(SUMIF(Inputs!$J$127:$J$140,$B140,Inputs!L$127:L$140),0) -> 0 | F140: =IFERROR(SUMIF(Inputs!$J$127:$J$140,$B140,Inputs!M$127:M$140),0) -> 0 | G140: =IFERROR(SUMIF(Inputs!$J$127:$J$140,$B140,Inputs!N$127:N$140),0) -> 0 | H140: =IFERROR(SUMIF(Inputs!$J$127:$J$140,$B140,Inputs!O$127:O$140),0) -> 0 | I140: =IFERROR(SUMIF(Inputs!$J$127:$J$140,$B140,Inputs!P$127:P$140),0) -> 0 | J140: =IFERROR(SUMIF(Inputs!$J$127:$J$140,$B140,Inputs!Q$127:Q$140),0) -> 0 | K140: =IFERROR(SUMIF(Inputs!$J$127:$J$140,$B140,Inputs!R$127:R$140),0) -> 0 | L140: =IFERROR(SUMIF(Inputs!$J$127:$J$140,$B140,Inputs!S$127:S$140),0) -> 0 | M140: =IFERROR(SUMIF(Inputs!$J$127:$J$140,$B140,Inputs!T$127:T$140),0) -> 0 | N140: =IFERROR(SUMIF(Inputs!$J$127:$J$140,$B140,Inputs!U$127:U$140),0) -> 0 | O140: 0
B141: Sub-Total | C141: =Inputs!$G$9 -> Real $2026 | D141: $Million | E141: =SUM(E127:E140) -> 0 | F141: =SUM(F127:F140) -> 1.464183764 | G141: =SUM(G127:G140) -> 2.692160537 | H141: 7.80218278 | I141: 3.433685992 | J141: 0 | K141: 0 | L141: 0 | M141: 0 | N141: 0 | O141: 15.39221307
B143: Direct Labour Costs - Forecast
B144: =Inputs!$B$280 -> Community and Stakeholder Engagement | C144: =Inputs!$G$9 -> Real $2026 | D144: $Million | E144: =IFERROR(SUMIF(Inputs!$J$142:$J$155,$B144,Inputs!L$142:L$155)*Inputs!$F$162*Inputs!L$25/INDEX(Inputs!$L$25:$S$25,MATCH(Inputs!$G$142,Years,0)),0) -> 0 | F144: =IFERROR(SUMIF(Inputs!$J$142:$J$155,$B144,Inputs!M$142:M$155)*Inputs!$F$162*Inputs!M$25/INDEX(Inputs!$L$25:$S$25,MATCH(Inputs!$G$142,Years,0)),0) -> 0 | G144: =IFERROR(SUMIF(Inputs!$J$142:$J$155,$B144,Inputs!N$142:N$155)*Inputs!$F$162*Inputs!N$25/INDEX(Inputs!$L$25:$S$25,MATCH(Inputs!$G$142,Years,0)),0) -> 0 | H144: =IFERROR(SUMIF(Inputs!$J$142:$J$155,$B144,Inputs!O$142:O$155)*Inputs!$F$162*Inputs!O$25/INDEX(Inputs!$L$25:$S$25,MATCH(Inputs!$G$142,Years,0)),0) -> 0 | I144: =IFERROR(SUMIF(Inputs!$J$142:$J$155,$B144,Inputs!P$142:P$155)*Inputs!$F$162*Inputs!P$25/INDEX(Inputs!$L$25:$S$25,MATCH(Inputs!$G$142,Years,0)),0) -> 0.07606089208 | J144: =IFERROR(SUMIF(Inputs!$J$142:$J$155,$B144,Inputs!Q$142:Q$155)*Inputs!$F$162*Inputs!Q$25/INDEX(Inputs!$L$25:$S$25,MATCH(Inputs!$G$142,Years,0)),0) -> 0.02834962923 | K144: =IFERROR(SUMIF(Inputs!$J$142:$J$155,$B144,Inputs!R$142:R$155)*Inputs!$F$162*Inputs!R$25/INDEX(Inputs!$L$25:$S$25,MATCH(Inputs!$G$142,Years,0)),0) -> 0 | L144: =IFERROR(SUMIF(Inputs!$J$142:$J$155,$B144,Inputs!S$142:S$155)*Inputs!$F$162*Inputs!S$25/INDEX(Inputs!$L$25:$S$25,MATCH(Inputs!$G$142,Years,0)),0) -> 0 | M144: =IFERROR(SUMIF(Inputs!$J$142:$J$155,$B144,Inputs!T$142:T$155)*Inputs!$F$162*Inputs!T$25/INDEX(Inputs!$L$25:$S$25,MATCH(Inputs!$G$142,Years,0)),0) -> 0 | N144: =IFERROR(SUMIF(Inputs!$J$142:$J$155,$B144,Inputs!U$142:U$155)*Inputs!$F$162*Inputs!U$25/INDEX(Inputs!$L$25:$S$25,MATCH(Inputs!$G$142,Years,0)),0) -> 0 | O144: =SUM(E144:N144) -> 0.1044105213
B145: =Inputs!$B$281 -> Fleet | C145: =Inputs!$G$9 -> Real $2026 | D145: $Million | E145: =IFERROR(SUMIF(Inputs!$J$142:$J$155,$B145,Inputs!L$142:L$155)*Inputs!$F$162*Inputs!L$25/INDEX(Inputs!$L$25:$S$25,MATCH(Inputs!$G$142,Years,0)),0) -> 0 | F145: =IFERROR(SUMIF(Inputs!$J$142:$J$155,$B145,Inputs!M$142:M$155)*Inputs!$F$162*Inputs!M$25/INDEX(Inputs!$L$25:$S$25,MATCH(Inputs!$G$142,Years,0)),0) -> 0 | G145: =IFERROR(SUMIF(Inputs!$J$142:$J$155,$B145,Inputs!N$142:N$155)*Inputs!$F$162*Inputs!N$25/INDEX(Inputs!$L$25:$S$25,MATCH(Inputs!$G$142,Years,0)),0) -> 0 | H145: =IFERROR(SUMIF(Inputs!$J$142:$J$155,$B145,Inputs!O$142:O$155)*Inputs!$F$162*Inputs!O$25/INDEX(Inputs!$L$25:$S$25,MATCH(Inputs!$G$142,Years,0)),0) -> 0 | I145: =IFERROR(SUMIF(Inputs!$J$142:$J$155,$B145,Inputs!P$142:P$155)*Inputs!$F$162*Inputs!P$25/INDEX(Inputs!$L$25:$S$25,MATCH(Inputs!$G$142,Years,0)),0) -> 0 | J145: =IFERROR(SUMIF(Inputs!$J$142:$J$155,$B145,Inputs!Q$142:Q$155)*Inputs!$F$162*Inputs!Q$25/INDEX(Inputs!$L$25:$S$25,MATCH(Inputs!$G$142,Years,0)),0) -> 0 | K145: =IFERROR(SUMIF(Inputs!$J$142:$J$155,$B145,Inputs!R$142:R$155)*Inputs!$F$162*Inputs!R$25/INDEX(Inputs!$L$25:$S$25,MATCH(Inputs!$G$142,Years,0)),0) -> 0 | L145: =IFERROR(SUMIF(Inputs!$J$142:$J$155,$B145,Inputs!S$142:S$155)*Inputs!$F$162*Inputs!S$25/INDEX(Inputs!$L$25:$S$25,MATCH(Inputs!$G$142,Years,0)),0) -> 0 | M145: =IFERROR(SUMIF(Inputs!$J$142:$J$155,$B145,Inputs!T$142:T$155)*Inputs!$F$162*Inputs!T$25/INDEX(Inputs!$L$25:$S$25,MATCH(Inputs!$G$142,Years,0)),0) -> 0 | N145: =IFERROR(SUMIF(Inputs!$J$142:$J$155,$B145,Inputs!U$142:U$155)*Inputs!$F$162*Inputs!U$25/INDEX(Inputs!$L$25:$S$25,MATCH(Inputs!$G$142,Years,0)),0) -> 0 | O145: 0
B146: =Inputs!$B$282 -> Land and Environment | C146: =Inputs!$G$9 -> Real $2026 | D146: $Million | E146: =IFERROR(SUMIF(Inputs!$J$142:$J$155,$B146,Inputs!L$142:L$155)*Inputs!$F$162*Inputs!L$25/INDEX(Inputs!$L$25:$S$25,MATCH(Inputs!$G$142,Years,0)),0) -> 0 | F146: =IFERROR(SUMIF(Inputs!$J$142:$J$155,$B146,Inputs!M$142:M$155)*Inputs!$F$162*Inputs!M$25/INDEX(Inputs!$L$25:$S$25,MATCH(Inputs!$G$142,Years,0)),0) -> 0 | G146: =IFERROR(SUMIF(Inputs!$J$142:$J$155,$B146,Inputs!N$142:N$155)*Inputs!$F$162*Inputs!N$25/INDEX(Inputs!$L$25:$S$25,MATCH(Inputs!$G$142,Years,0)),0) -> 0 | H146: =IFERROR(SUMIF(Inputs!$J$142:$J$155,$B146,Inputs!O$142:O$155)*Inputs!$F$162*Inputs!O$25/INDEX(Inputs!$L$25:$S$25,MATCH(Inputs!$G$142,Years,0)),0) -> 0 | I146: =IFERROR(SUMIF(Inputs!$J$142:$J$155,$B146,Inputs!P$142:P$155)*Inputs!$F$162*Inputs!P$25/INDEX(Inputs!$L$25:$S$25,MATCH(Inputs!$G$142,Years,0)),0) -> 0.6554866481 | J146: =IFERROR(SUMIF(Inputs!$J$142:$J$155,$B146,Inputs!Q$142:Q$155)*Inputs!$F$162*Inputs!Q$25/INDEX(Inputs!$L$25:$S$25,MATCH(Inputs!$G$142,Years,0)),0) -> 1.184933381 | K146: =IFERROR(SUMIF(Inputs!$J$142:$J$155,$B146,Inputs!R$142:R$155)*Inputs!$F$162*Inputs!R$25/INDEX(Inputs!$L$25:$S$25,MATCH(Inputs!$G$142,Years,0)),0) -> 1.199430851 | L146: =IFERROR(SUMIF(Inputs!$J$142:$J$155,$B146,Inputs!S$142:S$155)*Inputs!$F$162*Inputs!S$25/INDEX(Inputs!$L$25:$S$25,MATCH(Inputs!$G$142,Years,0)),0) -> 0.1164337441 | M146: =IFERROR(SUMIF(Inputs!$J$142:$J$155,$B146,Inputs!T$142:T$155)*Inputs!$F$162*Inputs!T$25/INDEX(Inputs!$L$25:$S$25,MATCH(Inputs!$G$142,Years,0)),0) -> 0 | N146: =IFERROR(SUMIF(Inputs!$J$142:$J$155,$B146,Inputs!U$142:U$155)*Inputs!$F$162*Inputs!U$25/INDEX(Inputs!$L$25:$S$25,MATCH(Inputs!$G$142,Years,0)),0) -> 0 | O146: 3.156284624
B147: =Inputs!$B$283 -> Other Support & Corporate Roles | C147: =Inputs!$G$9 -> Real $2026 | D147: $Million | E147: =IFERROR(SUMIF(Inputs!$J$142:$J$155,$B147,Inputs!L$142:L$155)*Inputs!$F$162*Inputs!L$25/INDEX(Inputs!$L$25:$S$25,MATCH(Inputs!$G$142,Years,0)),0) -> 0 | F147: =IFERROR(SUMIF(Inputs!$J$142:$J$155,$B147,Inputs!M$142:M$155)*Inputs!$F$162*Inputs!M$25/INDEX(Inputs!$L$25:$S$25,MATCH(Inputs!$G$142,Years,0)),0) -> 0 | G147: =IFERROR(SUMIF(Inputs!$J$142:$J$155,$B147,Inputs!N$142:N$155)*Inputs!$F$162*Inputs!N$25/INDEX(Inputs!$L$25:$S$25,MATCH(Inputs!$G$142,Years,0)),0) -> 0 | H147: =IFERROR(SUMIF(Inputs!$J$142:$J$155,$B147,Inputs!O$142:O$155)*Inputs!$F$162*Inputs!O$25/INDEX(Inputs!$L$25:$S$25,MATCH(Inputs!$G$142,Years,0)),0) -> 0 | I147: =IFERROR(SUMIF(Inputs!$J$142:$J$155,$B147,Inputs!P$142:P$155)*Inputs!$F$162*Inputs!P$25/INDEX(Inputs!$L$25:$S$25,MATCH(Inputs!$G$142,Years,0)),0) -> 3.717491919 | J147: =IFERROR(SUMIF(Inputs!$J$142:$J$155,$B147,Inputs!Q$142:Q$155)*Inputs!$F$162*Inputs!Q$25/INDEX(Inputs!$L$25:$S$25,MATCH(Inputs!$G$142,Years,0)),0) -> 5.008385338 | K147: =IFERROR(SUMIF(Inputs!$J$142:$J$155,$B147,Inputs!R$142:R$155)*Inputs!$F$162*Inputs!R$25/INDEX(Inputs!$L$25:$S$25,MATCH(Inputs!$G$142,Years,0)),0) -> 4.648495738 | L147: =IFERROR(SUMIF(Inputs!$J$142:$J$155,$B147,Inputs!S$142:S$155)*Inputs!$F$162*Inputs!S$25/INDEX(Inputs!$L$25:$S$25,MATCH(Inputs!$G$142,Years,0)),0) -> 2.276309891 | M147: =IFERROR(SUMIF(Inputs!$J$142:$J$155,$B147,Inputs!T$142:T$155)*Inputs!$F$162*Inputs!T$25/INDEX(Inputs!$L$25:$S$25,MATCH(Inputs!$G$142,Years,0)),0) -> 0 | N147: =IFERROR(SUMIF(Inputs!$J$142:$J$155,$B147,Inputs!U$142:U$155)*Inputs!$F$162*Inputs!U$25/INDEX(Inputs!$L$25:$S$25,MATCH(Inputs!$G$142,Years,0)),0) -> 0 | O147: 15.65068289
B148: =Inputs!$B$284 -> Project Delivery Management - Commercial Management | C148: =Inputs!$G$9 -> Real $2026 | D148: $Million | E148: =IFERROR(SUMIF(Inputs!$J$142:$J$155,$B148,Inputs!L$142:L$155)*Inputs!$F$162*Inputs!L$25/INDEX(Inputs!$L$25:$S$25,MATCH(Inputs!$G$142,Years,0)),0) -> 0 | F148: =IFERROR(SUMIF(Inputs!$J$142:$J$155,$B148,Inputs!M$142:M$155)*Inputs!$F$162*Inputs!M$25/INDEX(Inputs!$L$25:$S$25,MATCH(Inputs!$G$142,Years,0)),0) -> 0 | G148: =IFERROR(SUMIF(Inputs!$J$142:$J$155,$B148,Inputs!N$142:N$155)*Inputs!$F$162*Inputs!N$25/INDEX(Inputs!$L$25:$S$25,MATCH(Inputs!$G$142,Years,0)),0) -> 0 | H148: =IFERROR(SUMIF(Inputs!$J$142:$J$155,$B148,Inputs!O$142:O$155)*Inputs!$F$162*Inputs!O$25/INDEX(Inputs!$L$25:$S$25,MATCH(Inputs!$G$142,Years,0)),0) -> 0 | I148: =IFERROR(SUMIF(Inputs!$J$142:$J$155,$B148,Inputs!P$142:P$155)*Inputs!$F$162*Inputs!P$25/INDEX(Inputs!$L$25:$S$25,MATCH(Inputs!$G$142,Years,0)),0) -> 1.501363066 | J148: =IFERROR(SUMIF(Inputs!$J$142:$J$155,$B148,Inputs!Q$142:Q$155)*Inputs!$F$162*Inputs!Q$25/INDEX(Inputs!$L$25:$S$25,MATCH(Inputs!$G$142,Years,0)),0) -> 2.194682722 | K148: =IFERROR(SUMIF(Inputs!$J$142:$J$155,$B148,Inputs!R$142:R$155)*Inputs!$F$162*Inputs!R$25/INDEX(Inputs!$L$25:$S$25,MATCH(Inputs!$G$142,Years,0)),0) -> 2.223338776 | L148: =IFERROR(SUMIF(Inputs!$J$142:$J$155,$B148,Inputs!S$142:S$155)*Inputs!$F$162*Inputs!S$25/INDEX(Inputs!$L$25:$S$25,MATCH(Inputs!$G$142,Years,0)),0) -> 0.6638109269 | M148: =IFERROR(SUMIF(Inputs!$J$142:$J$155,$B148,Inputs!T$142:T$155)*Inputs!$F$162*Inputs!T$25/INDEX(Inputs!$L$25:$S$25,MATCH(Inputs!$G$142,Years,0)),0) -> 0 | N148: =IFERROR(SUMIF(Inputs!$J$142:$J$155,$B148,Inputs!U$142:U$155)*Inputs!$F$162*Inputs!U$25/INDEX(Inputs!$L$25:$S$25,MATCH(Inputs!$G$142,Years,0)),0) -> 0 | O148: 6.583195491
B149: =Inputs!$B$285 -> Project Delivery Management - Commissioning | C149: =Inputs!$G$9 -> Real $2026 | D149: $Million | E149: =IFERROR(SUMIF(Inputs!$J$142:$J$155,$B149,Inputs!L$142:L$155)*Inputs!$F$162*Inputs!L$25/INDEX(Inputs!$L$25:$S$25,MATCH(Inputs!$G$142,Years,0)),0) -> 0 | F149: =IFERROR(SUMIF(Inputs!$J$142:$J$155,$B149,Inputs!M$142:M$155)*Inputs!$F$162*Inputs!M$25/INDEX(Inputs!$L$25:$S$25,MATCH(Inputs!$G$142,Years,0)),0) -> 0 | G149: =IFERROR(SUMIF(Inputs!$J$142:$J$155,$B149,Inputs!N$142:N$155)*Inputs!$F$162*Inputs!N$25/INDEX(Inputs!$L$25:$S$25,MATCH(Inputs!$G$142,Years,0)),0) -> 0 | H149: =IFERROR(SUMIF(Inputs!$J$142:$J$155,$B149,Inputs!O$142:O$155)*Inputs!$F$162*Inputs!O$25/INDEX(Inputs!$L$25:$S$25,MATCH(Inputs!$G$142,Years,0)),0) -> 0 | I149: =IFERROR(SUMIF(Inputs!$J$142:$J$155,$B149,Inputs!P$142:P$155)*Inputs!$F$162*Inputs!P$25/INDEX(Inputs!$L$25:$S$25,MATCH(Inputs!$G$142,Years,0)),0) -> 1.451715725 | J149: =IFERROR(SUMIF(Inputs!$J$142:$J$155,$B149,Inputs!Q$142:Q$155)*Inputs!$F$162*Inputs!Q$25/INDEX(Inputs!$L$25:$S$25,MATCH(Inputs!$G$142,Years,0)),0) -> 7.573876302 | K149: =IFERROR(SUMIF(Inputs!$J$142:$J$155,$B149,Inputs!R$142:R$155)*Inputs!$F$162*Inputs!R$25/INDEX(Inputs!$L$25:$S$25,MATCH(Inputs!$G$142,Years,0)),0) -> 7.567513589 | L149: =IFERROR(SUMIF(Inputs!$J$142:$J$155,$B149,Inputs!S$142:S$155)*Inputs!$F$162*Inputs!S$25/INDEX(Inputs!$L$25:$S$25,MATCH(Inputs!$G$142,Years,0)),0) -> 1.090817435 | M149: =IFERROR(SUMIF(Inputs!$J$142:$J$155,$B149,Inputs!T$142:T$155)*Inputs!$F$162*Inputs!T$25/INDEX(Inputs!$L$25:$S$25,MATCH(Inputs!$G$142,Years,0)),0) -> 0 | N149: =IFERROR(SUMIF(Inputs!$J$142:$J$155,$B149,Inputs!U$142:U$155)*Inputs!$F$162*Inputs!U$25/INDEX(Inputs!$L$25:$S$25,MATCH(Inputs!$G$142,Years,0)),0) -> 0 | O149: 17.68392305
B150: =Inputs!$B$286 -> Project Delivery Management - Construction Management | C150: =Inputs!$G$9 -> Real $2026 | D150: $Million | E150: =IFERROR(SUMIF(Inputs!$J$142:$J$155,$B150,Inputs!L$142:L$155)*Inputs!$F$162*Inputs!L$25/INDEX(Inputs!$L$25:$S$25,MATCH(Inputs!$G$142,Years,0)),0) -> 0 | F150: =IFERROR(SUMIF(Inputs!$J$142:$J$155,$B150,Inputs!M$142:M$155)*Inputs!$F$162*Inputs!M$25/INDEX(Inputs!$L$25:$S$25,MATCH(Inputs!$G$142,Years,0)),0) -> 0 | G150: =IFERROR(SUMIF(Inputs!$J$142:$J$155,$B150,Inputs!N$142:N$155)*Inputs!$F$162*Inputs!N$25/INDEX(Inputs!$L$25:$S$25,MATCH(Inputs!$G$142,Years,0)),0) -> 0 | H150: =IFERROR(SUMIF(Inputs!$J$142:$J$155,$B150,Inputs!O$142:O$155)*Inputs!$F$162*Inputs!O$25/INDEX(Inputs!$L$25:$S$25,MATCH(Inputs!$G$142,Years,0)),0) -> 0 | I150: =IFERROR(SUMIF(Inputs!$J$142:$J$155,$B150,Inputs!P$142:P$155)*Inputs!$F$162*Inputs!P$25/INDEX(Inputs!$L$25:$S$25,MATCH(Inputs!$G$142,Years,0)),0) -> 3.599197717 | J150: =IFERROR(SUMIF(Inputs!$J$142:$J$155,$B150,Inputs!Q$142:Q$155)*Inputs!$F$162*Inputs!Q$25/INDEX(Inputs!$L$25:$S$25,MATCH(Inputs!$G$142,Years,0)),0) -> 9.030612827 | K150: =IFERROR(SUMIF(Inputs!$J$142:$J$155,$B150,Inputs!R$142:R$155)*Inputs!$F$162*Inputs!R$25/INDEX(Inputs!$L$25:$S$25,MATCH(Inputs!$G$142,Years,0)),0) -> 9.049530456 | L150: =IFERROR(SUMIF(Inputs!$J$142:$J$155,$B150,Inputs!S$142:S$155)*Inputs!$F$162*Inputs!S$25/INDEX(Inputs!$L$25:$S$25,MATCH(Inputs!$G$142,Years,0)),0) -> 1.600068282 | M150: =IFERROR(SUMIF(Inputs!$J$142:$J$155,$B150,Inputs!T$142:T$155)*Inputs!$F$162*Inputs!T$25/INDEX(Inputs!$L$25:$S$25,MATCH(Inputs!$G$142,Years,0)),0) -> 0 | N150: =IFERROR(SUMIF(Inputs!$J$142:$J$155,$B150,Inputs!U$142:U$155)*Inputs!$F$162*Inputs!U$25/INDEX(Inputs!$L$25:$S$25,MATCH(Inputs!$G$142,Years,0)),0) -> 0 | O150: 23.27940928
B151: =Inputs!$B$287 -> Project Delivery Management - Project Controls | C151: =Inputs!$G$9 -> Real $2026 | D151: $Million | E151: =IFERROR(SUMIF(Inputs!$J$142:$J$155,$B151,Inputs!L$142:L$155)*Inputs!$F$162*Inputs!L$25/INDEX(Inputs!$L$25:$S$25,MATCH(Inputs!$G$142,Years,0)),0) -> 0 | F151: =IFERROR(SUMIF(Inputs!$J$142:$J$155,$B151,Inputs!M$142:M$155)*Inputs!$F$162*Inputs!M$25/INDEX(Inputs!$L$25:$S$25,MATCH(Inputs!$G$142,Years,0)),0) -> 0 | G151: =IFERROR(SUMIF(Inputs!$J$142:$J$155,$B151,Inputs!N$142:N$155)*Inputs!$F$162*Inputs!N$25/INDEX(Inputs!$L$25:$S$25,MATCH(Inputs!$G$142,Years,0)),0) -> 0 | H151: =IFERROR(SUMIF(Inputs!$J$142:$J$155,$B151,Inputs!O$142:O$155)*Inputs!$F$162*Inputs!O$25/INDEX(Inputs!$L$25:$S$25,MATCH(Inputs!$G$142,Years,0)),0) -> 0 | I151: =IFERROR(SUMIF(Inputs!$J$142:$J$155,$B151,Inputs!P$142:P$155)*Inputs!$F$162*Inputs!P$25/INDEX(Inputs!$L$25:$S$25,MATCH(Inputs!$G$142,Years,0)),0) -> 2.794099076 | J151: =IFERROR(SUMIF(Inputs!$J$142:$J$155,$B151,Inputs!Q$142:Q$155)*Inputs!$F$162*Inputs!Q$25/INDEX(Inputs!$L$25:$S$25,MATCH(Inputs!$G$142,Years,0)),0) -> 4.044990863 | K151: =IFERROR(SUMIF(Inputs!$J$142:$J$155,$B151,Inputs!R$142:R$155)*Inputs!$F$162*Inputs!R$25/INDEX(Inputs!$L$25:$S$25,MATCH(Inputs!$G$142,Years,0)),0) -> 4.075099083 | L151: =IFERROR(SUMIF(Inputs!$J$142:$J$155,$B151,Inputs!S$142:S$155)*Inputs!$F$162*Inputs!S$25/INDEX(Inputs!$L$25:$S$25,MATCH(Inputs!$G$142,Years,0)),0) -> 1.339750946 | M151: =IFERROR(SUMIF(Inputs!$J$142:$J$155,$B151,Inputs!T$142:T$155)*Inputs!$F$162*Inputs!T$25/INDEX(Inputs!$L$25:$S$25,MATCH(Inputs!$G$142,Years,0)),0) -> 0 | N151: =IFERROR(SUMIF(Inputs!$J$142:$J$155,$B151,Inputs!U$142:U$155)*Inputs!$F$162*Inputs!U$25/INDEX(Inputs!$L$25:$S$25,MATCH(Inputs!$G$142,Years,0)),0) -> 0 | O151: 12.25393997
B152: =Inputs!$B$288 -> Project Delivery Management - Project Engineering | C152: =Inputs!$G$9 -> Real $2026 | D152: $Million | E152: =IFERROR(SUMIF(Inputs!$J$142:$J$155,$B152,Inputs!L$142:L$155)*Inputs!$F$162*Inputs!L$25/INDEX(Inputs!$L$25:$S$25,MATCH(Inputs!$G$142,Years,0)),0) -> 0 | F152: =IFERROR(SUMIF(Inputs!$J$142:$J$155,$B152,Inputs!M$142:M$155)*Inputs!$F$162*Inputs!M$25/INDEX(Inputs!$L$25:$S$25,MATCH(Inputs!$G$142,Years,0)),0) -> 0 | G152: =IFERROR(SUMIF(Inputs!$J$142:$J$155,$B152,Inputs!N$142:N$155)*Inputs!$F$162*Inputs!N$25/INDEX(Inputs!$L$25:$S$25,MATCH(Inputs!$G$142,Years,0)),0) -> 0 | H152: =IFERROR(SUMIF(Inputs!$J$142:$J$155,$B152,Inputs!O$142:O$155)*Inputs!$F$162*Inputs!O$25/INDEX(Inputs!$L$25:$S$25,MATCH(Inputs!$G$142,Years,0)),0) -> 0 | I152: =IFERROR(SUMIF(Inputs!$J$142:$J$155,$B152,Inputs!P$142:P$155)*Inputs!$F$162*Inputs!P$25/INDEX(Inputs!$L$25:$S$25,MATCH(Inputs!$G$142,Years,0)),0) -> 0.6124570392 | J152: =IFERROR(SUMIF(Inputs!$J$142:$J$155,$B152,Inputs!Q$142:Q$155)*Inputs!$F$162*Inputs!Q$25/INDEX(Inputs!$L$25:$S$25,MATCH(Inputs!$G$142,Years,0)),0) -> 0.5457449803 | K152: =IFERROR(SUMIF(Inputs!$J$142:$J$155,$B152,Inputs!R$142:R$155)*Inputs!$F$162*Inputs!R$25/INDEX(Inputs!$L$25:$S$25,MATCH(Inputs!$G$142,Years,0)),0) -> 0.3609628671 | L152: =IFERROR(SUMIF(Inputs!$J$142:$J$155,$B152,Inputs!S$142:S$155)*Inputs!$F$162*Inputs!S$25/INDEX(Inputs!$L$25:$S$25,MATCH(Inputs!$G$142,Years,0)),0) -> 0.1433171699 | M152: =IFERROR(SUMIF(Inputs!$J$142:$J$155,$B152,Inputs!T$142:T$155)*Inputs!$F$162*Inputs!T$25/INDEX(Inputs!$L$25:$S$25,MATCH(Inputs!$G$142,Years,0)),0) -> 0 | N152: =IFERROR(SUMIF(Inputs!$J$142:$J$155,$B152,Inputs!U$142:U$155)*Inputs!$F$162*Inputs!U$25/INDEX(Inputs!$L$25:$S$25,MATCH(Inputs!$G$142,Years,0)),0) -> 0 | O152: 1.662482057
B153: =Inputs!$B$289 -> Project Delivery Management - Project Management | C153: =Inputs!$G$9 -> Real $2026 | D153: $Million | E153: =IFERROR(SUMIF(Inputs!$J$142:$J$155,$B153,Inputs!L$142:L$155)*Inputs!$F$162*Inputs!L$25/INDEX(Inputs!$L$25:$S$25,MATCH(Inputs!$G$142,Years,0)),0) -> 0 | F153: =IFERROR(SUMIF(Inputs!$J$142:$J$155,$B153,Inputs!M$142:M$155)*Inputs!$F$162*Inputs!M$25/INDEX(Inputs!$L$25:$S$25,MATCH(Inputs!$G$142,Years,0)),0) -> 0 | G153: =IFERROR(SUMIF(Inputs!$J$142:$J$155,$B153,Inputs!N$142:N$155)*Inputs!$F$162*Inputs!N$25/INDEX(Inputs!$L$25:$S$25,MATCH(Inputs!$G$142,Years,0)),0) -> 0 | H153: =IFERROR(SUMIF(Inputs!$J$142:$J$155,$B153,Inputs!O$142:O$155)*Inputs!$F$162*Inputs!O$25/INDEX(Inputs!$L$25:$S$25,MATCH(Inputs!$G$142,Years,0)),0) -> 0 | I153: =IFERROR(SUMIF(Inputs!$J$142:$J$155,$B153,Inputs!P$142:P$155)*Inputs!$F$162*Inputs!P$25/INDEX(Inputs!$L$25:$S$25,MATCH(Inputs!$G$142,Years,0)),0) -> 4.44680366 | J153: =IFERROR(SUMIF(Inputs!$J$142:$J$155,$B153,Inputs!Q$142:Q$155)*Inputs!$F$162*Inputs!Q$25/INDEX(Inputs!$L$25:$S$25,MATCH(Inputs!$G$142,Years,0)),0) -> 6.641256105 | K153: =IFERROR(SUMIF(Inputs!$J$142:$J$155,$B153,Inputs!R$142:R$155)*Inputs!$F$162*Inputs!R$25/INDEX(Inputs!$L$25:$S$25,MATCH(Inputs!$G$142,Years,0)),0) -> 6.718157872 | L153: =IFERROR(SUMIF(Inputs!$J$142:$J$155,$B153,Inputs!S$142:S$155)*Inputs!$F$162*Inputs!S$25/INDEX(Inputs!$L$25:$S$25,MATCH(Inputs!$G$142,Years,0)),0) -> 2.657658461 | M153: =IFERROR(SUMIF(Inputs!$J$142:$J$155,$B153,Inputs!T$142:T$155)*Inputs!$F$162*Inputs!T$25/INDEX(Inputs!$L$25:$S$25,MATCH(Inputs!$G$142,Years,0)),0) -> 0 | N153: =IFERROR(SUMIF(Inputs!$J$142:$J$155,$B153,Inputs!U$142:U$155)*Inputs!$F$162*Inputs!U$25/INDEX(Inputs!$L$25:$S$25,MATCH(Inputs!$G$142,Years,0)),0) -> 0 | O153: =SUM(E153:N153) -> 20.4638761
B154: =Inputs!$B$290 -> Project Development | C154: =Inputs!$G$9 -> Real $2026 | D154: $Million | E154: =IFERROR(SUMIF(Inputs!$J$142:$J$155,$B154,Inputs!L$142:L$155)*Inputs!$F$162*Inputs!L$25/INDEX(Inputs!$L$25:$S$25,MATCH(Inputs!$G$142,Years,0)),0) -> 0 | F154: =IFERROR(SUMIF(Inputs!$J$142:$J$155,$B154,Inputs!M$142:M$155)*Inputs!$F$162*Inputs!M$25/INDEX(Inputs!$L$25:$S$25,MATCH(Inputs!$G$142,Years,0)),0) -> 0 | G154: =IFERROR(SUMIF(Inputs!$J$142:$J$155,$B154,Inputs!N$142:N$155)*Inputs!$F$162*Inputs!N$25/INDEX(Inputs!$L$25:$S$25,MATCH(Inputs!$G$142,Years,0)),0) -> 0 | H154: =IFERROR(SUMIF(Inputs!$J$142:$J$155,$B154,Inputs!O$142:O$155)*Inputs!$F$162*Inputs!O$25/INDEX(Inputs!$L$25:$S$25,MATCH(Inputs!$G$142,Years,0)),0) -> 0 | I154: =IFERROR(SUMIF(Inputs!$J$142:$J$155,$B154,Inputs!P$142:P$155)*Inputs!$F$162*Inputs!P$25/INDEX(Inputs!$L$25:$S$25,MATCH(Inputs!$G$142,Years,0)),0) -> 2.701894075 | J154: =IFERROR(SUMIF(Inputs!$J$142:$J$155,$B154,Inputs!Q$142:Q$155)*Inputs!$F$162*Inputs!Q$25/INDEX(Inputs!$L$25:$S$25,MATCH(Inputs!$G$142,Years,0)),0) -> 2.452830212 | K154: =IFERROR(SUMIF(Inputs!$J$142:$J$155,$B154,Inputs!R$142:R$155)*Inputs!$F$162*Inputs!R$25/INDEX(Inputs!$L$25:$S$25,MATCH(Inputs!$G$142,Years,0)),0) -> 0.6777848039 | L154: =IFERROR(SUMIF(Inputs!$J$142:$J$155,$B154,Inputs!S$142:S$155)*Inputs!$F$162*Inputs!S$25/INDEX(Inputs!$L$25:$S$25,MATCH(Inputs!$G$142,Years,0)),0) -> 0.07182712653 | M154: =IFERROR(SUMIF(Inputs!$J$142:$J$155,$B154,Inputs!T$142:T$155)*Inputs!$F$162*Inputs!T$25/INDEX(Inputs!$L$25:$S$25,MATCH(Inputs!$G$142,Years,0)),0) -> 0 | N154: =IFERROR(SUMIF(Inputs!$J$142:$J$155,$B154,Inputs!U$142:U$155)*Inputs!$F$162*Inputs!U$25/INDEX(Inputs!$L$25:$S$25,MATCH(Inputs!$G$142,Years,0)),0) -> 0 | O154: =SUM(E154:N154) -> 5.904336217
B155: =Inputs!$B$291 -> Regulatory Approvals | C155: =Inputs!$G$9 -> Real $2026 | D155: $Million | E155: =IFERROR(SUMIF(Inputs!$J$142:$J$155,$B155,Inputs!L$142:L$155)*Inputs!$F$162*Inputs!L$25/INDEX(Inputs!$L$25:$S$25,MATCH(Inputs!$G$142,Years,0)),0) -> 0 | F155: =IFERROR(SUMIF(Inputs!$J$142:$J$155,$B155,Inputs!M$142:M$155)*Inputs!$F$162*Inputs!M$25/INDEX(Inputs!$L$25:$S$25,MATCH(Inputs!$G$142,Years,0)),0) -> 0 | G155: =IFERROR(SUMIF(Inputs!$J$142:$J$155,$B155,Inputs!N$142:N$155)*Inputs!$F$162*Inputs!N$25/INDEX(Inputs!$L$25:$S$25,MATCH(Inputs!$G$142,Years,0)),0) -> 0 | H155: =IFERROR(SUMIF(Inputs!$J$142:$J$155,$B155,Inputs!O$142:O$155)*Inputs!$F$162*Inputs!O$25/INDEX(Inputs!$L$25:$S$25,MATCH(Inputs!$G$142,Years,0)),0) -> 0 | I155: =IFERROR(SUMIF(Inputs!$J$142:$J$155,$B155,Inputs!P$142:P$155)*Inputs!$F$162*Inputs!P$25/INDEX(Inputs!$L$25:$S$25,MATCH(Inputs!$G$142,Years,0)),0) -> 0.4713127644 | J155: =IFERROR(SUMIF(Inputs!$J$142:$J$155,$B155,Inputs!Q$142:Q$155)*Inputs!$F$162*Inputs!Q$25/INDEX(Inputs!$L$25:$S$25,MATCH(Inputs!$G$142,Years,0)),0) -> 0.02576233841 | K155: =IFERROR(SUMIF(Inputs!$J$142:$J$155,$B155,Inputs!R$142:R$155)*Inputs!$F$162*Inputs!R$25/INDEX(Inputs!$L$25:$S$25,MATCH(Inputs!$G$142,Years,0)),0) -> 0 | L155: =IFERROR(SUMIF(Inputs!$J$142:$J$155,$B155,Inputs!S$142:S$155)*Inputs!$F$162*Inputs!S$25/INDEX(Inputs!$L$25:$S$25,MATCH(Inputs!$G$142,Years,0)),0) -> 0 | M155: =IFERROR(SUMIF(Inputs!$J$142:$J$155,$B155,Inputs!T$142:T$155)*Inputs!$F$162*Inputs!T$25/INDEX(Inputs!$L$25:$S$25,MATCH(Inputs!$G$142,Years,0)),0) -> 0 | N155: =IFERROR(SUMIF(Inputs!$J$142:$J$155,$B155,Inputs!U$142:U$155)*Inputs!$F$162*Inputs!U$25/INDEX(Inputs!$L$25:$S$25,MATCH(Inputs!$G$142,Years,0)),0) -> 0 | O155: =SUM(E155:N155) -> 0.4970751028
B156: =Inputs!$B$292 -> Transaction Procurement Support | C156: =Inputs!$G$9 -> Real $2026 | D156: $Million | E156: =IFERROR(SUMIF(Inputs!$J$142:$J$155,$B156,Inputs!L$142:L$155)*Inputs!$F$162*Inputs!L$25/INDEX(Inputs!$L$25:$S$25,MATCH(Inputs!$G$142,Years,0)),0) -> 0 | F156: =IFERROR(SUMIF(Inputs!$J$142:$J$155,$B156,Inputs!M$142:M$155)*Inputs!$F$162*Inputs!M$25/INDEX(Inputs!$L$25:$S$25,MATCH(Inputs!$G$142,Years,0)),0) -> 0 | G156: =IFERROR(SUMIF(Inputs!$J$142:$J$155,$B156,Inputs!N$142:N$155)*Inputs!$F$162*Inputs!N$25/INDEX(Inputs!$L$25:$S$25,MATCH(Inputs!$G$142,Years,0)),0) -> 0 | H156: =IFERROR(SUMIF(Inputs!$J$142:$J$155,$B156,Inputs!O$142:O$155)*Inputs!$F$162*Inputs!O$25/INDEX(Inputs!$L$25:$S$25,MATCH(Inputs!$G$142,Years,0)),0) -> 0 | I156: =IFERROR(SUMIF(Inputs!$J$142:$J$155,$B156,Inputs!P$142:P$155)*Inputs!$F$162*Inputs!P$25/INDEX(Inputs!$L$25:$S$25,MATCH(Inputs!$G$142,Years,0)),0) -> 0.3656448387 | J156: =IFERROR(SUMIF(Inputs!$J$142:$J$155,$B156,Inputs!Q$142:Q$155)*Inputs!$F$162*Inputs!Q$25/INDEX(Inputs!$L$25:$S$25,MATCH(Inputs!$G$142,Years,0)),0) -> 0.3012750997 | K156: =IFERROR(SUMIF(Inputs!$J$142:$J$155,$B156,Inputs!R$142:R$155)*Inputs!$F$162*Inputs!R$25/INDEX(Inputs!$L$25:$S$25,MATCH(Inputs!$G$142,Years,0)),0) -> 0.2906589944 | L156: =IFERROR(SUMIF(Inputs!$J$142:$J$155,$B156,Inputs!S$142:S$155)*Inputs!$F$162*Inputs!S$25/INDEX(Inputs!$L$25:$S$25,MATCH(Inputs!$G$142,Years,0)),0) -> 0 | M156: =IFERROR(SUMIF(Inputs!$J$142:$J$155,$B156,Inputs!T$142:T$155)*Inputs!$F$162*Inputs!T$25/INDEX(Inputs!$L$25:$S$25,MATCH(Inputs!$G$142,Years,0)),0) -> 0 | N156: =IFERROR(SUMIF(Inputs!$J$142:$J$155,$B156,Inputs!U$142:U$155)*Inputs!$F$162*Inputs!U$25/INDEX(Inputs!$L$25:$S$25,MATCH(Inputs!$G$142,Years,0)),0) -> 0 | O156: =SUM(E156:N156) -> 0.9575789328
B157: =Inputs!$B$293 -> Indirect - Proportion of labour and labour-related costs | C157: =Inputs!$G$9 -> Real $2026 | D157: $Million | E157: =IFERROR(SUMIF(Inputs!$J$142:$J$155,$B157,Inputs!L$142:L$155)*Inputs!$F$162*Inputs!L$25/INDEX(Inputs!$L$25:$S$25,MATCH(Inputs!$G$142,Years,0)),0) -> 0 | F157: =IFERROR(SUMIF(Inputs!$J$142:$J$155,$B157,Inputs!M$142:M$155)*Inputs!$F$162*Inputs!M$25/INDEX(Inputs!$L$25:$S$25,MATCH(Inputs!$G$142,Years,0)),0) -> 0 | G157: =IFERROR(SUMIF(Inputs!$J$142:$J$155,$B157,Inputs!N$142:N$155)*Inputs!$F$162*Inputs!N$25/INDEX(Inputs!$L$25:$S$25,MATCH(Inputs!$G$142,Years,0)),0) -> 0 | H157: =IFERROR(SUMIF(Inputs!$J$142:$J$155,$B157,Inputs!O$142:O$155)*Inputs!$F$162*Inputs!O$25/INDEX(Inputs!$L$25:$S$25,MATCH(Inputs!$G$142,Years,0)),0) -> 0 | I157: =IFERROR(SUMIF(Inputs!$J$142:$J$155,$B157,Inputs!P$142:P$155)*Inputs!$F$162*Inputs!P$25/INDEX(Inputs!$L$25:$S$25,MATCH(Inputs!$G$142,Years,0)),0) -> 0 | J157: =IFERROR(SUMIF(Inputs!$J$142:$J$155,$B157,Inputs!Q$142:Q$155)*Inputs!$F$162*Inputs!Q$25/INDEX(Inputs!$L$25:$S$25,MATCH(Inputs!$G$142,Years,0)),0) -> 0 | K157: =IFERROR(SUMIF(Inputs!$J$142:$J$155,$B157,Inputs!R$142:R$155)*Inputs!$F$162*Inputs!R$25/INDEX(Inputs!$L$25:$S$25,MATCH(Inputs!$G$142,Years,0)),0) -> 0 | L157: =IFERROR(SUMIF(Inputs!$J$142:$J$155,$B157,Inputs!S$142:S$155)*Inputs!$F$162*Inputs!S$25/INDEX(Inputs!$L$25:$S$25,MATCH(Inputs!$G$142,Years,0)),0) -> 0 | M157: =IFERROR(SUMIF(Inputs!$J$142:$J$155,$B157,Inputs!T$142:T$155)*Inputs!$F$162*Inputs!T$25/INDEX(Inputs!$L$25:$S$25,MATCH(Inputs!$G$142,Years,0)),0) -> 0 | N157: =IFERROR(SUMIF(Inputs!$J$142:$J$155,$B157,Inputs!U$142:U$155)*Inputs!$F$162*Inputs!U$25/INDEX(Inputs!$L$25:$S$25,MATCH(Inputs!$G$142,Years,0)),0) -> 0 | O157: 0
B158: Sub-Total | C158: =Inputs!$G$9 -> Real $2026 | D158: $Million | E158: =SUM(E144:E157) -> 0 | F158: =SUM(F144:F157) -> 0 | G158: =SUM(G144:G157) -> 0 | H158: 0 | I158: 22.39352742 | J158: 39.0326998 | K158: 36.81097303 | L158: 9.959993984 | M158: 0 | N158: 0 | O158: 108.1971942
B160: Direct Labour Costs - Total
B161: =Inputs!$B$280 -> Community and Stakeholder Engagement | C161: =Inputs!$G$9 -> Real $2026 | D161: $Million | E161: =E127+E144 -> 0 | F161: =F127+F144 -> 0 | G161: 0 | H161: 0.05180646981 | I161: 0.07606089208 | J161: 0.02834962923 | K161: 0 | L161: 0 | M161: 0 | N161: 0 | O161: =SUM(E161:N161) -> 0.1562169911
B162: =Inputs!$B$281 -> Fleet | C162: =Inputs!$G$9 -> Real $2026 | D162: $Million | E162: =E128+E145 -> 0 | F162: 0 | G162: 0 | H162: 0 | I162: 0 | J162: 0 | K162: 0 | L162: 0 | M162: 0 | N162: 0 | O162: 0
B163: =Inputs!$B$282 -> Land and Environment | C163: =Inputs!$G$9 -> Real $2026 | D163: $Million | E163: =E129+E146 -> 0 | F163: 0 | G163: 0.01528897241 | H163: 0.4183264681 | I163: 0.8074395243 | J163: 1.184933381 | K163: 1.199430851 | L163: 0.1164337441 | M163: 0 | N163: 0 | O163: 3.741852941
B164: =Inputs!$B$283 -> Other Support & Corporate Roles | C164: =Inputs!$G$9 -> Real $2026 | D164: $Million | E164: =E130+E147 -> 0 | F164: 0 | G164: 0.03566401393 | H164: 0.2589299228 | I164: 3.887394709 | J164: 5.008385338 | K164: 4.648495738 | L164: 2.276309891 | M164: 0 | N164: 0 | O164: 16.11517961
B165: =Inputs!$B$284 -> Project Delivery Management - Commercial Management | C165: =Inputs!$G$9 -> Real $2026 | D165: $Million | E165: =E131+E148 -> 0 | F165: 0 | G165: 0 | H165: 0.0001336030475 | I165: 1.501363066 | J165: 2.194682722 | K165: 2.223338776 | L165: 0.6638109269 | M165: 0 | N165: 0 | O165: 6.583329094
B166: =Inputs!$B$285 -> Project Delivery Management - Commissioning | C166: =Inputs!$G$9 -> Real $2026 | D166: $Million | E166: =E132+E149 -> 0 | F166: 0 | G166: 0 | H166: 0 | I166: 1.451715725 | J166: 7.573876302 | K166: 7.567513589 | L166: 1.090817435 | M166: 0 | N166: 0 | O166: 17.68392305
B167: =Inputs!$B$286 -> Project Delivery Management - Construction Management | C167: =Inputs!$G$9 -> Real $2026 | D167: $Million | E167: =E133+E150 -> 0 | F167: 0 | G167: 0.001718025235 | H167: 0.06844793695 | I167: 3.599197717 | J167: 9.030612827 | K167: 9.049530456 | L167: 1.600068282 | M167: 0 | N167: 0 | O167: 23.34957524
B168: =Inputs!$B$287 -> Project Delivery Management - Project Controls | C168: =Inputs!$G$9 -> Real $2026 | D168: $Million | E168: =E134+E151 -> 0 | F168: 0 | G168: 0 | H168: 0.001961583528 | I168: 3.030997504 | J168: 4.044990863 | K168: 4.075099083 | L168: 1.339750946 | M168: 0 | N168: 0 | O168: 12.49279998
B169: =Inputs!$B$288 -> Project Delivery Management - Project Engineering | C169: =Inputs!$G$9 -> Real $2026 | D169: $Million | E169: =E135+E152 -> 0 | F169: 0 | G169: 0 | H169: 0 | I169: 0.6124570392 | J169: 0.5457449803 | K169: 0.3609628671 | L169: 0.1433171699 | M169: 0 | N169: 0 | O169: 1.662482057
B170: =Inputs!$B$289 -> Project Delivery Management - Project Management | C170: =Inputs!$G$9 -> Real $2026 | D170: $Million | E170: =E136+E153 -> 0 | F170: 0 | G170: 0.1416467608 | H170: 1.390522984 | I170: 6.409965313 | J170: 6.641256105 | K170: 6.718157872 | L170: 2.657658461 | M170: 0 | N170: 0 | O170: =SUM(E170:N170) -> 23.9592075
B171: =Inputs!$B$290 -> Project Development | C171: =Inputs!$G$9 -> Real $2026 | D171: $Million | E171: =E137+E154 -> 0 | F171: 1.464183764 | G171: 2.466175416 | H171: 5.164312515 | I171: 3.228664243 | J171: 2.452830212 | K171: 0.6777848039 | L171: 0.07182712653 | M171: 0 | N171: 0 | O171: =SUM(E171:N171) -> 15.52577808
B172: =Inputs!$B$291 -> Regulatory Approvals | C172: =Inputs!$G$9 -> Real $2026 | D172: $Million | E172: =E138+E155 -> 0 | F172: 0 | G172: 0.01340441924 | H172: 0.1765429962 | I172: 0.6337054448 | J172: 0.02576233841 | K172: 0 | L172: 0 | M172: 0 | N172: 0 | O172: =SUM(E172:N172) -> 0.8494151986
B173: =Inputs!$B$292 -> Transaction Procurement Support | C173: =Inputs!$G$9 -> Real $2026 | D173: $Million | E173: =E139+E156 -> 0 | F173: 0 | G173: 0.01826293017 | H173: 0.2711983005 | I173: 0.5882522351 | J173: 0.3012750997 | K173: 0.2906589944 | L173: 0 | M173: 0 | N173: 0 | O173: =SUM(E173:N173) -> 1.46964756
B174: =Inputs!$B$293 -> Indirect - Proportion of labour and labour-related costs | C174: =Inputs!$G$9 -> Real $2026 | D174: $Million | E174: =E140+E157 -> 0 | F174: 0 | G174: 0 | H174: 0 | I174: 0 | J174: 0 | K174: 0 | L174: 0 | M174: 0 | N174: 0 | O174: 0
B175: Sub-Total | C175: =Inputs!$G$9 -> Real $2026 | D175: $Million | E175: =SUM(E161:E174) -> 0 | F175: =SUM(F161:F174) -> 1.464183764 | G175: =SUM(G161:G174) -> 2.692160537 | H175: 7.80218278 | I175: 25.82721341 | J175: 39.0326998 | K175: 36.81097303 | L175: 9.959993984 | M175: 0 | N175: 0 | O175: 123.5894073
B177: Indirect Costs - Actual
B178: =Inputs!$B$280 -> Community and Stakeholder Engagement | C178: =Inputs!$G$9 -> Real $2026 | D178: $Million | E178: =IFERROR( SUMIF(Inputs!$J$171:$J$184,$B178,Inputs!L$171:L$184),0) -> 0 | F178: =IFERROR( SUMIF(Inputs!$J$171:$J$184,$B178,Inputs!M$171:M$184),0) -> 0 | G178: =IFERROR( SUMIF(Inputs!$J$171:$J$184,$B178,Inputs!N$171:N$184),0) -> 0 | H178: =IFERROR( SUMIF(Inputs!$J$171:$J$184,$B178,Inputs!O$171:O$184),0) -> 7.894778144e-05 | I178: =IFERROR( SUMIF(Inputs!$J$171:$J$184,$B178,Inputs!P$171:P$184),0) -> 0 | J178: =IFERROR( SUMIF(Inputs!$J$171:$J$184,$B178,Inputs!Q$171:Q$184),0) -> 0 | K178: =IFERROR( SUMIF(Inputs!$J$171:$J$184,$B178,Inputs!R$171:R$184),0) -> 0 | L178: =IFERROR( SUMIF(Inputs!$J$171:$J$184,$B178,Inputs!S$171:S$184),0) -> 0 | M178: =IFERROR( SUMIF(Inputs!$J$171:$J$184,$B178,Inputs!T$171:T$184),0) -> 0 | N178: =IFERROR( SUMIF(Inputs!$J$171:$J$184,$B178,Inputs!U$171:U$184),0) -> 0 | O178: =SUM(E178:N178) -> 7.894778144e-05
B179: =Inputs!$B$281 -> Fleet | C179: =Inputs!$G$9 -> Real $2026 | D179: $Million | E179: =IFERROR( SUMIF(Inputs!$J$171:$J$184,$B179,Inputs!L$171:L$184),0) -> 0 | F179: =IFERROR( SUMIF(Inputs!$J$171:$J$184,$B179,Inputs!M$171:M$184),0) -> 0 | G179: =IFERROR( SUMIF(Inputs!$J$171:$J$184,$B179,Inputs!N$171:N$184),0) -> 0 | H179: =IFERROR( SUMIF(Inputs!$J$171:$J$184,$B179,Inputs!O$171:O$184),0) -> 0 | I179: =IFERROR( SUMIF(Inputs!$J$171:$J$184,$B179,Inputs!P$171:P$184),0) -> 0 | J179: =IFERROR( SUMIF(Inputs!$J$171:$J$184,$B179,Inputs!Q$171:Q$184),0) -> 0 | K179: =IFERROR( SUMIF(Inputs!$J$171:$J$184,$B179,Inputs!R$171:R$184),0) -> 0 | L179: =IFERROR( SUMIF(Inputs!$J$171:$J$184,$B179,Inputs!S$171:S$184),0) -> 0 | M179: =IFERROR( SUMIF(Inputs!$J$171:$J$184,$B179,Inputs!T$171:T$184),0) -> 0 | N179: =IFERROR( SUMIF(Inputs!$J$171:$J$184,$B179,Inputs!U$171:U$184),0) -> 0 | O179: 0
B180: =Inputs!$B$282 -> Land and Environment | C180: =Inputs!$G$9 -> Real $2026 | D180: $Million | E180: =IFERROR( SUMIF(Inputs!$J$171:$J$184,$B180,Inputs!L$171:L$184),0) -> 0 | F180: =IFERROR( SUMIF(Inputs!$J$171:$J$184,$B180,Inputs!M$171:M$184),0) -> 0 | G180: =IFERROR( SUMIF(Inputs!$J$171:$J$184,$B180,Inputs!N$171:N$184),0) -> 0 | H180: =IFERROR( SUMIF(Inputs!$J$171:$J$184,$B180,Inputs!O$171:O$184),0) -> 0.3151440759 | I180: =IFERROR( SUMIF(Inputs!$J$171:$J$184,$B180,Inputs!P$171:P$184),0) -> 0.1683748918 | J180: =IFERROR( SUMIF(Inputs!$J$171:$J$184,$B180,Inputs!Q$171:Q$184),0) -> 0 | K180: =IFERROR( SUMIF(Inputs!$J$171:$J$184,$B180,Inputs!R$171:R$184),0) -> 0 | L180: =IFERROR( SUMIF(Inputs!$J$171:$J$184,$B180,Inputs!S$171:S$184),0) -> 0 | M180: =IFERROR( SUMIF(Inputs!$J$171:$J$184,$B180,Inputs!T$171:T$184),0) -> 0 | N180: =IFERROR( SUMIF(Inputs!$J$171:$J$184,$B180,Inputs!U$171:U$184),0) -> 0 | O180: 0.4835189677
B181: =Inputs!$B$283 -> Other Support & Corporate Roles | C181: =Inputs!$G$9 -> Real $2026 | D181: $Million | E181: =IFERROR( SUMIF(Inputs!$J$171:$J$184,$B181,Inputs!L$171:L$184),0) -> 0 | F181: =IFERROR( SUMIF(Inputs!$J$171:$J$184,$B181,Inputs!M$171:M$184),0) -> 0 | G181: =IFERROR( SUMIF(Inputs!$J$171:$J$184,$B181,Inputs!N$171:N$184),0) -> 0.0379355885 | H181: =IFERROR( SUMIF(Inputs!$J$171:$J$184,$B181,Inputs!O$171:O$184),0) -> 1.513228313 | I181: =IFERROR( SUMIF(Inputs!$J$171:$J$184,$B181,Inputs!P$171:P$184),0) -> 0.1471547871 | J181: =IFERROR( SUMIF(Inputs!$J$171:$J$184,$B181,Inputs!Q$171:Q$184),0) -> 0 | K181: =IFERROR( SUMIF(Inputs!$J$171:$J$184,$B181,Inputs!R$171:R$184),0) -> 0 | L181: =IFERROR( SUMIF(Inputs!$J$171:$J$184,$B181,Inputs!S$171:S$184),0) -> 0 | M181: =IFERROR( SUMIF(Inputs!$J$171:$J$184,$B181,Inputs!T$171:T$184),0) -> 0 | N181: =IFERROR( SUMIF(Inputs!$J$171:$J$184,$B181,Inputs!U$171:U$184),0) -> 0 | O181: 1.698318688
B182: =Inputs!$B$284 -> Project Delivery Management - Commercial Management | C182: =Inputs!$G$9 -> Real $2026 | D182: $Million | E182: =IFERROR( SUMIF(Inputs!$J$171:$J$184,$B182,Inputs!L$171:L$184),0) -> 0 | F182: =IFERROR( SUMIF(Inputs!$J$171:$J$184,$B182,Inputs!M$171:M$184),0) -> 0 | G182: =IFERROR( SUMIF(Inputs!$J$171:$J$184,$B182,Inputs!N$171:N$184),0) -> 0 | H182: =IFERROR( SUMIF(Inputs!$J$171:$J$184,$B182,Inputs!O$171:O$184),0) -> 0.117858747 | I182: =IFERROR( SUMIF(Inputs!$J$171:$J$184,$B182,Inputs!P$171:P$184),0) -> 0 | J182: =IFERROR( SUMIF(Inputs!$J$171:$J$184,$B182,Inputs!Q$171:Q$184),0) -> 0 | K182: =IFERROR( SUMIF(Inputs!$J$171:$J$184,$B182,Inputs!R$171:R$184),0) -> 0 | L182: =IFERROR( SUMIF(Inputs!$J$171:$J$184,$B182,Inputs!S$171:S$184),0) -> 0 | M182: =IFERROR( SUMIF(Inputs!$J$171:$J$184,$B182,Inputs!T$171:T$184),0) -> 0 | N182: =IFERROR( SUMIF(Inputs!$J$171:$J$184,$B182,Inputs!U$171:U$184),0) -> 0 | O182: 0.117858747
B183: =Inputs!$B$285 -> Project Delivery Management - Commissioning | C183: =Inputs!$G$9 -> Real $2026 | D183: $Million | E183: =IFERROR( SUMIF(Inputs!$J$171:$J$184,$B183,Inputs!L$171:L$184),0) -> 0 | F183: =IFERROR( SUMIF(Inputs!$J$171:$J$184,$B183,Inputs!M$171:M$184),0) -> 0 | G183: =IFERROR( SUMIF(Inputs!$J$171:$J$184,$B183,Inputs!N$171:N$184),0) -> 0 | H183: =IFERROR( SUMIF(Inputs!$J$171:$J$184,$B183,Inputs!O$171:O$184),0) -> 0 | I183: =IFERROR( SUMIF(Inputs!$J$171:$J$184,$B183,Inputs!P$171:P$184),0) -> 0 | J183: =IFERROR( SUMIF(Inputs!$J$171:$J$184,$B183,Inputs!Q$171:Q$184),0) -> 0 | K183: =IFERROR( SUMIF(Inputs!$J$171:$J$184,$B183,Inputs!R$171:R$184),0) -> 0 | L183: =IFERROR( SUMIF(Inputs!$J$171:$J$184,$B183,Inputs!S$171:S$184),0) -> 0 | M183: =IFERROR( SUMIF(Inputs!$J$171:$J$184,$B183,Inputs!T$171:T$184),0) -> 0 | N183: =IFERROR( SUMIF(Inputs!$J$171:$J$184,$B183,Inputs!U$171:U$184),0) -> 0 | O183: 0
B184: =Inputs!$B$286 -> Project Delivery Management - Construction Management | C184: =Inputs!$G$9 -> Real $2026 | D184: $Million | E184: =IFERROR( SUMIF(Inputs!$J$171:$J$184,$B184,Inputs!L$171:L$184),0) -> 0 | F184: =IFERROR( SUMIF(Inputs!$J$171:$J$184,$B184,Inputs!M$171:M$184),0) -> 0 | G184: =IFERROR( SUMIF(Inputs!$J$171:$J$184,$B184,Inputs!N$171:N$184),0) -> 0 | H184: =IFERROR( SUMIF(Inputs!$J$171:$J$184,$B184,Inputs!O$171:O$184),0) -> 0.000328796518 | I184: =IFERROR( SUMIF(Inputs!$J$171:$J$184,$B184,Inputs!P$171:P$184),0) -> 0.01376401301 | J184: =IFERROR( SUMIF(Inputs!$J$171:$J$184,$B184,Inputs!Q$171:Q$184),0) -> 0 | K184: =IFERROR( SUMIF(Inputs!$J$171:$J$184,$B184,Inputs!R$171:R$184),0) -> 0 | L184: =IFERROR( SUMIF(Inputs!$J$171:$J$184,$B184,Inputs!S$171:S$184),0) -> 0 | M184: =IFERROR( SUMIF(Inputs!$J$171:$J$184,$B184,Inputs!T$171:T$184),0) -> 0 | N184: =IFERROR( SUMIF(Inputs!$J$171:$J$184,$B184,Inputs!U$171:U$184),0) -> 0 | O184: 0.01409280953
B185: =Inputs!$B$287 -> Project Delivery Management - Project Controls | C185: =Inputs!$G$9 -> Real $2026 | D185: $Million | E185: =IFERROR( SUMIF(Inputs!$J$171:$J$184,$B185,Inputs!L$171:L$184),0) -> 0 | F185: =IFERROR( SUMIF(Inputs!$J$171:$J$184,$B185,Inputs!M$171:M$184),0) -> 0 | G185: =IFERROR( SUMIF(Inputs!$J$171:$J$184,$B185,Inputs!N$171:N$184),0) -> 0 | H185: =IFERROR( SUMIF(Inputs!$J$171:$J$184,$B185,Inputs!O$171:O$184),0) -> 0 | I185: =IFERROR( SUMIF(Inputs!$J$171:$J$184,$B185,Inputs!P$171:P$184),0) -> 0.004628085643 | J185: =IFERROR( SUMIF(Inputs!$J$171:$J$184,$B185,Inputs!Q$171:Q$184),0) -> 0 | K185: =IFERROR( SUMIF(Inputs!$J$171:$J$184,$B185,Inputs!R$171:R$184),0) -> 0 | L185: =IFERROR( SUMIF(Inputs!$J$171:$J$184,$B185,Inputs!S$171:S$184),0) -> 0 | M185: =IFERROR( SUMIF(Inputs!$J$171:$J$184,$B185,Inputs!T$171:T$184),0) -> 0 | N185: =IFERROR( SUMIF(Inputs!$J$171:$J$184,$B185,Inputs!U$171:U$184),0) -> 0 | O185: 0.004628085643
B186: =Inputs!$B$288 -> Project Delivery Management - Project Engineering | C186: =Inputs!$G$9 -> Real $2026 | D186: $Million | E186: =IFERROR( SUMIF(Inputs!$J$171:$J$184,$B186,Inputs!L$171:L$184),0) -> 0 | F186: =IFERROR( SUMIF(Inputs!$J$171:$J$184,$B186,Inputs!M$171:M$184),0) -> 0 | G186: =IFERROR( SUMIF(Inputs!$J$171:$J$184,$B186,Inputs!N$171:N$184),0) -> 0 | H186: =IFERROR( SUMIF(Inputs!$J$171:$J$184,$B186,Inputs!O$171:O$184),0) -> 0 | I186: =IFERROR( SUMIF(Inputs!$J$171:$J$184,$B186,Inputs!P$171:P$184),0) -> 0 | J186: =IFERROR( SUMIF(Inputs!$J$171:$J$184,$B186,Inputs!Q$171:Q$184),0) -> 0 | K186: =IFERROR( SUMIF(Inputs!$J$171:$J$184,$B186,Inputs!R$171:R$184),0) -> 0 | L186: =IFERROR( SUMIF(Inputs!$J$171:$J$184,$B186,Inputs!S$171:S$184),0) -> 0 | M186: =IFERROR( SUMIF(Inputs!$J$171:$J$184,$B186,Inputs!T$171:T$184),0) -> 0 | N186: =IFERROR( SUMIF(Inputs!$J$171:$J$184,$B186,Inputs!U$171:U$184),0) -> 0 | O186: 0
B187: =Inputs!$B$289 -> Project Delivery Management - Project Management | C187: =Inputs!$G$9 -> Real $2026 | D187: $Million | E187: =IFERROR( SUMIF(Inputs!$J$171:$J$184,$B187,Inputs!L$171:L$184),0) -> 0 | F187: =IFERROR( SUMIF(Inputs!$J$171:$J$184,$B187,Inputs!M$171:M$184),0) -> 0 | G187: =IFERROR( SUMIF(Inputs!$J$171:$J$184,$B187,Inputs!N$171:N$184),0) -> 0.01814953164 | H187: =IFERROR( SUMIF(Inputs!$J$171:$J$184,$B187,Inputs!O$171:O$184),0) -> 0.09336309076 | I187: =IFERROR( SUMIF(Inputs!$J$171:$J$184,$B187,Inputs!P$171:P$184),0) -> 0.0587495145 | J187: =IFERROR( SUMIF(Inputs!$J$171:$J$184,$B187,Inputs!Q$171:Q$184),0) -> 0 | K187: =IFERROR( SUMIF(Inputs!$J$171:$J$184,$B187,Inputs!R$171:R$184),0) -> 0 | L187: =IFERROR( SUMIF(Inputs!$J$171:$J$184,$B187,Inputs!S$171:S$184),0) -> 0 | M187: =IFERROR( SUMIF(Inputs!$J$171:$J$184,$B187,Inputs!T$171:T$184),0) -> 0 | N187: =IFERROR( SUMIF(Inputs!$J$171:$J$184,$B187,Inputs!U$171:U$184),0) -> 0 | O187: =SUM(E187:N187) -> 0.1702621369
B188: =Inputs!$B$290 -> Project Development | C188: =Inputs!$G$9 -> Real $2026 | D188: $Million | E188: =IFERROR( SUMIF(Inputs!$J$171:$J$184,$B188,Inputs!L$171:L$184),0) -> 0 | F188: =IFERROR( SUMIF(Inputs!$J$171:$J$184,$B188,Inputs!M$171:M$184),0) -> 1.04792706 | G188: =IFERROR( SUMIF(Inputs!$J$171:$J$184,$B188,Inputs!N$171:N$184),0) -> 1.55712741 | H188: =IFERROR( SUMIF(Inputs!$J$171:$J$184,$B188,Inputs!O$171:O$184),0) -> 5.365265963 | I188: =IFERROR( SUMIF(Inputs!$J$171:$J$184,$B188,Inputs!P$171:P$184),0) -> 0.2924022621 | J188: =IFERROR( SUMIF(Inputs!$J$171:$J$184,$B188,Inputs!Q$171:Q$184),0) -> 0 | K188: =IFERROR( SUMIF(Inputs!$J$171:$J$184,$B188,Inputs!R$171:R$184),0) -> 0 | L188: =IFERROR( SUMIF(Inputs!$J$171:$J$184,$B188,Inputs!S$171:S$184),0) -> 0 | M188: =IFERROR( SUMIF(Inputs!$J$171:$J$184,$B188,Inputs!T$171:T$184),0) -> 0 | N188: =IFERROR( SUMIF(Inputs!$J$171:$J$184,$B188,Inputs!U$171:U$184),0) -> 0 | O188: =SUM(E188:N188) -> 8.262722695
B189: =Inputs!$B$291 -> Regulatory Approvals | C189: =Inputs!$G$9 -> Real $2026 | D189: $Million | E189: =IFERROR( SUMIF(Inputs!$J$171:$J$184,$B189,Inputs!L$171:L$184),0) -> 0 | F189: =IFERROR( SUMIF(Inputs!$J$171:$J$184,$B189,Inputs!M$171:M$184),0) -> 0 | G189: =IFERROR( SUMIF(Inputs!$J$171:$J$184,$B189,Inputs!N$171:N$184),0) -> 0.03490357077 | H189: =IFERROR( SUMIF(Inputs!$J$171:$J$184,$B189,Inputs!O$171:O$184),0) -> 0.127718581 | I189: =IFERROR( SUMIF(Inputs!$J$171:$J$184,$B189,Inputs!P$171:P$184),0) -> 0.5035010153 | J189: =IFERROR( SUMIF(Inputs!$J$171:$J$184,$B189,Inputs!Q$171:Q$184),0) -> 0 | K189: =IFERROR( SUMIF(Inputs!$J$171:$J$184,$B189,Inputs!R$171:R$184),0) -> 0 | L189: =IFERROR( SUMIF(Inputs!$J$171:$J$184,$B189,Inputs!S$171:S$184),0) -> 0 | M189: =IFERROR( SUMIF(Inputs!$J$171:$J$184,$B189,Inputs!T$171:T$184),0) -> 0 | N189: =IFERROR( SUMIF(Inputs!$J$171:$J$184,$B189,Inputs!U$171:U$184),0) -> 0 | O189: =SUM(E189:N189) -> 0.6661231671
B190: =Inputs!$B$292 -> Transaction Procurement Support | C190: =Inputs!$G$9 -> Real $2026 | D190: $Million | E190: =IFERROR( SUMIF(Inputs!$J$171:$J$184,$B190,Inputs!L$171:L$184),0) -> 0 | F190: =IFERROR( SUMIF(Inputs!$J$171:$J$184,$B190,Inputs!M$171:M$184),0) -> 0 | G190: =IFERROR( SUMIF(Inputs!$J$171:$J$184,$B190,Inputs!N$171:N$184),0) -> 0 | H190: =IFERROR( SUMIF(Inputs!$J$171:$J$184,$B190,Inputs!O$171:O$184),0) -> 1.653830639 | I190: =IFERROR( SUMIF(Inputs!$J$171:$J$184,$B190,Inputs!P$171:P$184),0) -> 0.6328345348 | J190: =IFERROR( SUMIF(Inputs!$J$171:$J$184,$B190,Inputs!Q$171:Q$184),0) -> 0 | K190: =IFERROR( SUMIF(Inputs!$J$171:$J$184,$B190,Inputs!R$171:R$184),0) -> 0 | L190: =IFERROR( SUMIF(Inputs!$J$171:$J$184,$B190,Inputs!S$171:S$184),0) -> 0 | M190: =IFERROR( SUMIF(Inputs!$J$171:$J$184,$B190,Inputs!T$171:T$184),0) -> 0 | N190: =IFERROR( SUMIF(Inputs!$J$171:$J$184,$B190,Inputs!U$171:U$184),0) -> 0 | O190: =SUM(E190:N190) -> 2.286665174
B191: =Inputs!$B$293 -> Indirect - Proportion of labour and labour-related costs | C191: =Inputs!$G$9 -> Real $2026 | D191: $Million | E191: =IFERROR(SUMIF(Inputs!$J$171:$J$184,$B191,Inputs!L$171:L$184),0)*IF(E4<Inputs!$G$142,1,Inputs!L$25/INDEX(Inputs!$L$25:$U$25,MATCH(Inputs!$G$142,Years,0))) -> 0 | F191: =IFERROR(SUMIF(Inputs!$J$171:$J$184,$B191,Inputs!M$171:M$184),0)*IF(F4<Inputs!$G$142,1,Inputs!M$25/INDEX(Inputs!$L$25:$U$25,MATCH(Inputs!$G$142,Years,0))) -> 0.6275073273 | G191: =IFERROR(SUMIF(Inputs!$J$171:$J$184,$B191,Inputs!N$171:N$184),0)*IF(G4<Inputs!$G$142,1,Inputs!N$25/INDEX(Inputs!$L$25:$U$25,MATCH(Inputs!$G$142,Years,0))) -> 1.153783087 | H191: =IFERROR(SUMIF(Inputs!$J$171:$J$184,$B191,Inputs!O$171:O$184),0)*IF(H4<Inputs!$G$142,1,Inputs!O$25/INDEX(Inputs!$L$25:$U$25,MATCH(Inputs!$G$142,Years,0))) -> 3.34379262 | I191: =IFERROR(SUMIF(Inputs!$J$171:$J$184,$B191,Inputs!P$171:P$184),0)*IF(I4<Inputs!$G$142,1,Inputs!P$25/INDEX(Inputs!$L$25:$U$25,MATCH(Inputs!$G$142,Years,0))) -> 1.471579711 | J191: =IFERROR(SUMIF(Inputs!$J$171:$J$184,$B191,Inputs!Q$171:Q$184),0)*IF(J4<Inputs!$G$142,1,Inputs!Q$25/INDEX(Inputs!$L$25:$U$25,MATCH(Inputs!$G$142,Years,0))) -> 0 | K191: =IFERROR(SUMIF(Inputs!$J$171:$J$184,$B191,Inputs!R$171:R$184),0)*IF(K4<Inputs!$G$142,1,Inputs!R$25/INDEX(Inputs!$L$25:$U$25,MATCH(Inputs!$G$142,Years,0))) -> 0 | L191: =IFERROR(SUMIF(Inputs!$J$171:$J$184,$B191,Inputs!S$171:S$184),0)*IF(L4<Inputs!$G$142,1,Inputs!S$25/INDEX(Inputs!$L$25:$U$25,MATCH(Inputs!$G$142,Years,0))) -> 0 | M191: =IFERROR(SUMIF(Inputs!$J$171:$J$184,$B191,Inputs!T$171:T$184),0)*IF(M4<Inputs!$G$142,1,Inputs!T$25/INDEX(Inputs!$L$25:$U$25,MATCH(Inputs!$G$142,Years,0))) -> 0 | N191: =IFERROR(SUMIF(Inputs!$J$171:$J$184,$B191,Inputs!U$171:U$184),0)*IF(N4<Inputs!$G$142,1,Inputs!U$25/INDEX(Inputs!$L$25:$U$25,MATCH(Inputs!$G$142,Years,0))) -> 0 | O191: 6.596662746 | Q191: ← Labour escalation is applied to the indirect portion of labour and labour-related costs
B192: Sub-Total | C192: =Inputs!$G$9 -> Real $2026 | D192: $Million | E192: =SUM(E178:E191) -> 0 | F192: =SUM(F178:F191) -> 1.675434388 | G192: =SUM(G178:G191) -> 2.801899188 | H192: 12.53060977 | I192: 3.292988815 | J192: 0 | K192: 0 | L192: 0 | M192: 0 | N192: 0 | O192: 20.30093216
B194: Indirect Costs - Forecast
B195: =Inputs!$B$280 -> Community and Stakeholder Engagement | C195: =Inputs!$G$9 -> Real $2026 | D195: $Million | E195: =IFERROR( SUMIF(Inputs!$J$186:$J$199,$B195,Inputs!L$186:L$199) *Inputs!$F$206,0) -> 0 | F195: =IFERROR( SUMIF(Inputs!$J$186:$J$199,$B195,Inputs!M$186:M$199) *Inputs!$F$206,0) -> 0 | G195: =IFERROR( SUMIF(Inputs!$J$186:$J$199,$B195,Inputs!N$186:N$199) *Inputs!$F$206,0) -> 0 | H195: =IFERROR( SUMIF(Inputs!$J$186:$J$199,$B195,Inputs!O$186:O$199) *Inputs!$F$206,0) -> 0 | I195: =IFERROR( SUMIF(Inputs!$J$186:$J$199,$B195,Inputs!P$186:P$199) *Inputs!$F$206,0) -> 0 | J195: =IFERROR( SUMIF(Inputs!$J$186:$J$199,$B195,Inputs!Q$186:Q$199) *Inputs!$F$206,0) -> 0 | K195: =IFERROR( SUMIF(Inputs!$J$186:$J$199,$B195,Inputs!R$186:R$199) *Inputs!$F$206,0) -> 0 | L195: =IFERROR( SUMIF(Inputs!$J$186:$J$199,$B195,Inputs!S$186:S$199) *Inputs!$F$206,0) -> 0 | M195: =IFERROR( SUMIF(Inputs!$J$186:$J$199,$B195,Inputs!T$186:T$199) *Inputs!$F$206,0) -> 0 | N195: =IFERROR( SUMIF(Inputs!$J$186:$J$199,$B195,Inputs!U$186:U$199) *Inputs!$F$206,0) -> 0 | O195: =SUM(E195:N195) -> 0
B196: =Inputs!$B$281 -> Fleet | C196: =Inputs!$G$9 -> Real $2026 | D196: $Million | E196: =IFERROR( SUMIF(Inputs!$J$186:$J$199,$B196,Inputs!L$186:L$199) *Inputs!$F$206,0) -> 0 | F196: =IFERROR( SUMIF(Inputs!$J$186:$J$199,$B196,Inputs!M$186:M$199) *Inputs!$F$206,0) -> 0 | G196: =IFERROR( SUMIF(Inputs!$J$186:$J$199,$B196,Inputs!N$186:N$199) *Inputs!$F$206,0) -> 0 | H196: =IFERROR( SUMIF(Inputs!$J$186:$J$199,$B196,Inputs!O$186:O$199) *Inputs!$F$206,0) -> 0 | I196: =IFERROR( SUMIF(Inputs!$J$186:$J$199,$B196,Inputs!P$186:P$199) *Inputs!$F$206,0) -> 0.00948328056 | J196: =IFERROR( SUMIF(Inputs!$J$186:$J$199,$B196,Inputs!Q$186:Q$199) *Inputs!$F$206,0) -> 0.04441536181 | K196: =IFERROR( SUMIF(Inputs!$J$186:$J$199,$B196,Inputs!R$186:R$199) *Inputs!$F$206,0) -> 0 | L196: =IFERROR( SUMIF(Inputs!$J$186:$J$199,$B196,Inputs!S$186:S$199) *Inputs!$F$206,0) -> 0 | M196: =IFERROR( SUMIF(Inputs!$J$186:$J$199,$B196,Inputs!T$186:T$199) *Inputs!$F$206,0) -> 0 | N196: =IFERROR( SUMIF(Inputs!$J$186:$J$199,$B196,Inputs!U$186:U$199) *Inputs!$F$206,0) -> 0 | O196: 0.05389864237
B197: =Inputs!$B$282 -> Land and Environment | C197: =Inputs!$G$9 -> Real $2026 | D197: $Million | E197: =IFERROR( SUMIF(Inputs!$J$186:$J$199,$B197,Inputs!L$186:L$199) *Inputs!$F$206,0) -> 0 | F197: =IFERROR( SUMIF(Inputs!$J$186:$J$199,$B197,Inputs!M$186:M$199) *Inputs!$F$206,0) -> 0 | G197: =IFERROR( SUMIF(Inputs!$J$186:$J$199,$B197,Inputs!N$186:N$199) *Inputs!$F$206,0) -> 0 | H197: =IFERROR( SUMIF(Inputs!$J$186:$J$199,$B197,Inputs!O$186:O$199) *Inputs!$F$206,0) -> 0 | I197: =IFERROR( SUMIF(Inputs!$J$186:$J$199,$B197,Inputs!P$186:P$199) *Inputs!$F$206,0) -> 0 | J197: =IFERROR( SUMIF(Inputs!$J$186:$J$199,$B197,Inputs!Q$186:Q$199) *Inputs!$F$206,0) -> 0 | K197: =IFERROR( SUMIF(Inputs!$J$186:$J$199,$B197,Inputs!R$186:R$199) *Inputs!$F$206,0) -> 0 | L197: =IFERROR( SUMIF(Inputs!$J$186:$J$199,$B197,Inputs!S$186:S$199) *Inputs!$F$206,0) -> 0 | M197: =IFERROR( SUMIF(Inputs!$J$186:$J$199,$B197,Inputs!T$186:T$199) *Inputs!$F$206,0) -> 0 | N197: =IFERROR( SUMIF(Inputs!$J$186:$J$199,$B197,Inputs!U$186:U$199) *Inputs!$F$206,0) -> 0 | O197: 0
B198: =Inputs!$B$283 -> Other Support & Corporate Roles | C198: =Inputs!$G$9 -> Real $2026 | D198: $Million | E198: =IFERROR( SUMIF(Inputs!$J$186:$J$199,$B198,Inputs!L$186:L$199) *Inputs!$F$206,0) -> 0 | F198: =IFERROR( SUMIF(Inputs!$J$186:$J$199,$B198,Inputs!M$186:M$199) *Inputs!$F$206,0) -> 0 | G198: =IFERROR( SUMIF(Inputs!$J$186:$J$199,$B198,Inputs!N$186:N$199) *Inputs!$F$206,0) -> 0 | H198: =IFERROR( SUMIF(Inputs!$J$186:$J$199,$B198,Inputs!O$186:O$199) *Inputs!$F$206,0) -> 0 | I198: =IFERROR( SUMIF(Inputs!$J$186:$J$199,$B198,Inputs!P$186:P$199) *Inputs!$F$206,0) -> 10.11542145 | J198: =IFERROR( SUMIF(Inputs!$J$186:$J$199,$B198,Inputs!Q$186:Q$199) *Inputs!$F$206,0) -> 4.916864243 | K198: =IFERROR( SUMIF(Inputs!$J$186:$J$199,$B198,Inputs!R$186:R$199) *Inputs!$F$206,0) -> 6.080736278 | L198: =IFERROR( SUMIF(Inputs!$J$186:$J$199,$B198,Inputs!S$186:S$199) *Inputs!$F$206,0) -> 2.394581352 | M198: =IFERROR( SUMIF(Inputs!$J$186:$J$199,$B198,Inputs!T$186:T$199) *Inputs!$F$206,0) -> 0 | N198: =IFERROR( SUMIF(Inputs!$J$186:$J$199,$B198,Inputs!U$186:U$199) *Inputs!$F$206,0) -> 0 | O198: 23.50760333
B199: =Inputs!$B$284 -> Project Delivery Management - Commercial Management | C199: =Inputs!$G$9 -> Real $2026 | D199: $Million | E199: =IFERROR( SUMIF(Inputs!$J$186:$J$199,$B199,Inputs!L$186:L$199) *Inputs!$F$206,0) -> 0 | F199: =IFERROR( SUMIF(Inputs!$J$186:$J$199,$B199,Inputs!M$186:M$199) *Inputs!$F$206,0) -> 0 | G199: =IFERROR( SUMIF(Inputs!$J$186:$J$199,$B199,Inputs!N$186:N$199) *Inputs!$F$206,0) -> 0 | H199: =IFERROR( SUMIF(Inputs!$J$186:$J$199,$B199,Inputs!O$186:O$199) *Inputs!$F$206,0) -> 0 | I199: =IFERROR( SUMIF(Inputs!$J$186:$J$199,$B199,Inputs!P$186:P$199) *Inputs!$F$206,0) -> 0 | J199: =IFERROR( SUMIF(Inputs!$J$186:$J$199,$B199,Inputs!Q$186:Q$199) *Inputs!$F$206,0) -> 0 | K199: =IFERROR( SUMIF(Inputs!$J$186:$J$199,$B199,Inputs!R$186:R$199) *Inputs!$F$206,0) -> 0 | L199: =IFERROR( SUMIF(Inputs!$J$186:$J$199,$B199,Inputs!S$186:S$199) *Inputs!$F$206,0) -> 0 | M199: =IFERROR( SUMIF(Inputs!$J$186:$J$199,$B199,Inputs!T$186:T$199) *Inputs!$F$206,0) -> 0 | N199: =IFERROR( SUMIF(Inputs!$J$186:$J$199,$B199,Inputs!U$186:U$199) *Inputs!$F$206,0) -> 0 | O199: 0
B200: =Inputs!$B$285 -> Project Delivery Management - Commissioning | C200: =Inputs!$G$9 -> Real $2026 | D200: $Million | E200: =IFERROR( SUMIF(Inputs!$J$186:$J$199,$B200,Inputs!L$186:L$199) *Inputs!$F$206,0) -> 0 | F200: =IFERROR( SUMIF(Inputs!$J$186:$J$199,$B200,Inputs!M$186:M$199) *Inputs!$F$206,0) -> 0 | G200: =IFERROR( SUMIF(Inputs!$J$186:$J$199,$B200,Inputs!N$186:N$199) *Inputs!$F$206,0) -> 0 | H200: =IFERROR( SUMIF(Inputs!$J$186:$J$199,$B200,Inputs!O$186:O$199) *Inputs!$F$206,0) -> 0 | I200: =IFERROR( SUMIF(Inputs!$J$186:$J$199,$B200,Inputs!P$186:P$199) *Inputs!$F$206,0) -> 0 | J200: =IFERROR( SUMIF(Inputs!$J$186:$J$199,$B200,Inputs!Q$186:Q$199) *Inputs!$F$206,0) -> 0 | K200: =IFERROR( SUMIF(Inputs!$J$186:$J$199,$B200,Inputs!R$186:R$199) *Inputs!$F$206,0) -> 0 | L200: =IFERROR( SUMIF(Inputs!$J$186:$J$199,$B200,Inputs!S$186:S$199) *Inputs!$F$206,0) -> 0 | M200: =IFERROR( SUMIF(Inputs!$J$186:$J$199,$B200,Inputs!T$186:T$199) *Inputs!$F$206,0) -> 0 | N200: =IFERROR( SUMIF(Inputs!$J$186:$J$199,$B200,Inputs!U$186:U$199) *Inputs!$F$206,0) -> 0 | O200: 0
B201: =Inputs!$B$286 -> Project Delivery Management - Construction Management | C201: =Inputs!$G$9 -> Real $2026 | D201: $Million | E201: =IFERROR( SUMIF(Inputs!$J$186:$J$199,$B201,Inputs!L$186:L$199) *Inputs!$F$206,0) -> 0 | F201: =IFERROR( SUMIF(Inputs!$J$186:$J$199,$B201,Inputs!M$186:M$199) *Inputs!$F$206,0) -> 0 | G201: =IFERROR( SUMIF(Inputs!$J$186:$J$199,$B201,Inputs!N$186:N$199) *Inputs!$F$206,0) -> 0 | H201: =IFERROR( SUMIF(Inputs!$J$186:$J$199,$B201,Inputs!O$186:O$199) *Inputs!$F$206,0) -> 0 | I201: =IFERROR( SUMIF(Inputs!$J$186:$J$199,$B201,Inputs!P$186:P$199) *Inputs!$F$206,0) -> 0 | J201: =IFERROR( SUMIF(Inputs!$J$186:$J$199,$B201,Inputs!Q$186:Q$199) *Inputs!$F$206,0) -> 0 | K201: =IFERROR( SUMIF(Inputs!$J$186:$J$199,$B201,Inputs!R$186:R$199) *Inputs!$F$206,0) -> 0 | L201: =IFERROR( SUMIF(Inputs!$J$186:$J$199,$B201,Inputs!S$186:S$199) *Inputs!$F$206,0) -> 0 | M201: =IFERROR( SUMIF(Inputs!$J$186:$J$199,$B201,Inputs!T$186:T$199) *Inputs!$F$206,0) -> 0 | N201: =IFERROR( SUMIF(Inputs!$J$186:$J$199,$B201,Inputs!U$186:U$199) *Inputs!$F$206,0) -> 0 | O201: 0
B202: =Inputs!$B$287 -> Project Delivery Management - Project Controls | C202: =Inputs!$G$9 -> Real $2026 | D202: $Million | E202: =IFERROR( SUMIF(Inputs!$J$186:$J$199,$B202,Inputs!L$186:L$199) *Inputs!$F$206,0) -> 0 | F202: =IFERROR( SUMIF(Inputs!$J$186:$J$199,$B202,Inputs!M$186:M$199) *Inputs!$F$206,0) -> 0 | G202: =IFERROR( SUMIF(Inputs!$J$186:$J$199,$B202,Inputs!N$186:N$199) *Inputs!$F$206,0) -> 0 | H202: =IFERROR( SUMIF(Inputs!$J$186:$J$199,$B202,Inputs!O$186:O$199) *Inputs!$F$206,0) -> 0 | I202: =IFERROR( SUMIF(Inputs!$J$186:$J$199,$B202,Inputs!P$186:P$199) *Inputs!$F$206,0) -> 0 | J202: =IFERROR( SUMIF(Inputs!$J$186:$J$199,$B202,Inputs!Q$186:Q$199) *Inputs!$F$206,0) -> 0 | K202: =IFERROR( SUMIF(Inputs!$J$186:$J$199,$B202,Inputs!R$186:R$199) *Inputs!$F$206,0) -> 0 | L202: =IFERROR( SUMIF(Inputs!$J$186:$J$199,$B202,Inputs!S$186:S$199) *Inputs!$F$206,0) -> 0 | M202: =IFERROR( SUMIF(Inputs!$J$186:$J$199,$B202,Inputs!T$186:T$199) *Inputs!$F$206,0) -> 0 | N202: =IFERROR( SUMIF(Inputs!$J$186:$J$199,$B202,Inputs!U$186:U$199) *Inputs!$F$206,0) -> 0 | O202: 0
B203: =Inputs!$B$288 -> Project Delivery Management - Project Engineering | C203: =Inputs!$G$9 -> Real $2026 | D203: $Million | E203: =IFERROR( SUMIF(Inputs!$J$186:$J$199,$B203,Inputs!L$186:L$199) *Inputs!$F$206,0) -> 0 | F203: =IFERROR( SUMIF(Inputs!$J$186:$J$199,$B203,Inputs!M$186:M$199) *Inputs!$F$206,0) -> 0 | G203: =IFERROR( SUMIF(Inputs!$J$186:$J$199,$B203,Inputs!N$186:N$199) *Inputs!$F$206,0) -> 0 | H203: =IFERROR( SUMIF(Inputs!$J$186:$J$199,$B203,Inputs!O$186:O$199) *Inputs!$F$206,0) -> 0 | I203: =IFERROR( SUMIF(Inputs!$J$186:$J$199,$B203,Inputs!P$186:P$199) *Inputs!$F$206,0) -> 0 | J203: =IFERROR( SUMIF(Inputs!$J$186:$J$199,$B203,Inputs!Q$186:Q$199) *Inputs!$F$206,0) -> 0 | K203: =IFERROR( SUMIF(Inputs!$J$186:$J$199,$B203,Inputs!R$186:R$199) *Inputs!$F$206,0) -> 0 | L203: =IFERROR( SUMIF(Inputs!$J$186:$J$199,$B203,Inputs!S$186:S$199) *Inputs!$F$206,0) -> 0 | M203: =IFERROR( SUMIF(Inputs!$J$186:$J$199,$B203,Inputs!T$186:T$199) *Inputs!$F$206,0) -> 0 | N203: =IFERROR( SUMIF(Inputs!$J$186:$J$199,$B203,Inputs!U$186:U$199) *Inputs!$F$206,0) -> 0 | O203: 0
B204: =Inputs!$B$289 -> Project Delivery Management - Project Management | C204: =Inputs!$G$9 -> Real $2026 | D204: $Million | E204: =IFERROR( SUMIF(Inputs!$J$186:$J$199,$B204,Inputs!L$186:L$199) *Inputs!$F$206,0) -> 0 | F204: =IFERROR( SUMIF(Inputs!$J$186:$J$199,$B204,Inputs!M$186:M$199) *Inputs!$F$206,0) -> 0 | G204: =IFERROR( SUMIF(Inputs!$J$186:$J$199,$B204,Inputs!N$186:N$199) *Inputs!$F$206,0) -> 0 | H204: =IFERROR( SUMIF(Inputs!$J$186:$J$199,$B204,Inputs!O$186:O$199) *Inputs!$F$206,0) -> 0 | I204: =IFERROR( SUMIF(Inputs!$J$186:$J$199,$B204,Inputs!P$186:P$199) *Inputs!$F$206,0) -> 0.269202803 | J204: =IFERROR( SUMIF(Inputs!$J$186:$J$199,$B204,Inputs!Q$186:Q$199) *Inputs!$F$206,0) -> 0.5211402452 | K204: =IFERROR( SUMIF(Inputs!$J$186:$J$199,$B204,Inputs!R$186:R$199) *Inputs!$F$206,0) -> 0.5076869428 | L204: =IFERROR( SUMIF(Inputs!$J$186:$J$199,$B204,Inputs!S$186:S$199) *Inputs!$F$206,0) -> 0.2060753913 | M204: =IFERROR( SUMIF(Inputs!$J$186:$J$199,$B204,Inputs!T$186:T$199) *Inputs!$F$206,0) -> 0 | N204: =IFERROR( SUMIF(Inputs!$J$186:$J$199,$B204,Inputs!U$186:U$199) *Inputs!$F$206,0) -> 0 | O204: =SUM(E204:N204) -> 1.504105382
B205: =Inputs!$B$290 -> Project Development | C205: =Inputs!$G$9 -> Real $2026 | D205: $Million | E205: =IFERROR( SUMIF(Inputs!$J$186:$J$199,$B205,Inputs!L$186:L$199) *Inputs!$F$206,0) -> 0 | F205: =IFERROR( SUMIF(Inputs!$J$186:$J$199,$B205,Inputs!M$186:M$199) *Inputs!$F$206,0) -> 0 | G205: =IFERROR( SUMIF(Inputs!$J$186:$J$199,$B205,Inputs!N$186:N$199) *Inputs!$F$206,0) -> 0 | H205: =IFERROR( SUMIF(Inputs!$J$186:$J$199,$B205,Inputs!O$186:O$199) *Inputs!$F$206,0) -> 0 | I205: =IFERROR( SUMIF(Inputs!$J$186:$J$199,$B205,Inputs!P$186:P$199) *Inputs!$F$206,0) -> 1.013604637 | J205: =IFERROR( SUMIF(Inputs!$J$186:$J$199,$B205,Inputs!Q$186:Q$199) *Inputs!$F$206,0) -> 0.3619240043 | K205: =IFERROR( SUMIF(Inputs!$J$186:$J$199,$B205,Inputs!R$186:R$199) *Inputs!$F$206,0) -> 0 | L205: =IFERROR( SUMIF(Inputs!$J$186:$J$199,$B205,Inputs!S$186:S$199) *Inputs!$F$206,0) -> 0 | M205: =IFERROR( SUMIF(Inputs!$J$186:$J$199,$B205,Inputs!T$186:T$199) *Inputs!$F$206,0) -> 0 | N205: =IFERROR( SUMIF(Inputs!$J$186:$J$199,$B205,Inputs!U$186:U$199) *Inputs!$F$206,0) -> 0 | O205: =SUM(E205:N205) -> 1.375528641
B206: =Inputs!$B$291 -> Regulatory Approvals | C206: =Inputs!$G$9 -> Real $2026 | D206: $Million | E206: =IFERROR( SUMIF(Inputs!$J$186:$J$199,$B206,Inputs!L$186:L$199) *Inputs!$F$206,0) -> 0 | F206: =IFERROR( SUMIF(Inputs!$J$186:$J$199,$B206,Inputs!M$186:M$199) *Inputs!$F$206,0) -> 0 | G206: =IFERROR( SUMIF(Inputs!$J$186:$J$199,$B206,Inputs!N$186:N$199) *Inputs!$F$206,0) -> 0 | H206: =IFERROR( SUMIF(Inputs!$J$186:$J$199,$B206,Inputs!O$186:O$199) *Inputs!$F$206,0) -> 0 | I206: =IFERROR( SUMIF(Inputs!$J$186:$J$199,$B206,Inputs!P$186:P$199) *Inputs!$F$206,0) -> 0.397685959 | J206: =IFERROR( SUMIF(Inputs!$J$186:$J$199,$B206,Inputs!Q$186:Q$199) *Inputs!$F$206,0) -> 0 | K206: =IFERROR( SUMIF(Inputs!$J$186:$J$199,$B206,Inputs!R$186:R$199) *Inputs!$F$206,0) -> 0 | L206: =IFERROR( SUMIF(Inputs!$J$186:$J$199,$B206,Inputs!S$186:S$199) *Inputs!$F$206,0) -> 0 | M206: =IFERROR( SUMIF(Inputs!$J$186:$J$199,$B206,Inputs!T$186:T$199) *Inputs!$F$206,0) -> 0 | N206: =IFERROR( SUMIF(Inputs!$J$186:$J$199,$B206,Inputs!U$186:U$199) *Inputs!$F$206,0) -> 0 | O206: =SUM(E206:N206) -> 0.397685959
B207: =Inputs!$B$292 -> Transaction Procurement Support | C207: =Inputs!$G$9 -> Real $2026 | D207: $Million | E207: =IFERROR( SUMIF(Inputs!$J$186:$J$199,$B207,Inputs!L$186:L$199) *Inputs!$F$206,0) -> 0 | F207: =IFERROR( SUMIF(Inputs!$J$186:$J$199,$B207,Inputs!M$186:M$199) *Inputs!$F$206,0) -> 0 | G207: =IFERROR( SUMIF(Inputs!$J$186:$J$199,$B207,Inputs!N$186:N$199) *Inputs!$F$206,0) -> 0 | H207: =IFERROR( SUMIF(Inputs!$J$186:$J$199,$B207,Inputs!O$186:O$199) *Inputs!$F$206,0) -> 0 | I207: =IFERROR( SUMIF(Inputs!$J$186:$J$199,$B207,Inputs!P$186:P$199) *Inputs!$F$206,0) -> 0.07647297049 | J207: =IFERROR( SUMIF(Inputs!$J$186:$J$199,$B207,Inputs!Q$186:Q$199) *Inputs!$F$206,0) -> 0 | K207: =IFERROR( SUMIF(Inputs!$J$186:$J$199,$B207,Inputs!R$186:R$199) *Inputs!$F$206,0) -> 0 | L207: =IFERROR( SUMIF(Inputs!$J$186:$J$199,$B207,Inputs!S$186:S$199) *Inputs!$F$206,0) -> 0 | M207: =IFERROR( SUMIF(Inputs!$J$186:$J$199,$B207,Inputs!T$186:T$199) *Inputs!$F$206,0) -> 0 | N207: =IFERROR( SUMIF(Inputs!$J$186:$J$199,$B207,Inputs!U$186:U$199) *Inputs!$F$206,0) -> 0 | O207: =SUM(E207:N207) -> 0.07647297049
B208: =Inputs!$B$293 -> Indirect - Proportion of labour and labour-related costs | C208: =Inputs!$G$9 -> Real $2026 | D208: $Million | E208: =IFERROR(SUMIF(Inputs!$J$186:$J$199,$B208,Inputs!L$186:L$199)*Inputs!$F$206,0)*IF(E4<Inputs!$G$142,1,Inputs!L$25/INDEX(Inputs!$L$25:$U$25,MATCH(Inputs!$G$142,Years,0))) -> 0 | F208: =IFERROR(SUMIF(Inputs!$J$186:$J$199,$B208,Inputs!M$186:M$199)*Inputs!$F$206,0)*IF(F4<Inputs!$G$142,1,Inputs!M$25/INDEX(Inputs!$L$25:$U$25,MATCH(Inputs!$G$142,Years,0))) -> 0 | G208: =IFERROR(SUMIF(Inputs!$J$186:$J$199,$B208,Inputs!N$186:N$199)*Inputs!$F$206,0)*IF(G4<Inputs!$G$142,1,Inputs!N$25/INDEX(Inputs!$L$25:$U$25,MATCH(Inputs!$G$142,Years,0))) -> 0 | H208: =IFERROR(SUMIF(Inputs!$J$186:$J$199,$B208,Inputs!O$186:O$199)*Inputs!$F$206,0)*IF(H4<Inputs!$G$142,1,Inputs!O$25/INDEX(Inputs!$L$25:$U$25,MATCH(Inputs!$G$142,Years,0))) -> 0 | I208: =IFERROR(SUMIF(Inputs!$J$186:$J$199,$B208,Inputs!P$186:P$199)*Inputs!$F$206,0)*IF(I4<Inputs!$G$142,1,Inputs!P$25/INDEX(Inputs!$L$25:$U$25,MATCH(Inputs!$G$142,Years,0))) -> 9.597226037 | J208: =IFERROR(SUMIF(Inputs!$J$186:$J$199,$B208,Inputs!Q$186:Q$199)*Inputs!$F$206,0)*IF(J4<Inputs!$G$142,1,Inputs!Q$25/INDEX(Inputs!$L$25:$U$25,MATCH(Inputs!$G$142,Years,0))) -> 16.72829991 | K208: =IFERROR(SUMIF(Inputs!$J$186:$J$199,$B208,Inputs!R$186:R$199)*Inputs!$F$206,0)*IF(K4<Inputs!$G$142,1,Inputs!R$25/INDEX(Inputs!$L$25:$U$25,MATCH(Inputs!$G$142,Years,0))) -> 15.7761313 | L208: =IFERROR(SUMIF(Inputs!$J$186:$J$199,$B208,Inputs!S$186:S$199)*Inputs!$F$206,0)*IF(L4<Inputs!$G$142,1,Inputs!S$25/INDEX(Inputs!$L$25:$U$25,MATCH(Inputs!$G$142,Years,0))) -> 4.26856885 | M208: =IFERROR(SUMIF(Inputs!$J$186:$J$199,$B208,Inputs!T$186:T$199)*Inputs!$F$206,0)*IF(M4<Inputs!$G$142,1,Inputs!T$25/INDEX(Inputs!$L$25:$U$25,MATCH(Inputs!$G$142,Years,0))) -> 0 | N208: =IFERROR(SUMIF(Inputs!$J$186:$J$199,$B208,Inputs!U$186:U$199)*Inputs!$F$206,0)*IF(N4<Inputs!$G$142,1,Inputs!U$25/INDEX(Inputs!$L$25:$U$25,MATCH(Inputs!$G$142,Years,0))) -> 0 | O208: 46.3702261 | Q208: ← Labour escalation is applied to the indirect portion of labour and labour-related costs
B209: Sub-Total | C209: =Inputs!$G$9 -> Real $2026 | D209: $Million | E209: =SUM(E195:E208) -> 0 | F209: =SUM(F195:F208) -> 0 | G209: =SUM(G195:G208) -> 0 | H209: 0 | I209: 21.47909714 | J209: 22.57264377 | K209: 22.36455452 | L209: 6.869225594 | M209: 0 | N209: 0 | O209: 73.28552102
B211: Indirect Costs - Total
B212: =Inputs!$B$280 -> Community and Stakeholder Engagement | C212: =Inputs!$G$9 -> Real $2026 | D212: $Million | E212: =E178+E195 -> 0 | F212: =F178+F195 -> 0 | G212: =G178+G195 -> 0 | H212: =H178+H195 -> 7.894778144e-05 | I212: 0 | J212: 0 | K212: 0 | L212: 0 | M212: 0 | N212: 0 | O212: =SUM(E212:N212) -> 7.894778144e-05
B213: =Inputs!$B$281 -> Fleet | C213: =Inputs!$G$9 -> Real $2026 | D213: $Million | E213: =E179+E196 -> 0 | F213: 0 | G213: 0 | H213: 0 | I213: 0.00948328056 | J213: 0.04441536181 | K213: 0 | L213: 0 | M213: 0 | N213: 0 | O213: 0.05389864237
B214: =Inputs!$B$282 -> Land and Environment | C214: =Inputs!$G$9 -> Real $2026 | D214: $Million | E214: =E180+E197 -> 0 | F214: 0 | G214: 0 | H214: 0.3151440759 | I214: 0.1683748918 | J214: 0 | K214: 0 | L214: 0 | M214: 0 | N214: 0 | O214: 0.4835189677
B215: =Inputs!$B$283 -> Other Support & Corporate Roles | C215: =Inputs!$G$9 -> Real $2026 | D215: $Million | E215: =E181+E198 -> 0 | F215: 0 | G215: 0.0379355885 | H215: 1.513228313 | I215: 10.26257624 | J215: 4.916864243 | K215: 6.080736278 | L215: 2.394581352 | M215: 0 | N215: 0 | O215: 25.20592201
B216: =Inputs!$B$284 -> Project Delivery Management - Commercial Management | C216: =Inputs!$G$9 -> Real $2026 | D216: $Million | E216: =E182+E199 -> 0 | F216: 0 | G216: 0 | H216: 0.117858747 | I216: 0 | J216: 0 | K216: 0 | L216: 0 | M216: 0 | N216: 0 | O216: 0.117858747
B217: =Inputs!$B$285 -> Project Delivery Management - Commissioning | C217: =Inputs!$G$9 -> Real $2026 | D217: $Million | E217: =E183+E200 -> 0 | F217: 0 | G217: 0 | H217: 0 | I217: 0 | J217: 0 | K217: 0 | L217: 0 | M217: 0 | N217: 0 | O217: 0
B218: =Inputs!$B$286 -> Project Delivery Management - Construction Management | C218: =Inputs!$G$9 -> Real $2026 | D218: $Million | E218: =E184+E201 -> 0 | F218: 0 | G218: 0 | H218: 0.000328796518 | I218: 0.01376401301 | J218: 0 | K218: 0 | L218: 0 | M218: 0 | N218: 0 | O218: 0.01409280953
B219: =Inputs!$B$287 -> Project Delivery Management - Project Controls | C219: =Inputs!$G$9 -> Real $2026 | D219: $Million | E219: =E185+E202 -> 0 | F219: 0 | G219: 0 | H219: 0 | I219: 0.004628085643 | J219: 0 | K219: 0 | L219: 0 | M219: 0 | N219: 0 | O219: 0.004628085643
B220: =Inputs!$B$288 -> Project Delivery Management - Project Engineering | C220: =Inputs!$G$9 -> Real $2026 | D220: $Million | E220: =E186+E203 -> 0 | F220: 0 | G220: 0 | H220: 0 | I220: 0 | J220: 0 | K220: 0 | L220: 0 | M220: 0 | N220: 0 | O220: 0
... 26 more rows

Sheet Outputs|Models
A1: Outputs | Models | I1: =Report_Month&" Year" -> September Year
A3: Outputs | PTRM
B5: As Incurred | D5: Dollar basis | E5: Units | F5: =Inputs!L$23 -> 2022 | G5: =F5+1 -> 2023 | H5: =Inputs!N$23 -> 2024 | I5: =H5+1 -> 2025 | J5: 2026 | K5: 2027 | L5: 2028 | M5: 2029 | N5: 2030 | O5: 2031 | P5: Total
B6: Capex
B7: =Inputs!$B$240 -> Transmission Lines | D7: =Inputs!$G$9 -> Real $2026 | E7: $Million | K7: =K68 -> 17.41235856 | L7: 4.20476979 | M7: 0 | N7: 0 | O7: 0 | P7: =SUM(F7:O7) -> 21.61712835
B8: =Inputs!$B$241 -> Substations | D8: =Inputs!$G$9 -> Real $2026 | E8: $Million | K8: 68.01453462 | L8: 65.49838139 | M8: 12.43404265 | N8: 0 | O8: 0 | P8: 145.9469587
B9: =Inputs!$B$242 -> Secondary System | D9: =Inputs!$G$9 -> Real $2026 | E9: $Million | K9: 53.2846142 | L9: 28.83785064 | M9: 4.048292957 | N9: 0 | O9: 0 | P9: 86.1707578
B10: =Inputs!$B$243 -> Minor Plant, Motor Vehicles & Mobile Plant | D10: =Inputs!$G$9 -> Real $2026 | E10: $Million | K10: 0 | L10: 0 | M10: 0 | N10: 0 | O10: 0 | P10: 0
B11: =Inputs!$B$244 -> Land & Easements | D11: =Inputs!$G$9 -> Real $2026 | E11: $Million | K11: 0 | L11: 0 | M11: 0 | N11: 0 | O11: 0 | P11: 0
B12: =Inputs!$B$245 -> Synchronous Condensers | D12: =Inputs!$G$9 -> Real $2026 | E12: $Million | K12: 291.2581159 | L12: 217.1680083 | M12: 39.31391896 | N12: 0 | O12: 0 | P12: 547.7400431
B13: =Inputs!$B$246 -> Buildings - capital works | D13: =Inputs!$G$9 -> Real $2026 | E13: $Million | K13: 18.71168919 | L13: 30.75591552 | M13: 16.15135795 | N13: 0 | O13: 0 | P13: 65.61896265
B14: =Inputs!$B$247 -> In-house software | D14: =Inputs!$G$9 -> Real $2026 | E14: $Million | K14: 0 | L14: 0 | M14: 0 | N14: 0 | O14: 0 | P14: 0
B15: Total As Incurred | D15: =Inputs!$G$9 -> Real $2026 | E15: $Million | F15: =SUM(F7:F14) -> 0 | G15: 0 | H15: 0 | I15: 0 | J15: 0 | K15: 448.6813124 | L15: 346.4649256 | M15: 71.94761252 | N15: 0 | O15: 0 | P15: 867.0938506
A17: =IF(SUM(J17:O17)=0,0,1) -> 0 | B17: Check - As incurred | K17: =IF(ROUND(K15-K$76,3)=0,0,1) -> 0 | L17: =IF(ROUND(L15-L$76,3)=0,0,1) -> 0 | M17: =IF(ROUND(M15-M$76,3)=0,0,1) -> 0 | N17: =IF(ROUND(N15-N$76,3)=0,0,1) -> 0 | O17: =IF(ROUND(O15-O$76,3)=0,0,1) -> 0
R18: Direct expenditure 'As commissioned' profile
B19: As Commissioned (before pre-period capitalisation) | D19: Dollar basis | E19: Units | F19: =Inputs!L$23 -> 2022 | G19: =F19+1 -> 2023 | H19: =Inputs!N$23 -> 2024 | I19: =H19+1 -> 2025 | J19: 2026 | K19: 2027 | L19: 2028 | M19: 2029 | N19: 2030 | O19: 2031 | P19: Total | R19: =K19 -> 2027 | S19: =R19+1 -> 2028 | T19: =S19+1 -> 2029 | U19: =T19+1 -> 2030 | V19: =U19+1 -> 2031 | W19: Total
B20: Capex | R20: Incl Pre Period
B21: =Inputs!$B$240 -> Transmission Lines | D21: =Inputs!$G$9 -> Real $2026 | E21: $Million | K21: =IFERROR(R21*$P68/$W21,0) -> 23.40990621 | L21: 5.767572813 | M21: 0 | N21: 0 | O21: 0 | P21: =SUM(F21:O21) -> 29.17747903 | R21: =SUMPRODUCT((Inputs!AJ$103:AO$116)*(Inputs!$C$103:$C$116=$B21)) -> 19.35444852 | S21: =SUMIF(Inputs!$C$103:$C$116,$B21,Inputs!AP$103:AP$116) -> 4.768416843 | T21: =SUMIF(Inputs!$C$103:$C$116,$B21,Inputs!AQ$103:AQ$116) -> 0 | U21: =SUMIF(Inputs!$C$103:$C$116,$B21,Inputs!AR$103:AR$116) -> 0 | V21: =SUMIF(Inputs!$C$103:$C$116,$B21,Inputs!AS$103:AS$116) -> 0 | W21: =SUM(R21:V21) -> 24.12286536
B22: =Inputs!$B$241 -> Substations | D22: =Inputs!$G$9 -> Real $2026 | E22: $Million | K22: 56.39986443 | L22: 93.94402382 | M22: 56.19967738 | N22: 0 | O22: 0 | P22: 206.5435656 | R22: =SUMPRODUCT((Inputs!AJ$103:AO$116)*(Inputs!$C$103:$C$116=$B22)) -> 45.91267518 | S22: =SUMIF(Inputs!$C$103:$C$116,$B22,Inputs!AP$103:AP$116) -> 76.47574145 | T22: =SUMIF(Inputs!$C$103:$C$116,$B22,Inputs!AQ$103:AQ$116) -> 45.74971161 | U22: =SUMIF(Inputs!$C$103:$C$116,$B22,Inputs!AR$103:AR$116) -> 0 | V22: =SUMIF(Inputs!$C$103:$C$116,$B22,Inputs!AS$103:AS$116) -> 0 | W22: =SUM(R22:V22) -> 168.1381282
B23: =Inputs!$B$242 -> Secondary System | D23: =Inputs!$G$9 -> Real $2026 | E23: $Million | K23: 56.77845053 | L23: 40.88756301 | M23: 18.16131202 | N23: 0 | O23: 0 | P23: 115.8273256 | R23: =SUMPRODUCT((Inputs!AJ$103:AO$116)*(Inputs!$C$103:$C$116=$B23)) -> 46.56764306 | S23: =SUMIF(Inputs!$C$103:$C$116,$B23,Inputs!AP$103:AP$116) -> 33.53450865 | T23: =SUMIF(Inputs!$C$103:$C$116,$B23,Inputs!AQ$103:AQ$116) -> 14.89525494 | U23: =SUMIF(Inputs!$C$103:$C$116,$B23,Inputs!AR$103:AR$116) -> 0 | V23: =SUMIF(Inputs!$C$103:$C$116,$B23,Inputs!AS$103:AS$116) -> 0 | W23: 94.99740666
B24: =Inputs!$B$243 -> Minor Plant, Motor Vehicles & Mobile Plant | D24: =Inputs!$G$9 -> Real $2026 | E24: $Million | K24: 0.7105657447 | L24: 0 | M24: 0 | N24: 0 | O24: 0 | P24: 0.7105657447 | R24: =SUMPRODUCT((Inputs!AJ$103:AO$116)*(Inputs!$C$103:$C$116=$B24)) -> 0.5696736321 | S24: =SUMIF(Inputs!$C$103:$C$116,$B24,Inputs!AP$103:AP$116) -> 0 | T24: =SUMIF(Inputs!$C$103:$C$116,$B24,Inputs!AQ$103:AQ$116) -> 0 | U24: =SUMIF(Inputs!$C$103:$C$116,$B24,Inputs!AR$103:AR$116) -> 0 | V24: =SUMIF(Inputs!$C$103:$C$116,$B24,Inputs!AS$103:AS$116) -> 0 | W24: 0.5696736321
B25: =Inputs!$B$244 -> Land & Easements | D25: =Inputs!$G$9 -> Real $2026 | E25: $Million | K25: 0.06022166171 | L25: 0 | M25: 0 | N25: 0 | O25: 0 | P25: 0.06022166171 | R25: =SUMPRODUCT((Inputs!AJ$103:AO$116)*(Inputs!$C$103:$C$116=$B25)) -> 0.04828081429 | S25: =SUMIF(Inputs!$C$103:$C$116,$B25,Inputs!AP$103:AP$116) -> 0 | T25: =SUMIF(Inputs!$C$103:$C$116,$B25,Inputs!AQ$103:AQ$116) -> 0 | U25: =SUMIF(Inputs!$C$103:$C$116,$B25,Inputs!AR$103:AR$116) -> 0 | V25: =SUMIF(Inputs!$C$103:$C$116,$B25,Inputs!AS$103:AS$116) -> 0 | W25: 0.04828081429
B26: =Inputs!$B$245 -> Synchronous Condensers | D26: =Inputs!$G$9 -> Real $2026 | E26: $Million | K26: 265.3047505 | L26: 298.0215311 | M26: 179.2759618 | N26: 0 | O26: 0 | P26: 742.6022435 | R26: =SUMPRODUCT((Inputs!AJ$103:AO$116)*(Inputs!$C$103:$C$116=$B26)) -> 216.6987004 | S26: =SUMIF(Inputs!$C$103:$C$116,$B26,Inputs!AP$103:AP$116) -> 243.4214931 | T26: =SUMIF(Inputs!$C$103:$C$116,$B26,Inputs!AQ$103:AQ$116) -> 146.4311056 | U26: =SUMIF(Inputs!$C$103:$C$116,$B26,Inputs!AR$103:AR$116) -> 0 | V26: =SUMIF(Inputs!$C$103:$C$116,$B26,Inputs!AS$103:AS$116) -> 0 | W26: 606.5512992
B27: =Inputs!$B$246 -> Buildings - capital works | D27: =Inputs!$G$9 -> Real $2026 | E27: $Million | K27: 0 | L27: 45.13633376 | M27: 39.53874711 | N27: 0 | O27: 0 | P27: 84.67508086 | R27: =SUMPRODUCT((Inputs!AJ$103:AO$116)*(Inputs!$C$103:$C$116=$B27)) -> 0 | S27: =SUMIF(Inputs!$C$103:$C$116,$B27,Inputs!AP$103:AP$116) -> 36.24387772 | T27: =SUMIF(Inputs!$C$103:$C$116,$B27,Inputs!AQ$103:AQ$116) -> 31.74908984 | U27: =SUMIF(Inputs!$C$103:$C$116,$B27,Inputs!AR$103:AR$116) -> 0 | V27: =SUMIF(Inputs!$C$103:$C$116,$B27,Inputs!AS$103:AS$116) -> 0 | W27: 67.99296756
B28: =Inputs!$B$247 -> In-house software | D28: =Inputs!$G$9 -> Real $2026 | E28: $Million | K28: 0 | L28: 0 | M28: 0 | N28: 0 | O28: 0 | P28: 0 | R28: =SUMPRODUCT((Inputs!AJ$103:AO$116)*(Inputs!$C$103:$C$116=$B28)) -> 0 | S28: =SUMIF(Inputs!$C$103:$C$116,$B28,Inputs!AP$103:AP$116) -> 0 | T28: =SUMIF(Inputs!$C$103:$C$116,$B28,Inputs!AQ$103:AQ$116) -> 0 | U28: =SUMIF(Inputs!$C$103:$C$116,$B28,Inputs!AR$103:AR$116) -> 0 | V28: =SUMIF(Inputs!$C$103:$C$116,$B28,Inputs!AS$103:AS$116) -> 0 | W28: 0
B29: Total As Commissioned | D29: =Inputs!$G$9 -> Real $2026 | E29: $Million | F29: =SUM(F21:F28) -> 0 | G29: 0 | H29: 0 | I29: 0 | J29: 0 | K29: 402.6637591 | L29: 483.7570245 | M29: 293.1756983 | N29: 0 | O29: 0 | P29: 1179.596482 | R29: =SUM(R20:R28) -> 329.1514216 | S29: 394.4440378 | T29: 238.825162 | U29: 0 | V29: 0 | W29: 962.4206215
A31: =IF(SUM(H31:W31)=0,0,1) -> 0 | B31: Check - As commissioned | P31: =IF(ROUND(P29-P76,4)=0,0,1) -> 0 | W31: =IF(ROUND(W29-Inputs!AT118,4)=0,0,1) -> 0
B33: Forecast Immediate Expensing of Capital Expenditure - As commissioned | D33: Dollar basis | E33: Units | F33: =Inputs!L$23 -> 2022 | G33: =F33+1 -> 2023 | H33: =Inputs!N$23 -> 2024 | I33: =H33+1 -> 2025 | J33: 2026 | K33: 2027 | L33: 2028 | M33: 2029 | N33: 2030 | O33: 2031 | P33: Total
B34: Capex
B35: =Inputs!$B$240 -> Transmission Lines | D35: =Inputs!$G$9 -> Real $2026 | E35: $Million | P35: =SUM(F35:O35) -> 0
B36: =Inputs!$B$241 -> Substations | D36: =Inputs!$G$9 -> Real $2026 | E36: $Million | P36: 0
B37: =Inputs!$B$242 -> Secondary System | D37: =Inputs!$G$9 -> Real $2026 | E37: $Million | P37: 0
B38: =Inputs!$B$243 -> Minor Plant, Motor Vehicles & Mobile Plant | D38: =Inputs!$G$9 -> Real $2026 | E38: $Million | P38: 0
B39: =Inputs!$B$244 -> Land & Easements | D39: =Inputs!$G$9 -> Real $2026 | E39: $Million | P39: 0
B40: =Inputs!$B$245 -> Synchronous Condensers | D40: =Inputs!$G$9 -> Real $2026 | E40: $Million | P40: 0
B41: =Inputs!$B$246 -> Buildings - capital works | D41: =Inputs!$G$9 -> Real $2026 | E41: $Million | P41: 0
B42: =Inputs!$B$247 -> In-house software | D42: =Inputs!$G$9 -> Real $2026 | E42: $Million | P42: 0
B43: Total As Commissioned | D43: =Inputs!$G$9 -> Real $2026 | E43: $Million | F43: =SUM(F35:F42) -> 0 | G43: 0 | H43: 0 | I43: 0 | J43: 0 | K43: 0 | L43: 0 | M43: 0 | N43: 0 | O43: 0 | P43: 0
A45: =IF(SUM(J45:O45)=0,0,1) -> 0 | B45: Check - Immediately Expensed Capex | K45: N/A | L45: N/A | M45: N/A | N45: N/A | O45: N/A
A47: Outputs | PTRM 'Pre-Period Costs'
B49: As Incurred | D49: Dollar basis | E49: Units | F49: =Inputs!L$23 -> 2022 | G49: =F49+1 -> 2023 | H49: =Inputs!N$23 -> 2024 | I49: =H49+1 -> 2025 | J49: 2026 | K49: 2027 | L49: 2028 | M49: 2029 | N49: 2030 | O49: 2031 | P49: Total
B50: Capex
B51: =Inputs!$B$240 -> Transmission Lines | D51: $Nominal | E51: $Million | F51: =F68*F$84 -> 0 | G51: 0.0689450071 | H51: 0.1270507049 | I51: 0.4843463364 | J51: 6.702227607 | P51: =SUM(F51:O51) -> 7.382569655
B52: =Inputs!$B$241 -> Substations | D52: $Nominal | E52: $Million | F52: 0 | G52: 0.4805517202 | H52: 0.8855526652 | I52: 3.375929236 | J52: 54.46273775 | P52: =SUM(F52:O52) -> 59.20477137
B53: =Inputs!$B$242 -> Secondary System | D53: $Nominal | E53: $Million | F53: 0 | G53: 0.2715099047 | H53: 0.5003339072 | I53: 1.907387252 | J53: 26.27947669 | P53: 28.95870775
B54: =Inputs!$B$243 -> Minor Plant, Motor Vehicles & Mobile Plant | D54: $Nominal | E54: $Million | F54: 0 | G54: 0.001628171116 | H54: 0.003000366475 | I54: 0.01143808302 | J54: 0.6800184602 | P54: 0.6960850808
B55: =Inputs!$B$244 -> Land & Easements | D55: $Nominal | E55: $Million | F55: 0 | G55: 0.0001379902857 | H55: 0.0002542861885 | I55: 0.0009693970914 | J55: 0.05763272712 | P55: 0.05899440069
B56: =Inputs!$B$245 -> Synchronous Condensers | D56: $Nominal | E56: $Million | F56: 0 | G56: 1.733570329 | H56: 3.19459438 | I56: 12.1785242 | J56: 173.1932908 | P56: 190.2999797
B57: =Inputs!$B$246 -> Buildings - capital works | D57: $Nominal | E57: $Million | F57: 0 | G57: 0.194329138 | H57: 0.3581064822 | I57: 1.365183789 | J57: 16.68095734 | P57: 18.59857675
B58: =Inputs!$B$247 -> In-house software | D58: $Nominal | E58: $Million | F58: 0 | G58: 0 | H58: 0 | I58: 0 | J58: 0 | P58: 0
B59: Total | D59: $Nominal | E59: $Million | F59: =SUM(F51:F58) -> 0 | G59: =SUM(G51:G58) -> 2.75067226 | H59: =SUM(H51:H58) -> 5.068892792 | I59: =SUM(I51:I58) -> 19.32377829 | J59: =SUM(J51:J58) -> 278.0563414 | K59: =SUM(K50:K58) -> 0 | L59: =SUM(L50:L58) -> 0 | M59: =SUM(M50:M58) -> 0 | O59: =SUM(O50:O58) -> 0 | P59: 305.1996847
A61: =IF(SUM(H61:J61)=0,0,1) -> 0 | B61: Check - As incurred | F61: =IF(ROUND(F59-F$76*F$84,3)=0,0,1) -> 0 | G61: =IF(ROUND(G59-G$76*G$84,3)=0,0,1) -> 0 | H61: =IF(ROUND(H59-H$76*H$84,3)=0,0,1) -> 0 | I61: =IF(ROUND(I59-I$76*I$84,3)=0,0,1) -> 0 | J61: =IF(ROUND(J59-J$76*J$84,3)=0,0,1) -> 0
A63: Output | As Incurred Capex by RAB Asset Class
R65: Check | cumulative as commissioned capex not exceed as incurred capex
B66: As Incurred | D66: Dollar basis | E66: Units | F66: =Inputs!L$23 -> 2022 | G66: =F66+1 -> 2023 | H66: =Inputs!N$23 -> 2024 | I66: =H66+1 -> 2025 | J66: 2026 | K66: 2027 | L66: 2028 | M66: 2029 | N66: 2030 | O66: 2031 | P66: Total | R66: =K66 -> 2027 | S66: =L66 -> 2028 | T66: =M66 -> 2029 | U66: =N66 -> 2030 | V66: =O66 -> 2031
B67: Capex
B68: =Inputs!$B$240 -> Transmission Lines | D68: =Inputs!$G$9 -> Real $2026 | E68: $Million | F68: =SUMIF(Calculations!$S$58:$S$71,$B68,Calculations!E$58:E$71) -> 0 | G68: =SUMIF(Calculations!$S$58:$S$71,$B68,Calculations!F$58:F$71) -> 0.078693852 | H68: =SUMIF(Calculations!$S$58:$S$71,$B68,Calculations!G$58:G$71) -> 0.1377074224 | I68: =SUMIF(Calculations!$S$58:$S$71,$B68,Calculations!H$58:H$71) -> 0.5096370612 | J68: =SUMIF(Calculations!$S$58:$S$71,$B68,Calculations!I$58:I$71) -> 6.834312341 | K68: =SUMIF(Calculations!$S$58:$S$71,$B68,Calculations!J$58:J$71) -> 17.41235856 | L68: =SUMIF(Calculations!$S$58:$S$71,$B68,Calculations!K$58:K$71) -> 4.20476979 | M68: =SUMIF(Calculations!$S$58:$S$71,$B68,Calculations!L$58:L$71) -> 0 | N68: =SUMIF(Calculations!$S$58:$S$71,$B68,Calculations!M$58:M$71) -> 0 | O68: =SUMIF(Calculations!$S$58:$S$71,$B68,Calculations!N$58:N$71) -> 0 | P68: =SUM(F68:O68) -> 29.17747903 | R68: =SUM($K21:K21)<=SUM($G68:K68) -> TRUE | S68: =SUM($K21:L21)<=SUM($G68:L68) -> TRUE | T68: =SUM($K21:M21)<=SUM($G68:M68) -> TRUE | U68: =SUM($K21:N21)<=SUM($G68:N68) -> TRUE | V68: =SUM($K21:O21)<=SUM($G68:O68) -> TRUE
B69: =Inputs!$B$241 -> Substations | D69: =Inputs!$G$9 -> Real $2026 | E69: $Million | F69: =SUMIF(Calculations!$S$58:$S$71,$B69,Calculations!E$58:E$71) -> 0 | G69: =SUMIF(Calculations!$S$58:$S$71,$B69,Calculations!F$58:F$71) -> 0.5485018791 | H69: =SUMIF(Calculations!$S$58:$S$71,$B69,Calculations!G$58:G$71) -> 0.9598307623 | I69: =SUMIF(Calculations!$S$58:$S$71,$B69,Calculations!H$58:H$71) -> 3.55220743 | J69: =SUMIF(Calculations!$S$58:$S$71,$B69,Calculations!I$58:I$71) -> 55.53606689 | K69: =SUMIF(Calculations!$S$58:$S$71,$B69,Calculations!J$58:J$71) -> 68.01453462 | L69: =SUMIF(Calculations!$S$58:$S$71,$B69,Calculations!K$58:K$71) -> 65.49838139 | M69: =SUMIF(Calculations!$S$58:$S$71,$B69,Calculations!L$58:L$71) -> 12.43404265 | N69: =SUMIF(Calculations!$S$58:$S$71,$B69,Calculations!M$58:M$71) -> 0 | O69: =SUMIF(Calculations!$S$58:$S$71,$B69,Calculations!N$58:N$71) -> 0 | P69: =SUM(F69:O69) -> 206.5435656 | R69: =SUM($K22:K22)<=SUM($G69:K69) -> TRUE | S69: =SUM($K22:L22)<=SUM($G69:L69) -> TRUE | T69: =SUM($K22:M22)<=SUM($G69:M69) -> TRUE | U69: =SUM($K22:N22)<=SUM($G69:N69) -> TRUE | V69: =SUM($K22:O22)<=SUM($G69:O69) -> TRUE
B70: =Inputs!$B$242 -> Secondary System | D70: =Inputs!$G$9 -> Real $2026 | E70: $Million | F70: =SUMIF(Calculations!$S$58:$S$71,$B70,Calculations!E$58:E$71) -> 0 | G70: =SUMIF(Calculations!$S$58:$S$71,$B70,Calculations!F$58:F$71) -> 0.3099014876 | H70: =SUMIF(Calculations!$S$58:$S$71,$B70,Calculations!G$58:G$71) -> 0.5423007512 | I70: =SUMIF(Calculations!$S$58:$S$71,$B70,Calculations!H$58:H$71) -> 2.006983765 | J70: =SUMIF(Calculations!$S$58:$S$71,$B70,Calculations!I$58:I$71) -> 26.79738176 | K70: =SUMIF(Calculations!$S$58:$S$71,$B70,Calculations!J$58:J$71) -> 53.2846142 | L70: =SUMIF(Calculations!$S$58:$S$71,$B70,Calculations!K$58:K$71) -> 28.83785064 | M70: =SUMIF(Calculations!$S$58:$S$71,$B70,Calculations!L$58:L$71) -> 4.048292957 | N70: =SUMIF(Calculations!$S$58:$S$71,$B70,Calculations!M$58:M$71) -> 0 | O70: =SUMIF(Calculations!$S$58:$S$71,$B70,Calculations!N$58:N$71) -> 0 | P70: 115.8273256 | R70: =SUM($K23:K23)<=SUM($G70:K70) -> TRUE | S70: =SUM($K23:L23)<=SUM($G70:L70) -> TRUE | T70: =SUM($K23:M23)<=SUM($G70:M70) -> TRUE | U70: =SUM($K23:N23)<=SUM($G70:N70) -> TRUE | V70: =SUM($K23:O23)<=SUM($G70:O70) -> TRUE
B71: =Inputs!$B$243 -> Minor Plant, Motor Vehicles & Mobile Plant | D71: =Inputs!$G$9 -> Real $2026 | E71: $Million | F71: =SUMIF(Calculations!$S$58:$S$71,$B71,Calculations!E$58:E$71) -> 0 | G71: =SUMIF(Calculations!$S$58:$S$71,$B71,Calculations!F$58:F$71) -> 0.001858395005 | H71: =SUMIF(Calculations!$S$58:$S$71,$B71,Calculations!G$58:G$71) -> 0.003252030234 | I71: =SUMIF(Calculations!$S$58:$S$71,$B71,Calculations!H$58:H$71) -> 0.01203533624 | J71: =SUMIF(Calculations!$S$58:$S$71,$B71,Calculations!I$58:I$71) -> 0.6934199832 | K71: =SUMIF(Calculations!$S$58:$S$71,$B71,Calculations!J$58:J$71) -> 0 | L71: =SUMIF(Calculations!$S$58:$S$71,$B71,Calculations!K$58:K$71) -> 0 | M71: =SUMIF(Calculations!$S$58:$S$71,$B71,Calculations!L$58:L$71) -> 0 | N71: =SUMIF(Calculations!$S$58:$S$71,$B71,Calculations!M$58:M$71) -> 0 | O71: =SUMIF(Calculations!$S$58:$S$71,$B71,Calculations!N$58:N$71) -> 0 | P71: 0.7105657447 | R71: =SUM($K24:K24)<=SUM($G71:K71) -> TRUE | S71: =SUM($K24:L24)<=SUM($G71:L71) -> TRUE | T71: =SUM($K24:M24)<=SUM($G71:M71) -> TRUE | U71: =SUM($K24:N24)<=SUM($G71:N71) -> TRUE | V71: =SUM($K24:O24)<=SUM($G71:O71) -> TRUE
B72: =Inputs!$B$244 -> Land & Easements | D72: =Inputs!$G$9 -> Real $2026 | E72: $Million | F72: =SUMIF(Calculations!$S$58:$S$71,$B72,Calculations!E$58:E$71) -> 0 | G72: =SUMIF(Calculations!$S$58:$S$71,$B72,Calculations!F$58:F$71) -> 0.000157502154 | H72: =SUMIF(Calculations!$S$58:$S$71,$B72,Calculations!G$58:G$71) -> 0.0002756151223 | I72: =SUMIF(Calculations!$S$58:$S$71,$B72,Calculations!H$58:H$71) -> 0.001020015323 | J72: =SUMIF(Calculations!$S$58:$S$71,$B72,Calculations!I$58:I$71) -> 0.05876852911 | K72: =SUMIF(Calculations!$S$58:$S$71,$B72,Calculations!J$58:J$71) -> 0 | L72: =SUMIF(Calculations!$S$58:$S$71,$B72,Calculations!K$58:K$71) -> 0 | M72: =SUMIF(Calculations!$S$58:$S$71,$B72,Calculations!L$58:L$71) -> 0 | N72: =SUMIF(Calculations!$S$58:$S$71,$B72,Calculations!M$58:M$71) -> 0 | O72: =SUMIF(Calculations!$S$58:$S$71,$B72,Calculations!N$58:N$71) -> 0 | P72: 0.06022166171 | R72: =SUM($K25:K25)<=SUM($G72:K72) -> TRUE | S72: =SUM($K25:L25)<=SUM($G72:L72) -> TRUE | T72: =SUM($K25:M25)<=SUM($G72:M72) -> TRUE | U72: =SUM($K25:N25)<=SUM($G72:N72) -> TRUE | V72: =SUM($K25:O25)<=SUM($G72:O72) -> TRUE
B73: =Inputs!$B$245 -> Synchronous Condensers | D73: =Inputs!$G$9 -> Real $2026 | E73: $Million | F73: =SUMIF(Calculations!$S$58:$S$71,$B73,Calculations!E$58:E$71) -> 0 | G73: =SUMIF(Calculations!$S$58:$S$71,$B73,Calculations!F$58:F$71) -> 1.978697699 | H73: =SUMIF(Calculations!$S$58:$S$71,$B73,Calculations!G$58:G$71) -> 3.462549524 | I73: =SUMIF(Calculations!$S$58:$S$71,$B73,Calculations!H$58:H$71) -> 12.81444045 | J73: =SUMIF(Calculations!$S$58:$S$71,$B73,Calculations!I$58:I$71) -> 176.6065127 | K73: =SUMIF(Calculations!$S$58:$S$71,$B73,Calculations!J$58:J$71) -> 291.2581159 | L73: =SUMIF(Calculations!$S$58:$S$71,$B73,Calculations!K$58:K$71) -> 217.1680083 | M73: =SUMIF(Calculations!$S$58:$S$71,$B73,Calculations!L$58:L$71) -> 39.31391896 | N73: =SUMIF(Calculations!$S$58:$S$71,$B73,Calculations!M$58:M$71) -> 0 | O73: =SUMIF(Calculations!$S$58:$S$71,$B73,Calculations!N$58:N$71) -> 0 | P73: 742.6022435 | R73: =SUM($K26:K26)<=SUM($G73:K73) -> TRUE | S73: =SUM($K26:L26)<=SUM($G73:L73) -> TRUE | T73: =SUM($K26:M26)<=SUM($G73:M73) -> TRUE | U73: =SUM($K26:N26)<=SUM($G73:N73) -> TRUE | V73: =SUM($K26:O26)<=SUM($G73:O73) -> TRUE
B74: =Inputs!$B$246 -> Buildings - capital works | D74: =Inputs!$G$9 -> Real $2026 | E74: $Million | F74: =SUMIF(Calculations!$S$58:$S$71,$B74,Calculations!E$58:E$71) -> 0 | G74: =SUMIF(Calculations!$S$58:$S$71,$B74,Calculations!F$58:F$71) -> 0.221807337 | H74: =SUMIF(Calculations!$S$58:$S$71,$B74,Calculations!G$58:G$71) -> 0.3881436207 | I74: =SUMIF(Calculations!$S$58:$S$71,$B74,Calculations!H$58:H$71) -> 1.436468498 | J74: =SUMIF(Calculations!$S$58:$S$71,$B74,Calculations!I$58:I$71) -> 17.00969876 | K74: =SUMIF(Calculations!$S$58:$S$71,$B74,Calculations!J$58:J$71) -> 18.71168919 | L74: =SUMIF(Calculations!$S$58:$S$71,$B74,Calculations!K$58:K$71) -> 30.75591552 | M74: =SUMIF(Calculations!$S$58:$S$71,$B74,Calculations!L$58:L$71) -> 16.15135795 | N74: =SUMIF(Calculations!$S$58:$S$71,$B74,Calculations!M$58:M$71) -> 0 | O74: =SUMIF(Calculations!$S$58:$S$71,$B74,Calculations!N$58:N$71) -> 0 | P74: 84.67508086 | R74: =SUM($K27:K27)<=SUM($G74:K74) -> TRUE | S74: =SUM($K27:L27)<=SUM($G74:L74) -> TRUE | T74: =SUM($K27:M27)<=SUM($G74:M74) -> TRUE | U74: =SUM($K27:N27)<=SUM($G74:N74) -> TRUE | V74: =SUM($K27:O27)<=SUM($G74:O74) -> TRUE
B75: =Inputs!$B$247 -> In-house software | D75: =Inputs!$G$9 -> Real $2026 | E75: $Million | F75: =SUMIF(Calculations!$S$58:$S$71,$B75,Calculations!E$58:E$71) -> 0 | G75: =SUMIF(Calculations!$S$58:$S$71,$B75,Calculations!F$58:F$71) -> 0 | H75: =SUMIF(Calculations!$S$58:$S$71,$B75,Calculations!G$58:G$71) -> 0 | I75: =SUMIF(Calculations!$S$58:$S$71,$B75,Calculations!H$58:H$71) -> 0 | J75: =SUMIF(Calculations!$S$58:$S$71,$B75,Calculations!I$58:I$71) -> 0 | K75: =SUMIF(Calculations!$S$58:$S$71,$B75,Calculations!J$58:J$71) -> 0 | L75: =SUMIF(Calculations!$S$58:$S$71,$B75,Calculations!K$58:K$71) -> 0 | M75: =SUMIF(Calculations!$S$58:$S$71,$B75,Calculations!L$58:L$71) -> 0 | N75: =SUMIF(Calculations!$S$58:$S$71,$B75,Calculations!M$58:M$71) -> 0 | O75: =SUMIF(Calculations!$S$58:$S$71,$B75,Calculations!N$58:N$71) -> 0 | P75: 0 | R75: =SUM($K28:K28)<=SUM($G75:K75) -> TRUE | S75: =SUM($K28:L28)<=SUM($G75:L75) -> TRUE | T75: =SUM($K28:M28)<=SUM($G75:M75) -> TRUE | U75: =SUM($K28:N28)<=SUM($G75:N75) -> TRUE | V75: =SUM($K28:O28)<=SUM($G75:O75) -> TRUE
B76: Total | D76: =Inputs!$G$9 -> Real $2026 | E76: $Million | F76: =SUM(F68:F75) -> 0 | G76: 3.139618151 | H76: 5.494059726 | I76: 20.33279255 | J76: 283.5361609 | K76: 448.6813124 | L76: 346.4649256 | M76: 71.94761252 | N76: 0 | O76: 0 | P76: =SUM(F76:O76) -> 1179.596482 | R76: =SUM($K29:K29)<=SUM($G76:K76) -> TRUE | S76: =SUM($K29:L29)<=SUM($G76:L76) -> TRUE | T76: =SUM($K29:M29)<=SUM($G76:M76) -> TRUE | U76: =SUM($K29:N29)<=SUM($G76:N76) -> TRUE | V76: =SUM($K29:O29)<=SUM($G76:O76) -> TRUE
A78: =IF(SUM(H78:O78,R78:V78)=0,0,1) -> 0 | B78: Check - As incurred | F78: =IF(ROUND(Calculations!E$72-F76,3)=0,0,1) -> 0 | G78: =IF(ROUND(Calculations!F$72-G76,3)=0,0,1) -> 0 | H78: =IF(ROUND(Calculations!G$72-H76,3)=0,0,1) -> 0 | I78: =IF(ROUND(Calculations!H$72-I76,3)=0,0,1) -> 0 | J78: =IF(ROUND(Calculations!I$72-J76,3)=0,0,1) -> 0 | K78: =IF(ROUND(Calculations!J$72-K76,3)=0,0,1) -> 0 | L78: =IF(ROUND(Calculations!K$72-L76,3)=0,0,1) -> 0 | M78: =IF(ROUND(Calculations!L$72-M76,3)=0,0,1) -> 0 | N78: =IF(ROUND(Calculations!M$72-N76,3)=0,0,1) -> 0 | O78: =IF(ROUND(Calculations!N$72-O76,3)=0,0,1) -> 0 | R78: =COUNTIF(R68:R76,FALSE) -> 0 | S78: =COUNTIF(S68:S76,FALSE) -> 0 | T78: =COUNTIF(T68:T76,FALSE) -> 0 | U78: =COUNTIF(U68:U76,FALSE) -> 0 | V78: =COUNTIF(V68:V76,FALSE) -> 0
A80: Indexation factors
B82: Indexation
B83: Factor | D83: Source | E83: Unit | F83: =Inputs!L$23 -> 2022 | G83: =F83+1 -> 2023 | H83: =Inputs!N$23 -> 2024 | I83: =H83+1 -> 2025 | J83: 2026 | K83: 2027 | L83: 2028 | M83: 2029 | N83: 2030 | O83: 2031
B84: =Inputs!B30 -> Real 2026 End Period to Nominal Mid Period | D84: Inputs | E84: Factor | F84: =Inputs!L30 -> 0.8261276481 | G84: =Inputs!M30 -> 0.8761168166 | H84: =Inputs!N30 -> 0.9226133397 | I84: =Inputs!O30 -> 0.950375028 | J84: =Inputs!P30 -> 0.9806732956 | K84: =Inputs!Q30 -> 1.013162973 | L84: =Inputs!R30 -> 1.04001099 | M84: =Inputs!S30 -> 1.067570459 | N84: =Inputs!T30 -> 1.095860231 | O84: =Inputs!U30 -> 1.124899661
A86: End

Sheet Outputs|Tables
A1: Outputs | Tables | F1: =Inputs!G9 -> Real $2026 | M1: =Report_Month&" Year" -> September Year
A3: Unused: Total capex for the Project, including pre-period capex ($M, September 2026)
B5: As Incurred | D5: Dollar basis | E5: Units | F5: Pre-period | G5: =Inputs!Q$23 -> 2027 | H5: =Inputs!R$23 -> 2028 | I5: =Inputs!S$23 -> 2029 | J5: =Inputs!T$23 -> 2030 | K5: =Inputs!U$23 -> 2031 | L5: Total
B6: Capex
B7: Pre-period costs | D7: =Inputs!$G$9 -> Real $2026 | E7: $Million | F7: 312.5026314 | L7: 312.5026314
B8: Direct costs
B9: OEM costs | D9: =Inputs!$G$9 -> Real $2026 | E9: $Million | G9: c-i-c | H9: c-i-c | I9: c-i-c | J9: c-i-c | K9: c-i-c | L9: c-i-c
B10: LTSA Capital Spares | D10: =Inputs!$G$9 -> Real $2026 | E10: $Million | G10: c-i-c | H10: c-i-c | I10: c-i-c | J10: c-i-c | K10: c-i-c | L10: c-i-c
B11: D&C costs | D11: =Inputs!$G$9 -> Real $2026 | E11: $Million | G11: c-i-c | H11: c-i-c | I11: c-i-c | J11: c-i-c | K11: c-i-c | L11: c-i-c
B12: Easement acquisition | D12: =Inputs!$G$9 -> Real $2026 | E12: $Million | G12: 0 | H12: 0 | I12: 0 | J12: 0 | K12: 0 | L12: 0
B13: Equipment | D13: =Inputs!$G$9 -> Real $2026 | E13: $Million | G13: 1.020742873 | H13: 0.2544911851 | I13: 0 | J13: 0 | K13: 0 | L13: 1.275234059
B14: Fleet acquisition | D14: =Inputs!$G$9 -> Real $2026 | E14: $Million | G14: 0 | H14: 0 | I14: 0 | J14: 0 | K14: 0 | L14: 0
B15: Buildings | D15: =Inputs!$G$9 -> Real $2026 | E15: $Million | G15: 0 | H15: 0 | I15: 7.13795311 | J15: 0 | K15: 0 | L15: 7.13795311
B16: Infrastructure Planner Fees | D16: =Inputs!$G$9 -> Real $2026 | E16: $Million | G16: 1.97401608 | H16: 1.923056602 | I16: 1.873412648 | J16: 0 | K16: 0 | L16: 5.77048533
B17: Risk allowance costs | D17: =Inputs!$G$9 -> Real $2026 | E17: $Million | G17: 7.426609915 | H17: 5.503229691 | I17: 1.026818212 | J17: 0 | K17: 0 | L17: 13.95665782
B18: Labour and indirect costs | L18: 0
B19: Labour costs | D19: =Inputs!$G$9 -> Real $2026 | E19: $Million | G19: 55.33869843 | H19: 51.69420853 | I19: 13.82367402 | J19: 0 | K19: 0 | L19: 120.856581
B20: Indirect costs | D20: =Inputs!$G$9 -> Real $2026 | E20: $Million | G20: 5.844343854 | H20: 6.588423221 | I20: 2.600656743 | J20: 0 | K20: 0 | L20: 15.03342382
B21: Labour escalation and equity raising costs | L21: 0
B22: Labour escalation | D22: =Inputs!$G$9 -> Real $2026 | E22: $Million | G22: 0.4223012834 | H22: 0.8928958022 | I22: 0.404888817 | J22: 0 | K22: 0 | L22: 1.720085903
B23: Equity raising costs | D23: =Inputs!$G$9 -> Real $2026 | E23: $Million | F23: 0 | G23: 5.416636001 | H23: 0 | I23: 0 | J23: 0 | K23: 0 | L23: 5.416636001
B24: Total capex excluding equity raising costs | D24: =Inputs!$G$9 -> Real $2026 | E24: $Million | F24: 312.5026314 | G24: 448.6813124 | H24: 346.4649256 | I24: 71.94761252 | J24: 0 | K24: 0 | L24: 1179.596482
B25: Total | D25: =Inputs!$G$9 -> Real $2026 | E25: $Million | F25: 312.5026314 | G25: 454.0979484 | H25: 346.4649256 | I25: 71.94761252 | J25: 0 | K25: 0 | L25: 1185.013118
A27: =IF(SUM(F27:L27)=0,0,1) -> 0 | B27: Check - As incurred | F27: =IF(ROUND(F42-F25,3)=0,0,1) -> 0 | G27: 0 | H27: 0 | I27: 0 | J27: 0 | K27: 0
A29: Unused: Total capex by asset class ($M, September 2026)
B31: As Incurred | D31: Dollar basis | E31: Units | F31: Pre-period | G31: =Inputs!Q$23 -> 2027 | H31: =Inputs!R$23 -> 2028 | I31: =Inputs!S$23 -> 2029 | J31: =Inputs!T$23 -> 2030 | K31: =Inputs!U$23 -> 2031 | L31: Total
B32: Capex
B33: Transmission lines | D33: =Inputs!$G$9 -> Real $2026 | E33: $Million | F33: =SUM('Outputs|Models'!F68:J68) -> 7.560350677 | G33: ='Outputs|Models'!K68 -> 17.41235856 | H33: ='Outputs|Models'!L68 -> 4.20476979 | I33: ='Outputs|Models'!M68 -> 0 | J33: ='Outputs|Models'!N68 -> 0 | K33: ='Outputs|Models'!O68 -> 0 | L33: =SUM(F33:K33) -> 29.17747903
B34: Substations | D34: =Inputs!$G$9 -> Real $2026 | E34: $Million | F34: =SUM('Outputs|Models'!F69:J69) -> 60.59660696 | G34: ='Outputs|Models'!K69 -> 68.01453462 | H34: ='Outputs|Models'!L69 -> 65.49838139 | I34: ='Outputs|Models'!M69 -> 12.43404265 | J34: ='Outputs|Models'!N69 -> 0 | K34: ='Outputs|Models'!O69 -> 0 | L34: 206.5435656
B35: Secondary systems | D35: =Inputs!$G$9 -> Real $2026 | E35: $Million | F35: =SUM('Outputs|Models'!F70:J70) -> 29.65656777 | G35: ='Outputs|Models'!K70 -> 53.2846142 | H35: ='Outputs|Models'!L70 -> 28.83785064 | I35: ='Outputs|Models'!M70 -> 4.048292957 | J35: ='Outputs|Models'!N70 -> 0 | K35: ='Outputs|Models'!O70 -> 0 | L35: 115.8273256
B36: Minor Plant, Motor Vehicles & Mobile Plant | D36: =Inputs!$G$9 -> Real $2026 | E36: $Million | F36: =SUM('Outputs|Models'!F71:J71) -> 0.7105657447 | G36: ='Outputs|Models'!K71 -> 0 | H36: ='Outputs|Models'!L71 -> 0 | I36: ='Outputs|Models'!M71 -> 0 | J36: ='Outputs|Models'!N71 -> 0 | K36: ='Outputs|Models'!O71 -> 0 | L36: 0.7105657447
B37: Land and easements | D37: =Inputs!$G$9 -> Real $2026 | E37: $Million | F37: =SUM('Outputs|Models'!F72:J72) -> 0.06022166171 | G37: ='Outputs|Models'!K72 -> 0 | H37: ='Outputs|Models'!L72 -> 0 | I37: ='Outputs|Models'!M72 -> 0 | J37: ='Outputs|Models'!N72 -> 0 | K37: ='Outputs|Models'!O72 -> 0 | L37: 0.06022166171
B38: Synchronous Condensers | D38: =Inputs!$G$9 -> Real $2026 | E38: $Million | F38: =SUM('Outputs|Models'!F73:J73) -> 194.8622003 | G38: ='Outputs|Models'!K73 -> 291.2581159 | H38: ='Outputs|Models'!L73 -> 217.1680083 | I38: ='Outputs|Models'!M73 -> 39.31391896 | J38: ='Outputs|Models'!N73 -> 0 | K38: ='Outputs|Models'!O73 -> 0 | L38: 742.6022435
B39: Buildings - capital works | D39: =Inputs!$G$9 -> Real $2026 | E39: $Million | F39: =SUM('Outputs|Models'!F74:J74) -> 19.05611821 | G39: ='Outputs|Models'!K74 -> 18.71168919 | H39: ='Outputs|Models'!L74 -> 30.75591552 | I39: ='Outputs|Models'!M74 -> 16.15135795 | J39: ='Outputs|Models'!N74 -> 0 | K39: ='Outputs|Models'!O74 -> 0 | L39: 84.67508086
B40: Equity raising costs | D40: =Inputs!$G$9 -> Real $2026 | E40: $Million | F40: =SUM(Inputs!L214:P214) -> 0 | G40: =Inputs!Q214 -> 5.416636001 | H40: =Inputs!R214 -> 0 | I40: =Inputs!S214 -> 0 | J40: =Inputs!T214 -> 0 | K40: =Inputs!U214 -> 0 | L40: 5.416636001
B41: Total capex excluding equity raising costs | D41: =Inputs!$G$9 -> Real $2026 | E41: $Million | F41: =SUM(F33:F39) -> 312.5026314 | G41: =SUM(G33:G39) -> 448.6813124 | H41: 346.4649256 | I41: 71.94761252 | J41: 0 | K41: 0 | L41: 1179.596482
B42: Total | D42: =Inputs!$G$9 -> Real $2026 | E42: $Million | F42: =SUM(F33:F40) -> 312.5026314 | G42: =SUM(G33:G40) -> 454.0979484 | H42: 346.4649256 | I42: 71.94761252 | J42: 0 | K42: 0 | L42: 1185.013118
A44: =IF(SUM(F44:L44)=0,0,1) -> 0 | B44: Check - As incurred | F44: =IF(ROUND(SUM('Outputs|Models'!F76:J76)-F42,3)=0,0,1) -> 0 | G44: =IF(ROUND('Outputs|Models'!K76+Inputs!Q214-G42,3)=0,0,1) -> 0 | H44: =IF(ROUND('Outputs|Models'!L76+Inputs!R214-H42,3)=0,0,1) -> 0 | I44: =IF(ROUND('Outputs|Models'!M76+Inputs!S214-I42,3)=0,0,1) -> 0 | J44: =IF(ROUND('Outputs|Models'!N76+Inputs!T214-J42,3)=0,0,1) -> 0 | K44: =IF(ROUND('Outputs|Models'!O76+Inputs!U214-K42,3)=0,0,1) -> 0
A46: Unused: Total non-contestable capex by asset class ($M, September 2026)
B48: As Incurred | D48: Dollar basis | E48: Units | F48: Pre-period | G48: =Inputs!Q$23 -> 2027 | H48: =Inputs!R$23 -> 2028 | I48: =Inputs!S$23 -> 2029 | J48: =Inputs!T$23 -> 2030 | K48: =Inputs!U$23 -> 2031 | L48: Total
B49: Capex
B50: Transmission lines | D50: =Inputs!$G$9 -> Real $2026 | E50: $Million | F50: =SUM(_xlfn._xlws.FILTER(Calculations!E$5:I$55,((Calculations!$S$5:$S$55=$M50)*(Calculations!$Q$5:$Q$55="No")))) -> 1.945676124 | G50: =SUMIFS(Calculations!J$5:J$55,Calculations!$S$5:$S$55,$M50,Calculations!$Q$5:$Q$55,"No") -> 2.390771137 | H50: =SUMIFS(Calculations!K$5:K$55,Calculations!$S$5:$S$55,$M50,Calculations!$Q$5:$Q$55,"No") -> 0.7181664063 | I50: =SUMIFS(Calculations!L$5:L$55,Calculations!$S$5:$S$55,$M50,Calculations!$Q$5:$Q$55,"No") -> 0 | J50: =SUMIFS(Calculations!M$5:M$55,Calculations!$S$5:$S$55,$M50,Calculations!$Q$5:$Q$55,"No") -> 0 | K50: =SUMIFS(Calculations!N$5:N$55,Calculations!$S$5:$S$55,$M50,Calculations!$Q$5:$Q$55,"No") -> 0 | L50: =SUM(F50:K50) -> 5.054613667 | M50: Transmission lines
B51: Substations | D51: =Inputs!$G$9 -> Real $2026 | E51: $Million | F51: =SUM(_xlfn._xlws.FILTER(Calculations!E$5:I$55,((Calculations!$S$5:$S$55=$M51)*(Calculations!$Q$5:$Q$55="No")))) -> 24.20877152 | G51: =SUMIFS(Calculations!J$5:J$55,Calculations!$S$5:$S$55,$M51,Calculations!$Q$5:$Q$55,"No") -> 10.3794225 | H51: =SUMIFS(Calculations!K$5:K$55,Calculations!$S$5:$S$55,$M51,Calculations!$Q$5:$Q$55,"No") -> 11.44649016 | I51: =SUMIFS(Calculations!L$5:L$55,Calculations!$S$5:$S$55,$M51,Calculations!$Q$5:$Q$55,"No") -> 2.908438886 | J51: =SUMIFS(Calculations!M$5:M$55,Calculations!$S$5:$S$55,$M51,Calculations!$Q$5:$Q$55,"No") -> 0 | K51: =SUMIFS(Calculations!N$5:N$55,Calculations!$S$5:$S$55,$M51,Calculations!$Q$5:$Q$55,"No") -> 0 | L51: 48.94312306 | M51: Substations
B52: Secondary systems | D52: =Inputs!$G$9 -> Real $2026 | E52: $Million | F52: =SUM(_xlfn._xlws.FILTER(Calculations!E$5:I$55,((Calculations!$S$5:$S$55=$M52)*(Calculations!$Q$5:$Q$55="No")))) -> 7.641393457 | G52: =SUMIFS(Calculations!J$5:J$55,Calculations!$S$5:$S$55,$M52,Calculations!$Q$5:$Q$55,"No") -> 7.316143716 | H52: =SUMIFS(Calculations!K$5:K$55,Calculations!$S$5:$S$55,$M52,Calculations!$Q$5:$Q$55,"No") -> 4.925448145 | I52: =SUMIFS(Calculations!L$5:L$55,Calculations!$S$5:$S$55,$M52,Calculations!$Q$5:$Q$55,"No") -> 0.9469335909 | J52: =SUMIFS(Calculations!M$5:M$55,Calculations!$S$5:$S$55,$M52,Calculations!$Q$5:$Q$55,"No") -> 0 | K52: =SUMIFS(Calculations!N$5:N$55,Calculations!$S$5:$S$55,$M52,Calculations!$Q$5:$Q$55,"No") -> 0 | L52: 20.82991891 | M52: Secondary System
B53: Minor Plant, Motor Vehicles & Mobile Plant | D53: =Inputs!$G$9 -> Real $2026 | E53: $Million | F53: =SUM(_xlfn._xlws.FILTER(Calculations!E$5:I$55,((Calculations!$S$5:$S$55=$M53)*(Calculations!$Q$5:$Q$55="No")))) -> 0.7105657447 | G53: =SUMIFS(Calculations!J$5:J$55,Calculations!$S$5:$S$55,$M53,Calculations!$Q$5:$Q$55,"No") -> 0 | H53: =SUMIFS(Calculations!K$5:K$55,Calculations!$S$5:$S$55,$M53,Calculations!$Q$5:$Q$55,"No") -> 0 | I53: =SUMIFS(Calculations!L$5:L$55,Calculations!$S$5:$S$55,$M53,Calculations!$Q$5:$Q$55,"No") -> 0 | J53: =SUMIFS(Calculations!M$5:M$55,Calculations!$S$5:$S$55,$M53,Calculations!$Q$5:$Q$55,"No") -> 0 | K53: =SUMIFS(Calculations!N$5:N$55,Calculations!$S$5:$S$55,$M53,Calculations!$Q$5:$Q$55,"No") -> 0 | L53: 0.7105657447 | M53: Minor Plant, Motor Vehicles & Mobile Plant
B54: Land and easements | D54: =Inputs!$G$9 -> Real $2026 | E54: $Million | F54: =SUM(_xlfn._xlws.FILTER(Calculations!E$5:I$55,((Calculations!$S$5:$S$55=$M54)*(Calculations!$Q$5:$Q$55="No")))) -> 0.06022166171 | G54: =SUMIFS(Calculations!J$5:J$55,Calculations!$S$5:$S$55,$M54,Calculations!$Q$5:$Q$55,"No") -> 0 | H54: =SUMIFS(Calculations!K$5:K$55,Calculations!$S$5:$S$55,$M54,Calculations!$Q$5:$Q$55,"No") -> 0 | I54: =SUMIFS(Calculations!L$5:L$55,Calculations!$S$5:$S$55,$M54,Calculations!$Q$5:$Q$55,"No") -> 0 | J54: =SUMIFS(Calculations!M$5:M$55,Calculations!$S$5:$S$55,$M54,Calculations!$Q$5:$Q$55,"No") -> 0 | K54: =SUMIFS(Calculations!N$5:N$55,Calculations!$S$5:$S$55,$M54,Calculations!$Q$5:$Q$55,"No") -> 0 | L54: 0.06022166171 | M54: Land & Easements
B55: Synchronous Condensers | D55: =Inputs!$G$9 -> Real $2026 | E55: $Million | F55: =SUM(_xlfn._xlws.FILTER(Calculations!E$5:I$55,((Calculations!$S$5:$S$55=$M55)*(Calculations!$Q$5:$Q$55="No")))) -> 51.81194985 | G55: =SUMIFS(Calculations!J$5:J$55,Calculations!$S$5:$S$55,$M55,Calculations!$Q$5:$Q$55,"No") -> 41.96466378 | H55: =SUMIFS(Calculations!K$5:K$55,Calculations!$S$5:$S$55,$M55,Calculations!$Q$5:$Q$55,"No") -> 39.01492509 | I55: =SUMIFS(Calculations!L$5:L$55,Calculations!$S$5:$S$55,$M55,Calculations!$Q$5:$Q$55,"No") -> 11.06930604 | J55: =SUMIFS(Calculations!M$5:M$55,Calculations!$S$5:$S$55,$M55,Calculations!$Q$5:$Q$55,"No") -> 0 | K55: =SUMIFS(Calculations!N$5:N$55,Calculations!$S$5:$S$55,$M55,Calculations!$Q$5:$Q$55,"No") -> 0 | L55: 143.8608448 | M55: Synchronous Condensers
B56: Buildings - capital works | D56: =Inputs!$G$9 -> Real $2026 | E56: $Million | F56: =SUM(_xlfn._xlws.FILTER(Calculations!E$5:I$55,((Calculations!$S$5:$S$55=$M56)*(Calculations!$Q$5:$Q$55="No")))) -> 5.081936466 | G56: =SUMIFS(Calculations!J$5:J$55,Calculations!$S$5:$S$55,$M56,Calculations!$Q$5:$Q$55,"No") -> 2.569173284 | H56: =SUMIFS(Calculations!K$5:K$55,Calculations!$S$5:$S$55,$M56,Calculations!$Q$5:$Q$55,"No") -> 5.253049851 | I56: =SUMIFS(Calculations!L$5:L$55,Calculations!$S$5:$S$55,$M56,Calculations!$Q$5:$Q$55,"No") -> 11.05626756 | J56: =SUMIFS(Calculations!M$5:M$55,Calculations!$S$5:$S$55,$M56,Calculations!$Q$5:$Q$55,"No") -> 0 | K56: =SUMIFS(Calculations!N$5:N$55,Calculations!$S$5:$S$55,$M56,Calculations!$Q$5:$Q$55,"No") -> 0 | L56: 23.96042716 | M56: Buildings - capital works
B57: Equity raising costs | D57: =Inputs!$G$9 -> Real $2026 | E57: $Million | G57: =Inputs!Q214 -> 5.416636001 | H57: =Inputs!R214 -> 0 | I57: =Inputs!S214 -> 0 | J57: =Inputs!T214 -> 0 | K57: =Inputs!U214 -> 0 | L57: 5.416636001
B58: Total capex excluding equity raising costs | D58: =Inputs!$G$9 -> Real $2026 | E58: $Million | F58: =SUM(F50:F56) -> 91.46051482 | G58: =SUM(G50:G56) -> 64.62017441 | H58: 61.35807965 | I58: 25.98094608 | J58: 0 | K58: 0 | L58: 243.419715
B59: Total | D59: =Inputs!$G$9 -> Real $2026 | E59: $Million | F59: =SUM(F50:F57) -> 91.46051482 | G59: =SUM(G50:G57) -> 70.03681041 | H59: 61.35807965 | I59: 25.98094608 | J59: 0 | K59: 0 | L59: 248.836351
A61: =IF(SUM(F61:L61)=0,0,1) -> 0 | B61: Check - As incurred | F61: =IF(ROUND(SUM(_xlfn._xlws.FILTER(Calculations!E$5:I$55,(Calculations!$Q$5:$Q$55="No")))-F59,3)=0,0,1) -> 0 | G61: =IF(ROUND(SUMIFS(Calculations!J$5:J$55,Calculations!$Q$5:$Q$55,"No")+Inputs!Q214-G59,3)=0,0,1) -> 0 | H61: =IF(ROUND(SUMIFS(Calculations!K$5:K$55,Calculations!$Q$5:$Q$55,"No")+Inputs!R214-H59,3)=0,0,1) -> 0 | I61: =IF(ROUND(SUMIFS(Calculations!L$5:L$55,Calculations!$Q$5:$Q$55,"No")+Inputs!S214-I59,3)=0,0,1) -> 0 | J61: =IF(ROUND(SUMIFS(Calculations!M$5:M$55,Calculations!$Q$5:$Q$55,"No")+Inputs!T214-J59,3)=0,0,1) -> 0 | K61: =IF(ROUND(SUMIFS(Calculations!N$5:N$55,Calculations!$Q$5:$Q$55,"No")+Inputs!U214-K59,3)=0,0,1) -> 0
A63: Unused: Summary of pre-period capex ($M, September 2026)
B65: As Incurred | D65: Dollar basis | E65: Units | F65: =Inputs!L$23 -> 2022 | G65: =Inputs!M$23 -> 2023 | H65: =Inputs!N$23 -> 2024 | I65: =Inputs!O$23 -> 2025 | J65: =Inputs!P$23 -> 2026 | K65: Total
B66: Capex
B67: Direct costs
B68: OEM costs | D68: =Inputs!$G$9 -> Real $2026 | E68: $Million | F68: c-i-c | G68: c-i-c | H68: c-i-c | I68: c-i-c | J68: c-i-c | K68: c-i-c
B69: LTSA Capital Spares | D69: =Inputs!$G$9 -> Real $2026 | E69: $Million | F69: c-i-c | G69: c-i-c | H69: c-i-c | I69: c-i-c | J69: c-i-c | K69: c-i-c
B70: D&C costs | D70: =Inputs!$G$9 -> Real $2026 | E70: $Million | F70: c-i-c | G70: c-i-c | H70: c-i-c | I70: c-i-c | J70: c-i-c | K70: c-i-c
B71: Easement acquisition | D71: =Inputs!$G$9 -> Real $2026 | E71: $Million | F71: 0 | G71: 0 | H71: 0 | I71: 0 | J71: 0.04734972897 | K71: 0.04734972897
B72: Equipment | D72: =Inputs!$G$9 -> Real $2026 | E72: $Million | F72: 0 | G72: 0 | H72: 0 | I72: 0 | J72: 9.059234567 | K72: 9.059234567
B73: Fleet acquisition | D73: =Inputs!$G$9 -> Real $2026 | E73: $Million | F73: 0 | G73: 0 | H73: 0 | I73: 0 | J73: 0.5586875963 | K73: 0.5586875963
B74: Buildings | D74: =Inputs!$G$9 -> Real $2026 | E74: $Million | F74: 0 | G74: 0 | H74: 0 | I74: 0 | J74: 0 | K74: 0
B75: Infrastructure Planner Fees | D75: =Inputs!$G$9 -> Real $2026 | E75: $Million | F75: 0 | G75: 0 | H75: 0 | I75: 0 | J75: 2.039415174 | K75: 2.039415174
B76: Risk allowance costs | D76: =Inputs!$G$9 -> Real $2026 | E76: $Million | F76: 0 | G76: 0 | H76: 0 | I76: 0 | J76: 4.452808541 | K76: 4.452808541
B77: Labour and indirect costs | K77: 0
B78: Labour costs | D78: =Inputs!$G$9 -> Real $2026 | E78: $Million | F78: 0 | G78: 2.091691091 | H78: 3.845943625 | I78: 11.1459754 | J78: 36.89601916 | K78: 53.97962928
B79: Indirect costs | D79: =Inputs!$G$9 -> Real $2026 | E79: $Million | F79: 0 | G79: 1.04792706 | H79: 1.648116101 | I79: 9.186817154 | J79: 13.70328021 | K79: 25.58614052
B80: Labour escalation and equity raising costs | K80: 0
B81: Labour escalation | D81: =Inputs!$G$9 -> Real $2026 | E81: $Million | F81: 0 | G81: 0 | H81: 0 | I81: 0 | J81: 0 | K81: 0
B82: Equity raising costs | D82: =Inputs!$G$9 -> Real $2026 | E82: $Million | F82: 0 | G82: 0 | H82: 0 | I82: 0 | J82: 0 | K82: 0
B83: Total capex excluding equity raising costs | D83: =Inputs!$G$9 -> Real $2026 | E83: $Million | F83: 0 | G83: 3.139618151 | H83: 5.494059726 | I83: 20.33279255 | J83: 283.5361609 | K83: 312.5026314
B84: Total | D84: =Inputs!$G$9 -> Real $2026 | E84: $Million | F84: 0 | G84: 3.139618151 | H84: 5.494059726 | I84: 20.33279255 | J84: 283.5361609 | K84: 312.5026314
A86: =IF(SUM(F86:K86)=0,0,1) -> 0 | B86: Check - As incurred | F86: =IF(ROUND('Outputs|Models'!F76-F84,3)=0,0,1) -> 0 | G86: =IF(ROUND('Outputs|Models'!G76-G84,3)=0,0,1) -> 0 | H86: =IF(ROUND('Outputs|Models'!H76-H84,3)=0,0,1) -> 0 | I86: =IF(ROUND('Outputs|Models'!I76-I84,3)=0,0,1) -> 0 | J86: =IF(ROUND('Outputs|Models'!J76-J84,3)=0,0,1) -> 0
A88: Unused: Summary of pre-period costs by asset class ($M, September 2026)
B90: As Incurred | D90: Dollar basis | E90: Units | F90: =Inputs!L$23 -> 2022 | G90: =Inputs!M$23 -> 2023 | H90: =Inputs!N$23 -> 2024 | I90: =Inputs!O$23 -> 2025 | J90: =Inputs!P$23 -> 2026 | K90: Total
B91: Capex
B92: Transmission lines | D92: =Inputs!$G$9 -> Real $2026 | E92: $Million | F92: ='Outputs|Models'!F68 -> 0 | G92: ='Outputs|Models'!G68 -> 0.078693852 | H92: ='Outputs|Models'!H68 -> 0.1377074224 | I92: ='Outputs|Models'!I68 -> 0.5096370612 | J92: ='Outputs|Models'!J68 -> 6.834312341 | K92: =SUM(F92:J92) -> 7.560350677
B93: Substations | D93: =Inputs!$G$9 -> Real $2026 | E93: $Million | F93: ='Outputs|Models'!F69 -> 0 | G93: ='Outputs|Models'!G69 -> 0.5485018791 | H93: ='Outputs|Models'!H69 -> 0.9598307623 | I93: ='Outputs|Models'!I69 -> 3.55220743 | J93: ='Outputs|Models'!J69 -> 55.53606689 | K93: 60.59660696
B94: Secondary systems | D94: =Inputs!$G$9 -> Real $2026 | E94: $Million | F94: ='Outputs|Models'!F70 -> 0 | G94: ='Outputs|Models'!G70 -> 0.3099014876 | H94: ='Outputs|Models'!H70 -> 0.5423007512 | I94: ='Outputs|Models'!I70 -> 2.006983765 | J94: ='Outputs|Models'!J70 -> 26.79738176 | K94: 29.65656777
B95: Minor Plant, Motor Vehicles & Mobile Plant | D95: =Inputs!$G$9 -> Real $2026 | E95: $Million | F95: ='Outputs|Models'!F71 -> 0 | G95: ='Outputs|Models'!G71 -> 0.001858395005 | H95: ='Outputs|Models'!H71 -> 0.003252030234 | I95: ='Outputs|Models'!I71 -> 0.01203533624 | J95: ='Outputs|Models'!J71 -> 0.6934199832 | K95: 0.7105657447
B96: Land and easements | D96: =Inputs!$G$9 -> Real $2026 | E96: $Million | F96: ='Outputs|Models'!F72 -> 0 | G96: ='Outputs|Models'!G72 -> 0.000157502154 | H96: ='Outputs|Models'!H72 -> 0.0002756151223 | I96: ='Outputs|Models'!I72 -> 0.001020015323 | J96: ='Outputs|Models'!J72 -> 0.05876852911 | K96: 0.06022166171
B97: Synchronous Condensers | D97: =Inputs!$G$9 -> Real $2026 | E97: $Million | F97: ='Outputs|Models'!F73 -> 0 | G97: ='Outputs|Models'!G73 -> 1.978697699 | H97: ='Outputs|Models'!H73 -> 3.462549524 | I97: ='Outputs|Models'!I73 -> 12.81444045 | J97: ='Outputs|Models'!J73 -> 176.6065127 | K97: 194.8622003
B98: Buildings - capital works | D98: =Inputs!$G$9 -> Real $2026 | E98: $Million | F98: ='Outputs|Models'!F74 -> 0 | G98: ='Outputs|Models'!G74 -> 0.221807337 | H98: ='Outputs|Models'!H74 -> 0.3881436207 | I98: ='Outputs|Models'!I74 -> 1.436468498 | J98: ='Outputs|Models'!J74 -> 17.00969876 | K98: 19.05611821
B99: Equity raising costs | D99: =Inputs!$G$9 -> Real $2026 | E99: $Million | F99: =Inputs!L214 -> 0 | G99: =Inputs!M214 -> 0 | H99: =Inputs!N214 -> 0 | I99: =Inputs!O214 -> 0 | J99: =Inputs!P214 -> 0 | K99: 0
B100: Total capex excluding equity raising costs | D100: =Inputs!$G$9 -> Real $2026 | E100: $Million | F100: =SUM(F92:F98) -> 0 | G100: 3.139618151 | H100: 5.494059726 | I100: 20.33279255 | J100: 283.5361609 | K100: 312.5026314
B101: Total | D101: =Inputs!$G$9 -> Real $2026 | E101: $Million | F101: =SUM(F92:F99) -> 0 | G101: 3.139618151 | H101: 5.494059726 | I101: 20.33279255 | J101: 283.5361609 | K101: 312.5026314
A103: =IF(SUM(F103:K103)=0,0,1) -> 0 | B103: Check - As incurred | F103: =IF(ROUND(F84-F101,3)=0,0,1) -> 0 | G103: =IF(ROUND(G84-G101,3)=0,0,1) -> 0 | H103: =IF(ROUND(H84-H101,3)=0,0,1) -> 0 | I103: =IF(ROUND(I84-I101,3)=0,0,1) -> 0 | J103: =IF(ROUND(J84-J101,3)=0,0,1) -> 0
A105: Unused: Total forecast capex for Enabling CWO RNIP by category ($M, September 2026)
B107: As Incurred | D107: Dollar basis | E107: Units | F107: Total
B108: Capex
B109: Direct costs
B110: OEM costs | D110: =Inputs!$G$9 -> Real $2026 | E110: $Million | F110: c-i-c
B111: LTSA Capital Spares | D111: =Inputs!$G$9 -> Real $2026 | E111: $Million | F111: c-i-c
B112: D&C costs | D112: =Inputs!$G$9 -> Real $2026 | E112: $Million | F112: c-i-c
B113: Easement acquisition | D113: =Inputs!$G$9 -> Real $2026 | E113: $Million | F113: 0.04734972897
B114: Equipment | D114: =Inputs!$G$9 -> Real $2026 | E114: $Million | F114: 10.33446863
B115: Fleet acquisition | D115: =Inputs!$G$9 -> Real $2026 | E115: $Million | F115: 0.5586875963
B116: Buildings | D116: =Inputs!$G$9 -> Real $2026 | E116: $Million | F116: 7.13795311
B117: Infrastructure Planner Fees | D117: =Inputs!$G$9 -> Real $2026 | E117: $Million | F117: 7.809900505
B118: Risk allowance costs | D118: =Inputs!$G$9 -> Real $2026 | E118: $Million | F118: 18.40946636
B119: Labour and indirect costs
B120: Labour costs | D120: =Inputs!$G$9 -> Real $2026 | E120: $Million | F120: 174.8362102
B121: Indirect costs | D121: =Inputs!$G$9 -> Real $2026 | E121: $Million | F121: 40.61956434
B122: Labour escalation and equity raising costs
B123: Labour escalation | D123: =Inputs!$G$9 -> Real $2026 | E123: $Million | F123: 1.720085903
B124: Equity raising costs | D124: =Inputs!$G$9 -> Real $2026 | E124: $Million | F124: 5.416636001
B125: Total capex excluding equity raising costs | D125: =Inputs!$G$9 -> Real $2026 | E125: $Million | F125: 1179.596482
B126: Total | D126: =Inputs!$G$9 -> Real $2026 | E126: $Million | F126: 1185.013118
A128: =IF(SUM(F128:K128)=0,0,1) -> 0 | B128: Check - As incurred | F128: =IF(ROUND(L25-F126,3)=0,0,1) -> 0
A130: Table 6: OEM capex for the Project for the 2027-31 regulatory period ($M, September 2026)
B132: As Incurred | D132: Dollar basis | E132: Units | F132: Pre-period | G132: =Inputs!Q$23 -> 2027 | H132: =Inputs!R$23 -> 2028 | I132: =Inputs!S$23 -> 2029 | J132: =Inputs!T$23 -> 2030 | K132: =Inputs!U$23 -> 2031 | L132: Total
B133: Capex
B134: Substations | D134: =Inputs!$G$9 -> Real $2026 | E134: $Million | F134: c-i-c | G134: c-i-c | H134: c-i-c | I134: c-i-c | J134: c-i-c | K134: c-i-c | L134: c-i-c
B135: Secondary systems | D135: =Inputs!$G$9 -> Real $2026 | E135: $Million | F135: c-i-c | G135: c-i-c | H135: c-i-c | I135: c-i-c | J135: c-i-c | K135: c-i-c | L135: c-i-c
B136: Synchronous Condensers | D136: =Inputs!$G$9 -> Real $2026 | E136: $Million | F136: c-i-c | G136: c-i-c | H136: c-i-c | I136: c-i-c | J136: c-i-c | K136: c-i-c | L136: c-i-c
B137: Buildings - capital works | D137: =Inputs!$G$9 -> Real $2026 | E137: $Million | F137: c-i-c | G137: c-i-c | H137: c-i-c | I137: c-i-c | J137: c-i-c | K137: c-i-c | L137: c-i-c
B138: Total | D138: =Inputs!$G$9 -> Real $2026 | E138: $Million | F138: c-i-c | G138: c-i-c | H138: c-i-c | I138: c-i-c | J138: c-i-c | K138: c-i-c | L138: c-i-c
A140: =IF(SUM(F140:K140)=0,0,1) -> 0 | B140: Check - As incurred | F140: 0 | G140: 0 | H140: 0 | I140: 0 | J140: 0 | K140: 0
A142: Table 7: D&C capex for the Project for the 2027-31 regulatory period ($M, September 2026)
B144: As Incurred | D144: Dollar basis | E144: Units | F144: Pre-period | G144: =Inputs!Q$23 -> 2027 | H144: =Inputs!R$23 -> 2028 | I144: =Inputs!S$23 -> 2029 | J144: =Inputs!T$23 -> 2030 | K144: =Inputs!U$23 -> 2031 | L144: Total
B145: Capex
B146: Transmission lines | D146: =Inputs!$G$9 -> Real $2026 | E146: $Million | F146: c-i-c | G146: c-i-c | H146: c-i-c | I146: c-i-c | J146: c-i-c | K146: c-i-c | L146: c-i-c
B147: Substations | D147: =Inputs!$G$9 -> Real $2026 | E147: $Million | F147: c-i-c | G147: c-i-c | H147: c-i-c | I147: c-i-c | J147: c-i-c | K147: c-i-c | L147: c-i-c
B148: Secondary systems | D148: =Inputs!$G$9 -> Real $2026 | E148: $Million | F148: c-i-c | G148: c-i-c | H148: c-i-c | I148: c-i-c | J148: c-i-c | K148: c-i-c | L148: c-i-c
B149: Synchronous Condensers | D149: =Inputs!$G$9 -> Real $2026 | E149: $Million | F149: c-i-c | G149: c-i-c | H149: c-i-c | I149: c-i-c | J149: c-i-c | K149: c-i-c | L149: c-i-c
B150: Total | D150: =Inputs!$G$9 -> Real $2026 | E150: $Million | F150: c-i-c | G150: c-i-c | H150: c-i-c | I150: c-i-c | J150: c-i-c | K150: c-i-c | L150: c-i-c
A152: =IF(SUM(F152:K152)=0,0,1) -> 0 | B152: Check - As incurred | F152: 0 | G152: 0 | H152: 0 | I152: 0 | J152: 0 | K152: 0
A154: Table 8: LTSA Capital Spares capex for the Project for the 2027-31 regulatory period ($M, September 2026)
B156: As Incurred | D156: Dollar basis | E156: Units | F156: Pre-period | G156: =Inputs!Q$23 -> 2027 | H156: =Inputs!R$23 -> 2028 | I156: =Inputs!S$23 -> 2029 | J156: =Inputs!T$23 -> 2030 | K156: =Inputs!U$23 -> 2031 | L156: Total
B157: Capex
B158: Synchronous Condensers | D158: =Inputs!$G$9 -> Real $2026 | E158: $Million | F158: c-i-c | G158: c-i-c | H158: c-i-c | I158: c-i-c | J158: c-i-c | K158: c-i-c | L158: c-i-c
B159: Total | D159: =Inputs!$G$9 -> Real $2026 | E159: $Million | F159: c-i-c | G159: c-i-c | H159: c-i-c | I159: c-i-c | J159: c-i-c | K159: c-i-c | L159: c-i-c
A161: =IF(SUM(F161:K161)=0,0,1) -> 0 | B161: Check - As incurred | F161: 0 | G161: 0 | H161: 0 | I161: 0 | J161: 0 | K161: 0
A163: Table 16: Equipment capex for the Project for the 2027-31 regulatory period ($M, September 2026)
B165: As Incurred | D165: Dollar basis | E165: Units | F165: Pre-period | G165: =Inputs!Q$23 -> 2027 | H165: =Inputs!R$23 -> 2028 | I165: =Inputs!S$23 -> 2029 | J165: =Inputs!T$23 -> 2030 | K165: =Inputs!U$23 -> 2031 | L165: Total
B166: Capex
B167: Substations | D167: =Inputs!$G$9 -> Real $2026 | E167: $Million | F167: =SUM(Inputs!X56:AB56) -> 4.188494695 | G167: =Inputs!AC56 -> 1.020742873 | H167: =Inputs!AD56 -> 0 | I167: =Inputs!AE56 -> 0 | J167: =Inputs!AF56 -> 0 | K167: =Inputs!AG56 -> 0 | L167: =SUM(F167:K167) -> 5.209237568
B168: Secondary systems | D168: =Inputs!$G$9 -> Real $2026 | E168: $Million | F168: =SUM(Inputs!X57:AB57) -> 4.870739872 | G168: =Inputs!AC57 -> 0 | H168: =Inputs!AD57 -> 0.2544911851 | I168: =Inputs!AE57 -> 0 | J168: =Inputs!AF57 -> 0 | K168: =Inputs!AG57 -> 0 | L168: =SUM(F168:K168) -> 5.125231057
B169: Total | D169: =Inputs!$G$9 -> Real $2026 | E169: $Million | F169: =SUM(F167:F168) -> 9.059234567 | G169: =SUM(G167:G168) -> 1.020742873 | H169: 0.2544911851 | I169: 0 | J169: 0 | K169: 0 | L169: 10.33446863
A171: =IF(SUM(F171:K171)=0,0,1) -> 0 | B171: Check - As incurred | F171: =IF(ROUND(K72-F169,3)=0,0,1) -> 0 | G171: =IF(ROUND(G13-G169,3)=0,0,1) -> 0 | H171: =IF(ROUND(H13-H169,3)=0,0,1) -> 0 | I171: =IF(ROUND(I13-I169,3)=0,0,1) -> 0 | J171: =IF(ROUND(J13-J169,3)=0,0,1) -> 0 | K171: =IF(ROUND(K13-K169,3)=0,0,1) -> 0
A173: Table 18: Forecast easement acquisition capex ($M, September 2026)
B175: As Incurred | D175: Dollar basis | E175: Units | F175: Pre-period | G175: =Inputs!Q$23 -> 2027 | H175: =Inputs!R$23 -> 2028 | I175: =Inputs!S$23 -> 2029 | J175: =Inputs!T$23 -> 2030 | K175: =Inputs!U$23 -> 2031 | L175: Total
B176: Capex | N176: Split
B177: Landholder compensation | D177: =Inputs!$G$9 -> Real $2026 | E177: $Million | F177: =SUM(Inputs!X$59:AB$59)*$N177 -> 0.01578324299 | G177: =Inputs!AC$59*$N177 -> 0 | H177: =Inputs!AD$59*$N177 -> 0 | I177: =Inputs!AE$59*$N177 -> 0 | J177: =Inputs!AF$59*$N177 -> 0 | K177: =Inputs!AG$59*$N177 -> 0 | L177: =SUM(F177:K177) -> 0.01578324299 | N177: 0.3333333333
B178: Legal fees | D178: =Inputs!$G$9 -> Real $2026 | E178: $Million | F178: =SUM(Inputs!X$59:AB$59)*$N178 -> 0.03156648598 | G178: =Inputs!AC$59*$N178 -> 0 | H178: =Inputs!AD$59*$N178 -> 0 | I178: =Inputs!AE$59*$N178 -> 0 | J178: =Inputs!AF$59*$N178 -> 0 | K178: =Inputs!AG$59*$N178 -> 0 | L178: =SUM(F178:K178) -> 0.03156648598 | N178: 0.6666666667
B179: Total | D179: =Inputs!$G$9 -> Real $2026 | E179: $Million | F179: =SUM(F177:F178) -> 0.04734972897 | G179: 0 | H179: 0 | I179: 0 | J179: 0 | K179: 0 | L179: 0.04734972897
A181: =IF(SUM(F181:K181)=0,0,1) -> 0 | B181: Check - As incurred | F181: =IF(ROUND(K71-F179,3)=0,0,1) -> 0 | G181: =IF(ROUND(G12-G179,3)=0,0,1) -> 0 | H181: =IF(ROUND(H12-H179,3)=0,0,1) -> 0 | I181: =IF(ROUND(I12-I179,3)=0,0,1) -> 0 | J181: =IF(ROUND(J12-J179,3)=0,0,1) -> 0 | K181: =IF(ROUND(K12-K179,3)=0,0,1) -> 0
A183: Table 20: Forecast fleet acquisition capex ($M, September 2026)
B185: As Incurred | D185: Dollar basis | E185: Units | F185: Pre-period | G185: =Inputs!Q$23 -> 2027 | H185: =Inputs!R$23 -> 2028 | I185: =Inputs!S$23 -> 2029 | J185: =Inputs!T$23 -> 2030 | K185: =Inputs!U$23 -> 2031 | L185: Total
B186: Capex
B187: Fleet Acqusition Costs | D187: =Inputs!$G$9 -> Real $2026 | E187: $Million | F187: =SUM(Inputs!X60:AB60) -> 0.5586875963 | G187: =Inputs!AC60 -> 0 | H187: =Inputs!AD60 -> 0 | I187: =Inputs!AE60 -> 0 | J187: =Inputs!AF60 -> 0 | K187: =Inputs!AG60 -> 0 | L187: =SUM(F187:K187) -> 0.5586875963
B188: Total | D188: =Inputs!$G$9 -> Real $2026 | E188: $Million | F188: =SUM(F187:F187) -> 0.5586875963 | G188: 0 | H188: 0 | I188: 0 | J188: 0 | K188: 0 | L188: 0.5586875963
A190: =IF(SUM(F190:K190)=0,0,1) -> 0 | B190: Check - As incurred | F190: =IF(ROUND(K73-F188,3)=0,0,1) -> 0 | G190: =IF(ROUND(G14-G188,3)=0,0,1) -> 0 | H190: =IF(ROUND(H14-H188,3)=0,0,1) -> 0 | I190: =IF(ROUND(I14-I188,3)=0,0,1) -> 0 | J190: =IF(ROUND(J14-J188,3)=0,0,1) -> 0 | K190: =IF(ROUND(K14-K188,3)=0,0,1) -> 0
A192: Table 22: Forecast storage construction capex ($M, September 2026)
B194: As Incurred | D194: Dollar basis | E194: Units | F194: Pre-period | G194: =Inputs!Q$23 -> 2027 | H194: =Inputs!R$23 -> 2028 | I194: =Inputs!S$23 -> 2029 | J194: =Inputs!T$23 -> 2030 | K194: =Inputs!U$23 -> 2031 | L194: Total
B195: Capex
B196: Additional Storage Costs | D196: =Inputs!$G$9 -> Real $2026 | E196: $Million | F196: =SUM(Inputs!X61:AB61) -> 0 | G196: =Inputs!AC61 -> 0 | H196: =Inputs!AD61 -> 0 | I196: =Inputs!AE61 -> 7.13795311 | J196: =Inputs!AF61 -> 0 | K196: =Inputs!AG61 -> 0 | L196: =SUM(F196:K196) -> 7.13795311
B197: Total | D197: =Inputs!$G$9 -> Real $2026 | E197: $Million | F197: =SUM(F196:F196) -> 0 | G197: 0 | H197: 0 | I197: 7.13795311 | J197: 0 | K197: 0 | L197: 7.13795311
A199: =IF(SUM(F199:K199)=0,0,1) -> 0 | B199: Check - As incurred | F199: =IF(ROUND(K74-F197,3)=0,0,1) -> 0 | G199: =IF(ROUND(G15-G197,3)=0,0,1) -> 0 | H199: =IF(ROUND(H15-H197,3)=0,0,1) -> 0 | I199: =IF(ROUND(I15-I197,3)=0,0,1) -> 0 | J199: =IF(ROUND(J15-J197,3)=0,0,1) -> 0 | K199: =IF(ROUND(K15-K197,3)=0,0,1) -> 0
A201: Table 23: Risk allowance costs ($M, September 2026)
B203: As Incurred | D203: Dollar basis | E203: Units | F203: Pre-period | G203: =Inputs!Q$23 -> 2027 | H203: =Inputs!R$23 -> 2028 | I203: =Inputs!S$23 -> 2029 | J203: =Inputs!T$23 -> 2030 | K203: =Inputs!U$23 -> 2031 | L203: Total
B204: Capex
B205: Risk allowance costs | D205: =Inputs!$G$9 -> Real $2026 | E205: $Million | F205: 4.452808541 | G205: 7.426609915 | H205: 5.503229691 | I205: 1.026818212 | J205: 0 | K205: 0 | L205: =SUM(F205:K205) -> 18.40946636
B206: Total | D206: =Inputs!$G$9 -> Real $2026 | E206: $Million | F206: =SUM(F205:F205) -> 4.452808541 | G206: 7.426609915 | H206: 5.503229691 | I206: 1.026818212 | J206: 0 | K206: 0 | L206: 18.40946636
A208: =IF(SUM(F208:K208)=0,0,1) -> 0 | B208: Check - As incurred | F208: =IF(ROUND(K76-F206,3)=0,0,1) -> 0 | G208: =IF(ROUND(G17-G206,3)=0,0,1) -> 0 | H208: =IF(ROUND(H17-H206,3)=0,0,1) -> 0 | I208: =IF(ROUND(I17-I206,3)=0,0,1) -> 0 | J208: =IF(ROUND(J17-J206,3)=0,0,1) -> 0 | K208: =IF(ROUND(K17-K206,3)=0,0,1) -> 0
A210: Table 24: Labour and indirect costs for the Project ($M, September 2026, including labour escalation)
B212: As Incurred | D212: Dollar basis | E212: Units | F212: Pre-period | G212: =Inputs!Q$23 -> 2027 | H212: =Inputs!R$23 -> 2028 | I212: =Inputs!S$23 -> 2029 | J212: =Inputs!T$23 -> 2030 | K212: =Inputs!U$23 -> 2031 | L212: Total
B213: Capex
B214: Direct labour and labour-related (internal and outsourced)
B215: Project Development | D215: =Inputs!$G$9 -> Real $2026 | E215: $Million | F215: =SUM(Calculations!E171:I171) -> 12.32333594 | G215: =Calculations!J171 -> 2.452830212 | H215: =Calculations!K171 -> 0.6777848039 | I215: =Calculations!L171 -> 0.07182712653 | J215: =Calculations!M171 -> 0 | K215: =Calculations!N171 -> 0 | L215: =SUM(F215:K215) -> 15.52577808
B216: Procurement and Transaction Management | D216: =Inputs!$G$9 -> Real $2026 | E216: $Million | F216: =SUM(Calculations!E173:I173) -> 0.8777134657 | G216: =Calculations!J173 -> 0.3012750997 | H216: =Calculations!K173 -> 0.2906589944 | I216: =Calculations!L173 -> 0 | J216: =Calculations!M173 -> 0 | K216: =Calculations!N173 -> 0 | L216: 1.46964756
B217: Project Delivery Management | D217: =Inputs!$G$9 -> Real $2026 | E217: $Million | F217: =SUM(Calculations!E165:I170) -> 18.21012726 | G217: =SUM(Calculations!J165:J170) -> 30.0311638 | H217: =SUM(Calculations!K165:K170) -> 29.99460264 | I217: =SUM(Calculations!L165:L170) -> 7.495423222 | J217: =SUM(Calculations!M165:M170) -> 0 | K217: =SUM(Calculations!N165:N170) -> 0 | L217: 85.73131692
B218: Regulatory Management | D218: =Inputs!$G$9 -> Real $2026 | E218: $Million | F218: =SUM(Calculations!E172:I172) -> 0.8236528602 | G218: =Calculations!J172 -> 0.02576233841 | H218: =Calculations!K172 -> 0 | I218: =Calculations!L172 -> 0 | J218: =Calculations!M172 -> 0 | K218: =Calculations!N172 -> 0 | L218: 0.8494151986
B219: Land and Environment | D219: =Inputs!$G$9 -> Real $2026 | E219: $Million | F219: =SUM(Calculations!E163:I163) -> 1.241054965 | G219: =Calculations!J163 -> 1.184933381 | H219: =Calculations!K163 -> 1.199430851 | I219: =Calculations!L163 -> 0.1164337441 | J219: =Calculations!M163 -> 0 | K219: =Calculations!N163 -> 0 | L219: 3.741852941
B220: Community and Stakeholder Engagement | D220: =Inputs!$G$9 -> Real $2026 | E220: $Million | F220: =SUM(Calculations!E161:I161) -> 0.1278673619 | G220: =Calculations!J161 -> 0.02834962923 | H220: =Calculations!K161 -> 0 | I220: =Calculations!L161 -> 0 | J220: =Calculations!M161 -> 0 | K220: =Calculations!N161 -> 0
B221: Other support and corporate roles | D221: =Inputs!$G$9 -> Real $2026 | E221: $Million | F221: =SUM(Calculations!E162:I162,Calculations!E164:I164) -> 4.181988646 | G221: =SUM(Calculations!J162,Calculations!J164) -> 5.008385338 | H221: =SUM(Calculations!K162,Calculations!K164) -> 4.648495738 | I221: =SUM(Calculations!L162,Calculations!L164) -> 2.276309891 | J221: =SUM(Calculations!M162,Calculations!M164) -> 0 | K221: =SUM(Calculations!N162,Calculations!N164) -> 0 | L221: 16.11517961
B222: Indirect
B223: Proportion of direct labour and labour-related | D223: =Inputs!$G$9 -> Real $2026 | E223: $Million | F223: =SUM(Calculations!E225:I225) -> 16.19388878 | G223: =Calculations!J225 -> 16.72829991 | H223: =Calculations!K225 -> 15.7761313 | I223: =Calculations!L225 -> 4.26856885 | J223: =Calculations!M225 -> 0 | K223: =Calculations!N225 -> 0 | L223: =SUM(F223:K223) -> 52.96688884
B224: Non-labour | D224: =Inputs!$G$9 -> Real $2026 | E224: $Million | F224: =SUM(Calculations!E212:I224) -> 25.58614052 | G224: =SUM(Calculations!J212:J224) -> 5.844343854 | H224: =SUM(Calculations!K212:K224) -> 6.588423221 | I224: =SUM(Calculations!L212:L224) -> 2.600656743 | J224: =SUM(Calculations!M212:M224) -> 0 | K224: =SUM(Calculations!N212:N224) -> 0 | L224: =SUM(F224:K224) -> 40.61956434
B225: Total | D225: =Inputs!$G$9 -> Real $2026 | E225: $Million | F225: =SUM(F215:F224) -> 79.5657698 | G225: 61.60534356 | H225: 59.17552755 | I225: 16.82921958 | J225: 0 | K225: 0 | L225: 217.0196435
A227: =IF(SUM(F227:K227)=0,0,1) -> 0 | B227: Check - As incurred | F227: =IF(ROUND(SUM(K78:K79,K81)-F225,3)=0,0,1) -> 0 | G227: =IF(ROUND(SUM(G19:G20,G22)-G225,3)=0,0,1) -> 0 | H227: =IF(ROUND(SUM(H19:H20,H22)-H225,3)=0,0,1) -> 0 | I227: =IF(ROUND(SUM(I19:I20,I22)-I225,3)=0,0,1) -> 0 | J227: =IF(ROUND(SUM(J19:J20,J22)-J225,3)=0,0,1) -> 0 | K227: =IF(ROUND(SUM(K19:K20,K22)-K225,3)=0,0,1) -> 0
A229: Table 26: Summary of labour, labour-related and non-labour forecast costs for Project Delivery Management ($M, Real 2026–27)
B231: As Incurred | D231: Dollar basis | E231: Units | F231: Pre-period | G231: =Inputs!Q$23 -> 2027 | H231: =Inputs!R$23 -> 2028 | I231: =Inputs!S$23 -> 2029 | J231: =Inputs!T$23 -> 2030 | K231: =Inputs!U$23 -> 2031 | L231: Total
B232: Component
B233: Direct labour (internal and outsourced) | D233: =Inputs!$G$9 -> Real $2026 | E233: $Million | F233: =SUM(Calculations!E$165:I$170)*IFERROR(F239/SUM(F$239:F$240),1) -> 16.6345688 | G233: =SUM(Calculations!J$165:J$170)*IFERROR(G239/SUM(G$239:G$240),1) -> 26.58477733 | H233: =SUM(Calculations!K$165:K$170)*IFERROR(H239/SUM(H$239:H$240),1) -> 26.54810869 | I233: =SUM(Calculations!L$165:L$170)*IFERROR(I239/SUM(I$239:I$240),1) -> 6.954134734 | J233: =SUM(Calculations!M$165:M$170)*IFERROR(J239/SUM(J$239:J$240),1) -> 0 | K233: =SUM(Calculations!N$165:N$170)*IFERROR(K239/SUM(K$239:K$240),1) -> 0 | L233: =SUM(F233:K233) -> 76.72158956
B234: Direct labour-related | D234: =Inputs!$G$9 -> Real $2026 | E234: $Million | F234: =SUM(Calculations!E$165:I$170)*IFERROR(F240/SUM(F$239:F$240),1) -> 1.575558456 | G234: =SUM(Calculations!J$165:J$170)*IFERROR(G240/SUM(G$239:G$240),1) -> 3.446386468 | H234: =SUM(Calculations!K$165:K$170)*IFERROR(H240/SUM(H$239:H$240),1) -> 3.446493952 | I234: =SUM(Calculations!L$165:L$170)*IFERROR(I240/SUM(I$239:I$240),1) -> 0.5412884888 | J234: =SUM(Calculations!M$165:M$170)*IFERROR(J240/SUM(J$239:J$240),1) -> 0 | K234: =SUM(Calculations!N$165:N$170)*IFERROR(K240/SUM(K$239:K$240),1) -> 0 | L234: =SUM(F234:K234) -> 9.009727364
B235: Indirect – Proportion of direct labour and labour-related | D235: =Inputs!$G$9 -> Real $2026 | E235: $Million | F235: =SUM(F233:F234)/0.7*0.3 -> 7.804340253 | G235: 12.87049877 | H235: 12.8548297 | I235: 3.212324238 | J235: 0 | K235: 0 | L235: =SUM(F235:K235) -> 36.74199297
B236: Indirect – Non-labour | D236: =Inputs!$G$9 -> Real $2026 | E236: $Million | F236: =SUM(Calculations!E216:I221) -> 0.5760445821 | G236: =SUM(Calculations!J216:J221) -> 0.5211402452 | H236: =SUM(Calculations!K216:K221) -> 0.5076869428 | I236: =SUM(Calculations!L216:L221) -> 0.2060753913 | J236: =SUM(Calculations!M216:M221) -> 0 | K236: =SUM(Calculations!N216:N221) -> 0 | L236: =SUM(F236:K236) -> 1.810947161
B237: Total forecast capex | F237: =SUM(F233:F236) -> 26.59051209 | G237: =SUM(G233:G236) -> 43.42280282 | H237: 43.35711929 | I237: 10.91382285 | J237: 0 | K237: 0 | L237: 124.284257
F239: 16.6345688 | G239: 26.38343974 | H239: 26.09733858 | I239: 6.756247469 | J239: 0 | K239: 0
F240: 1.575558456 | G240: 3.420285547 | H240: 3.387974662 | I240: 0.5258855518 | J240: 0 | K240: 0
A242: Table 28: Summary of labour, labour-related and non-labour forecast costs for Other Support and Corporate costs ($M, Real 2026–27)
B244: As Incurred | D244: Dollar basis | E244: Units | F244: Pre-period | G244: =Inputs!Q$23 -> 2027 | H244: =Inputs!R$23 -> 2028 | I244: =Inputs!S$23 -> 2029 | J244: =Inputs!T$23 -> 2030 | K244: =Inputs!U$23 -> 2031 | L244: Total
B245: Component
B246: Direct labour (internal and outsourced) | D246: =Inputs!$G$9 -> Real $2026 | E246: $Million | F246: =SUM(Calculations!E$164:I$164)*IFERROR(F252/SUM(F$252:F$253),1) -> 4.164299398 | G246: =Calculations!J$164*IFERROR(G252/SUM(G$252:G$253),1) -> 4.991174916 | H246: =Calculations!K$164*IFERROR(H252/SUM(H$252:H$253),1) -> 4.632649883 | I246: =Calculations!L$164*IFERROR(I252/SUM(I$252:I$253),1) -> 2.268068172 | J246: =Calculations!M$164*IFERROR(J252/SUM(J$252:J$253),1) -> 0 | K246: =Calculations!N$164*IFERROR(K252/SUM(K$252:K$253),1) -> 0 | L246: =SUM(F246:K246) -> 16.05619237
B247: Direct labour-related | D247: =Inputs!$G$9 -> Real $2026 | E247: $Million | F247: =SUM(Calculations!E$164:I$164)*IFERROR(F253/SUM(F$252:F$253),1) -> 0.01768924837 | G247: =Calculations!J$164*IFERROR(G253/SUM(G$252:G$253),1) -> 0.01721042268 | H247: =Calculations!K$164*IFERROR(H253/SUM(H$252:H$253),1) -> 0.01584585454 | I247: =Calculations!L$164*IFERROR(I253/SUM(I$252:I$253),1) -> 0.008241718886 | J247: =Calculations!M$164*IFERROR(J253/SUM(J$252:J$253),1) -> 0 | K247: =Calculations!N$164*IFERROR(K253/SUM(K$252:K$253),1) -> 0 | L247: =SUM(F247:K247) -> 0.05898724447
B248: Indirect – Proportion of direct labour and labour-related | D248: =Inputs!$G$9 -> Real $2026 | E248: $Million | F248: =SUM(F246:F247)/0.7*0.3 -> 1.792280848 | G248: 2.146450859 | H248: 1.992212459 | I248: 0.9755613817 | J248: 0 | K248: 0 | L248: =SUM(F248:K248) -> 6.906505548
B249: Indirect – Non-labour | D249: =Inputs!$G$9 -> Real $2026 | E249: $Million | F249: =SUM(Calculations!E215:I215) -> 11.81374014 | G249: =Calculations!J215 -> 4.916864243 | H249: =Calculations!K215 -> 6.080736278 | I249: =Calculations!L215 -> 2.394581352 | J249: =Calculations!M215 -> 0 | K249: =Calculations!N215 -> 0 | L249: =SUM(F249:K249) -> 25.20592201
B250: Total forecast capex | F250: =SUM(F246:F249) -> 17.78800964 | G250: 12.07170044 | H250: 12.72144448 | I250: 5.646452625 | J250: 0 | K250: 0 | L250: 48.22760718
... 9 more rows

Sheet Outputs|RIN
A1: Outputs | RIN | M1: =Report_Month&" Year" -> September Year
A3: Table 5.1 - Network capital costs as-incurred - contestable (nominal $m)
F4: September year | R4: June year
B5: As Incurred | D5: Dollar basis | E5: Units | F5: =Inputs!L$23 -> 2022 | G5: =Inputs!M$23 -> 2023 | H5: =Inputs!N$23 -> 2024 | I5: =Inputs!O$23 -> 2025 | J5: =Inputs!P$23 -> 2026 | K5: =Inputs!Q$23 -> 2027 | L5: =Inputs!R$23 -> 2028 | M5: =Inputs!S$23 -> 2029 | N5: =Inputs!T$23 -> 2030 | O5: =Inputs!U$23 -> 2031 | P5: Total | R5: =F5 -> 2022 | S5: =G5 -> 2023 | T5: =H5 -> 2024 | U5: =I5 -> 2025 | V5: =J5 -> 2026 | W5: Sept 26 Qtr
B6: Asset category
B7: Synchronous Condensers | D7: Nominal | E7: $Million | F7: =F25*Inputs!L$30 -> 0 | G7: =G25*Inputs!M$30 -> 0 | H7: =H25*Inputs!N$30 -> 0 | I7: =I25*Inputs!O$30 -> 0 | J7: =J25*Inputs!P$30 -> 140.2855606 | K7: =K25*Inputs!Q$30 -> 252.574895 | L7: =L25*Inputs!R$30 -> 185.2811644 | M7: =M25*Inputs!S$30 -> 30.15311437 | N7: =N25*Inputs!T$30 -> 0 | O7: =O25*Inputs!U$30 -> 0 | P7: =SUM(F7:O7) -> 608.2947343 | R7: =SUMIFS(Calculations!AE$7:AE$21,Calculations!$T$7:$T$21,$B7,Calculations!$Q$7:$Q$21,$F$38) +SUMIFS(Calculations!AE$24:AE$38,Calculations!$T$24:$T$38,$B7,Calculations!$Q$24:$Q$38,$F$38) -> 0 | S7: =SUMIFS(Calculations!AF$7:AF$21,Calculations!$T$7:$T$21,$B7,Calculations!$Q$7:$Q$21,$F$38) +SUMIFS(Calculations!AF$24:AF$38,Calculations!$T$24:$T$38,$B7,Calculations!$Q$24:$Q$38,$F$38) -> 0 | T7: =SUMIFS(Calculations!AG$7:AG$21,Calculations!$T$7:$T$21,$B7,Calculations!$Q$7:$Q$21,$F$38) +SUMIFS(Calculations!AG$24:AG$38,Calculations!$T$24:$T$38,$B7,Calculations!$Q$24:$Q$38,$F$38) -> 0 | U7: =SUMIFS(Calculations!AH$7:AH$21,Calculations!$T$7:$T$21,$B7,Calculations!$Q$7:$Q$21,$F$38) +SUMIFS(Calculations!AH$24:AH$38,Calculations!$T$24:$T$38,$B7,Calculations!$Q$24:$Q$38,$F$38) -> 0 | V7: =SUMIFS(Calculations!AI$7:AI$21,Calculations!$T$7:$T$21,$B7,Calculations!$Q$7:$Q$21,$F$38) +SUMIFS(Calculations!AI$24:AI$38,Calculations!$T$24:$T$38,$B7,Calculations!$Q$24:$Q$38,$F$38) -> 79.95201349 | W7: =SUM(F7:J7)-SUM(R7:V7) -> 60.3335471 | X7: ◄ Includes direct portion (70%) of labour costs allocated to network asset classes
B8: Transmission towers | D8: Nominal | E8: $Million | F8: =F26*Inputs!L$30 -> 0 | G8: =G26*Inputs!M$30 -> 0 | H8: =H26*Inputs!N$30 -> 0 | I8: =I26*Inputs!O$30 -> 0 | J8: =J26*Inputs!P$30 -> 3.27885363 | K8: =K26*Inputs!Q$30 -> 9.062921781 | L8: =L26*Inputs!R$30 -> 2.159302902 | M8: =M26*Inputs!S$30 -> 0 | N8: =N26*Inputs!T$30 -> 0 | O8: =O26*Inputs!U$30 -> 0 | P8: =SUM(F8:O8) -> 14.50107831 | R8: =SUMIFS(Calculations!AE$7:AE$21,Calculations!$T$7:$T$21,$B8,Calculations!$Q$7:$Q$21,$F$38) +SUMIFS(Calculations!AE$24:AE$38,Calculations!$T$24:$T$38,$B8,Calculations!$Q$24:$Q$38,$F$38) -> 0 | S8: =SUMIFS(Calculations!AF$7:AF$21,Calculations!$T$7:$T$21,$B8,Calculations!$Q$7:$Q$21,$F$38) +SUMIFS(Calculations!AF$24:AF$38,Calculations!$T$24:$T$38,$B8,Calculations!$Q$24:$Q$38,$F$38) -> 0 | T8: =SUMIFS(Calculations!AG$7:AG$21,Calculations!$T$7:$T$21,$B8,Calculations!$Q$7:$Q$21,$F$38) +SUMIFS(Calculations!AG$24:AG$38,Calculations!$T$24:$T$38,$B8,Calculations!$Q$24:$Q$38,$F$38) -> 0 | U8: =SUMIFS(Calculations!AH$7:AH$21,Calculations!$T$7:$T$21,$B8,Calculations!$Q$7:$Q$21,$F$38) +SUMIFS(Calculations!AH$24:AH$38,Calculations!$T$24:$T$38,$B8,Calculations!$Q$24:$Q$38,$F$38) -> 0 | V8: =SUMIFS(Calculations!AI$7:AI$21,Calculations!$T$7:$T$21,$B8,Calculations!$Q$7:$Q$21,$F$38) +SUMIFS(Calculations!AI$24:AI$38,Calculations!$T$24:$T$38,$B8,Calculations!$Q$24:$Q$38,$F$38) -> 0.6325877062 | W8: 2.646265924
B9: Transmission Tower support structures | D9: Nominal | E9: $Million | F9: =F27*Inputs!L$30 -> 0 | G9: =G27*Inputs!M$30 -> 0 | H9: =H27*Inputs!N$30 -> 0 | I9: =I27*Inputs!O$30 -> 0 | J9: =J27*Inputs!P$30 -> 0.424660226 | K9: =K27*Inputs!Q$30 -> 1.173782927 | L9: =L27*Inputs!R$30 -> 0.2796617848 | M9: =M27*Inputs!S$30 -> 0 | N9: =N27*Inputs!T$30 -> 0 | O9: =O27*Inputs!U$30 -> 0 | P9: 1.878104938 | R9: =SUMIFS(Calculations!AE$7:AE$21,Calculations!$T$7:$T$21,$B9,Calculations!$Q$7:$Q$21,$F$38) +SUMIFS(Calculations!AE$24:AE$38,Calculations!$T$24:$T$38,$B9,Calculations!$Q$24:$Q$38,$F$38) -> 0 | S9: =SUMIFS(Calculations!AF$7:AF$21,Calculations!$T$7:$T$21,$B9,Calculations!$Q$7:$Q$21,$F$38) +SUMIFS(Calculations!AF$24:AF$38,Calculations!$T$24:$T$38,$B9,Calculations!$Q$24:$Q$38,$F$38) -> 0 | T9: =SUMIFS(Calculations!AG$7:AG$21,Calculations!$T$7:$T$21,$B9,Calculations!$Q$7:$Q$21,$F$38) +SUMIFS(Calculations!AG$24:AG$38,Calculations!$T$24:$T$38,$B9,Calculations!$Q$24:$Q$38,$F$38) -> 0 | U9: =SUMIFS(Calculations!AH$7:AH$21,Calculations!$T$7:$T$21,$B9,Calculations!$Q$7:$Q$21,$F$38) +SUMIFS(Calculations!AH$24:AH$38,Calculations!$T$24:$T$38,$B9,Calculations!$Q$24:$Q$38,$F$38) -> 0 | V9: =SUMIFS(Calculations!AI$7:AI$21,Calculations!$T$7:$T$21,$B9,Calculations!$Q$7:$Q$21,$F$38) +SUMIFS(Calculations!AI$24:AI$38,Calculations!$T$24:$T$38,$B9,Calculations!$Q$24:$Q$38,$F$38) -> 0.08192949993 | W9: 0.342730726
